Workbook

Sheet 1. Introduction
A6: created by Sam Arthur @ FPCR | B6: Small Sites Metric (The Statutory Biodiversity Metric)
B11: Release Date: | F11: November 2023
B17: Cell style conventions
D19: Enter data
D21: Automated equation
D23: Result
D25: Title cell
D26: Title cell alt colour
B27: ▲ | D27: Error
B28: ⚠ | D28: Attention required | J28: Technical Requirements - Excel Versions: 2010, 2013, 2016, 2019, Office 365, Excel for Android
D29: Use of this cell is not required

Sheet 2. Site Details
B2: Sheet Name | D2: Site Details
B3: 1. Planning authority:
B4: 2. Site name:
B5: 3. Applicant:
B6: 4. Planning application type:
B7: 5. Planning application reference:
B8: 6. Metric completed by (name & job title):
B9: 7. Date of metric completion:
B10: 8. Revision number:
B11: 9. Masterplan document title / drawing number:
B12: Net Gain Targets
B13: 10. Targeted % increase in Units | C13: 10a. Habitat | D13: 10 | E13: =IF(D13<10,"Caution - % target reduced below default ▲",IF(D13>10,"Caution -Target increased above default ⚠","")) -> 
C14: 10b. Hedgerow | D14: 10 | E14: =IF(D14<10,"Caution - % target reduced below default ▲",IF(D14>10,"Caution -Target increased above default ⚠","")) -> 
C15: 10c. Watercourses | D15: 10
B17: 11. Targeted increase in Units if baseline value is zero - agreed with local planning authority | C17: 11a. Habitat units | D17: 0 | E17: =IF(D17=0,"","Unit increase Targets must be agreed with LPA ⚠") -> 
C18: 11b. Hedgerow units | D18: 0 | E18: =IF(D18=0,"","Unit increase Targets must be agreed with LPA ⚠") -> 
C19: 11c. Watercourse units | D19: 0
B21: For planning authority use only
B22: 12. Planning authority reviewer:
B23: 13. Date of planning authority review:

Sheet 3. Desktop Assessment
B2: Site Name: | C2: =IF('2. Site Details'!D4="","Enter site name on 2. Site Details",'2. Site Details'!D4) -> Enter site name on 2. Site Details
B3: Sheet Name | C3: Desktop Assessment
B5: Development
B6: 14. Select the type of proposed development. If Other provide details at Q.25 below | D6: =IF(AND(C6="Residential",C9="Unknown number"),"Site area must be less than 5,000 m2",IF(C6="","","Site area must be less than 10,000 m2")) ->  | E6: =IF(AND(C9="Unknown number", C6="Residential"),"Site area limited by unknown number of dwellings ⚠", "") -> 
B7: 15. Site area (m2) | D7: =IF(AND(D6="Site area must be less than 10,000 m2",C7>=10000),"ERROR- Site too large for metric - USE MAIN METRIC ▲",IF(AND(D6="Site area must be less than 5,000 m2",C7>=5000),"ERROR- Site too large for metric - USE MAIN METRIC ▲","")) -> 
B8: =IF(OR(C6="Residential",C6="Other"),"N/A",IF(C6="","","16. Building footprint (m2) of commercial buildings proposed within the development site (or zero if none)")) ->  | D8: =IF(AND(B8="n/a",C8<>""),"ERROR- Not required",IF(AND(C8<>"",C8>=1000),"ERROR- Footprint too large for metric - USE MAIN METRIC",IF(AND(C8<>"",C8>C7),"ERROR - Footprint larger than development area",""))) -> 
B9: =IF(OR(C6="Commercial",C6="Other"),"N/A",IF(C6="","","17. Number of dwellings proposed within the development site")) ->  | D9: =IF(AND(B9="n/a",C9<>""),"ERROR- Not required ▲",IF(OR(AND(C6="Residential",C9="Over 9 dwellings"),AND(C6="Mixed",C9="Over 9 dwellings")),"ERROR- Number of dwellings too large for metric - USE MAIN METRIC ▲",IF(AND(B9="17. Number of dwellings proposed within the development site",C9=""),"ERROR - You must specify number of dwellings ▲",""))) -> 
B10: Designated sites and priority habitats
B11: 18. Any designated sites on or within 500m of the site? | D11: =IF(C11="On site","ERROR- Site too complex for metric - USE MAIN METRIC ▲",IF(C11="Within 500m of site boundary","Consider using main metric tool ⚠","")) -> 
B12: 19. Any priority habitats on or within 500m of the site? | D12: =IF(C12="On site","ERROR- Site too complex for metric - USE MAIN METRIC ▲",IF(C12="Within 500m of site boundary","Consider using main metric tool ⚠","")) -> 
B13: 20. List the designated sites and/or priority habitats
B14: 21. Information sources used for assessment of designated sites and priority habitats (See guidance)
B15: Site walkover
B16: 22. Site walkover completed? | D16: =IF(C16="Walkover completed by competent person","A competent person should be able to confidently identify the habitats onsite",IF(C16="No Walkover Undertaken","ERROR- Site walkover required","")) -> 
B17: 23. Date of site walkover - DD/MM/YY | D17: =IF(C17="","Walkover date required ▲","Site walkover data valid until "&TEXT(EDATE(C17,6),"dd/mm/yy")) -> Walkover date required ▲
B18: 24. Who completed the walkover? (Name and job title)
B19: Additional details
B20: 25. Any additional information or notes

Sheet 4. Supporting Information
B2: Site Name: | D2: =IF('2. Site Details'!D4="","Enter site name on 2. Site Details",'2. Site Details'!D4) -> Enter site name on 2. Site Details | E2: =IF(OR('3. Desktop Assessment'!C16="Walkover completed by competent person",'3. Desktop Assessment'!C16="No walkover undertaken"),IF(COUNTA(D8:E8,D10:E10,D14:E14,D16:E16,D18:E18,D22:E22,D26:E26,D30:E30,D34:E34,D38:E38,D42:E42,D46:E46,D12:E12,D20:E20,D24:E24,D28:E28,D32:E32,D36:E36,D40:E40,D44:E44)=0,"Error - Site photographs required to support application",""),"") -> 
B3: Sheet Name | D3: Supporting Information
B5: Baseline Habitat Photos | D5: Insert photographs to support assumptions made in the metric
B7: Ref | C7: Habitat type | D7: Photo 1 | E7: Photo 2
B8: 1 | C8: Date taken
C9: =IF('5. Area Habitats'!D11=0,"",'5. Area Habitats'!D11) -> 
B10: 2 | C10: Date taken
C11: =IF('5. Area Habitats'!D12=0,"",'5. Area Habitats'!D12) -> 
B12: 3 | C12: Date taken
C13: =IF('5. Area Habitats'!D13=0,"",'5. Area Habitats'!D13) -> 
B14: 4 | C14: Date taken
C15: =IF('5. Area Habitats'!D14=0,"",'5. Area Habitats'!D14) -> 
B16: 5 | C16: Date taken
C17: =IF('5. Area Habitats'!D15=0,"",'5. Area Habitats'!D15) -> 
B18: 6 | C18: Date taken
C19: =IF('5. Area Habitats'!D16=0,"",'5. Area Habitats'!D16) -> 
B20: 7 | C20: Date taken
C21: =IF('5. Area Habitats'!D17=0,"",'5. Area Habitats'!D17) -> 
B22: 8 | C22: Date taken
C23: =IF('5. Area Habitats'!D18=0,"",'5. Area Habitats'!D18) -> 
B24: 9 | C24: Date taken
C25: =IF('5. Area Habitats'!D19=0,"",'5. Area Habitats'!D19) -> 
B26: 10 | C26: Date taken
C27: =IF('5. Area Habitats'!D20=0,"",'5. Area Habitats'!D20) -> 
B28: 11 | C28: Date taken
C29: =IF('5. Area Habitats'!D21=0,"",'5. Area Habitats'!D21) -> 
B30: 12 | C30: Date taken
C31: =IF('5. Area Habitats'!D22=0,"",'5. Area Habitats'!D22) -> 
B32: 13 | C32: Date taken
C33: =IF('5. Area Habitats'!D23=0,"",'5. Area Habitats'!D23) -> 
B34: 14 | C34: Date taken
C35: =IF('5. Area Habitats'!D24=0,"",'5. Area Habitats'!D24) -> 
B36: 15 | C36: Date taken
C37: =IF('5. Area Habitats'!D25=0,"",'5. Area Habitats'!D25) -> 
B38: 16 | C38: Date taken
C39: =IF('5. Area Habitats'!D26=0,"",'5. Area Habitats'!D26) -> 
B40: 17 | C40: Date taken
C41: =IF('5. Area Habitats'!D27=0,"",'5. Area Habitats'!D27) -> 
B42: 18 | C42: Date taken
C43: =IF('5. Area Habitats'!D28=0,"",'5. Area Habitats'!D28) -> 
B44: 19 | C44: Date taken
C45: =IF('5. Area Habitats'!D29=0,"",'5. Area Habitats'!D29) -> 
B46: 20 | C46: Date taken
C47: =IF('5. Area Habitats'!D30=0,"",'5. Area Habitats'!D30) -> 

Sheet 5. Area Habitats
O1: Retained Units | P1: =IFERROR(SUM(AE11:AE31), "Error ▲") -> 0 | R1: Data beyond this column is automated
B2: Site Name | C2: =IF('2. Site Details'!D4="","Enter site name on 2. Site Details",'2. Site Details'!D4) -> Enter site name on 2. Site Details | F2: Instructions: 1. Enter data into 1a. Baseline habitats table 2. Enter data on habitats to be created into 1b. Habitats to be created 3. Enter data on habitats to be enhanced into 1c. Habitats to be enhanced 4. Enter data on individual trees into 1d. Tree area calculator | J2: =IFERROR(IF(OR((ISNUMBER(SEARCH("▲",A7:Q101)))),"Input Errors Present On Sheet - Red Cells Or ▲ Highlight Errors","All Key Rules Satisfied ✓ "),"Technical Errors On Sheet ▲") -> All Key Rules Satisfied ✓ | O2: Lost Units | P2: =IFERROR(N32, "Error ▲") -> 0
B3: Sheet Name | C3: 5. Area Habitats | O3: Created Units | P3: =IFERROR(L61, "Error ▲") -> 0
O4: Enhancement Units | P4: =IFERROR(L89, "Error ▲") -> 0
O5: Net Change | P5: =IFERROR((P1+L61+L89)-L32, "Error ▲") -> 0
B7: 1a. Baseline habitats
B9: Ref | C9: Habitat | F9: C. Strategic significance | I9: Areas (m2) | L9: Baseline results | O9: Comments | T9: Habitat distinctiveness | W9: Habitat condition | AB9: Strategic significance | AE9: Ecological baseline | AH9: Suggested action to address habitat losses | AI9: Enhancement rules
C10: A. Broad Habitat | D10: B. Habitat type | I10: D. Total Area | J10: E. Area retained | K10: F. Area enhanced | L10: Total habitat units onsite | M10: Area Lost | N10: Units lost | O10: User comments | P10: LPA comments | T10: Distinctiveness | V10: Score | W10: Condition | X10: Score | AB10: Strategic significance | AC10: Strategic significance | AD10: Strategic significance multiplier | AE10: Baseline units retained | AF10: Baseline units to be enhanced | AG10: Area lost
B11: 1 | L11: =IF(C11="","",IFERROR(IF(I11="","",((I11/10000)*V11*X11)*AD11),"Error ▲")) ->  | M11: =IF(I11="","",IF(J11+K11>I11,"Area Error ▲",I11-J11-K11)) ->  | N11: =IFERROR(IF(I11="","",IF(M11="Area Error ▲","Area Error ▲",((M11/10000)*V11*X11)*AD11)),"This intervention is not permitted within the SSM ▲") ->  | T11: =IF(C11="","",VLOOKUP(D11,'9. All Habitats + Multipliers'!$C$4:$K$102,5,FALSE)) ->  | V11: =IF(T11="","",VLOOKUP(T11,'11. Lists'!$B$47:$D$49,2,FALSE)) ->  | W11: =IF(C11="","",VLOOKUP(D11,'10. Condition and Temporal'!$B$6:$C$103,2,FALSE)) ->  | X11: =IF(W11="","",VLOOKUP(W11,'11. Lists'!$F$47:$G$51,2,FALSE)) ->  | AB11: =IF(F11="","",F11) ->  | AC11: =IF(AB11="","",VLOOKUP(AB11,'11. Lists'!$F$36:$H$38,2,FALSE)) ->  | AD11: =IF(AB11="","",VLOOKUP(AB11,'11. Lists'!$F$36:$H$38,3,FALSE)) ->  | AE11: =IF(D11="","",((J11/10000)*V11*X11)*AD11) ->  | AF11: =IF(D11="","",((K11/10000)*V11*X11)*AD11) ->  | AG11: =IF(D11="","",M11) ->  | AH11: =IF(T11="","",VLOOKUP(T11,'11. Lists'!$B$47:$D$49,3,FALSE)) ->  | AI11: =IF(D11="","",VLOOKUP(D11,'10. Condition and Temporal'!$B$6:$L$103,4,FALSE)) -> 
B12: 2 | L12: =IF(C12="","",IFERROR(IF(I12="","",((I12/10000)*V12*X12)*AD12),"Error ▲")) ->  | M12: =IF(I12="","",IF(J12+K12>I12,"Area Error ▲",I12-J12-K12)) ->  | N12: =IFERROR(IF(I12="","",IF(M12="Area Error ▲","Area Error ▲",((M12/10000)*V12*X12)*AD12)),"This intervention is not permitted within the SSM ▲") ->  | T12: =IF(C12="","",VLOOKUP(D12,'9. All Habitats + Multipliers'!$C$4:$K$102,5,FALSE)) ->  | V12: =IF(T12="","",VLOOKUP(T12,'11. Lists'!$B$47:$D$49,2,FALSE)) ->  | W12: =IF(C12="","",VLOOKUP(D12,'10. Condition and Temporal'!$B$6:$C$103,2,FALSE)) ->  | X12: =IF(W12="","",VLOOKUP(W12,'11. Lists'!$F$47:$G$51,2,FALSE)) ->  | AB12: =IF(F12="","",F12) ->  | AC12: =IF(AB12="","",VLOOKUP(AB12,'11. Lists'!$F$36:$H$38,2,FALSE)) ->  | AD12: =IF(AB12="","",VLOOKUP(AB12,'11. Lists'!$F$36:$H$38,3,FALSE)) ->  | AE12: =IF(D12="","",((J12/10000)*V12*X12)*AD12) ->  | AF12: =IF(D12="","",((K12/10000)*V12*X12)*AD12) ->  | AG12: =IF(D12="","",M12) ->  | AH12: =IF(T12="","",VLOOKUP(T12,'11. Lists'!$B$47:$D$49,3,FALSE)) ->  | AI12: =IF(D12="","",VLOOKUP(D12,'10. Condition and Temporal'!$B$6:$L$103,4,FALSE)) -> 
B13: 3 | T13: =IF(C13="","",VLOOKUP(D13,'9. All Habitats + Multipliers'!$C$4:$K$102,5,FALSE)) ->  | V13: =IF(T13="","",VLOOKUP(T13,'11. Lists'!$B$47:$D$49,2,FALSE)) ->  | W13: =IF(C13="","",VLOOKUP(D13,'10. Condition and Temporal'!$B$6:$C$103,2,FALSE)) ->  | X13: =IF(W13="","",VLOOKUP(W13,'11. Lists'!$F$47:$G$51,2,FALSE)) ->  | AB13: =IF(F13="","",F13) ->  | AC13: =IF(AB13="","",VLOOKUP(AB13,'11. Lists'!$F$36:$H$38,2,FALSE)) ->  | AD13: =IF(AB13="","",VLOOKUP(AB13,'11. Lists'!$F$36:$H$38,3,FALSE)) ->  | AH13: =IF(T13="","",VLOOKUP(T13,'11. Lists'!$B$47:$D$49,3,FALSE)) ->  | AI13: =IF(D13="","",VLOOKUP(D13,'10. Condition and Temporal'!$B$6:$L$103,4,FALSE)) -> 
B14: 4 | T14: =IF(C14="","",VLOOKUP(D14,'9. All Habitats + Multipliers'!$C$4:$K$102,5,FALSE)) ->  | V14: =IF(T14="","",VLOOKUP(T14,'11. Lists'!$B$47:$D$49,2,FALSE)) ->  | W14: =IF(C14="","",VLOOKUP(D14,'10. Condition and Temporal'!$B$6:$C$103,2,FALSE)) ->  | X14: =IF(W14="","",VLOOKUP(W14,'11. Lists'!$F$47:$G$51,2,FALSE)) ->  | AC14: =IF(AB14="","",VLOOKUP(AB14,'11. Lists'!$F$36:$H$38,2,FALSE)) ->  | AD14: =IF(AB14="","",VLOOKUP(AB14,'11. Lists'!$F$36:$H$38,3,FALSE)) ->  | AH14: =IF(T14="","",VLOOKUP(T14,'11. Lists'!$B$47:$D$49,3,FALSE)) ->  | AI14: =IF(D14="","",VLOOKUP(D14,'10. Condition and Temporal'!$B$6:$L$103,4,FALSE)) -> 
B15: 5 | T15: =IF(C15="","",VLOOKUP(D15,'9. All Habitats + Multipliers'!$C$4:$K$102,5,FALSE)) ->  | V15: =IF(T15="","",VLOOKUP(T15,'11. Lists'!$B$47:$D$49,2,FALSE)) ->  | W15: =IF(C15="","",VLOOKUP(D15,'10. Condition and Temporal'!$B$6:$C$103,2,FALSE)) ->  | X15: =IF(W15="","",VLOOKUP(W15,'11. Lists'!$F$47:$G$51,2,FALSE)) ->  | AC15: =IF(AB15="","",VLOOKUP(AB15,'11. Lists'!$F$36:$H$38,2,FALSE)) ->  | AD15: =IF(AB15="","",VLOOKUP(AB15,'11. Lists'!$F$36:$H$38,3,FALSE)) ->  | AH15: =IF(T15="","",VLOOKUP(T15,'11. Lists'!$B$47:$D$49,3,FALSE)) ->  | AI15: =IF(D15="","",VLOOKUP(D15,'10. Condition and Temporal'!$B$6:$L$103,4,FALSE)) -> 
B16: 6 | T16: =IF(C16="","",VLOOKUP(D16,'9. All Habitats + Multipliers'!$C$4:$K$102,5,FALSE)) ->  | V16: =IF(T16="","",VLOOKUP(T16,'11. Lists'!$B$47:$D$49,2,FALSE)) ->  | W16: =IF(C16="","",VLOOKUP(D16,'10. Condition and Temporal'!$B$6:$C$103,2,FALSE)) ->  | X16: =IF(W16="","",VLOOKUP(W16,'11. Lists'!$F$47:$G$51,2,FALSE)) ->  | AC16: =IF(AB16="","",VLOOKUP(AB16,'11. Lists'!$F$36:$H$38,2,FALSE)) ->  | AD16: =IF(AB16="","",VLOOKUP(AB16,'11. Lists'!$F$36:$H$38,3,FALSE)) ->  | AH16: =IF(T16="","",VLOOKUP(T16,'11. Lists'!$B$47:$D$49,3,FALSE)) ->  | AI16: =IF(D16="","",VLOOKUP(D16,'10. Condition and Temporal'!$B$6:$L$103,4,FALSE)) -> 
B17: 7 | T17: =IF(C17="","",VLOOKUP(D17,'9. All Habitats + Multipliers'!$C$4:$K$102,5,FALSE)) ->  | V17: =IF(T17="","",VLOOKUP(T17,'11. Lists'!$B$47:$D$49,2,FALSE)) ->  | W17: =IF(C17="","",VLOOKUP(D17,'10. Condition and Temporal'!$B$6:$C$103,2,FALSE)) ->  | X17: =IF(W17="","",VLOOKUP(W17,'11. Lists'!$F$47:$G$51,2,FALSE)) ->  | AC17: =IF(AB17="","",VLOOKUP(AB17,'11. Lists'!$F$36:$H$38,2,FALSE)) ->  | AD17: =IF(AB17="","",VLOOKUP(AB17,'11. Lists'!$F$36:$H$38,3,FALSE)) ->  | AH17: =IF(T17="","",VLOOKUP(T17,'11. Lists'!$B$47:$D$49,3,FALSE)) ->  | AI17: =IF(D17="","",VLOOKUP(D17,'10. Condition and Temporal'!$B$6:$L$103,4,FALSE)) -> 
B18: 8 | T18: =IF(C18="","",VLOOKUP(D18,'9. All Habitats + Multipliers'!$C$4:$K$102,5,FALSE)) ->  | V18: =IF(T18="","",VLOOKUP(T18,'11. Lists'!$B$47:$D$49,2,FALSE)) ->  | W18: =IF(C18="","",VLOOKUP(D18,'10. Condition and Temporal'!$B$6:$C$103,2,FALSE)) ->  | X18: =IF(W18="","",VLOOKUP(W18,'11. Lists'!$F$47:$G$51,2,FALSE)) ->  | AC18: =IF(AB18="","",VLOOKUP(AB18,'11. Lists'!$F$36:$H$38,2,FALSE)) ->  | AD18: =IF(AB18="","",VLOOKUP(AB18,'11. Lists'!$F$36:$H$38,3,FALSE)) ->  | AH18: =IF(T18="","",VLOOKUP(T18,'11. Lists'!$B$47:$D$49,3,FALSE)) ->  | AI18: =IF(D18="","",VLOOKUP(D18,'10. Condition and Temporal'!$B$6:$L$103,4,FALSE)) -> 
B19: 9 | T19: =IF(C19="","",VLOOKUP(D19,'9. All Habitats + Multipliers'!$C$4:$K$102,5,FALSE)) ->  | V19: =IF(T19="","",VLOOKUP(T19,'11. Lists'!$B$47:$D$49,2,FALSE)) ->  | W19: =IF(C19="","",VLOOKUP(D19,'10. Condition and Temporal'!$B$6:$C$103,2,FALSE)) ->  | X19: =IF(W19="","",VLOOKUP(W19,'11. Lists'!$F$47:$G$51,2,FALSE)) ->  | AC19: =IF(AB19="","",VLOOKUP(AB19,'11. Lists'!$F$36:$H$38,2,FALSE)) ->  | AD19: =IF(AB19="","",VLOOKUP(AB19,'11. Lists'!$F$36:$H$38,3,FALSE)) ->  | AH19: =IF(T19="","",VLOOKUP(T19,'11. Lists'!$B$47:$D$49,3,FALSE)) ->  | AI19: =IF(D19="","",VLOOKUP(D19,'10. Condition and Temporal'!$B$6:$L$103,4,FALSE)) -> 
B20: 10 | T20: =IF(C20="","",VLOOKUP(D20,'9. All Habitats + Multipliers'!$C$4:$K$102,5,FALSE)) ->  | V20: =IF(T20="","",VLOOKUP(T20,'11. Lists'!$B$47:$D$49,2,FALSE)) ->  | W20: =IF(C20="","",VLOOKUP(D20,'10. Condition and Temporal'!$B$6:$C$103,2,FALSE)) ->  | X20: =IF(W20="","",VLOOKUP(W20,'11. Lists'!$F$47:$G$51,2,FALSE)) ->  | AC20: =IF(AB20="","",VLOOKUP(AB20,'11. Lists'!$F$36:$H$38,2,FALSE)) ->  | AD20: =IF(AB20="","",VLOOKUP(AB20,'11. Lists'!$F$36:$H$38,3,FALSE)) ->  | AH20: =IF(T20="","",VLOOKUP(T20,'11. Lists'!$B$47:$D$49,3,FALSE)) ->  | AI20: =IF(D20="","",VLOOKUP(D20,'10. Condition and Temporal'!$B$6:$L$103,4,FALSE)) -> 
B21: 11 | T21: =IF(C21="","",VLOOKUP(D21,'9. All Habitats + Multipliers'!$C$4:$K$102,5,FALSE)) ->  | V21: =IF(T21="","",VLOOKUP(T21,'11. Lists'!$B$47:$D$49,2,FALSE)) ->  | W21: =IF(C21="","",VLOOKUP(D21,'10. Condition and Temporal'!$B$6:$C$103,2,FALSE)) ->  | X21: =IF(W21="","",VLOOKUP(W21,'11. Lists'!$F$47:$G$51,2,FALSE)) ->  | AC21: =IF(AB21="","",VLOOKUP(AB21,'11. Lists'!$F$36:$H$38,2,FALSE)) ->  | AD21: =IF(AB21="","",VLOOKUP(AB21,'11. Lists'!$F$36:$H$38,3,FALSE)) ->  | AH21: =IF(T21="","",VLOOKUP(T21,'11. Lists'!$B$47:$D$49,3,FALSE)) ->  | AI21: =IF(D21="","",VLOOKUP(D21,'10. Condition and Temporal'!$B$6:$L$103,4,FALSE)) -> 
B22: 12 | T22: =IF(C22="","",VLOOKUP(D22,'9. All Habitats + Multipliers'!$C$4:$K$102,5,FALSE)) ->  | V22: =IF(T22="","",VLOOKUP(T22,'11. Lists'!$B$47:$D$49,2,FALSE)) ->  | W22: =IF(C22="","",VLOOKUP(D22,'10. Condition and Temporal'!$B$6:$C$103,2,FALSE)) ->  | X22: =IF(W22="","",VLOOKUP(W22,'11. Lists'!$F$47:$G$51,2,FALSE)) ->  | AC22: =IF(AB22="","",VLOOKUP(AB22,'11. Lists'!$F$36:$H$38,2,FALSE)) ->  | AD22: =IF(AB22="","",VLOOKUP(AB22,'11. Lists'!$F$36:$H$38,3,FALSE)) ->  | AH22: =IF(T22="","",VLOOKUP(T22,'11. Lists'!$B$47:$D$49,3,FALSE)) ->  | AI22: =IF(D22="","",VLOOKUP(D22,'10. Condition and Temporal'!$B$6:$L$103,4,FALSE)) -> 
B23: 13 | T23: =IF(C23="","",VLOOKUP(D23,'9. All Habitats + Multipliers'!$C$4:$K$102,5,FALSE)) ->  | V23: =IF(T23="","",VLOOKUP(T23,'11. Lists'!$B$47:$D$49,2,FALSE)) ->  | W23: =IF(C23="","",VLOOKUP(D23,'10. Condition and Temporal'!$B$6:$C$103,2,FALSE)) ->  | X23: =IF(W23="","",VLOOKUP(W23,'11. Lists'!$F$47:$G$51,2,FALSE)) ->  | AC23: =IF(AB23="","",VLOOKUP(AB23,'11. Lists'!$F$36:$H$38,2,FALSE)) ->  | AD23: =IF(AB23="","",VLOOKUP(AB23,'11. Lists'!$F$36:$H$38,3,FALSE)) ->  | AH23: =IF(T23="","",VLOOKUP(T23,'11. Lists'!$B$47:$D$49,3,FALSE)) ->  | AI23: =IF(D23="","",VLOOKUP(D23,'10. Condition and Temporal'!$B$6:$L$103,4,FALSE)) -> 
B24: 14 | T24: =IF(C24="","",VLOOKUP(D24,'9. All Habitats + Multipliers'!$C$4:$K$102,5,FALSE)) ->  | V24: =IF(T24="","",VLOOKUP(T24,'11. Lists'!$B$47:$D$49,2,FALSE)) ->  | W24: =IF(C24="","",VLOOKUP(D24,'10. Condition and Temporal'!$B$6:$C$103,2,FALSE)) ->  | X24: =IF(W24="","",VLOOKUP(W24,'11. Lists'!$F$47:$G$51,2,FALSE)) ->  | AC24: =IF(AB24="","",VLOOKUP(AB24,'11. Lists'!$F$36:$H$38,2,FALSE)) ->  | AD24: =IF(AB24="","",VLOOKUP(AB24,'11. Lists'!$F$36:$H$38,3,FALSE)) ->  | AH24: =IF(T24="","",VLOOKUP(T24,'11. Lists'!$B$47:$D$49,3,FALSE)) ->  | AI24: =IF(D24="","",VLOOKUP(D24,'10. Condition and Temporal'!$B$6:$L$103,4,FALSE)) -> 
B25: 15 | T25: =IF(C25="","",VLOOKUP(D25,'9. All Habitats + Multipliers'!$C$4:$K$102,5,FALSE)) ->  | V25: =IF(T25="","",VLOOKUP(T25,'11. Lists'!$B$47:$D$49,2,FALSE)) ->  | W25: =IF(C25="","",VLOOKUP(D25,'10. Condition and Temporal'!$B$6:$C$103,2,FALSE)) ->  | X25: =IF(W25="","",VLOOKUP(W25,'11. Lists'!$F$47:$G$51,2,FALSE)) ->  | AC25: =IF(AB25="","",VLOOKUP(AB25,'11. Lists'!$F$36:$H$38,2,FALSE)) ->  | AD25: =IF(AB25="","",VLOOKUP(AB25,'11. Lists'!$F$36:$H$38,3,FALSE)) ->  | AH25: =IF(T25="","",VLOOKUP(T25,'11. Lists'!$B$47:$D$49,3,FALSE)) ->  | AI25: =IF(D25="","",VLOOKUP(D25,'10. Condition and Temporal'!$B$6:$L$103,4,FALSE)) -> 
B26: 16 | T26: =IF(C26="","",VLOOKUP(D26,'9. All Habitats + Multipliers'!$C$4:$K$102,5,FALSE)) ->  | V26: =IF(T26="","",VLOOKUP(T26,'11. Lists'!$B$47:$D$49,2,FALSE)) ->  | W26: =IF(C26="","",VLOOKUP(D26,'10. Condition and Temporal'!$B$6:$C$103,2,FALSE)) ->  | X26: =IF(W26="","",VLOOKUP(W26,'11. Lists'!$F$47:$G$51,2,FALSE)) ->  | AC26: =IF(AB26="","",VLOOKUP(AB26,'11. Lists'!$F$36:$H$38,2,FALSE)) ->  | AD26: =IF(AB26="","",VLOOKUP(AB26,'11. Lists'!$F$36:$H$38,3,FALSE)) ->  | AH26: =IF(T26="","",VLOOKUP(T26,'11. Lists'!$B$47:$D$49,3,FALSE)) ->  | AI26: =IF(D26="","",VLOOKUP(D26,'10. Condition and Temporal'!$B$6:$L$103,4,FALSE)) -> 
B27: 17 | T27: =IF(C27="","",VLOOKUP(D27,'9. All Habitats + Multipliers'!$C$4:$K$102,5,FALSE)) ->  | V27: =IF(T27="","",VLOOKUP(T27,'11. Lists'!$B$47:$D$49,2,FALSE)) ->  | W27: =IF(C27="","",VLOOKUP(D27,'10. Condition and Temporal'!$B$6:$C$103,2,FALSE)) ->  | X27: =IF(W27="","",VLOOKUP(W27,'11. Lists'!$F$47:$G$51,2,FALSE)) ->  | AC27: =IF(AB27="","",VLOOKUP(AB27,'11. Lists'!$F$36:$H$38,2,FALSE)) ->  | AD27: =IF(AB27="","",VLOOKUP(AB27,'11. Lists'!$F$36:$H$38,3,FALSE)) ->  | AH27: =IF(T27="","",VLOOKUP(T27,'11. Lists'!$B$47:$D$49,3,FALSE)) ->  | AI27: =IF(D27="","",VLOOKUP(D27,'10. Condition and Temporal'!$B$6:$L$103,4,FALSE)) -> 
B28: 18 | T28: =IF(C28="","",VLOOKUP(D28,'9. All Habitats + Multipliers'!$C$4:$K$102,5,FALSE)) ->  | V28: =IF(T28="","",VLOOKUP(T28,'11. Lists'!$B$47:$D$49,2,FALSE)) ->  | W28: =IF(C28="","",VLOOKUP(D28,'10. Condition and Temporal'!$B$6:$C$103,2,FALSE)) ->  | X28: =IF(W28="","",VLOOKUP(W28,'11. Lists'!$F$47:$G$51,2,FALSE)) ->  | AC28: =IF(AB28="","",VLOOKUP(AB28,'11. Lists'!$F$36:$H$38,2,FALSE)) ->  | AD28: =IF(AB28="","",VLOOKUP(AB28,'11. Lists'!$F$36:$H$38,3,FALSE)) ->  | AH28: =IF(T28="","",VLOOKUP(T28,'11. Lists'!$B$47:$D$49,3,FALSE)) ->  | AI28: =IF(D28="","",VLOOKUP(D28,'10. Condition and Temporal'!$B$6:$L$103,4,FALSE)) -> 
B29: 19 | T29: =IF(C29="","",VLOOKUP(D29,'9. All Habitats + Multipliers'!$C$4:$K$102,5,FALSE)) ->  | V29: =IF(T29="","",VLOOKUP(T29,'11. Lists'!$B$47:$D$49,2,FALSE)) ->  | W29: =IF(C29="","",VLOOKUP(D29,'10. Condition and Temporal'!$B$6:$C$103,2,FALSE)) ->  | X29: =IF(W29="","",VLOOKUP(W29,'11. Lists'!$F$47:$G$51,2,FALSE)) ->  | AC29: =IF(AB29="","",VLOOKUP(AB29,'11. Lists'!$F$36:$H$38,2,FALSE)) ->  | AD29: =IF(AB29="","",VLOOKUP(AB29,'11. Lists'!$F$36:$H$38,3,FALSE)) ->  | AH29: =IF(T29="","",VLOOKUP(T29,'11. Lists'!$B$47:$D$49,3,FALSE)) ->  | AI29: =IF(D29="","",VLOOKUP(D29,'10. Condition and Temporal'!$B$6:$L$103,4,FALSE)) -> 
B30: 20 | T30: =IF(C30="","",VLOOKUP(D30,'9. All Habitats + Multipliers'!$C$4:$K$102,5,FALSE)) ->  | V30: =IF(T30="","",VLOOKUP(T30,'11. Lists'!$B$47:$D$49,2,FALSE)) ->  | W30: =IF(C30="","",VLOOKUP(D30,'10. Condition and Temporal'!$B$6:$C$103,2,FALSE)) ->  | X30: =IF(W30="","",VLOOKUP(W30,'11. Lists'!$F$47:$G$51,2,FALSE)) ->  | AC30: =IF(AB30="","",VLOOKUP(AB30,'11. Lists'!$F$36:$H$38,2,FALSE)) ->  | AD30: =IF(AB30="","",VLOOKUP(AB30,'11. Lists'!$F$36:$H$38,3,FALSE)) ->  | AH30: =IF(T30="","",VLOOKUP(T30,'11. Lists'!$B$47:$D$49,3,FALSE)) ->  | AI30: =IF(D30="","",VLOOKUP(D30,'10. Condition and Temporal'!$B$6:$L$103,4,FALSE)) -> 
B31: Trees | C31: Individual trees | D31: Urban/rural tree | F31: Formally identified in local strategy | I31: =I99 -> 0 | J31: =L99 -> 0 | L31: =IF(C31="","",((I31/10000)*V31*X31)*AD31) -> 0 | M31: =IF(C31="","",I31-J31-K31) -> 0 | N31: =IF(C31="","",((M31/10000)*V31*X31)*AD31) -> 0 | T31: =IF(C31="","",VLOOKUP(D31,'9. All Habitats + Multipliers'!$C$4:$K$102,5,FALSE)) -> Medium | V31: =IF(T31="","",VLOOKUP(T31,'11. Lists'!$B$47:$D$49,2,FALSE)) -> 4 | W31: =IF(C31="","",VLOOKUP(D31,'10. Condition and Temporal'!$B$6:$C$103,2,FALSE)) -> Moderate | X31: =IF(W31="","",VLOOKUP(W31,'11. Lists'!$F$47:$G$51,2,FALSE)) -> 2 | AB31: =IF(F31="","",F31) -> Formally identified in local strategy | AC31: =IF(AB31="","",VLOOKUP(AB31,'11. Lists'!$F$36:$H$38,2,FALSE)) -> High strategic significance | AD31: =IF(AB31="","",VLOOKUP(AB31,'11. Lists'!$F$36:$H$38,3,FALSE)) -> 1.15 | AE31: =IF(D31="","",((J31/10000)*V31*X31)*(AD31)) -> 0 | AF31: =IF(D31="","",((K31/10000)*V31*X31)*(AD31)) -> 0 | AG31: 0 | AH31: =IF(T31="","",VLOOKUP(T31,'11. Lists'!$B$47:$D$49,3,FALSE)) -> Same broad habitat or a higher distinctiveness habitat required | AI31: =IF(D31="","",VLOOKUP(D31,'10. Condition and Temporal'!$B$6:$L$103,4,FALSE)) -> Urban/rural tree
H32: Totals (areas excl trees, green walls and intertidal hard structures) | I32: =SUMIFS(I11:I30,D11:D30,"<>"&'11. Lists'!Q10,D11:D30,"<>"&'11. Lists'!Q11,D11:D30,"<>"&'11. Lists'!I4,D11:D30,"<>"&'11. Lists'!I2,D11:D30,"<>"&'11. Lists'!I3) -> 0 | J32: =SUMIFS(J11:J30,D11:D30,"<>"&'11. Lists'!Q10,D11:D30,"<>"&'11. Lists'!Q11,D11:D30,"<>"&'11. Lists'!I4,D11:D30,"<>"&'11. Lists'!I2,D11:D30,"<>"&'11. Lists'!I3) -> 0 | K32: =SUMIFS(K11:K30,D11:D30,"<>"&'11. Lists'!Q10,D11:D30,"<>"&'11. Lists'!Q11,D11:D30,"<>"&'11. Lists'!I4,D11:D30,"<>"&'11. Lists'!I2,D11:D30,"<>"&'11. Lists'!I3) -> 0 | L32: =SUM(L11:L31) -> 0 | M32: =SUMIFS(M11:M30,D11:D30,"<>"&'11. Lists'!Q10,D11:D30,"<>"&'11. Lists'!Q11,D11:D30,"<>"&'11. Lists'!I4,D11:D30,"<>"&'11. Lists'!I2,D11:D30,"<>"&'11. Lists'!I3) -> 0 | N32: =SUM(N11:N31) -> 0
H33: Error Check 1 | I33: =IF(I32=0, "Areas Acceptable ✓", IF(AND('3. Desktop Assessment'!C6="Residential", I32<10000, '3. Desktop Assessment'!C9="Between 1 - 9 dwellings"),"Areas Acceptable ✓", IF(AND('3. Desktop Assessment'!C6="Residential", I32<5000, '3. Desktop Assessment'!C9="Unknown number"), "Areas Acceptable ✓", IF(AND('3. Desktop Assessment'!C6="Commercial", I32<10000, '3. Desktop Assessment'!C8<1000),"Areas Acceptable ✓", IF(AND('3. Desktop Assessment'!C6="Mixed", I32<10000, '3. Desktop Assessment'!C9="Between 1 - 9 dwellings", '3. Desktop Assessment'!C8<1000),"Areas Acceptable ✓", IF(AND('3. Desktop Assessment'!C6="Mixed", I32<5000, '3. Desktop Assessment'!C9="Unknown number", '3. Desktop Assessment'!C8<1000), "Areas Acceptable ✓", IF(AND('3. Desktop Assessment'!C6="Other", I32<10000),"Areas Acceptable ✓", "Error - Site exceeds areas appropriate for the small sites metric ▲"))))))) -> Areas Acceptable ✓ | O33: =IFERROR(FIND("Error",I33),0) -> 0
H34: Error Check 2 | I34: =IF(I32<J32+K32,"Error - Areas Retained and Enhanced Exceed Total Area ▲","Areas Acceptable ✓") -> Areas Acceptable ✓ | O34: =IFERROR(FIND("Error",I34),0) -> 0
H35: Error Check 3 | I35: =IF(I32=0,"Areas Acceptable ✓",IF(I32<>'3. Desktop Assessment'!C7,"Error - Areas Entered Does Not Match Stated Site Area ▲","Areas Acceptable ✓")) -> Areas Acceptable ✓ | O35: =IFERROR(FIND("Error",I35),0) -> 0 | R35: Data beyond this column is automated
B36: 1b. Habitats to be created | O36: =COUNTIF(L11:N30,"*"&"error"&"*") -> 0
B38: Ref | E38: Condition Assessment | H38: D. Strategic significance | I38: E. Total Area (m2) | L38: Habitat units created onsite | O38: Comments | T38: Habitat distinctiveness | W38: Habitat condition | AB38: Strategic significance | AE38: Temporal multiplier | AG38: Difficulty multipliers
C39: A. Broad Habitat | D39: B. Habitat type | E39: Acceptable condition options | F39: C. Targeted condition | O39: User comments | P39: LPA comments | T39: Distinctiveness | V39: Score | W39: Condition | X39: Score | AB39: Strategic significance | AC39: Strategic significance | AD39: Strategic significance multiplier | AE39: Time to target condition/years | AF39: Time to target multiplier | AG39: Difficulty of creation category | AH39: Difficulty of creation multiplier
B40: 1 | E40: =IF(D40="","",VLOOKUP(D40,'10. Condition and Temporal'!$B$6:$D$103,3,FALSE)) ->  | L40: =IF(C40="","",IFERROR(IF(I40="","",((I40/10000)*(V40*X40))*(AH40*AF40)*AD40),"This intervention is not permitted within the SSM ▲")) ->  | T40: =IF(C40="","",VLOOKUP(D40,'9. All Habitats + Multipliers'!$C$4:$K$102,5,FALSE)) ->  | V40: =IF(T40="","",VLOOKUP(T40,'11. Lists'!$B$47:$D$49,2,FALSE)) ->  | W40: =IF(F40="","",F40) ->  | X40: =IF(W40="","",VLOOKUP(W40,'11. Lists'!$F$47:$G$51,2,FALSE)) ->  | AB40: =IF(H40="","",H40) ->  | AC40: =IF(AB40="","",VLOOKUP(AB40,'11. Lists'!$F$36:$H$38,2,FALSE)) ->  | AD40: =IF(AB40="","",VLOOKUP(AB40,'11. Lists'!$F$36:$H$38,3,FALSE)) ->  | AE40: =IF(F40="","",IF(F40="Moderate",VLOOKUP(D40,'10. Condition and Temporal'!$B$6:$L$103,6,FALSE),IF(F40="Good",VLOOKUP(D40,'10. Condition and Temporal'!$B$6:$L$103,7,FALSE),IF(F40="Poor",VLOOKUP(D40,'10. Condition and Temporal'!$B$6:$L$103,8,FALSE),IF(F40="Condition Assessment N/A",VLOOKUP(D40,'10. Condition and Temporal'!$B$6:$L$103,9,FALSE),IF(F40="N/A - Other",VLOOKUP(D40,'10. Condition and Temporal'!$B$6:$L$103,10,FALSE))))))) ->  | AF40: =IF(AE40="","",VLOOKUP(AE40,'11. Lists'!$I$47:$K$80,3,FALSE)) ->  | AG40: =IF(D40="","",VLOOKUP(D40,'9. All Habitats + Multipliers'!$C$4:$K$102,7,FALSE)) ->  | AH40: =IF(AG40="","",VLOOKUP(AG40,'11. Lists'!$J$35:$K$38,2,FALSE)) -> 
B41: 2 | E41: =IF(D41="","",VLOOKUP(D41,'10. Condition and Temporal'!$B$6:$D$103,3,FALSE)) ->  | L41: =IF(C41="","",IFERROR(IF(I41="","",((I41/10000)*(V41*X41))*(AH41*AF41)*AD41),"This intervention is not permitted within the SSM ▲")) ->  | T41: =IF(C41="","",VLOOKUP(D41,'9. All Habitats + Multipliers'!$C$4:$K$102,5,FALSE)) ->  | V41: =IF(T41="","",VLOOKUP(T41,'11. Lists'!$B$47:$D$49,2,FALSE)) ->  | W41: =IF(F41="","",F41) ->  | X41: =IF(W41="","",VLOOKUP(W41,'11. Lists'!$F$47:$G$51,2,FALSE)) ->  | AB41: =IF(H41="","",H41) ->  | AC41: =IF(AB41="","",VLOOKUP(AB41,'11. Lists'!$F$36:$H$38,2,FALSE)) ->  | AD41: =IF(AB41="","",VLOOKUP(AB41,'11. Lists'!$F$36:$H$38,3,FALSE)) ->  | AE41: =IF(F41="","",IF(F41="Moderate",VLOOKUP(D41,'10. Condition and Temporal'!$B$6:$L$103,6,FALSE),IF(F41="Good",VLOOKUP(D41,'10. Condition and Temporal'!$B$6:$L$103,7,FALSE),IF(F41="Poor",VLOOKUP(D41,'10. Condition and Temporal'!$B$6:$L$103,8,FALSE),IF(F41="Condition Assessment N/A",VLOOKUP(D41,'10. Condition and Temporal'!$B$6:$L$103,9,FALSE),IF(F41="N/A - Other",VLOOKUP(D41,'10. Condition and Temporal'!$B$6:$L$103,10,FALSE))))))) ->  | AF41: =IF(AE41="","",VLOOKUP(AE41,'11. Lists'!$I$47:$K$80,3,FALSE)) ->  | AG41: =IF(D41="","",VLOOKUP(D41,'9. All Habitats + Multipliers'!$C$4:$K$102,7,FALSE)) ->  | AH41: =IF(AG41="","",VLOOKUP(AG41,'11. Lists'!$J$35:$K$38,2,FALSE)) -> 
B42: 3 | E42: =IF(D42="","",VLOOKUP(D42,'10. Condition and Temporal'!$B$6:$D$103,3,FALSE)) ->  | T42: =IF(C42="","",VLOOKUP(D42,'9. All Habitats + Multipliers'!$C$4:$K$102,5,FALSE)) ->  | V42: =IF(T42="","",VLOOKUP(T42,'11. Lists'!$B$47:$D$49,2,FALSE)) ->  | W42: =IF(F42="","",F42) ->  | X42: =IF(W42="","",VLOOKUP(W42,'11. Lists'!$F$47:$G$51,2,FALSE)) ->  | AC42: =IF(AB42="","",VLOOKUP(AB42,'11. Lists'!$F$36:$H$38,2,FALSE)) ->  | AD42: =IF(AB42="","",VLOOKUP(AB42,'11. Lists'!$F$36:$H$38,3,FALSE)) ->  | AE42: =IF(F42="","",IF(F42="Moderate",VLOOKUP(D42,'10. Condition and Temporal'!$B$6:$L$103,6,FALSE),IF(F42="Good",VLOOKUP(D42,'10. Condition and Temporal'!$B$6:$L$103,7,FALSE),IF(F42="Poor",VLOOKUP(D42,'10. Condition and Temporal'!$B$6:$L$103,8,FALSE),IF(F42="Condition Assessment N/A",VLOOKUP(D42,'10. Condition and Temporal'!$B$6:$L$103,9,FALSE),IF(F42="N/A - Other",VLOOKUP(D42,'10. Condition and Temporal'!$B$6:$L$103,10,FALSE))))))) ->  | AF42: =IF(AE42="","",VLOOKUP(AE42,'11. Lists'!$I$47:$K$80,3,FALSE)) ->  | AG42: =IF(D42="","",VLOOKUP(D42,'9. All Habitats + Multipliers'!$C$4:$K$102,7,FALSE)) ->  | AH42: =IF(AG42="","",VLOOKUP(AG42,'11. Lists'!$J$35:$K$38,2,FALSE)) -> 
B43: 4 | E43: =IF(D43="","",VLOOKUP(D43,'10. Condition and Temporal'!$B$6:$D$103,3,FALSE)) ->  | T43: =IF(C43="","",VLOOKUP(D43,'9. All Habitats + Multipliers'!$C$4:$K$102,5,FALSE)) ->  | V43: =IF(T43="","",VLOOKUP(T43,'11. Lists'!$B$47:$D$49,2,FALSE)) ->  | W43: =IF(F43="","",F43) ->  | X43: =IF(W43="","",VLOOKUP(W43,'11. Lists'!$F$47:$G$51,2,FALSE)) ->  | AC43: =IF(AB43="","",VLOOKUP(AB43,'11. Lists'!$F$36:$H$38,2,FALSE)) ->  | AD43: =IF(AB43="","",VLOOKUP(AB43,'11. Lists'!$F$36:$H$38,3,FALSE)) ->  | AE43: =IF(F43="","",IF(F43="Moderate",VLOOKUP(D43,'10. Condition and Temporal'!$B$6:$L$103,6,FALSE),IF(F43="Good",VLOOKUP(D43,'10. Condition and Temporal'!$B$6:$L$103,7,FALSE),IF(F43="Poor",VLOOKUP(D43,'10. Condition and Temporal'!$B$6:$L$103,8,FALSE),IF(F43="Condition Assessment N/A",VLOOKUP(D43,'10. Condition and Temporal'!$B$6:$L$103,9,FALSE),IF(F43="N/A - Other",VLOOKUP(D43,'10. Condition and Temporal'!$B$6:$L$103,10,FALSE))))))) ->  | AF43: =IF(AE43="","",VLOOKUP(AE43,'11. Lists'!$I$47:$K$80,3,FALSE)) ->  | AG43: =IF(D43="","",VLOOKUP(D43,'9. All Habitats + Multipliers'!$C$4:$K$102,7,FALSE)) ->  | AH43: =IF(AG43="","",VLOOKUP(AG43,'11. Lists'!$J$35:$K$38,2,FALSE)) -> 
B44: 5 | E44: =IF(D44="","",VLOOKUP(D44,'10. Condition and Temporal'!$B$6:$D$103,3,FALSE)) ->  | T44: =IF(C44="","",VLOOKUP(D44,'9. All Habitats + Multipliers'!$C$4:$K$102,5,FALSE)) ->  | V44: =IF(T44="","",VLOOKUP(T44,'11. Lists'!$B$47:$D$49,2,FALSE)) ->  | W44: =IF(F44="","",F44) ->  | X44: =IF(W44="","",VLOOKUP(W44,'11. Lists'!$F$47:$G$51,2,FALSE)) ->  | AC44: =IF(AB44="","",VLOOKUP(AB44,'11. Lists'!$F$36:$H$38,2,FALSE)) ->  | AD44: =IF(AB44="","",VLOOKUP(AB44,'11. Lists'!$F$36:$H$38,3,FALSE)) ->  | AE44: =IF(F44="","",IF(F44="Moderate",VLOOKUP(D44,'10. Condition and Temporal'!$B$6:$L$103,6,FALSE),IF(F44="Good",VLOOKUP(D44,'10. Condition and Temporal'!$B$6:$L$103,7,FALSE),IF(F44="Poor",VLOOKUP(D44,'10. Condition and Temporal'!$B$6:$L$103,8,FALSE),IF(F44="Condition Assessment N/A",VLOOKUP(D44,'10. Condition and Temporal'!$B$6:$L$103,9,FALSE),IF(F44="N/A - Other",VLOOKUP(D44,'10. Condition and Temporal'!$B$6:$L$103,10,FALSE))))))) ->  | AF44: =IF(AE44="","",VLOOKUP(AE44,'11. Lists'!$I$47:$K$80,3,FALSE)) ->  | AG44: =IF(D44="","",VLOOKUP(D44,'9. All Habitats + Multipliers'!$C$4:$K$102,7,FALSE)) ->  | AH44: =IF(AG44="","",VLOOKUP(AG44,'11. Lists'!$J$35:$K$38,2,FALSE)) -> 
B45: 6 | E45: =IF(D45="","",VLOOKUP(D45,'10. Condition and Temporal'!$B$6:$D$103,3,FALSE)) ->  | T45: =IF(C45="","",VLOOKUP(D45,'9. All Habitats + Multipliers'!$C$4:$K$102,5,FALSE)) ->  | V45: =IF(T45="","",VLOOKUP(T45,'11. Lists'!$B$47:$D$49,2,FALSE)) ->  | X45: =IF(W45="","",VLOOKUP(W45,'11. Lists'!$F$47:$G$51,2,FALSE)) ->  | AC45: =IF(AB45="","",VLOOKUP(AB45,'11. Lists'!$F$36:$H$38,2,FALSE)) ->  | AD45: =IF(AB45="","",VLOOKUP(AB45,'11. Lists'!$F$36:$H$38,3,FALSE)) ->  | AE45: =IF(F45="","",IF(F45="Moderate",VLOOKUP(D45,'10. Condition and Temporal'!$B$6:$L$103,6,FALSE),IF(F45="Good",VLOOKUP(D45,'10. Condition and Temporal'!$B$6:$L$103,7,FALSE),IF(F45="Poor",VLOOKUP(D45,'10. Condition and Temporal'!$B$6:$L$103,8,FALSE),IF(F45="Condition Assessment N/A",VLOOKUP(D45,'10. Condition and Temporal'!$B$6:$L$103,9,FALSE),IF(F45="N/A - Other",VLOOKUP(D45,'10. Condition and Temporal'!$B$6:$L$103,10,FALSE))))))) ->  | AF45: =IF(AE45="","",VLOOKUP(AE45,'11. Lists'!$I$47:$K$80,3,FALSE)) ->  | AG45: =IF(D45="","",VLOOKUP(D45,'9. All Habitats + Multipliers'!$C$4:$K$102,7,FALSE)) ->  | AH45: =IF(AG45="","",VLOOKUP(AG45,'11. Lists'!$J$35:$K$38,2,FALSE)) -> 
B46: 7 | E46: =IF(D46="","",VLOOKUP(D46,'10. Condition and Temporal'!$B$6:$D$103,3,FALSE)) ->  | T46: =IF(C46="","",VLOOKUP(D46,'9. All Habitats + Multipliers'!$C$4:$K$102,5,FALSE)) ->  | V46: =IF(T46="","",VLOOKUP(T46,'11. Lists'!$B$47:$D$49,2,FALSE)) ->  | X46: =IF(W46="","",VLOOKUP(W46,'11. Lists'!$F$47:$G$51,2,FALSE)) ->  | AC46: =IF(AB46="","",VLOOKUP(AB46,'11. Lists'!$F$36:$H$38,2,FALSE)) ->  | AD46: =IF(AB46="","",VLOOKUP(AB46,'11. Lists'!$F$36:$H$38,3,FALSE)) ->  | AE46: =IF(F46="","",IF(F46="Moderate",VLOOKUP(D46,'10. Condition and Temporal'!$B$6:$L$103,6,FALSE),IF(F46="Good",VLOOKUP(D46,'10. Condition and Temporal'!$B$6:$L$103,7,FALSE),IF(F46="Poor",VLOOKUP(D46,'10. Condition and Temporal'!$B$6:$L$103,8,FALSE),IF(F46="Condition Assessment N/A",VLOOKUP(D46,'10. Condition and Temporal'!$B$6:$L$103,9,FALSE),IF(F46="N/A - Other",VLOOKUP(D46,'10. Condition and Temporal'!$B$6:$L$103,10,FALSE))))))) ->  | AF46: =IF(AE46="","",VLOOKUP(AE46,'11. Lists'!$I$47:$K$80,3,FALSE)) ->  | AG46: =IF(D46="","",VLOOKUP(D46,'9. All Habitats + Multipliers'!$C$4:$K$102,7,FALSE)) ->  | AH46: =IF(AG46="","",VLOOKUP(AG46,'11. Lists'!$J$35:$K$38,2,FALSE)) -> 
B47: 8 | E47: =IF(D47="","",VLOOKUP(D47,'10. Condition and Temporal'!$B$6:$D$103,3,FALSE)) ->  | T47: =IF(C47="","",VLOOKUP(D47,'9. All Habitats + Multipliers'!$C$4:$K$102,5,FALSE)) ->  | V47: =IF(T47="","",VLOOKUP(T47,'11. Lists'!$B$47:$D$49,2,FALSE)) ->  | X47: =IF(W47="","",VLOOKUP(W47,'11. Lists'!$F$47:$G$51,2,FALSE)) ->  | AC47: =IF(AB47="","",VLOOKUP(AB47,'11. Lists'!$F$36:$H$38,2,FALSE)) ->  | AD47: =IF(AB47="","",VLOOKUP(AB47,'11. Lists'!$F$36:$H$38,3,FALSE)) ->  | AE47: =IF(F47="","",IF(F47="Moderate",VLOOKUP(D47,'10. Condition and Temporal'!$B$6:$L$103,6,FALSE),IF(F47="Good",VLOOKUP(D47,'10. Condition and Temporal'!$B$6:$L$103,7,FALSE),IF(F47="Poor",VLOOKUP(D47,'10. Condition and Temporal'!$B$6:$L$103,8,FALSE),IF(F47="Condition Assessment N/A",VLOOKUP(D47,'10. Condition and Temporal'!$B$6:$L$103,9,FALSE),IF(F47="N/A - Other",VLOOKUP(D47,'10. Condition and Temporal'!$B$6:$L$103,10,FALSE))))))) ->  | AF47: =IF(AE47="","",VLOOKUP(AE47,'11. Lists'!$I$47:$K$80,3,FALSE)) ->  | AG47: =IF(D47="","",VLOOKUP(D47,'9. All Habitats + Multipliers'!$C$4:$K$102,7,FALSE)) ->  | AH47: =IF(AG47="","",VLOOKUP(AG47,'11. Lists'!$J$35:$K$38,2,FALSE)) -> 
B48: 9 | E48: =IF(D48="","",VLOOKUP(D48,'10. Condition and Temporal'!$B$6:$D$103,3,FALSE)) ->  | T48: =IF(C48="","",VLOOKUP(D48,'9. All Habitats + Multipliers'!$C$4:$K$102,5,FALSE)) ->  | V48: =IF(T48="","",VLOOKUP(T48,'11. Lists'!$B$47:$D$49,2,FALSE)) ->  | X48: =IF(W48="","",VLOOKUP(W48,'11. Lists'!$F$47:$G$51,2,FALSE)) ->  | AC48: =IF(AB48="","",VLOOKUP(AB48,'11. Lists'!$F$36:$H$38,2,FALSE)) ->  | AD48: =IF(AB48="","",VLOOKUP(AB48,'11. Lists'!$F$36:$H$38,3,FALSE)) ->  | AE48: =IF(F48="","",IF(F48="Moderate",VLOOKUP(D48,'10. Condition and Temporal'!$B$6:$L$103,6,FALSE),IF(F48="Good",VLOOKUP(D48,'10. Condition and Temporal'!$B$6:$L$103,7,FALSE),IF(F48="Poor",VLOOKUP(D48,'10. Condition and Temporal'!$B$6:$L$103,8,FALSE),IF(F48="Condition Assessment N/A",VLOOKUP(D48,'10. Condition and Temporal'!$B$6:$L$103,9,FALSE),IF(F48="N/A - Other",VLOOKUP(D48,'10. Condition and Temporal'!$B$6:$L$103,10,FALSE))))))) ->  | AF48: =IF(AE48="","",VLOOKUP(AE48,'11. Lists'!$I$47:$K$80,3,FALSE)) ->  | AG48: =IF(D48="","",VLOOKUP(D48,'9. All Habitats + Multipliers'!$C$4:$K$102,7,FALSE)) ->  | AH48: =IF(AG48="","",VLOOKUP(AG48,'11. Lists'!$J$35:$K$38,2,FALSE)) -> 
B49: 10 | E49: =IF(D49="","",VLOOKUP(D49,'10. Condition and Temporal'!$B$6:$D$103,3,FALSE)) ->  | T49: =IF(C49="","",VLOOKUP(D49,'9. All Habitats + Multipliers'!$C$4:$K$102,5,FALSE)) ->  | V49: =IF(T49="","",VLOOKUP(T49,'11. Lists'!$B$47:$D$49,2,FALSE)) ->  | X49: =IF(W49="","",VLOOKUP(W49,'11. Lists'!$F$47:$G$51,2,FALSE)) ->  | AC49: =IF(AB49="","",VLOOKUP(AB49,'11. Lists'!$F$36:$H$38,2,FALSE)) ->  | AD49: =IF(AB49="","",VLOOKUP(AB49,'11. Lists'!$F$36:$H$38,3,FALSE)) ->  | AE49: =IF(F49="","",IF(F49="Moderate",VLOOKUP(D49,'10. Condition and Temporal'!$B$6:$L$103,6,FALSE),IF(F49="Good",VLOOKUP(D49,'10. Condition and Temporal'!$B$6:$L$103,7,FALSE),IF(F49="Poor",VLOOKUP(D49,'10. Condition and Temporal'!$B$6:$L$103,8,FALSE),IF(F49="Condition Assessment N/A",VLOOKUP(D49,'10. Condition and Temporal'!$B$6:$L$103,9,FALSE),IF(F49="N/A - Other",VLOOKUP(D49,'10. Condition and Temporal'!$B$6:$L$103,10,FALSE))))))) ->  | AF49: =IF(AE49="","",VLOOKUP(AE49,'11. Lists'!$I$47:$K$80,3,FALSE)) ->  | AG49: =IF(D49="","",VLOOKUP(D49,'9. All Habitats + Multipliers'!$C$4:$K$102,7,FALSE)) ->  | AH49: =IF(AG49="","",VLOOKUP(AG49,'11. Lists'!$J$35:$K$38,2,FALSE)) -> 
B50: 11 | E50: =IF(D50="","",VLOOKUP(D50,'10. Condition and Temporal'!$B$6:$D$103,3,FALSE)) ->  | T50: =IF(C50="","",VLOOKUP(D50,'9. All Habitats + Multipliers'!$C$4:$K$102,5,FALSE)) ->  | V50: =IF(T50="","",VLOOKUP(T50,'11. Lists'!$B$47:$D$49,2,FALSE)) ->  | X50: =IF(W50="","",VLOOKUP(W50,'11. Lists'!$F$47:$G$51,2,FALSE)) ->  | AC50: =IF(AB50="","",VLOOKUP(AB50,'11. Lists'!$F$36:$H$38,2,FALSE)) ->  | AD50: =IF(AB50="","",VLOOKUP(AB50,'11. Lists'!$F$36:$H$38,3,FALSE)) ->  | AE50: =IF(F50="","",IF(F50="Moderate",VLOOKUP(D50,'10. Condition and Temporal'!$B$6:$L$103,6,FALSE),IF(F50="Good",VLOOKUP(D50,'10. Condition and Temporal'!$B$6:$L$103,7,FALSE),IF(F50="Poor",VLOOKUP(D50,'10. Condition and Temporal'!$B$6:$L$103,8,FALSE),IF(F50="Condition Assessment N/A",VLOOKUP(D50,'10. Condition and Temporal'!$B$6:$L$103,9,FALSE),IF(F50="N/A - Other",VLOOKUP(D50,'10. Condition and Temporal'!$B$6:$L$103,10,FALSE))))))) ->  | AF50: =IF(AE50="","",VLOOKUP(AE50,'11. Lists'!$I$47:$K$80,3,FALSE)) ->  | AG50: =IF(D50="","",VLOOKUP(D50,'9. All Habitats + Multipliers'!$C$4:$K$102,7,FALSE)) ->  | AH50: =IF(AG50="","",VLOOKUP(AG50,'11. Lists'!$J$35:$K$38,2,FALSE)) -> 
B51: 12 | E51: =IF(D51="","",VLOOKUP(D51,'10. Condition and Temporal'!$B$6:$D$103,3,FALSE)) ->  | T51: =IF(C51="","",VLOOKUP(D51,'9. All Habitats + Multipliers'!$C$4:$K$102,5,FALSE)) ->  | V51: =IF(T51="","",VLOOKUP(T51,'11. Lists'!$B$47:$D$49,2,FALSE)) ->  | X51: =IF(W51="","",VLOOKUP(W51,'11. Lists'!$F$47:$G$51,2,FALSE)) ->  | AC51: =IF(AB51="","",VLOOKUP(AB51,'11. Lists'!$F$36:$H$38,2,FALSE)) ->  | AD51: =IF(AB51="","",VLOOKUP(AB51,'11. Lists'!$F$36:$H$38,3,FALSE)) ->  | AE51: =IF(F51="","",IF(F51="Moderate",VLOOKUP(D51,'10. Condition and Temporal'!$B$6:$L$103,6,FALSE),IF(F51="Good",VLOOKUP(D51,'10. Condition and Temporal'!$B$6:$L$103,7,FALSE),IF(F51="Poor",VLOOKUP(D51,'10. Condition and Temporal'!$B$6:$L$103,8,FALSE),IF(F51="Condition Assessment N/A",VLOOKUP(D51,'10. Condition and Temporal'!$B$6:$L$103,9,FALSE),IF(F51="N/A - Other",VLOOKUP(D51,'10. Condition and Temporal'!$B$6:$L$103,10,FALSE))))))) ->  | AF51: =IF(AE51="","",VLOOKUP(AE51,'11. Lists'!$I$47:$K$80,3,FALSE)) ->  | AG51: =IF(D51="","",VLOOKUP(D51,'9. All Habitats + Multipliers'!$C$4:$K$102,7,FALSE)) ->  | AH51: =IF(AG51="","",VLOOKUP(AG51,'11. Lists'!$J$35:$K$38,2,FALSE)) -> 
B52: 13 | E52: =IF(D52="","",VLOOKUP(D52,'10. Condition and Temporal'!$B$6:$D$103,3,FALSE)) ->  | T52: =IF(C52="","",VLOOKUP(D52,'9. All Habitats + Multipliers'!$C$4:$K$102,5,FALSE)) ->  | V52: =IF(T52="","",VLOOKUP(T52,'11. Lists'!$B$47:$D$49,2,FALSE)) ->  | X52: =IF(W52="","",VLOOKUP(W52,'11. Lists'!$F$47:$G$51,2,FALSE)) ->  | AC52: =IF(AB52="","",VLOOKUP(AB52,'11. Lists'!$F$36:$H$38,2,FALSE)) ->  | AD52: =IF(AB52="","",VLOOKUP(AB52,'11. Lists'!$F$36:$H$38,3,FALSE)) ->  | AE52: =IF(F52="","",IF(F52="Moderate",VLOOKUP(D52,'10. Condition and Temporal'!$B$6:$L$103,6,FALSE),IF(F52="Good",VLOOKUP(D52,'10. Condition and Temporal'!$B$6:$L$103,7,FALSE),IF(F52="Poor",VLOOKUP(D52,'10. Condition and Temporal'!$B$6:$L$103,8,FALSE),IF(F52="Condition Assessment N/A",VLOOKUP(D52,'10. Condition and Temporal'!$B$6:$L$103,9,FALSE),IF(F52="N/A - Other",VLOOKUP(D52,'10. Condition and Temporal'!$B$6:$L$103,10,FALSE))))))) ->  | AF52: =IF(AE52="","",VLOOKUP(AE52,'11. Lists'!$I$47:$K$80,3,FALSE)) ->  | AG52: =IF(D52="","",VLOOKUP(D52,'9. All Habitats + Multipliers'!$C$4:$K$102,7,FALSE)) ->  | AH52: =IF(AG52="","",VLOOKUP(AG52,'11. Lists'!$J$35:$K$38,2,FALSE)) -> 
B53: 14 | E53: =IF(D53="","",VLOOKUP(D53,'10. Condition and Temporal'!$B$6:$D$103,3,FALSE)) ->  | T53: =IF(C53="","",VLOOKUP(D53,'9. All Habitats + Multipliers'!$C$4:$K$102,5,FALSE)) ->  | V53: =IF(T53="","",VLOOKUP(T53,'11. Lists'!$B$47:$D$49,2,FALSE)) ->  | X53: =IF(W53="","",VLOOKUP(W53,'11. Lists'!$F$47:$G$51,2,FALSE)) ->  | AC53: =IF(AB53="","",VLOOKUP(AB53,'11. Lists'!$F$36:$H$38,2,FALSE)) ->  | AD53: =IF(AB53="","",VLOOKUP(AB53,'11. Lists'!$F$36:$H$38,3,FALSE)) ->  | AE53: =IF(F53="","",IF(F53="Moderate",VLOOKUP(D53,'10. Condition and Temporal'!$B$6:$L$103,6,FALSE),IF(F53="Good",VLOOKUP(D53,'10. Condition and Temporal'!$B$6:$L$103,7,FALSE),IF(F53="Poor",VLOOKUP(D53,'10. Condition and Temporal'!$B$6:$L$103,8,FALSE),IF(F53="Condition Assessment N/A",VLOOKUP(D53,'10. Condition and Temporal'!$B$6:$L$103,9,FALSE),IF(F53="N/A - Other",VLOOKUP(D53,'10. Condition and Temporal'!$B$6:$L$103,10,FALSE))))))) ->  | AF53: =IF(AE53="","",VLOOKUP(AE53,'11. Lists'!$I$47:$K$80,3,FALSE)) ->  | AG53: =IF(D53="","",VLOOKUP(D53,'9. All Habitats + Multipliers'!$C$4:$K$102,7,FALSE)) ->  | AH53: =IF(AG53="","",VLOOKUP(AG53,'11. Lists'!$J$35:$K$38,2,FALSE)) -> 
B54: 15 | E54: =IF(D54="","",VLOOKUP(D54,'10. Condition and Temporal'!$B$6:$D$103,3,FALSE)) ->  | T54: =IF(C54="","",VLOOKUP(D54,'9. All Habitats + Multipliers'!$C$4:$K$102,5,FALSE)) ->  | V54: =IF(T54="","",VLOOKUP(T54,'11. Lists'!$B$47:$D$49,2,FALSE)) ->  | X54: =IF(W54="","",VLOOKUP(W54,'11. Lists'!$F$47:$G$51,2,FALSE)) ->  | AC54: =IF(AB54="","",VLOOKUP(AB54,'11. Lists'!$F$36:$H$38,2,FALSE)) ->  | AD54: =IF(AB54="","",VLOOKUP(AB54,'11. Lists'!$F$36:$H$38,3,FALSE)) ->  | AE54: =IF(F54="","",IF(F54="Moderate",VLOOKUP(D54,'10. Condition and Temporal'!$B$6:$L$103,6,FALSE),IF(F54="Good",VLOOKUP(D54,'10. Condition and Temporal'!$B$6:$L$103,7,FALSE),IF(F54="Poor",VLOOKUP(D54,'10. Condition and Temporal'!$B$6:$L$103,8,FALSE),IF(F54="Condition Assessment N/A",VLOOKUP(D54,'10. Condition and Temporal'!$B$6:$L$103,9,FALSE),IF(F54="N/A - Other",VLOOKUP(D54,'10. Condition and Temporal'!$B$6:$L$103,10,FALSE))))))) ->  | AF54: =IF(AE54="","",VLOOKUP(AE54,'11. Lists'!$I$47:$K$80,3,FALSE)) ->  | AG54: =IF(D54="","",VLOOKUP(D54,'9. All Habitats + Multipliers'!$C$4:$K$102,7,FALSE)) ->  | AH54: =IF(AG54="","",VLOOKUP(AG54,'11. Lists'!$J$35:$K$38,2,FALSE)) -> 
B55: 16 | E55: =IF(D55="","",VLOOKUP(D55,'10. Condition and Temporal'!$B$6:$D$103,3,FALSE)) ->  | T55: =IF(C55="","",VLOOKUP(D55,'9. All Habitats + Multipliers'!$C$4:$K$102,5,FALSE)) ->  | V55: =IF(T55="","",VLOOKUP(T55,'11. Lists'!$B$47:$D$49,2,FALSE)) ->  | X55: =IF(W55="","",VLOOKUP(W55,'11. Lists'!$F$47:$G$51,2,FALSE)) ->  | AC55: =IF(AB55="","",VLOOKUP(AB55,'11. Lists'!$F$36:$H$38,2,FALSE)) ->  | AD55: =IF(AB55="","",VLOOKUP(AB55,'11. Lists'!$F$36:$H$38,3,FALSE)) ->  | AE55: =IF(F55="","",IF(F55="Moderate",VLOOKUP(D55,'10. Condition and Temporal'!$B$6:$L$103,6,FALSE),IF(F55="Good",VLOOKUP(D55,'10. Condition and Temporal'!$B$6:$L$103,7,FALSE),IF(F55="Poor",VLOOKUP(D55,'10. Condition and Temporal'!$B$6:$L$103,8,FALSE),IF(F55="Condition Assessment N/A",VLOOKUP(D55,'10. Condition and Temporal'!$B$6:$L$103,9,FALSE),IF(F55="N/A - Other",VLOOKUP(D55,'10. Condition and Temporal'!$B$6:$L$103,10,FALSE))))))) ->  | AF55: =IF(AE55="","",VLOOKUP(AE55,'11. Lists'!$I$47:$K$80,3,FALSE)) ->  | AG55: =IF(D55="","",VLOOKUP(D55,'9. All Habitats + Multipliers'!$C$4:$K$102,7,FALSE)) ->  | AH55: =IF(AG55="","",VLOOKUP(AG55,'11. Lists'!$J$35:$K$38,2,FALSE)) -> 
B56: 17 | E56: =IF(D56="","",VLOOKUP(D56,'10. Condition and Temporal'!$B$6:$D$103,3,FALSE)) ->  | T56: =IF(C56="","",VLOOKUP(D56,'9. All Habitats + Multipliers'!$C$4:$K$102,5,FALSE)) ->  | V56: =IF(T56="","",VLOOKUP(T56,'11. Lists'!$B$47:$D$49,2,FALSE)) ->  | X56: =IF(W56="","",VLOOKUP(W56,'11. Lists'!$F$47:$G$51,2,FALSE)) ->  | AC56: =IF(AB56="","",VLOOKUP(AB56,'11. Lists'!$F$36:$H$38,2,FALSE)) ->  | AD56: =IF(AB56="","",VLOOKUP(AB56,'11. Lists'!$F$36:$H$38,3,FALSE)) ->  | AE56: =IF(F56="","",IF(F56="Moderate",VLOOKUP(D56,'10. Condition and Temporal'!$B$6:$L$103,6,FALSE),IF(F56="Good",VLOOKUP(D56,'10. Condition and Temporal'!$B$6:$L$103,7,FALSE),IF(F56="Poor",VLOOKUP(D56,'10. Condition and Temporal'!$B$6:$L$103,8,FALSE),IF(F56="Condition Assessment N/A",VLOOKUP(D56,'10. Condition and Temporal'!$B$6:$L$103,9,FALSE),IF(F56="N/A - Other",VLOOKUP(D56,'10. Condition and Temporal'!$B$6:$L$103,10,FALSE))))))) ->  | AF56: =IF(AE56="","",VLOOKUP(AE56,'11. Lists'!$I$47:$K$80,3,FALSE)) ->  | AG56: =IF(D56="","",VLOOKUP(D56,'9. All Habitats + Multipliers'!$C$4:$K$102,7,FALSE)) ->  | AH56: =IF(AG56="","",VLOOKUP(AG56,'11. Lists'!$J$35:$K$38,2,FALSE)) -> 
B57: 18 | E57: =IF(D57="","",VLOOKUP(D57,'10. Condition and Temporal'!$B$6:$D$103,3,FALSE)) ->  | T57: =IF(C57="","",VLOOKUP(D57,'9. All Habitats + Multipliers'!$C$4:$K$102,5,FALSE)) ->  | V57: =IF(T57="","",VLOOKUP(T57,'11. Lists'!$B$47:$D$49,2,FALSE)) ->  | X57: =IF(W57="","",VLOOKUP(W57,'11. Lists'!$F$47:$G$51,2,FALSE)) ->  | AC57: =IF(AB57="","",VLOOKUP(AB57,'11. Lists'!$F$36:$H$38,2,FALSE)) ->  | AD57: =IF(AB57="","",VLOOKUP(AB57,'11. Lists'!$F$36:$H$38,3,FALSE)) ->  | AE57: =IF(F57="","",IF(F57="Moderate",VLOOKUP(D57,'10. Condition and Temporal'!$B$6:$L$103,6,FALSE),IF(F57="Good",VLOOKUP(D57,'10. Condition and Temporal'!$B$6:$L$103,7,FALSE),IF(F57="Poor",VLOOKUP(D57,'10. Condition and Temporal'!$B$6:$L$103,8,FALSE),IF(F57="Condition Assessment N/A",VLOOKUP(D57,'10. Condition and Temporal'!$B$6:$L$103,9,FALSE),IF(F57="N/A - Other",VLOOKUP(D57,'10. Condition and Temporal'!$B$6:$L$103,10,FALSE))))))) ->  | AF57: =IF(AE57="","",VLOOKUP(AE57,'11. Lists'!$I$47:$K$80,3,FALSE)) ->  | AG57: =IF(D57="","",VLOOKUP(D57,'9. All Habitats + Multipliers'!$C$4:$K$102,7,FALSE)) ->  | AH57: =IF(AG57="","",VLOOKUP(AG57,'11. Lists'!$J$35:$K$38,2,FALSE)) -> 
B58: 19 | E58: =IF(D58="","",VLOOKUP(D58,'10. Condition and Temporal'!$B$6:$D$103,3,FALSE)) ->  | T58: =IF(C58="","",VLOOKUP(D58,'9. All Habitats + Multipliers'!$C$4:$K$102,5,FALSE)) ->  | V58: =IF(T58="","",VLOOKUP(T58,'11. Lists'!$B$47:$D$49,2,FALSE)) ->  | X58: =IF(W58="","",VLOOKUP(W58,'11. Lists'!$F$47:$G$51,2,FALSE)) ->  | AC58: =IF(AB58="","",VLOOKUP(AB58,'11. Lists'!$F$36:$H$38,2,FALSE)) ->  | AD58: =IF(AB58="","",VLOOKUP(AB58,'11. Lists'!$F$36:$H$38,3,FALSE)) ->  | AE58: =IF(F58="","",IF(F58="Moderate",VLOOKUP(D58,'10. Condition and Temporal'!$B$6:$L$103,6,FALSE),IF(F58="Good",VLOOKUP(D58,'10. Condition and Temporal'!$B$6:$L$103,7,FALSE),IF(F58="Poor",VLOOKUP(D58,'10. Condition and Temporal'!$B$6:$L$103,8,FALSE),IF(F58="Condition Assessment N/A",VLOOKUP(D58,'10. Condition and Temporal'!$B$6:$L$103,9,FALSE),IF(F58="N/A - Other",VLOOKUP(D58,'10. Condition and Temporal'!$B$6:$L$103,10,FALSE))))))) ->  | AF58: =IF(AE58="","",VLOOKUP(AE58,'11. Lists'!$I$47:$K$80,3,FALSE)) ->  | AG58: =IF(D58="","",VLOOKUP(D58,'9. All Habitats + Multipliers'!$C$4:$K$102,7,FALSE)) ->  | AH58: =IF(AG58="","",VLOOKUP(AG58,'11. Lists'!$J$35:$K$38,2,FALSE)) -> 
B59: 20 | E59: =IF(D59="","",VLOOKUP(D59,'10. Condition and Temporal'!$B$6:$D$103,3,FALSE)) ->  | T59: =IF(C59="","",VLOOKUP(D59,'9. All Habitats + Multipliers'!$C$4:$K$102,5,FALSE)) ->  | V59: =IF(T59="","",VLOOKUP(T59,'11. Lists'!$B$47:$D$49,2,FALSE)) ->  | X59: =IF(W59="","",VLOOKUP(W59,'11. Lists'!$F$47:$G$51,2,FALSE)) ->  | AC59: =IF(AB59="","",VLOOKUP(AB59,'11. Lists'!$F$36:$H$38,2,FALSE)) ->  | AD59: =IF(AB59="","",VLOOKUP(AB59,'11. Lists'!$F$36:$H$38,3,FALSE)) ->  | AE59: =IF(F59="","",IF(F59="Moderate",VLOOKUP(D59,'10. Condition and Temporal'!$B$6:$L$103,6,FALSE),IF(F59="Good",VLOOKUP(D59,'10. Condition and Temporal'!$B$6:$L$103,7,FALSE),IF(F59="Poor",VLOOKUP(D59,'10. Condition and Temporal'!$B$6:$L$103,8,FALSE),IF(F59="Condition Assessment N/A",VLOOKUP(D59,'10. Condition and Temporal'!$B$6:$L$103,9,FALSE),IF(F59="N/A - Other",VLOOKUP(D59,'10. Condition and Temporal'!$B$6:$L$103,10,FALSE))))))) ->  | AF59: =IF(AE59="","",VLOOKUP(AE59,'11. Lists'!$I$47:$K$80,3,FALSE)) ->  | AG59: =IF(D59="","",VLOOKUP(D59,'9. All Habitats + Multipliers'!$C$4:$K$102,7,FALSE)) ->  | AH59: =IF(AG59="","",VLOOKUP(AG59,'11. Lists'!$J$35:$K$38,2,FALSE)) -> 
B60: Trees | C60: Individual trees | D60: Urban/rural tree | E60: Moderate | F60: Moderate | H60: Area/compensation not in local strategy/ no local strategy | I60: =O99 -> 0 | L60: =IF(D60="","",((I60/10000)*(V60*X60))*(AH60*AF60)*AD60) -> 0 | T60: =IF(C60="","",VLOOKUP(D60,'9. All Habitats + Multipliers'!$C$4:$K$102,5,FALSE)) -> Medium | V60: =IF(T60="","",VLOOKUP(T60,'11. Lists'!$B$47:$D$49,2,FALSE)) -> 4 | W60: =IF(F60="","",F60) -> Moderate | X60: =IF(W60="","",VLOOKUP(W60,'11. Lists'!$F$47:$G$51,2,FALSE)) -> 2 | AB60: Area/compensation not in local strategy/ no local strategy | AC60: =IF(AB60="","",VLOOKUP(AB60,'11. Lists'!$F$36:$H$38,2,FALSE)) -> Low Strategic Significance | AD60: =IF(AB60="","",VLOOKUP(AB60,'11. Lists'!$F$36:$H$38,3,FALSE)) -> 1 | AE60: =IF(F60="","",IF(F60="Moderate",VLOOKUP(D60,'10. Condition and Temporal'!$B$6:$L$103,6,FALSE),IF('5. Area Habitats'!F60="Good",VLOOKUP(D60,'10. Condition and Temporal'!$B$6:$L$103,7,FALSE),VLOOKUP(D60,'10. Condition and Temporal'!$B$6:$L$103,8,FALSE)))) -> 27 | AF60: =IF(AE60="","",VLOOKUP(AE60,'11. Lists'!$I$47:$K$80,3,FALSE)) -> 0.3821531646 | AG60: =IF(D60="","",VLOOKUP(D60,'9. All Habitats + Multipliers'!$C$4:$K$102,7,FALSE)) -> Low | AH60: =IF(AG60="","",VLOOKUP(AG60,'11. Lists'!$J$35:$K$38,2,FALSE)) -> 1
H61: Totals (areas excl trees, green walls and intertidal hard structures) | I61: =SUMIFS(I40:I59,D40:D59,"<>"&'11. Lists'!Q10,D40:D59,"<>"&'11. Lists'!Q11,D40:D59,"<>"&'11. Lists'!I4,D40:D59,"<>"&'11. Lists'!I2,D40:D59,"<>"&'11. Lists'!I3) -> 0 | L61: =SUM(L40:N60) -> 0
H62: Error Check 4 | I62: =IF(I61<>M32,"Error - Area of habitat creation must match area lost ▲","Areas Acceptable ✓") -> Areas Acceptable ✓ | O62: =IFERROR(FIND("Error",I62),0) -> 0
I63: =SUM($I$40:$K$60) -> 0 | BA63: Divider
B64: 1c. Habitats to be enhanced | BA64: ,
R65: Data beyond this column is automated
B66: Baseline ref | C66: Existing Habitat Type | E66: Enhanced Habitat type | H66: B. Strategic significance | I66: Area Enhanced | J66: Enhanced Condition | L66: Total Units | M66: Net Improvement | O66: Comments | T66: Baseline Values | AE66: Distinctiveness change acceptable? | AF66: Enhanced multipliers | AQ66: Condition enhancement - Time to target condition/years | AR66: Enhanced multipliers | BA66: Number of options | BB66: =COUNTIF(BB68:BB87,"?*") -> 0 | BC66: =COUNTIF(BC68:BC87,"?*") -> 0 | BD66: 0 | BE66: 0 | BF66: 0 | BG66: 0 | BH66: 0 | BI66: 0 | BJ66: 0 | BK66: 0 | BL66: 0 | BM66: 0 | BN66: 0 | BO66: 0 | BP66: 0 | BQ66: 0 | BR66: 0 | BS66: 0 | BT66: 0 | BU66: 0
C67: Broad habitat type | D67: Existing habitat type | E67: Enhancement Type | F67: A. Enhanced habitat type | O67: User comments | P67: LPA comments | T67: Area enhanced | U67: Baseline distinctiveness band | V67: Baseline distinctiveness score | W67: Baseline condition category | X67: Baseline condition score | AB67: Baseline strategic significance category | AC67: Baseline strategic significance score | AD67: Baseline value of area enhanced | AF67: Area enhanced | AG67: Distinctiveness | AH67: Score | AI67: Condition | AJ67: Score | AN67: Strategic significance | AO67: Strategic significance | AP67: Strategic significance multiplier | AR67: Condition enhancement - Time to target multiplier | AS67: Distinctiveness enhancement - Time to target condition/years | AT67: Distinctiveness enhancement - Time to target multiplier | AU67: Difficulty of enhancement category | AV67: Difficulty of enhancement multiplier | AW67: Acceptable habitat types | AX67: Enhancement type | AY67: Enhancement broad habitat type | BA67: Option number | BB67: 1 | BC67: 2 | BD67: 3 | BE67: 4 | BF67: 5 | BG67: 6 | BH67: 7 | BI67: 8 | BJ67: 9 | BK67: 10 | BL67: 11 | BM67: 12 | BN67: 13 | BO67: 14 | BP67: 15 | BQ67: 16 | BR67: 17 | BS67: 18 | BT67: 19 | BU67: 20 | BV67: List range | BW67: Column ref | BX67: list length
B68: 1 | C68: =IF(D68="","",C11) ->  | D68: =IF(OR(K11=0, K11=""),"",D11) ->  | E68: =IF(AX68="","",AX68) ->  | H68: =IF(D68="","",AB68) ->  | I68: =IF(OR(K11="", K11=0),"",K11) ->  | J68: =IFERROR(IF(F68="","",VLOOKUP(F68,'10. Condition and Temporal'!$B$6:$F$103,5,FALSE)), "Error ▲") ->  | L68: =IFERROR(IF(D68="","",IF(AX68="Distinctiveness",(((((I68*AH68*AJ68)-(I68*V68*X68))*(AV68*AT68))+(I68*V68*X68))*(AP68))/10000,((((I68*AJ68*AH68)-(I68*V68*X68))*(AV68*AR68))+(I68*V68*X68))*AP68/10000)),"Error ▲") ->  | M68: =IFERROR(IF(F68="","",L68-AD68), "Error ▲") ->  | T68: =IF(D68="","",K11) ->  | U68: =IF($D68="","",T11) ->  | V68: =IF($D68="","",V11) ->  | AB68: =IF($D68="","",AB11) ->  | AC68: =IF($D68="","",AD11) ->  | AD68: =IF(AC68="","",(T68*V68*X68)*AC68/10000) ->  | AE68: =IF(AD68="","",IF(AH68<V68,"Not Acceptable","Acceptable")) ->  | AF68: =IF(D68="","",I68) ->  | AG68: =IF(D68="","",VLOOKUP(F68,'9. All Habitats + Multipliers'!$C$4:$K$102,5,FALSE)) ->  | AH68: =IF(AG68="","",VLOOKUP(AG68,'11. Lists'!$B$47:$D$49,2,FALSE)) ->  | AI68: =IF(D68="","",J68) ->  | AJ68: =IF(AI68="","",VLOOKUP(AI68,'11. Lists'!$F$47:$G$51,2,FALSE)) ->  | AN68: =IF(H68="","",H68) ->  | AO68: =IF(AN68="","",VLOOKUP(AN68,'11. Lists'!$F$36:$H$38,2,FALSE)) ->  | AP68: =IF(AN68="","",VLOOKUP(AN68,'11. Lists'!$F$36:$H$38,3,FALSE)) ->  | AQ68: =IF(D68="","",IF(AX68="Distinctiveness","N/A",VLOOKUP(F68,'10. Condition and Temporal'!$B$6:$L$103,11,FALSE))) ->  | AR68: =IF(AQ68="","",IF(AQ68="N/A","1",VLOOKUP(AQ68,'11. Lists'!$I$47:$K$80,3,FALSE))) ->  | AS68: =IF(D68="","",IF(AX68="Condition","N/A",VLOOKUP(F68,'10. Condition and Temporal'!$B$6:$M$106,12,FALSE))) ->  | AT68: =IF(AS68="","",IF(AS68="N/A","1",VLOOKUP(AS68,'11. Lists'!$I$47:$K$80,3,FALSE))) ->  | AU68: =IF(D68="","",VLOOKUP(F68,'9. All Habitats + Multipliers'!$C$4:$K$102,8,FALSE)) ->  | AV68: =IF(AU68="","",VLOOKUP(AU68,'11. Lists'!$J$35:$K$38,2,FALSE)) ->  | AW68: =IF(D68="","",VLOOKUP(D68,'10. Condition and Temporal'!$B$6:$M$103,4,FALSE)) ->  | AX68: =IF(F68="","",IF(D68=F68,"Condition","Distinctiveness")) ->  | AY68: =IF(COUNTIF(F68,"*grassland*"),"Grassland",IF(COUNTIF(F68,"*scree*"),"Sparsely vegetated land",C68)) ->  | BA68: 1 | BB68: =TRIM(MID(SUBSTITUTE($AW$68,$BA$64,REPT(" ",LEN($AW$68))),($BA68-1)*LEN($AW$68)+1,LEN($AW$68))) ->  | BC68: =TRIM(MID(SUBSTITUTE($AW$69,$BA$64,REPT(" ",LEN($AW$69))),($BA68-1)*LEN($AW$69)+1,LEN($AW$69))) ->  | BD68: =TRIM(MID(SUBSTITUTE($AW$70,$BA$64,REPT(" ",LEN($AW$70))),($BA68-1)*LEN($AW$70)+1,LEN($AW$70))) ->  | BE68: =TRIM(MID(SUBSTITUTE($AW$71,$BA$64,REPT(" ",LEN($AW$71))),($BA68-1)*LEN($AW$71)+1,LEN($AW$71))) ->  | BF68: =TRIM(MID(SUBSTITUTE($AW$72,$BA$64,REPT(" ",LEN($AW$72))),($BA68-1)*LEN($AW$72)+1,LEN($AW$72))) ->  | BG68: =TRIM(MID(SUBSTITUTE($AW$73,$BA$64,REPT(" ",LEN($AW$73))),($BA68-1)*LEN($AW$73)+1,LEN($AW$73))) ->  | BH68: =TRIM(MID(SUBSTITUTE($AW$74,$BA$64,REPT(" ",LEN($AW$74))),($BA68-1)*LEN($AW$74)+1,LEN($AW$74))) ->  | BI68: =TRIM(MID(SUBSTITUTE($AW$75,$BA$64,REPT(" ",LEN($AW$75))),($BA68-1)*LEN($AW$75)+1,LEN($AW$75))) ->  | BJ68: =TRIM(MID(SUBSTITUTE($AW$76,$BA$64,REPT(" ",LEN($AW$76))),($BA68-1)*LEN($AW$76)+1,LEN($AW$76))) ->  | BK68: =TRIM(MID(SUBSTITUTE($AW$77,$BA$64,REPT(" ",LEN($AW$77))),($BA68-1)*LEN($AW$77)+1,LEN($AW$77))) ->  | BL68: =TRIM(MID(SUBSTITUTE($AW$78,$BA$64,REPT(" ",LEN($AW$78))),($BA68-1)*LEN($AW$78)+1,LEN($AW$78))) ->  | BM68: =TRIM(MID(SUBSTITUTE($AW$79,$BA$64,REPT(" ",LEN($AW$79))),($BA68-1)*LEN($AW$79)+1,LEN($AW$79))) ->  | BN68: =TRIM(MID(SUBSTITUTE($AW$80,$BA$64,REPT(" ",LEN($AW$80))),($BA68-1)*LEN($AW$80)+1,LEN($AW$80))) ->  | BO68: =TRIM(MID(SUBSTITUTE($AW$81,$BA$64,REPT(" ",LEN($AW$81))),($BA68-1)*LEN($AW$81)+1,LEN($AW$81))) ->  | BP68: =TRIM(MID(SUBSTITUTE($AW$82,$BA$64,REPT(" ",LEN($AW$82))),($BA68-1)*LEN($AW$82)+1,LEN($AW$82))) ->  | BQ68: =TRIM(MID(SUBSTITUTE($AW$83,$BA$64,REPT(" ",LEN($AW$83))),($BA68-1)*LEN($AW$83)+1,LEN($AW$83))) ->  | BR68: =TRIM(MID(SUBSTITUTE($AW$84,$BA$64,REPT(" ",LEN($AW$84))),($BA68-1)*LEN($AW$84)+1,LEN($AW$84))) ->  | BS68: =TRIM(MID(SUBSTITUTE($AW$85,$BA$64,REPT(" ",LEN($AW$85))),($BA68-1)*LEN($AW$85)+1,LEN($AW$85))) ->  | BT68: =TRIM(MID(SUBSTITUTE($AW$86,$BA$64,REPT(" ",LEN($AW$86))),($BA68-1)*LEN($AW$86)+1,LEN($AW$86))) ->  | BU68: =TRIM(MID(SUBSTITUTE($AW$87,$BA$64,REPT(" ",LEN($AW$87))),($BA68-1)*LEN($AW$87)+1,LEN($AW$87))) ->  | BV68: =IF(BX68=0,"",CONCATENATE(BW68,"68:",BW68,BX68+67)) ->  | BW68: BB | BX68: =BB66 -> 0
B69: 2 | D69: =IF(OR(K12=0, K12=""),"",D12) ->  | I69: =IF(OR(K12="", K12=0),"",K12) ->  | J69: =IFERROR(IF(F69="","",VLOOKUP(F69,'10. Condition and Temporal'!$B$6:$F$103,5,FALSE)), "Error ▲") ->  | L69: =IFERROR(IF(D69="","",IF(AX69="Distinctiveness",(((((I69*AH69*AJ69)-(I69*V69*X69))*(AV69*AT69))+(I69*V69*X69))*(AP69))/10000,((((I69*AJ69*AH69)-(I69*V69*X69))*(AV69*AR69))+(I69*V69*X69))*AP69/10000)),"Error ▲") ->  | M69: =IFERROR(IF(F69="","",L69-AD69), "Error ▲") ->  | U69: =IF($D69="","",T12) ->  | AD69: =IF(AC69="","",(T69*V69*X69)*AC69/10000) ->  | AE69: =IF(AD69="","",IF(AH69<V69,"Not Acceptable","Acceptable")) ->  | AG69: =IF(D69="","",VLOOKUP(F69,'9. All Habitats + Multipliers'!$C$4:$K$102,5,FALSE)) ->  | AH69: =IF(AG69="","",VLOOKUP(AG69,'11. Lists'!$B$47:$D$49,2,FALSE)) ->  | AJ69: =IF(AI69="","",VLOOKUP(AI69,'11. Lists'!$F$47:$G$51,2,FALSE)) ->  | AO69: =IF(AN69="","",VLOOKUP(AN69,'11. Lists'!$F$36:$H$38,2,FALSE)) ->  | AP69: =IF(AN69="","",VLOOKUP(AN69,'11. Lists'!$F$36:$H$38,3,FALSE)) ->  | AQ69: =IF(D69="","",IF(AX69="Distinctiveness","N/A",VLOOKUP(F69,'10. Condition and Temporal'!$B$6:$L$103,11,FALSE))) ->  | AR69: =IF(AQ69="","",IF(AQ69="N/A","1",VLOOKUP(AQ69,'11. Lists'!$I$47:$K$80,3,FALSE))) ->  | AS69: =IF(D69="","",IF(AX69="Condition","N/A",VLOOKUP(F69,'10. Condition and Temporal'!$B$6:$M$106,12,FALSE))) ->  | AT69: =IF(AS69="","",IF(AS69="N/A","1",VLOOKUP(AS69,'11. Lists'!$I$47:$K$80,3,FALSE))) ->  | AU69: =IF(D69="","",VLOOKUP(F69,'9. All Habitats + Multipliers'!$C$4:$K$102,8,FALSE)) ->  | AV69: =IF(AU69="","",VLOOKUP(AU69,'11. Lists'!$J$35:$K$38,2,FALSE)) ->  | AW69: =IF(D69="","",VLOOKUP(D69,'10. Condition and Temporal'!$B$6:$M$103,4,FALSE)) ->  | AY69: =IF(COUNTIF(F69,"*grassland*"),"Grassland",IF(COUNTIF(F69,"*scree*"),"Sparsely vegetated land",C69)) ->  | BA69: 2 | BV69: =IF(BX69=0,"",CONCATENATE(BW69,"68:",BW69,BX69+67)) ->  | BW69: BC | BX69: =BC66 -> 0
B70: 3 | J70: =IFERROR(IF(F70="","",VLOOKUP(F70,'10. Condition and Temporal'!$B$6:$F$103,5,FALSE)), "Error ▲") ->  | AD70: =IF(AC70="","",(T70*V70*X70)*AC70/10000) ->  | AG70: =IF(D70="","",VLOOKUP(F70,'9. All Habitats + Multipliers'!$C$4:$K$102,5,FALSE)) ->  | AH70: =IF(AG70="","",VLOOKUP(AG70,'11. Lists'!$B$47:$D$49,2,FALSE)) ->  | AJ70: =IF(AI70="","",VLOOKUP(AI70,'11. Lists'!$F$47:$G$51,2,FALSE)) ->  | AO70: =IF(AN70="","",VLOOKUP(AN70,'11. Lists'!$F$36:$H$38,2,FALSE)) ->  | AP70: =IF(AN70="","",VLOOKUP(AN70,'11. Lists'!$F$36:$H$38,3,FALSE)) ->  | AQ70: =IF(D70="","",IF(AX70="Distinctiveness","N/A",VLOOKUP(F70,'10. Condition and Temporal'!$B$6:$L$103,11,FALSE))) ->  | AR70: =IF(AQ70="","",IF(AQ70="N/A","1",VLOOKUP(AQ70,'11. Lists'!$I$47:$K$80,3,FALSE))) ->  | AS70: =IF(D70="","",IF(AX70="Condition","N/A",VLOOKUP(F70,'10. Condition and Temporal'!$B$6:$M$106,12,FALSE))) ->  | AT70: =IF(AS70="","",IF(AS70="N/A","1",VLOOKUP(AS70,'11. Lists'!$I$47:$K$80,3,FALSE))) ->  | AU70: =IF(D70="","",VLOOKUP(F70,'9. All Habitats + Multipliers'!$C$4:$K$102,8,FALSE)) ->  | AV70: =IF(AU70="","",VLOOKUP(AU70,'11. Lists'!$J$35:$K$38,2,FALSE)) ->  | AW70: =IF(D70="","",VLOOKUP(D70,'10. Condition and Temporal'!$B$6:$M$103,4,FALSE)) ->  | BA70: 3 | BW70: BD | BX70: =BD66 -> 0
B71: 4 | J71: =IFERROR(IF(F71="","",VLOOKUP(F71,'10. Condition and Temporal'!$B$6:$F$103,5,FALSE)), "Error ▲") ->  | AG71: =IF(D71="","",VLOOKUP(F71,'9. All Habitats + Multipliers'!$C$4:$K$102,5,FALSE)) ->  | AH71: =IF(AG71="","",VLOOKUP(AG71,'11. Lists'!$B$47:$D$49,2,FALSE)) ->  | AJ71: =IF(AI71="","",VLOOKUP(AI71,'11. Lists'!$F$47:$G$51,2,FALSE)) ->  | AO71: =IF(AN71="","",VLOOKUP(AN71,'11. Lists'!$F$36:$H$38,2,FALSE)) ->  | AP71: =IF(AN71="","",VLOOKUP(AN71,'11. Lists'!$F$36:$H$38,3,FALSE)) ->  | AQ71: =IF(D71="","",IF(AX71="Distinctiveness","N/A",VLOOKUP(F71,'10. Condition and Temporal'!$B$6:$L$103,11,FALSE))) ->  | AR71: =IF(AQ71="","",IF(AQ71="N/A","1",VLOOKUP(AQ71,'11. Lists'!$I$47:$K$80,3,FALSE))) ->  | AS71: =IF(D71="","",IF(AX71="Condition","N/A",VLOOKUP(F71,'10. Condition and Temporal'!$B$6:$M$106,12,FALSE))) ->  | AT71: =IF(AS71="","",IF(AS71="N/A","1",VLOOKUP(AS71,'11. Lists'!$I$47:$K$80,3,FALSE))) ->  | AU71: =IF(D71="","",VLOOKUP(F71,'9. All Habitats + Multipliers'!$C$4:$K$102,8,FALSE)) ->  | AV71: =IF(AU71="","",VLOOKUP(AU71,'11. Lists'!$J$35:$K$38,2,FALSE)) ->  | AW71: =IF(D71="","",VLOOKUP(D71,'10. Condition and Temporal'!$B$6:$M$103,4,FALSE)) ->  | BA71: 4 | BW71: BE | BX71: =BE66 -> 0
B72: 5 | J72: =IFERROR(IF(F72="","",VLOOKUP(F72,'10. Condition and Temporal'!$B$6:$F$103,5,FALSE)), "Error ▲") ->  | AG72: =IF(D72="","",VLOOKUP(F72,'9. All Habitats + Multipliers'!$C$4:$K$102,5,FALSE)) ->  | AH72: =IF(AG72="","",VLOOKUP(AG72,'11. Lists'!$B$47:$D$49,2,FALSE)) ->  | AJ72: =IF(AI72="","",VLOOKUP(AI72,'11. Lists'!$F$47:$G$51,2,FALSE)) ->  | AO72: =IF(AN72="","",VLOOKUP(AN72,'11. Lists'!$F$36:$H$38,2,FALSE)) ->  | AP72: =IF(AN72="","",VLOOKUP(AN72,'11. Lists'!$F$36:$H$38,3,FALSE)) ->  | AQ72: =IF(D72="","",IF(AX72="Distinctiveness","N/A",VLOOKUP(F72,'10. Condition and Temporal'!$B$6:$L$103,11,FALSE))) ->  | AR72: =IF(AQ72="","",IF(AQ72="N/A","1",VLOOKUP(AQ72,'11. Lists'!$I$47:$K$80,3,FALSE))) ->  | AS72: =IF(D72="","",IF(AX72="Condition","N/A",VLOOKUP(F72,'10. Condition and Temporal'!$B$6:$M$106,12,FALSE))) ->  | AT72: =IF(AS72="","",IF(AS72="N/A","1",VLOOKUP(AS72,'11. Lists'!$I$47:$K$80,3,FALSE))) ->  | AU72: =IF(D72="","",VLOOKUP(F72,'9. All Habitats + Multipliers'!$C$4:$K$102,8,FALSE)) ->  | AV72: =IF(AU72="","",VLOOKUP(AU72,'11. Lists'!$J$35:$K$38,2,FALSE)) ->  | AW72: =IF(D72="","",VLOOKUP(D72,'10. Condition and Temporal'!$B$6:$M$103,4,FALSE)) ->  | BA72: 5 | BW72: BF | BX72: =BF66 -> 0
B73: 6 | J73: =IFERROR(IF(F73="","",VLOOKUP(F73,'10. Condition and Temporal'!$B$6:$F$103,5,FALSE)), "Error ▲") ->  | AG73: =IF(D73="","",VLOOKUP(F73,'9. All Habitats + Multipliers'!$C$4:$K$102,5,FALSE)) ->  | AH73: =IF(AG73="","",VLOOKUP(AG73,'11. Lists'!$B$47:$D$49,2,FALSE)) ->  | AJ73: =IF(AI73="","",VLOOKUP(AI73,'11. Lists'!$F$47:$G$51,2,FALSE)) ->  | AO73: =IF(AN73="","",VLOOKUP(AN73,'11. Lists'!$F$36:$H$38,2,FALSE)) ->  | AP73: =IF(AN73="","",VLOOKUP(AN73,'11. Lists'!$F$36:$H$38,3,FALSE)) ->  | AQ73: =IF(D73="","",IF(AX73="Distinctiveness","N/A",VLOOKUP(F73,'10. Condition and Temporal'!$B$6:$L$103,11,FALSE))) ->  | AR73: =IF(AQ73="","",IF(AQ73="N/A","1",VLOOKUP(AQ73,'11. Lists'!$I$47:$K$80,3,FALSE))) ->  | AS73: =IF(D73="","",IF(AX73="Condition","N/A",VLOOKUP(F73,'10. Condition and Temporal'!$B$6:$M$106,12,FALSE))) ->  | AT73: =IF(AS73="","",IF(AS73="N/A","1",VLOOKUP(AS73,'11. Lists'!$I$47:$K$80,3,FALSE))) ->  | AU73: =IF(D73="","",VLOOKUP(F73,'9. All Habitats + Multipliers'!$C$4:$K$102,8,FALSE)) ->  | AV73: =IF(AU73="","",VLOOKUP(AU73,'11. Lists'!$J$35:$K$38,2,FALSE)) ->  | AW73: =IF(D73="","",VLOOKUP(D73,'10. Condition and Temporal'!$B$6:$M$103,4,FALSE)) ->  | BA73: 6 | BW73: BG | BX73: =BG66 -> 0
B74: 7 | J74: =IFERROR(IF(F74="","",VLOOKUP(F74,'10. Condition and Temporal'!$B$6:$F$103,5,FALSE)), "Error ▲") ->  | AG74: =IF(D74="","",VLOOKUP(F74,'9. All Habitats + Multipliers'!$C$4:$K$102,5,FALSE)) ->  | AH74: =IF(AG74="","",VLOOKUP(AG74,'11. Lists'!$B$47:$D$49,2,FALSE)) ->  | AJ74: =IF(AI74="","",VLOOKUP(AI74,'11. Lists'!$F$47:$G$51,2,FALSE)) ->  | AO74: =IF(AN74="","",VLOOKUP(AN74,'11. Lists'!$F$36:$H$38,2,FALSE)) ->  | AP74: =IF(AN74="","",VLOOKUP(AN74,'11. Lists'!$F$36:$H$38,3,FALSE)) ->  | AQ74: =IF(D74="","",IF(AX74="Distinctiveness","N/A",VLOOKUP(F74,'10. Condition and Temporal'!$B$6:$L$103,11,FALSE))) ->  | AR74: =IF(AQ74="","",IF(AQ74="N/A","1",VLOOKUP(AQ74,'11. Lists'!$I$47:$K$80,3,FALSE))) ->  | AS74: =IF(D74="","",IF(AX74="Condition","N/A",VLOOKUP(F74,'10. Condition and Temporal'!$B$6:$M$106,12,FALSE))) ->  | AT74: =IF(AS74="","",IF(AS74="N/A","1",VLOOKUP(AS74,'11. Lists'!$I$47:$K$80,3,FALSE))) ->  | AU74: =IF(D74="","",VLOOKUP(F74,'9. All Habitats + Multipliers'!$C$4:$K$102,8,FALSE)) ->  | AV74: =IF(AU74="","",VLOOKUP(AU74,'11. Lists'!$J$35:$K$38,2,FALSE)) ->  | AW74: =IF(D74="","",VLOOKUP(D74,'10. Condition and Temporal'!$B$6:$M$103,4,FALSE)) ->  | BA74: 7 | BW74: BH | BX74: =BH66 -> 0
B75: 8 | J75: =IFERROR(IF(F75="","",VLOOKUP(F75,'10. Condition and Temporal'!$B$6:$F$103,5,FALSE)), "Error ▲") ->  | AG75: =IF(D75="","",VLOOKUP(F75,'9. All Habitats + Multipliers'!$C$4:$K$102,5,FALSE)) ->  | AH75: =IF(AG75="","",VLOOKUP(AG75,'11. Lists'!$B$47:$D$49,2,FALSE)) ->  | AJ75: =IF(AI75="","",VLOOKUP(AI75,'11. Lists'!$F$47:$G$51,2,FALSE)) ->  | AO75: =IF(AN75="","",VLOOKUP(AN75,'11. Lists'!$F$36:$H$38,2,FALSE)) ->  | AP75: =IF(AN75="","",VLOOKUP(AN75,'11. Lists'!$F$36:$H$38,3,FALSE)) ->  | AQ75: =IF(D75="","",IF(AX75="Distinctiveness","N/A",VLOOKUP(F75,'10. Condition and Temporal'!$B$6:$L$103,11,FALSE))) ->  | AR75: =IF(AQ75="","",IF(AQ75="N/A","1",VLOOKUP(AQ75,'11. Lists'!$I$47:$K$80,3,FALSE))) ->  | AS75: =IF(D75="","",IF(AX75="Condition","N/A",VLOOKUP(F75,'10. Condition and Temporal'!$B$6:$M$106,12,FALSE))) ->  | AT75: =IF(AS75="","",IF(AS75="N/A","1",VLOOKUP(AS75,'11. Lists'!$I$47:$K$80,3,FALSE))) ->  | AU75: =IF(D75="","",VLOOKUP(F75,'9. All Habitats + Multipliers'!$C$4:$K$102,8,FALSE)) ->  | AV75: =IF(AU75="","",VLOOKUP(AU75,'11. Lists'!$J$35:$K$38,2,FALSE)) ->  | AW75: =IF(D75="","",VLOOKUP(D75,'10. Condition and Temporal'!$B$6:$M$103,4,FALSE)) ->  | BA75: 8 | BW75: BI | BX75: =BI66 -> 0
B76: 9 | J76: =IFERROR(IF(F76="","",VLOOKUP(F76,'10. Condition and Temporal'!$B$6:$F$103,5,FALSE)), "Error ▲") ->  | AG76: =IF(D76="","",VLOOKUP(F76,'9. All Habitats + Multipliers'!$C$4:$K$102,5,FALSE)) ->  | AH76: =IF(AG76="","",VLOOKUP(AG76,'11. Lists'!$B$47:$D$49,2,FALSE)) ->  | AJ76: =IF(AI76="","",VLOOKUP(AI76,'11. Lists'!$F$47:$G$51,2,FALSE)) ->  | AO76: =IF(AN76="","",VLOOKUP(AN76,'11. Lists'!$F$36:$H$38,2,FALSE)) ->  | AP76: =IF(AN76="","",VLOOKUP(AN76,'11. Lists'!$F$36:$H$38,3,FALSE)) ->  | AQ76: =IF(D76="","",IF(AX76="Distinctiveness","N/A",VLOOKUP(F76,'10. Condition and Temporal'!$B$6:$L$103,11,FALSE))) ->  | AR76: =IF(AQ76="","",IF(AQ76="N/A","1",VLOOKUP(AQ76,'11. Lists'!$I$47:$K$80,3,FALSE))) ->  | AS76: =IF(D76="","",IF(AX76="Condition","N/A",VLOOKUP(F76,'10. Condition and Temporal'!$B$6:$M$106,12,FALSE))) ->  | AT76: =IF(AS76="","",IF(AS76="N/A","1",VLOOKUP(AS76,'11. Lists'!$I$47:$K$80,3,FALSE))) ->  | AU76: =IF(D76="","",VLOOKUP(F76,'9. All Habitats + Multipliers'!$C$4:$K$102,8,FALSE)) ->  | AV76: =IF(AU76="","",VLOOKUP(AU76,'11. Lists'!$J$35:$K$38,2,FALSE)) ->  | AW76: =IF(D76="","",VLOOKUP(D76,'10. Condition and Temporal'!$B$6:$M$103,4,FALSE)) ->  | BA76: 9 | BW76: BJ | BX76: =BJ66 -> 0
B77: 10 | J77: =IFERROR(IF(F77="","",VLOOKUP(F77,'10. Condition and Temporal'!$B$6:$F$103,5,FALSE)), "Error ▲") ->  | AG77: =IF(D77="","",VLOOKUP(F77,'9. All Habitats + Multipliers'!$C$4:$K$102,5,FALSE)) ->  | AH77: =IF(AG77="","",VLOOKUP(AG77,'11. Lists'!$B$47:$D$49,2,FALSE)) ->  | AJ77: =IF(AI77="","",VLOOKUP(AI77,'11. Lists'!$F$47:$G$51,2,FALSE)) ->  | AO77: =IF(AN77="","",VLOOKUP(AN77,'11. Lists'!$F$36:$H$38,2,FALSE)) ->  | AP77: =IF(AN77="","",VLOOKUP(AN77,'11. Lists'!$F$36:$H$38,3,FALSE)) ->  | AQ77: =IF(D77="","",IF(AX77="Distinctiveness","N/A",VLOOKUP(F77,'10. Condition and Temporal'!$B$6:$L$103,11,FALSE))) ->  | AR77: =IF(AQ77="","",IF(AQ77="N/A","1",VLOOKUP(AQ77,'11. Lists'!$I$47:$K$80,3,FALSE))) ->  | AS77: =IF(D77="","",IF(AX77="Condition","N/A",VLOOKUP(F77,'10. Condition and Temporal'!$B$6:$M$106,12,FALSE))) ->  | AT77: =IF(AS77="","",IF(AS77="N/A","1",VLOOKUP(AS77,'11. Lists'!$I$47:$K$80,3,FALSE))) ->  | AU77: =IF(D77="","",VLOOKUP(F77,'9. All Habitats + Multipliers'!$C$4:$K$102,8,FALSE)) ->  | AV77: =IF(AU77="","",VLOOKUP(AU77,'11. Lists'!$J$35:$K$38,2,FALSE)) ->  | AW77: =IF(D77="","",VLOOKUP(D77,'10. Condition and Temporal'!$B$6:$M$103,4,FALSE)) ->  | BA77: 10 | BW77: BK | BX77: =BK66 -> 0
B78: 11 | J78: =IFERROR(IF(F78="","",VLOOKUP(F78,'10. Condition and Temporal'!$B$6:$F$103,5,FALSE)), "Error ▲") ->  | AG78: =IF(D78="","",VLOOKUP(F78,'9. All Habitats + Multipliers'!$C$4:$K$102,5,FALSE)) ->  | AH78: =IF(AG78="","",VLOOKUP(AG78,'11. Lists'!$B$47:$D$49,2,FALSE)) ->  | AJ78: =IF(AI78="","",VLOOKUP(AI78,'11. Lists'!$F$47:$G$51,2,FALSE)) ->  | AO78: =IF(AN78="","",VLOOKUP(AN78,'11. Lists'!$F$36:$H$38,2,FALSE)) ->  | AP78: =IF(AN78="","",VLOOKUP(AN78,'11. Lists'!$F$36:$H$38,3,FALSE)) ->  | AQ78: =IF(D78="","",IF(AX78="Distinctiveness","N/A",VLOOKUP(F78,'10. Condition and Temporal'!$B$6:$L$103,11,FALSE))) ->  | AR78: =IF(AQ78="","",IF(AQ78="N/A","1",VLOOKUP(AQ78,'11. Lists'!$I$47:$K$80,3,FALSE))) ->  | AS78: =IF(D78="","",IF(AX78="Condition","N/A",VLOOKUP(F78,'10. Condition and Temporal'!$B$6:$M$106,12,FALSE))) ->  | AT78: =IF(AS78="","",IF(AS78="N/A","1",VLOOKUP(AS78,'11. Lists'!$I$47:$K$80,3,FALSE))) ->  | AU78: =IF(D78="","",VLOOKUP(F78,'9. All Habitats + Multipliers'!$C$4:$K$102,8,FALSE)) ->  | AV78: =IF(AU78="","",VLOOKUP(AU78,'11. Lists'!$J$35:$K$38,2,FALSE)) ->  | AW78: =IF(D78="","",VLOOKUP(D78,'10. Condition and Temporal'!$B$6:$M$103,4,FALSE)) ->  | BA78: 11 | BW78: BL | BX78: =BL66 -> 0
B79: 12 | J79: =IFERROR(IF(F79="","",VLOOKUP(F79,'10. Condition and Temporal'!$B$6:$F$103,5,FALSE)), "Error ▲") ->  | AG79: =IF(D79="","",VLOOKUP(F79,'9. All Habitats + Multipliers'!$C$4:$K$102,5,FALSE)) ->  | AH79: =IF(AG79="","",VLOOKUP(AG79,'11. Lists'!$B$47:$D$49,2,FALSE)) ->  | AJ79: =IF(AI79="","",VLOOKUP(AI79,'11. Lists'!$F$47:$G$51,2,FALSE)) ->  | AO79: =IF(AN79="","",VLOOKUP(AN79,'11. Lists'!$F$36:$H$38,2,FALSE)) ->  | AP79: =IF(AN79="","",VLOOKUP(AN79,'11. Lists'!$F$36:$H$38,3,FALSE)) ->  | AQ79: =IF(D79="","",IF(AX79="Distinctiveness","N/A",VLOOKUP(F79,'10. Condition and Temporal'!$B$6:$L$103,11,FALSE))) ->  | AR79: =IF(AQ79="","",IF(AQ79="N/A","1",VLOOKUP(AQ79,'11. Lists'!$I$47:$K$80,3,FALSE))) ->  | AS79: =IF(D79="","",IF(AX79="Condition","N/A",VLOOKUP(F79,'10. Condition and Temporal'!$B$6:$M$106,12,FALSE))) ->  | AT79: =IF(AS79="","",IF(AS79="N/A","1",VLOOKUP(AS79,'11. Lists'!$I$47:$K$80,3,FALSE))) ->  | AU79: =IF(D79="","",VLOOKUP(F79,'9. All Habitats + Multipliers'!$C$4:$K$102,8,FALSE)) ->  | AV79: =IF(AU79="","",VLOOKUP(AU79,'11. Lists'!$J$35:$K$38,2,FALSE)) ->  | AW79: =IF(D79="","",VLOOKUP(D79,'10. Condition and Temporal'!$B$6:$M$103,4,FALSE)) ->  | BA79: 12 | BW79: BM | BX79: =BM66 -> 0
B80: 13 | J80: =IFERROR(IF(F80="","",VLOOKUP(F80,'10. Condition and Temporal'!$B$6:$F$103,5,FALSE)), "Error ▲") ->  | AG80: =IF(D80="","",VLOOKUP(F80,'9. All Habitats + Multipliers'!$C$4:$K$102,5,FALSE)) ->  | AH80: =IF(AG80="","",VLOOKUP(AG80,'11. Lists'!$B$47:$D$49,2,FALSE)) ->  | AJ80: =IF(AI80="","",VLOOKUP(AI80,'11. Lists'!$F$47:$G$51,2,FALSE)) ->  | AO80: =IF(AN80="","",VLOOKUP(AN80,'11. Lists'!$F$36:$H$38,2,FALSE)) ->  | AP80: =IF(AN80="","",VLOOKUP(AN80,'11. Lists'!$F$36:$H$38,3,FALSE)) ->  | AQ80: =IF(D80="","",IF(AX80="Distinctiveness","N/A",VLOOKUP(F80,'10. Condition and Temporal'!$B$6:$L$103,11,FALSE))) ->  | AR80: =IF(AQ80="","",IF(AQ80="N/A","1",VLOOKUP(AQ80,'11. Lists'!$I$47:$K$80,3,FALSE))) ->  | AS80: =IF(D80="","",IF(AX80="Condition","N/A",VLOOKUP(F80,'10. Condition and Temporal'!$B$6:$M$106,12,FALSE))) ->  | AT80: =IF(AS80="","",IF(AS80="N/A","1",VLOOKUP(AS80,'11. Lists'!$I$47:$K$80,3,FALSE))) ->  | AU80: =IF(D80="","",VLOOKUP(F80,'9. All Habitats + Multipliers'!$C$4:$K$102,8,FALSE)) ->  | AV80: =IF(AU80="","",VLOOKUP(AU80,'11. Lists'!$J$35:$K$38,2,FALSE)) ->  | AW80: =IF(D80="","",VLOOKUP(D80,'10. Condition and Temporal'!$B$6:$M$103,4,FALSE)) ->  | BA80: 13 | BW80: BN | BX80: =BN66 -> 0
B81: 14 | J81: =IFERROR(IF(F81="","",VLOOKUP(F81,'10. Condition and Temporal'!$B$6:$F$103,5,FALSE)), "Error ▲") ->  | AG81: =IF(D81="","",VLOOKUP(F81,'9. All Habitats + Multipliers'!$C$4:$K$102,5,FALSE)) ->  | AH81: =IF(AG81="","",VLOOKUP(AG81,'11. Lists'!$B$47:$D$49,2,FALSE)) ->  | AJ81: =IF(AI81="","",VLOOKUP(AI81,'11. Lists'!$F$47:$G$51,2,FALSE)) ->  | AO81: =IF(AN81="","",VLOOKUP(AN81,'11. Lists'!$F$36:$H$38,2,FALSE)) ->  | AP81: =IF(AN81="","",VLOOKUP(AN81,'11. Lists'!$F$36:$H$38,3,FALSE)) ->  | AQ81: =IF(D81="","",IF(AX81="Distinctiveness","N/A",VLOOKUP(F81,'10. Condition and Temporal'!$B$6:$L$103,11,FALSE))) ->  | AR81: =IF(AQ81="","",IF(AQ81="N/A","1",VLOOKUP(AQ81,'11. Lists'!$I$47:$K$80,3,FALSE))) ->  | AS81: =IF(D81="","",IF(AX81="Condition","N/A",VLOOKUP(F81,'10. Condition and Temporal'!$B$6:$M$106,12,FALSE))) ->  | AT81: =IF(AS81="","",IF(AS81="N/A","1",VLOOKUP(AS81,'11. Lists'!$I$47:$K$80,3,FALSE))) ->  | AU81: =IF(D81="","",VLOOKUP(F81,'9. All Habitats + Multipliers'!$C$4:$K$102,8,FALSE)) ->  | AV81: =IF(AU81="","",VLOOKUP(AU81,'11. Lists'!$J$35:$K$38,2,FALSE)) ->  | AW81: =IF(D81="","",VLOOKUP(D81,'10. Condition and Temporal'!$B$6:$M$103,4,FALSE)) ->  | BA81: 14 | BW81: BO | BX81: =BO66 -> 0
B82: 15 | J82: =IFERROR(IF(F82="","",VLOOKUP(F82,'10. Condition and Temporal'!$B$6:$F$103,5,FALSE)), "Error ▲") ->  | AG82: =IF(D82="","",VLOOKUP(F82,'9. All Habitats + Multipliers'!$C$4:$K$102,5,FALSE)) ->  | AH82: =IF(AG82="","",VLOOKUP(AG82,'11. Lists'!$B$47:$D$49,2,FALSE)) ->  | AJ82: =IF(AI82="","",VLOOKUP(AI82,'11. Lists'!$F$47:$G$51,2,FALSE)) ->  | AO82: =IF(AN82="","",VLOOKUP(AN82,'11. Lists'!$F$36:$H$38,2,FALSE)) ->  | AP82: =IF(AN82="","",VLOOKUP(AN82,'11. Lists'!$F$36:$H$38,3,FALSE)) ->  | AQ82: =IF(D82="","",IF(AX82="Distinctiveness","N/A",VLOOKUP(F82,'10. Condition and Temporal'!$B$6:$L$103,11,FALSE))) ->  | AR82: =IF(AQ82="","",IF(AQ82="N/A","1",VLOOKUP(AQ82,'11. Lists'!$I$47:$K$80,3,FALSE))) ->  | AS82: =IF(D82="","",IF(AX82="Condition","N/A",VLOOKUP(F82,'10. Condition and Temporal'!$B$6:$M$106,12,FALSE))) ->  | AT82: =IF(AS82="","",IF(AS82="N/A","1",VLOOKUP(AS82,'11. Lists'!$I$47:$K$80,3,FALSE))) ->  | AU82: =IF(D82="","",VLOOKUP(F82,'9. All Habitats + Multipliers'!$C$4:$K$102,8,FALSE)) ->  | AV82: =IF(AU82="","",VLOOKUP(AU82,'11. Lists'!$J$35:$K$38,2,FALSE)) ->  | AW82: =IF(D82="","",VLOOKUP(D82,'10. Condition and Temporal'!$B$6:$M$103,4,FALSE)) ->  | BA82: 15 | BW82: BP | BX82: =BP66 -> 0
B83: 16 | J83: =IFERROR(IF(F83="","",VLOOKUP(F83,'10. Condition and Temporal'!$B$6:$F$103,5,FALSE)), "Error ▲") ->  | AG83: =IF(D83="","",VLOOKUP(F83,'9. All Habitats + Multipliers'!$C$4:$K$102,5,FALSE)) ->  | AH83: =IF(AG83="","",VLOOKUP(AG83,'11. Lists'!$B$47:$D$49,2,FALSE)) ->  | AJ83: =IF(AI83="","",VLOOKUP(AI83,'11. Lists'!$F$47:$G$51,2,FALSE)) ->  | AO83: =IF(AN83="","",VLOOKUP(AN83,'11. Lists'!$F$36:$H$38,2,FALSE)) ->  | AP83: =IF(AN83="","",VLOOKUP(AN83,'11. Lists'!$F$36:$H$38,3,FALSE)) ->  | AQ83: =IF(D83="","",IF(AX83="Distinctiveness","N/A",VLOOKUP(F83,'10. Condition and Temporal'!$B$6:$L$103,11,FALSE))) ->  | AR83: =IF(AQ83="","",IF(AQ83="N/A","1",VLOOKUP(AQ83,'11. Lists'!$I$47:$K$80,3,FALSE))) ->  | AS83: =IF(D83="","",IF(AX83="Condition","N/A",VLOOKUP(F83,'10. Condition and Temporal'!$B$6:$M$106,12,FALSE))) ->  | AT83: =IF(AS83="","",IF(AS83="N/A","1",VLOOKUP(AS83,'11. Lists'!$I$47:$K$80,3,FALSE))) ->  | AU83: =IF(D83="","",VLOOKUP(F83,'9. All Habitats + Multipliers'!$C$4:$K$102,8,FALSE)) ->  | AV83: =IF(AU83="","",VLOOKUP(AU83,'11. Lists'!$J$35:$K$38,2,FALSE)) ->  | AW83: =IF(D83="","",VLOOKUP(D83,'10. Condition and Temporal'!$B$6:$M$103,4,FALSE)) ->  | BA83: 16 | BW83: BQ | BX83: =BQ66 -> 0
B84: 17 | J84: =IFERROR(IF(F84="","",VLOOKUP(F84,'10. Condition and Temporal'!$B$6:$F$103,5,FALSE)), "Error ▲") ->  | AG84: =IF(D84="","",VLOOKUP(F84,'9. All Habitats + Multipliers'!$C$4:$K$102,5,FALSE)) ->  | AH84: =IF(AG84="","",VLOOKUP(AG84,'11. Lists'!$B$47:$D$49,2,FALSE)) ->  | AJ84: =IF(AI84="","",VLOOKUP(AI84,'11. Lists'!$F$47:$G$51,2,FALSE)) ->  | AO84: =IF(AN84="","",VLOOKUP(AN84,'11. Lists'!$F$36:$H$38,2,FALSE)) ->  | AP84: =IF(AN84="","",VLOOKUP(AN84,'11. Lists'!$F$36:$H$38,3,FALSE)) ->  | AQ84: =IF(D84="","",IF(AX84="Distinctiveness","N/A",VLOOKUP(F84,'10. Condition and Temporal'!$B$6:$L$103,11,FALSE))) ->  | AR84: =IF(AQ84="","",IF(AQ84="N/A","1",VLOOKUP(AQ84,'11. Lists'!$I$47:$K$80,3,FALSE))) ->  | AS84: =IF(D84="","",IF(AX84="Condition","N/A",VLOOKUP(F84,'10. Condition and Temporal'!$B$6:$M$106,12,FALSE))) ->  | AT84: =IF(AS84="","",IF(AS84="N/A","1",VLOOKUP(AS84,'11. Lists'!$I$47:$K$80,3,FALSE))) ->  | AU84: =IF(D84="","",VLOOKUP(F84,'9. All Habitats + Multipliers'!$C$4:$K$102,8,FALSE)) ->  | AV84: =IF(AU84="","",VLOOKUP(AU84,'11. Lists'!$J$35:$K$38,2,FALSE)) ->  | AW84: =IF(D84="","",VLOOKUP(D84,'10. Condition and Temporal'!$B$6:$M$103,4,FALSE)) ->  | BA84: 17 | BW84: BR | BX84: =BR66 -> 0
B85: 18 | J85: =IFERROR(IF(F85="","",VLOOKUP(F85,'10. Condition and Temporal'!$B$6:$F$103,5,FALSE)), "Error ▲") ->  | AG85: =IF(D85="","",VLOOKUP(F85,'9. All Habitats + Multipliers'!$C$4:$K$102,5,FALSE)) ->  | AH85: =IF(AG85="","",VLOOKUP(AG85,'11. Lists'!$B$47:$D$49,2,FALSE)) ->  | AJ85: =IF(AI85="","",VLOOKUP(AI85,'11. Lists'!$F$47:$G$51,2,FALSE)) ->  | AO85: =IF(AN85="","",VLOOKUP(AN85,'11. Lists'!$F$36:$H$38,2,FALSE)) ->  | AP85: =IF(AN85="","",VLOOKUP(AN85,'11. Lists'!$F$36:$H$38,3,FALSE)) ->  | AQ85: =IF(D85="","",IF(AX85="Distinctiveness","N/A",VLOOKUP(F85,'10. Condition and Temporal'!$B$6:$L$103,11,FALSE))) ->  | AR85: =IF(AQ85="","",IF(AQ85="N/A","1",VLOOKUP(AQ85,'11. Lists'!$I$47:$K$80,3,FALSE))) ->  | AS85: =IF(D85="","",IF(AX85="Condition","N/A",VLOOKUP(F85,'10. Condition and Temporal'!$B$6:$M$106,12,FALSE))) ->  | AT85: =IF(AS85="","",IF(AS85="N/A","1",VLOOKUP(AS85,'11. Lists'!$I$47:$K$80,3,FALSE))) ->  | AU85: =IF(D85="","",VLOOKUP(F85,'9. All Habitats + Multipliers'!$C$4:$K$102,8,FALSE)) ->  | AV85: =IF(AU85="","",VLOOKUP(AU85,'11. Lists'!$J$35:$K$38,2,FALSE)) ->  | AW85: =IF(D85="","",VLOOKUP(D85,'10. Condition and Temporal'!$B$6:$M$103,4,FALSE)) ->  | BA85: 18 | BW85: BS | BX85: =BS66 -> 0
B86: 19 | J86: =IFERROR(IF(F86="","",VLOOKUP(F86,'10. Condition and Temporal'!$B$6:$F$103,5,FALSE)), "Error ▲") ->  | AG86: =IF(D86="","",VLOOKUP(F86,'9. All Habitats + Multipliers'!$C$4:$K$102,5,FALSE)) ->  | AH86: =IF(AG86="","",VLOOKUP(AG86,'11. Lists'!$B$47:$D$49,2,FALSE)) ->  | AJ86: =IF(AI86="","",VLOOKUP(AI86,'11. Lists'!$F$47:$G$51,2,FALSE)) ->  | AO86: =IF(AN86="","",VLOOKUP(AN86,'11. Lists'!$F$36:$H$38,2,FALSE)) ->  | AP86: =IF(AN86="","",VLOOKUP(AN86,'11. Lists'!$F$36:$H$38,3,FALSE)) ->  | AQ86: =IF(D86="","",IF(AX86="Distinctiveness","N/A",VLOOKUP(F86,'10. Condition and Temporal'!$B$6:$L$103,11,FALSE))) ->  | AR86: =IF(AQ86="","",IF(AQ86="N/A","1",VLOOKUP(AQ86,'11. Lists'!$I$47:$K$80,3,FALSE))) ->  | AS86: =IF(D86="","",IF(AX86="Condition","N/A",VLOOKUP(F86,'10. Condition and Temporal'!$B$6:$M$106,12,FALSE))) ->  | AT86: =IF(AS86="","",IF(AS86="N/A","1",VLOOKUP(AS86,'11. Lists'!$I$47:$K$80,3,FALSE))) ->  | AU86: =IF(D86="","",VLOOKUP(F86,'9. All Habitats + Multipliers'!$C$4:$K$102,8,FALSE)) ->  | AV86: =IF(AU86="","",VLOOKUP(AU86,'11. Lists'!$J$35:$K$38,2,FALSE)) ->  | AW86: =IF(D86="","",VLOOKUP(D86,'10. Condition and Temporal'!$B$6:$M$103,4,FALSE)) ->  | BA86: 19 | BW86: BT | BX86: =BT66 -> 0
B87: 20 | J87: =IFERROR(IF(F87="","",VLOOKUP(F87,'10. Condition and Temporal'!$B$6:$F$103,5,FALSE)), "Error ▲") ->  | AG87: =IF(D87="","",VLOOKUP(F87,'9. All Habitats + Multipliers'!$C$4:$K$102,5,FALSE)) ->  | AH87: =IF(AG87="","",VLOOKUP(AG87,'11. Lists'!$B$47:$D$49,2,FALSE)) ->  | AJ87: =IF(AI87="","",VLOOKUP(AI87,'11. Lists'!$F$47:$G$51,2,FALSE)) ->  | AO87: =IF(AN87="","",VLOOKUP(AN87,'11. Lists'!$F$36:$H$38,2,FALSE)) ->  | AP87: =IF(AN87="","",VLOOKUP(AN87,'11. Lists'!$F$36:$H$38,3,FALSE)) ->  | AQ87: =IF(D87="","",IF(AX87="Distinctiveness","N/A",VLOOKUP(F87,'10. Condition and Temporal'!$B$6:$L$103,11,FALSE))) ->  | AR87: =IF(AQ87="","",IF(AQ87="N/A","1",VLOOKUP(AQ87,'11. Lists'!$I$47:$K$80,3,FALSE))) ->  | AS87: =IF(D87="","",IF(AX87="Condition","N/A",VLOOKUP(F87,'10. Condition and Temporal'!$B$6:$M$106,12,FALSE))) ->  | AT87: =IF(AS87="","",IF(AS87="N/A","1",VLOOKUP(AS87,'11. Lists'!$I$47:$K$80,3,FALSE))) ->  | AU87: =IF(D87="","",VLOOKUP(F87,'9. All Habitats + Multipliers'!$C$4:$K$102,8,FALSE)) ->  | AV87: =IF(AU87="","",VLOOKUP(AU87,'11. Lists'!$J$35:$K$38,2,FALSE)) ->  | AW87: =IF(D87="","",VLOOKUP(D87,'10. Condition and Temporal'!$B$6:$M$103,4,FALSE)) ->  | BA87: 20 | BW87: BU | BX87: =BU66 -> 0
B88: Trees | C88: Individual trees | D88: Urban/rural tree | E88: Condition | F88: Urban/rural tree | H88: Area/compensation not in local strategy/ no local strategy | I88: 0 | J88: =IF(F88="","",VLOOKUP(F88,'10. Condition and Temporal'!$B$6:$F$103,5,FALSE)) -> Good | L88: =IFERROR(IF(D88="","",IF(AX88="Distinctiveness",(((((I88*AH88*AJ88)-(I88*V88*X88))*(AV88*AT88))+(I88*V88*X88))*(AP88))/10000,((((I88*AJ88*AH88)-(I88*V88*X88))*(AV88*AR88))+(I88*V88*X88))*AP88/10000)),"This intervention is not permitted within the SSM ▲") -> 0 | M88: =L88-AD88 -> 0 | T88: 0 | U88: =IF($D88="","",T31) -> Medium | V88: 4 | W88: Moderate | X88: 2 | AB88: Formally identified in local strategy | AC88: 1.15 | AD88: =IF(AC88="","",(T88*V88*X88)*(AA88*AC88)/10000) -> 0 | AE88: =IF(AD88="","",IF(AH88<V88,"Not Acceptable","Acceptable")) -> Acceptable | AF88: 0 | AG88: =IF(D88="","",VLOOKUP(F88,'9. All Habitats + Multipliers'!$C$4:$K$102,5,FALSE)) -> Medium | AH88: =IF(AG88="","",VLOOKUP(AG88,'11. Lists'!$B$47:$D$49,2,FALSE)) -> 4 | AI88: Good | AJ88: =IF(AI88="","",VLOOKUP(AI88,'11. Lists'!$F$47:$G$51,2,FALSE)) -> 3 | AN88: Area/compensation not in local strategy/ no local strategy | AO88: =IF(AN88="","",VLOOKUP(AN88,'11. Lists'!$F$36:$H$38,2,FALSE)) -> Low Strategic Significance | AP88: =IF(AN88="","",VLOOKUP(AN88,'11. Lists'!$F$36:$H$38,3,FALSE)) -> 1 | AQ88: =IF(D88="","",VLOOKUP(F88,'10. Condition and Temporal'!$B$6:$L$103,11,FALSE)) -> 16 | AR88: =IF(AQ88="","",VLOOKUP(AQ88,'11. Lists'!$I$47:$K$80,3,FALSE)) -> 0.5655057348 | AS88: =IF(D88="","",VLOOKUP(F88,'10. Condition and Temporal'!$B$6:$M$106,12,FALSE)) -> Not Possible | AT88: =IF(AS88="","",IF(AS88="N/A","1",VLOOKUP(AS88,'11. Lists'!$I$47:$K$80,3,FALSE))) -> N/A | AU88: =IF(D88="","",VLOOKUP(F88,'9. All Habitats + Multipliers'!$C$4:$K$102,8,FALSE)) -> Low | AV88: =IF(AU88="","",VLOOKUP(AU88,'11. Lists'!$J$35:$K$38,2,FALSE)) -> 1 | AW88: =IF(D88="","",VLOOKUP(D88,'10. Condition and Temporal'!$B$6:$M$103,4,FALSE)) -> Urban/rural tree | AX88: =IF(F88="","",IF(D88=F88,"Condition","Distinctivness")) -> Condition | AY88: =C88 -> Individual trees
H89: Totals (areas excl trees, green walls and intertidal hard structures) | I89: =SUMIFS(I68:I87,F68:F87,"<>"&'11. Lists'!Q10,F68:F87,"<>"&'11. Lists'!Q11,F68:F87,"<>"&'11. Lists'!I4,F68:F87,"<>"&'11. Lists'!I2,F68:F87,"<>"&'11. Lists'!I3) -> 0 | L89: =SUM(L68:L88) -> 0 | M89: =SUM(M68:N88) -> 0
B91: 1d. - Tree area calculator
B93: Tree size (Diameter at breast height) | D93: A. Total number of trees pre development | E93: B. Number of trees retained (but not enhanced) | G93: C. Number of new trees planted post development | I93: Areas
I94: Area pre development | L94: Area retained | O94: Area of new trees planted post development
B95: Small -DBH ≤ 30cm | I95: =D95*'11. Lists'!P47 -> 0 | L95: =IF(E95>D95, "Error ▲", E95*'11. Lists'!P47) -> 0 | O95: =G95*'11. Lists'!P47 -> 0
B96: Medium - DBH > 30 to ≤ 60cm | I96: =D96*'11. Lists'!P48 -> 0 | L96: =IF(E96>D96,"Error ▲",(E96*'11. Lists'!P48)) -> 0 | O96: =G96*'11. Lists'!P48 -> 0
B97: Large - DBH > 60 to ≤ 90cm | I97: =D97*'11. Lists'!P49 -> 0 | L97: =IF(E97>D97,"Error ▲",(E97*'11. Lists'!P49)) -> 0 | O97: =G97*'11. Lists'!P49 -> 0
B98: Very Large - DBH > 90cm | I98: =D98*'11. Lists'!P50 -> 0 | L98: =IF(E98>D98,"Error ▲",(E98*'11. Lists'!P50)) -> 0 | O98: =G98*'11. Lists'!P50 -> 0
B99: Total | D99: =SUM(D95:D98) -> 0 | E99: =SUM(E95:F98) -> 0 | G99: =SUM(G95:H98) -> 0 | I99: =SUM(I95:K98) -> 0 | L99: =SUM(L95:N98) -> 0 | O99: =SUM(O95:P98) -> 0
E100: =IFERROR(IF(OR(E95>D95, E96>D96, E97>D97, E98>D98), "Error - trees retained and lost is greater than number of pre-development trees ▲", ""), "Error ▲") -> 
A102: Data beyond this row is automated
B106: 1e . Trading Summary
B108: Broad Habitat Type - Medium Distinctiveness Habitats | E108: =IF(SUM(J114:J135)>0,"Error - Trading Rules Not Satisfied - Insufficient Units Created Within Habitat Groups ▲", "Trading Rules Satisfied ✓") -> Trading Rules Satisfied ✓ | J108: =IFERROR(FIND("Error",E108),0) -> 0
B109: Medium and Low Distinctiveness Band | E109: =IF(SUM(J138:J140)>0,"Error - Trading Rules Not Satisfied - Insufficient Biodiversity Units Created ▲","Trading Rules Satisfied ✓") -> Trading Rules Satisfied ✓ | J109: =IFERROR(FIND("Error",E109),0) -> 0
B111: 1f . Habitat trading assessment
B113: Broad habitat types | E113: Distinctiveness band | F113: Baseline units | G113: Onsite provision | H113: Net change | I113: Trading satisfied?
B114: Cropland | E114: Low | F114: =SUMIFS($L$11:$L$30,$C$11:$C$30,$B114,$T$11:$T$30,$E114) -> 0 | G114: =SUMIFS($L$40:$L$59,$C$40:$C$59,$B114,$T$40:$T$59,$E114)+SUMIFS($L$68:$L$87,AY68:AY87,B114,$AG$68:$AG$87,E114)+SUMIFS($AE$11:$AE$31,$C$11:$C$31,B114,$T$11:$T$31,E114) -> 0 | H114: =G114-F114 -> 0 | I114: -
E115: Medium | F115: =SUMIFS($L$11:$L$30,$C$11:$C$30,$B114,$T$11:$T$30,$E115) -> 0 | G115: =SUMIFS($L$40:$L$59,$C$40:$C$59,$B114,$T$40:$T$59,$E115)+SUMIFS($L$68:$L$87,AY68:AY87,B114,$AG$68:$AG$87,E115)+SUMIFS($AE$11:$AE$31,$C$11:$C$31,B114,$T$11:$T$31,E115) -> 0 | H115: =G115-F115 -> 0 | I115: =IF(F115=0,"N/A",IF(H115<0,"No ▲","Yes ✓")) -> N/A | J115: =IF(I115="No ▲",1,0) -> 0
B116: Grassland | E116: Low | F116: =SUMIFS($L$11:$L$30,$C$11:$C$30,$B116,$T$11:$T$30,$E116) -> 0 | G116: =SUMIFS($L$40:$L$59,$C$40:$C$59,$B116,$T$40:$T$59,$E116)+SUMIFS($L$68:$L$87,AY68:AY87,B116,$AG$68:$AG$87,E116)+SUMIFS($AE$11:$AE$31,$C$11:$C$31,B116,$T$11:$T$31,E116) -> 0 | H116: =G116-F116 -> 0 | I116: -
E117: Medium | F117: =SUMIFS($L$11:$L$30,$C$11:$C$30,$B116,$T$11:$T$30,$E117) -> 0 | G117: =SUMIFS($L$40:$L$59,$C$40:$C$59,$B116,$T$40:$T$59,$E117)+SUMIFS($L$68:$L$87,AY68:AY87,B116,$AG$68:$AG$87,E117)+SUMIFS($AE$11:$AE$31,$C$11:$C$31,B116,$T$11:$T$31,E117) -> 0 | H117: =G117-F117 -> 0 | I117: =IF(F117=0,"N/A",IF(H117<0,"No ▲","Yes ✓")) -> N/A | J117: =IF(I117="No ▲",1,0) -> 0
B118: Heathland and shrub | E118: Low | F118: =SUMIFS($L$11:$L$30,$C$11:$C$30,$B118,$T$11:$T$30,$E118) -> 0 | G118: =SUMIFS($L$40:$L$59,$C$40:$C$59,$B118,$T$40:$T$59,$E118)+SUMIFS($L$68:$L$87,$C$68:$C$87,B118,$AG$68:$AG$87,E118)+SUMIFS($AE$11:$AE$31,$C$11:$C$31,B118,$T$11:$T$31,E118) -> 0 | H118: 0 | I118: -
E119: Medium | F119: =SUMIFS($L$11:$L$30,$C$11:$C$30,$B118,$T$11:$T$30,$E119) -> 0 | G119: =SUMIFS($L$40:$L$59,$C$40:$C$59,$B118,$T$40:$T$59,$E119)+SUMIFS($L$68:$L$87,$C$68:$C$87,B118,$AG$68:$AG$87,E119)+SUMIFS($AE$11:$AE$31,$C$11:$C$31,B118,$T$11:$T$31,E119) -> 0 | H119: 0 | I119: =IF(F119=0,"N/A",IF(H119<0,"No ▲","Yes ✓")) -> N/A | J119: =IF(I119="No ▲",1,0) -> 0
B120: Intertidal hard structures | E120: Low | F120: =SUMIFS($L$11:$L$30,$C$11:$C$30,$B120,$T$11:$T$30,$E120) -> 0 | G120: =SUMIFS($L$40:$L$59,$C$40:$C$59,$B120,$T$40:$T$59,$E120)+SUMIFS($L$68:$L$87,$C$68:$C$87,B120,$AG$68:$AG$87,E120)+SUMIFS($AE$11:$AE$31,$C$11:$C$31,B120,$T$11:$T$31,E120) -> 0 | H120: =G120-F120 -> 0 | I120: -
E121: Medium | F121: =SUMIFS($L$11:$L$30,$C$11:$C$30,$B120,$T$11:$T$30,$E121) -> 0 | G121: =SUMIFS($L$40:$L$59,$C$40:$C$59,$B120,$T$40:$T$59,$E121)+SUMIFS($L$68:$L$87,$C$68:$C$87,B120,$AG$68:$AG$87,E121)+SUMIFS($AE$11:$AE$31,$C$11:$C$31,B120,$T$11:$T$31,E121) -> 0 | H121: 0 | I121: =IF(F121=0,"N/A",IF(H121<0,"No ▲","Yes ✓")) -> N/A | J121: =IF(I121="No ▲",1,0) -> 0
B122: Intertidal sediment | E122: Low | F122: =SUMIFS($L$11:$L$30,$C$11:$C$30,$B122,$T$11:$T$30,$E122) -> 0 | G122: =SUMIFS($L$40:$L$59,$C$40:$C$59,$B122,$T$40:$T$59,$E122)+SUMIFS($L$68:$L$87,$C$68:$C$87,B122,$AG$68:$AG$87,E122)+SUMIFS($AE$11:$AE$31,$C$11:$C$31,B122,$T$11:$T$31,E122) -> 0 | H122: 0 | I122: -
E123: Medium | F123: =SUMIFS($L$11:$L$30,$C$11:$C$30,$B122,$T$11:$T$30,$E123) -> 0 | G123: =SUMIFS($L$40:$L$59,$C$40:$C$59,$B$122,$T$40:$T$59,$E$123)+SUMIFS($L$68:$L$87,$C$68:$C$87,$B$122,$AG$68:$AG$87,$E$123)+SUMIFS($AE$11:$AE$31,$C$11:$C$31,$B$122,$T$11:$T$31,$E$123) -> 0 | H123: 0 | I123: =IF(F123=0,"N/A",IF(H123<0,"No ▲","Yes ✓")) -> N/A | J123: =IF(I123="No ▲",1,0) -> 0
B124: Lakes | E124: Low | F124: =SUMIFS($L$11:$L$30,$C$11:$C$30,$B124,$T$11:$T$30,$E124) -> 0 | G124: =SUMIFS($L$40:$L$59,$C$40:$C$59,$B124,$T$40:$T$59,$E124)+SUMIFS($L$68:$L$87,$C$68:$C$87,B124,$AG$68:$AG$87,E124)+SUMIFS($AE$11:$AE$31,$C$11:$C$31,B124,$T$11:$T$31,E124) -> 0 | H124: 0 | I124: -
E125: Medium | F125: =SUMIFS($L$11:$L$30,$C$11:$C$30,$B124,$T$11:$T$30,$E125) -> 0 | G125: =SUMIFS($L$40:$L$59,$C$40:$C$59,$B$124,$T$40:$T$59,$E125)+SUMIFS($L$68:$L$87,$C$68:$C$87,B124,$AG$68:$AG$87,E125)+SUMIFS($AE$11:$AE$31,$C$11:$C$31,$B$124,$T$11:$T$31,$E$125) -> 0 | H125: =G125-F125 -> 0 | I125: =IF(F125=0,"N/A",IF(H125<0,"No ▲","Yes ✓")) -> N/A | J125: =IF(I125="No ▲",1,0) -> 0
B126: Sparsely vegetated land | E126: Low | F126: =SUMIFS($L$11:$L$30,$C$11:$C$30,$B126,$T$11:$T$30,$E126) -> 0 | G126: =SUMIFS($L$40:$L$59,$C$40:$C$59,$B126,$T$40:$T$59,$E126)+SUMIFS($L$68:$L$87,AY68:AY87,B126,$AG$68:$AG$87,E126)+SUMIFS($AE$11:$AE$31,$C$11:$C$31,B126,$T$11:$T$31,E126) -> 0 | H126: 0 | I126: -
E127: Medium | F127: =SUMIFS($L$11:$L$30,$C$11:$C$30,$B126,$T$11:$T$30,$E127) -> 0 | G127: =SUMIFS($L$40:$L$59,$C$40:$C$59,$B126,$T$40:$T$59,$E127)+SUMIFS($L$68:$L$87,AY68:AY87,B126,$AG$68:$AG$87,E127)+SUMIFS($AE$11:$AE$31,$C$11:$C$31,B126,$T$11:$T$31,E127) -> 0 | H127: 0 | I127: =IF(F127=0,"N/A",IF(H127<0,"No ▲","Yes ✓")) -> N/A | J127: =IF(I127="No ▲",1,0) -> 0
B128: Urban | E128: Low | F128: =SUMIFS($L$11:$L$30,$C$11:$C$30,$B128,$T$11:$T$30,$E128) -> 0 | G128: =SUMIFS($L$40:$L$59,$C$40:$C$59,$B128,$T$40:$T$59,$E128)+SUMIFS($L$68:$L$87,AY68:AY87,B128,$AG$68:$AG$87,E128)+SUMIFS($AE$11:$AE$31,$C$11:$C$31,B128,$T$11:$T$31,E128) -> 0 | H128: 0 | I128: -
E129: Medium | F129: =SUMIFS($L$11:$L$30,$C$11:$C$30,$B128,$T$11:$T$30,$E129) -> 0 | G129: =SUMIFS($L$40:$L$59,$C$40:$C$59,$B128,$T$40:$T$59,$E129)+SUMIFS($L$68:$L$87,AY68:AY87,B128,$AG$68:$AG$87,E129)+SUMIFS($AE$11:$AE$31,$C$11:$C$31,B128,$T$11:$T$31,E129) -> 0 | H129: 0 | I129: =IF(F129=0,"N/A",IF(H129<0,"No ▲","Yes ✓")) -> N/A | J129: =IF(I129="No ▲",1,0) -> 0
B130: Woodland and forest | E130: Low | F130: =SUMIFS($L$11:$L$30,$C$11:$C$30,$B130,$T$11:$T$30,$E130) -> 0 | G130: =SUMIFS($L$40:$L$59,$C$40:$C$59,$B130,$T$40:$T$59,$E130)+SUMIFS($L$68:$L$87,$C$68:$C$87,B130,$AG$68:$AG$87,E130)+SUMIFS($AE$11:$AE$31,$C$11:$C$31,B130,$T$11:$T$31,E130) -> 0 | H130: 0 | I130: -
E131: Medium | F131: =SUMIFS($L$11:$L$30,$C$11:$C$30,$B130,$T$11:$T$30,$E131) -> 0 | G131: =SUMIFS($L$40:$L$59,$C$40:$C$59,$B130,$T$40:$T$59,$E131)+SUMIFS($L$68:$L$87,$C$68:$C$87,B130,$AG$68:$AG$87,E131)+SUMIFS($AE$11:$AE$31,$C$11:$C$31,B130,$T$11:$T$31,E131) -> 0 | H131: 0 | I131: =IF(F131=0,"N/A",IF(H131<0,"No ▲","Yes ✓")) -> N/A | J131: =IF(I131="No ▲",1,0) -> 0
B132: Coastal saltmarsh | E132: Low | F132: =SUMIFS($L$11:$L$30,$C$11:$C$30,$B132,$T$11:$T$30,$E132) -> 0 | G132: =SUMIFS($L$40:$L$59,$C$40:$C$59,$B132,$T$40:$T$59,$E132)+SUMIFS($L$68:$L$87,$C$68:$C$87,B132,$AG$68:$AG$87,E132)+SUMIFS($AE$11:$AE$31,$C$11:$C$31,B132,$T$11:$T$31,E132) -> 0 | H132: =G132-F132 -> 0 | I132: -
E133: Medium | F133: =SUMIFS($L$11:$L$30,$C$11:$C$30,$B132,$T$11:$T$30,$E133) -> 0 | G133: =SUMIFS($L$40:$L$59,$C$40:$C$59,$B132,$T$40:$T$59,$E133)+SUMIFS($L$68:$L$87,$C$68:$C$87,B132,$AG$68:$AG$87,E133)+SUMIFS($AE$11:$AE$31,$C$11:$C$31,B132,$T$11:$T$31,E133) -> 0 | H133: =G133-F133 -> 0 | I133: =IF(F133=0,"N/A",IF(H133<0,"No ▲","Yes ✓")) -> N/A | J133: =IF(I133="No ▲",1,0) -> 0
B134: Individual trees | E134: Low | F134: =SUMIFS($L$11:$L$31,$C$11:$C$31,$B134,$T$11:$T$31,$E134) -> 0 | G134: =SUMIFS($L$40:$L$60,$C$40:$C$60,$B134,$T$40:$T$60,$E134)+SUMIFS($L$68:$L$88,$C$68:$C$88,B134,$AG$68:$AG$88,E134)+SUMIFS($AE$11:$AE$31,$C$11:$C$31,B134,$T$11:$T$31,E134) -> 0 | H134: =G134-F134 -> 0 | I134: -
E135: Medium | F135: =SUMIFS($L$11:$L$31,$C$11:$C$31,$B134,$T$11:$T$31,$E135) -> 0 | G135: =SUMIFS($L$40:$L$60,$C$40:$C$60,$B134,$T$40:$T$60,$E135)+SUMIFS($L$68:$L$88,$C$68:$C$88,B134,$AG$68:$AG$88,E135)+SUMIFS($AE$11:$AE$31,$C$11:$C$31,B134,$T$11:$T$31,E135) -> 0 | H135: =G135-F135 -> 0 | I135: =IF(F135=0,"N/A",IF(H135<0,"No ▲","Yes ✓")) -> N/A | J135: =IF(I135="No ▲",1,0) -> 0
B137: Distinctiveness band | F137: Baseline units | G137: Onsite provision | H137: Net change | I137: Trading satisfied?
B138: Medium distinctiveness | F138: =SUMIFS($L$11:$L$31,$T$11:$T$31,"Medium") -> 0 | G138: =IF(L61+L89+P1=0,0,SUMIFS($L$40:$L$60,$T$40:$T$60,"Medium")+SUMIFS($L$68:$L$87,$AG$68:$AG$87,"Medium")+SUMIFS($AE$11:$AE$31,$T$11:$T$31,"Medium")) -> 0 | H138: =IFERROR(G138-F138,"") -> 0 | I138: =IF(G138="","",IF(H138>=0,"Yes ✓","No ▲")) -> Yes ✓ | J138: 0 | R138: Data beyond this column is automated
B139: Low distinctiveness | F139: =SUMIFS($L$11:$L$31,$T$11:$T$31,"Low") -> 0 | G139: =IF(L61+L89+P1=0,0,SUMIFS($L$40:$L$60,$T$40:$T$60,"Low")+SUMIFS($L$68:$L$88,$AG$68:$AG$88,"Low")+SUMIFS($AE$11:$AE$31,$T$11:$T$31,"Low")) -> 0 | H139: =IFERROR(G139-F139,"") -> 0 | I139: =IF($I$142>=0,"Yes ✓","No ▲") -> Yes ✓ | J139: 0
B140: Surplus area habitat biodiversity units after offsetting low distinctiveness units | F140: =IFERROR(H138+H139,"") -> 0 | I140: =IF(F140="","",IF(F140>=0,"Yes ✓","No ▲")) -> Yes ✓ | J140: 0
I142: =IF($H$138>0,($H$139+$H$138),$H$139) -> 0

Sheet 6. Hedges & Lines of Trees
O1: Retained Units | P1: =IFERROR(SUM(AE11:AE30), "Error ▲") -> 0 | R1: Data beyond this column is automated
B2: Site Name | C2: =IF('2. Site Details'!D4="","Enter site name on 2. Site Details",'2. Site Details'!D4) -> Enter site name on 2. Site Details | F2: Instructions: 1. Enter data into 1a. Baseline habitats 2. Enter data on habitats to be created into 1b. Habitats to be created 3. Enter data on habitats to be enhanced into 1c. Habitats to be enhanced | J2: =IFERROR(IF(OR((ISNUMBER(SEARCH("▲",A7:Q101)))),"Input Errors Present On Sheet - Red Cells Or ▲ Highlight Errors","All Key Rules Satisfied ✓ "),"Technical Errors On Sheet ▲") -> All Key Rules Satisfied ✓ | O2: Lost Units | P2: =IFERROR(N31, "Error ▲") -> 0
B3: Sheet Name | C3: 6. Hedges & Lines of Trees | O3: Created Units | P3: =IFERROR(L59, "Error ▲") -> 0
O4: Enhancement Units | P4: =IFERROR(L86, "Error ▲") -> 0
O5: Net Change | P5: =IFERROR(P1+L59+L86-L31, "Error ▲") -> 0
B7: 1a. Baseline habitats
B9: Ref | C9: Habitat | F9: C. Strategic significance | I9: Length (m) | L9: Baseline results | O9: Comments | T9: Habitat distinctiveness | W9: Habitat condition | AB9: Strategic significance | AE9: Ecological baseline | AH9: Suggested action to address habitat losses | AI9: Enhancement rules
C10: A. Broad Habitat | D10: B. Habitat type | I10: D. Total Length | J10: E. Length retained | K10: F. Length enhanced | L10: Total units onsite | M10: Length Lost | N10: Units lost | O10: User comments | P10: LPA comments | T10: Distinctiveness | V10: Score | W10: Condition | X10: Score | AB10: Strategic significance | AC10: Strategic significance | AD10: Strategic significance multiplier | AE10: Baseline units retained | AF10: Baseline units to be enhanced | AG10: Area lost
B11: 1 | C11: Hedgerows and Lines of trees | L11: =IF(D11="","",IFERROR(IF(I11="","",((I11/1000)*V11*X11)*AD11),"This intervention is not permitted within the SSM ▲")) ->  | M11: =IF(I11="","",IF(J11+K11>I11,"Length Error ▲",I11-J11-K11)) ->  | N11: =IFERROR(IF(I11="","",IF(M11="Length Error ▲","Length Error ▲",((M11/1000)*V11*X11)*AD11)),"This intervention is not permitted within the SSM ▲") ->  | T11: =IF(D11="","",VLOOKUP(D11,'9. All Habitats + Multipliers'!$C$4:$K$102,5,FALSE)) ->  | V11: =IF(T11="","",VLOOKUP(T11,'11. Lists'!$S$47:$U$50,2,FALSE)) ->  | W11: =IF(D11="","",VLOOKUP(D11,'10. Condition and Temporal'!$B$6:$C$103,2,FALSE)) ->  | X11: =IF(W11="","",VLOOKUP(W11,'11. Lists'!$F$47:$G$51,2,FALSE)) ->  | AB11: =IF(F11="","",F11) ->  | AC11: =IF(AB11="","",VLOOKUP(AB11,'11. Lists'!$F$36:$H$38,2,FALSE)) ->  | AD11: =IF(AB11="","",VLOOKUP(AB11,'11. Lists'!$F$36:$H$38,3,FALSE)) ->  | AE11: =IF(D11="","",((J11/1000)*V11*X11)*AD11) ->  | AF11: =IF(D11="","",((K11/1000)*V11*X11)*AD11) ->  | AG11: =IF(D11="","",M11) ->  | AH11: =IF(T11="","",VLOOKUP(T11,'11. Lists'!$B$47:$D$49,3,FALSE)) ->  | AI11: =IF(D11="","",VLOOKUP(D11,'10. Condition and Temporal'!$B$6:$L$103,4,FALSE)) -> 
B12: 2 | C12: Hedgerows and Lines of trees | L12: =IF(D12="","",IFERROR(IF(I12="","",((I12/1000)*V12*X12)*AD12),"This intervention is not permitted within the SSM ▲")) ->  | M12: =IF(I12="","",IF(J12+K12>I12,"Length Error ▲",I12-J12-K12)) ->  | N12: =IFERROR(IF(I12="","",IF(M12="Length Error ▲","Length Error ▲",((M12/1000)*V12*X12)*AD12)),"This intervention is not permitted within the SSM ▲") ->  | T12: =IF(D12="","",VLOOKUP(D12,'9. All Habitats + Multipliers'!$C$4:$K$102,5,FALSE)) ->  | V12: =IF(T12="","",VLOOKUP(T12,'11. Lists'!$S$47:$U$50,2,FALSE)) ->  | W12: =IF(D12="","",VLOOKUP(D12,'10. Condition and Temporal'!$B$6:$C$103,2,FALSE)) ->  | X12: =IF(W12="","",VLOOKUP(W12,'11. Lists'!$F$47:$G$51,2,FALSE)) ->  | AB12: =IF(F12="","",F12) ->  | AC12: =IF(AB12="","",VLOOKUP(AB12,'11. Lists'!$F$36:$H$38,2,FALSE)) ->  | AD12: =IF(AB12="","",VLOOKUP(AB12,'11. Lists'!$F$36:$H$38,3,FALSE)) ->  | AE12: =IF(D12="","",((J12/1000)*V12*X12)*AD12) ->  | AF12: =IF(D12="","",((K12/1000)*V12*X12)*AD12) ->  | AG12: =IF(D12="","",M12) ->  | AH12: =IF(T12="","",VLOOKUP(T12,'11. Lists'!$B$47:$D$49,3,FALSE)) ->  | AI12: =IF(D12="","",VLOOKUP(D12,'10. Condition and Temporal'!$B$6:$L$103,4,FALSE)) -> 
B13: 3 | C13: Hedgerows and Lines of trees | T13: =IF(D13="","",VLOOKUP(D13,'9. All Habitats + Multipliers'!$C$4:$K$102,5,FALSE)) ->  | V13: =IF(T13="","",VLOOKUP(T13,'11. Lists'!$S$47:$U$50,2,FALSE)) ->  | W13: =IF(D13="","",VLOOKUP(D13,'10. Condition and Temporal'!$B$6:$C$103,2,FALSE)) ->  | X13: =IF(W13="","",VLOOKUP(W13,'11. Lists'!$F$47:$G$51,2,FALSE)) ->  | AB13: =IF(F13="","",F13) ->  | AC13: =IF(AB13="","",VLOOKUP(AB13,'11. Lists'!$F$36:$H$38,2,FALSE)) ->  | AD13: =IF(AB13="","",VLOOKUP(AB13,'11. Lists'!$F$36:$H$38,3,FALSE)) ->  | AH13: =IF(T13="","",VLOOKUP(T13,'11. Lists'!$B$47:$D$49,3,FALSE)) ->  | AI13: =IF(D13="","",VLOOKUP(D13,'10. Condition and Temporal'!$B$6:$L$103,4,FALSE)) -> 
B14: 4 | C14: Hedgerows and Lines of trees | T14: =IF(D14="","",VLOOKUP(D14,'9. All Habitats + Multipliers'!$C$4:$K$102,5,FALSE)) ->  | V14: =IF(T14="","",VLOOKUP(T14,'11. Lists'!$S$47:$U$50,2,FALSE)) ->  | W14: =IF(D14="","",VLOOKUP(D14,'10. Condition and Temporal'!$B$6:$C$103,2,FALSE)) ->  | X14: =IF(W14="","",VLOOKUP(W14,'11. Lists'!$F$47:$G$51,2,FALSE)) ->  | AC14: =IF(AB14="","",VLOOKUP(AB14,'11. Lists'!$F$36:$H$38,2,FALSE)) ->  | AD14: =IF(AB14="","",VLOOKUP(AB14,'11. Lists'!$F$36:$H$38,3,FALSE)) ->  | AH14: =IF(T14="","",VLOOKUP(T14,'11. Lists'!$B$47:$D$49,3,FALSE)) ->  | AI14: =IF(D14="","",VLOOKUP(D14,'10. Condition and Temporal'!$B$6:$L$103,4,FALSE)) -> 
B15: 5 | C15: Hedgerows and Lines of trees | T15: =IF(D15="","",VLOOKUP(D15,'9. All Habitats + Multipliers'!$C$4:$K$102,5,FALSE)) ->  | V15: =IF(T15="","",VLOOKUP(T15,'11. Lists'!$S$47:$U$50,2,FALSE)) ->  | W15: =IF(D15="","",VLOOKUP(D15,'10. Condition and Temporal'!$B$6:$C$103,2,FALSE)) ->  | X15: =IF(W15="","",VLOOKUP(W15,'11. Lists'!$F$47:$G$51,2,FALSE)) ->  | AC15: =IF(AB15="","",VLOOKUP(AB15,'11. Lists'!$F$36:$H$38,2,FALSE)) ->  | AD15: =IF(AB15="","",VLOOKUP(AB15,'11. Lists'!$F$36:$H$38,3,FALSE)) ->  | AH15: =IF(T15="","",VLOOKUP(T15,'11. Lists'!$B$47:$D$49,3,FALSE)) ->  | AI15: =IF(D15="","",VLOOKUP(D15,'10. Condition and Temporal'!$B$6:$L$103,4,FALSE)) -> 
B16: 6 | C16: Hedgerows and Lines of trees | T16: =IF(D16="","",VLOOKUP(D16,'9. All Habitats + Multipliers'!$C$4:$K$102,5,FALSE)) ->  | V16: =IF(T16="","",VLOOKUP(T16,'11. Lists'!$S$47:$U$50,2,FALSE)) ->  | W16: =IF(D16="","",VLOOKUP(D16,'10. Condition and Temporal'!$B$6:$C$103,2,FALSE)) ->  | X16: =IF(W16="","",VLOOKUP(W16,'11. Lists'!$F$47:$G$51,2,FALSE)) ->  | AC16: =IF(AB16="","",VLOOKUP(AB16,'11. Lists'!$F$36:$H$38,2,FALSE)) ->  | AD16: =IF(AB16="","",VLOOKUP(AB16,'11. Lists'!$F$36:$H$38,3,FALSE)) ->  | AH16: =IF(T16="","",VLOOKUP(T16,'11. Lists'!$B$47:$D$49,3,FALSE)) ->  | AI16: =IF(D16="","",VLOOKUP(D16,'10. Condition and Temporal'!$B$6:$L$103,4,FALSE)) -> 
B17: 7 | C17: Hedgerows and Lines of trees | T17: =IF(D17="","",VLOOKUP(D17,'9. All Habitats + Multipliers'!$C$4:$K$102,5,FALSE)) ->  | V17: =IF(T17="","",VLOOKUP(T17,'11. Lists'!$S$47:$U$50,2,FALSE)) ->  | W17: =IF(D17="","",VLOOKUP(D17,'10. Condition and Temporal'!$B$6:$C$103,2,FALSE)) ->  | X17: =IF(W17="","",VLOOKUP(W17,'11. Lists'!$F$47:$G$51,2,FALSE)) ->  | AC17: =IF(AB17="","",VLOOKUP(AB17,'11. Lists'!$F$36:$H$38,2,FALSE)) ->  | AD17: =IF(AB17="","",VLOOKUP(AB17,'11. Lists'!$F$36:$H$38,3,FALSE)) ->  | AH17: =IF(T17="","",VLOOKUP(T17,'11. Lists'!$B$47:$D$49,3,FALSE)) ->  | AI17: =IF(D17="","",VLOOKUP(D17,'10. Condition and Temporal'!$B$6:$L$103,4,FALSE)) -> 
B18: 8 | C18: Hedgerows and Lines of trees | T18: =IF(D18="","",VLOOKUP(D18,'9. All Habitats + Multipliers'!$C$4:$K$102,5,FALSE)) ->  | V18: =IF(T18="","",VLOOKUP(T18,'11. Lists'!$S$47:$U$50,2,FALSE)) ->  | W18: =IF(D18="","",VLOOKUP(D18,'10. Condition and Temporal'!$B$6:$C$103,2,FALSE)) ->  | X18: =IF(W18="","",VLOOKUP(W18,'11. Lists'!$F$47:$G$51,2,FALSE)) ->  | AC18: =IF(AB18="","",VLOOKUP(AB18,'11. Lists'!$F$36:$H$38,2,FALSE)) ->  | AD18: =IF(AB18="","",VLOOKUP(AB18,'11. Lists'!$F$36:$H$38,3,FALSE)) ->  | AH18: =IF(T18="","",VLOOKUP(T18,'11. Lists'!$B$47:$D$49,3,FALSE)) ->  | AI18: =IF(D18="","",VLOOKUP(D18,'10. Condition and Temporal'!$B$6:$L$103,4,FALSE)) -> 
B19: 9 | C19: Hedgerows and Lines of trees | T19: =IF(D19="","",VLOOKUP(D19,'9. All Habitats + Multipliers'!$C$4:$K$102,5,FALSE)) ->  | V19: =IF(T19="","",VLOOKUP(T19,'11. Lists'!$S$47:$U$50,2,FALSE)) ->  | W19: =IF(D19="","",VLOOKUP(D19,'10. Condition and Temporal'!$B$6:$C$103,2,FALSE)) ->  | X19: =IF(W19="","",VLOOKUP(W19,'11. Lists'!$F$47:$G$51,2,FALSE)) ->  | AC19: =IF(AB19="","",VLOOKUP(AB19,'11. Lists'!$F$36:$H$38,2,FALSE)) ->  | AD19: =IF(AB19="","",VLOOKUP(AB19,'11. Lists'!$F$36:$H$38,3,FALSE)) ->  | AH19: =IF(T19="","",VLOOKUP(T19,'11. Lists'!$B$47:$D$49,3,FALSE)) ->  | AI19: =IF(D19="","",VLOOKUP(D19,'10. Condition and Temporal'!$B$6:$L$103,4,FALSE)) -> 
B20: 10 | C20: Hedgerows and Lines of trees | T20: =IF(D20="","",VLOOKUP(D20,'9. All Habitats + Multipliers'!$C$4:$K$102,5,FALSE)) ->  | V20: =IF(T20="","",VLOOKUP(T20,'11. Lists'!$S$47:$U$50,2,FALSE)) ->  | W20: =IF(D20="","",VLOOKUP(D20,'10. Condition and Temporal'!$B$6:$C$103,2,FALSE)) ->  | X20: =IF(W20="","",VLOOKUP(W20,'11. Lists'!$F$47:$G$51,2,FALSE)) ->  | AC20: =IF(AB20="","",VLOOKUP(AB20,'11. Lists'!$F$36:$H$38,2,FALSE)) ->  | AD20: =IF(AB20="","",VLOOKUP(AB20,'11. Lists'!$F$36:$H$38,3,FALSE)) ->  | AH20: =IF(T20="","",VLOOKUP(T20,'11. Lists'!$B$47:$D$49,3,FALSE)) ->  | AI20: =IF(D20="","",VLOOKUP(D20,'10. Condition and Temporal'!$B$6:$L$103,4,FALSE)) -> 
B21: 11 | C21: Hedgerows and Lines of trees | T21: =IF(D21="","",VLOOKUP(D21,'9. All Habitats + Multipliers'!$C$4:$K$102,5,FALSE)) ->  | V21: =IF(T21="","",VLOOKUP(T21,'11. Lists'!$S$47:$U$50,2,FALSE)) ->  | W21: =IF(D21="","",VLOOKUP(D21,'10. Condition and Temporal'!$B$6:$C$103,2,FALSE)) ->  | X21: =IF(W21="","",VLOOKUP(W21,'11. Lists'!$F$47:$G$51,2,FALSE)) ->  | AC21: =IF(AB21="","",VLOOKUP(AB21,'11. Lists'!$F$36:$H$38,2,FALSE)) ->  | AD21: =IF(AB21="","",VLOOKUP(AB21,'11. Lists'!$F$36:$H$38,3,FALSE)) ->  | AH21: =IF(T21="","",VLOOKUP(T21,'11. Lists'!$B$47:$D$49,3,FALSE)) ->  | AI21: =IF(D21="","",VLOOKUP(D21,'10. Condition and Temporal'!$B$6:$L$103,4,FALSE)) -> 
B22: 12 | C22: Hedgerows and Lines of trees | T22: =IF(D22="","",VLOOKUP(D22,'9. All Habitats + Multipliers'!$C$4:$K$102,5,FALSE)) ->  | V22: =IF(T22="","",VLOOKUP(T22,'11. Lists'!$S$47:$U$50,2,FALSE)) ->  | W22: =IF(D22="","",VLOOKUP(D22,'10. Condition and Temporal'!$B$6:$C$103,2,FALSE)) ->  | X22: =IF(W22="","",VLOOKUP(W22,'11. Lists'!$F$47:$G$51,2,FALSE)) ->  | AC22: =IF(AB22="","",VLOOKUP(AB22,'11. Lists'!$F$36:$H$38,2,FALSE)) ->  | AD22: =IF(AB22="","",VLOOKUP(AB22,'11. Lists'!$F$36:$H$38,3,FALSE)) ->  | AH22: =IF(T22="","",VLOOKUP(T22,'11. Lists'!$B$47:$D$49,3,FALSE)) ->  | AI22: =IF(D22="","",VLOOKUP(D22,'10. Condition and Temporal'!$B$6:$L$103,4,FALSE)) -> 
B23: 13 | C23: Hedgerows and Lines of trees | T23: =IF(D23="","",VLOOKUP(D23,'9. All Habitats + Multipliers'!$C$4:$K$102,5,FALSE)) ->  | V23: =IF(T23="","",VLOOKUP(T23,'11. Lists'!$S$47:$U$50,2,FALSE)) ->  | W23: =IF(D23="","",VLOOKUP(D23,'10. Condition and Temporal'!$B$6:$C$103,2,FALSE)) ->  | X23: =IF(W23="","",VLOOKUP(W23,'11. Lists'!$F$47:$G$51,2,FALSE)) ->  | AC23: =IF(AB23="","",VLOOKUP(AB23,'11. Lists'!$F$36:$H$38,2,FALSE)) ->  | AD23: =IF(AB23="","",VLOOKUP(AB23,'11. Lists'!$F$36:$H$38,3,FALSE)) ->  | AH23: =IF(T23="","",VLOOKUP(T23,'11. Lists'!$B$47:$D$49,3,FALSE)) ->  | AI23: =IF(D23="","",VLOOKUP(D23,'10. Condition and Temporal'!$B$6:$L$103,4,FALSE)) -> 
B24: 14 | C24: Hedgerows and Lines of trees | T24: =IF(D24="","",VLOOKUP(D24,'9. All Habitats + Multipliers'!$C$4:$K$102,5,FALSE)) ->  | V24: =IF(T24="","",VLOOKUP(T24,'11. Lists'!$S$47:$U$50,2,FALSE)) ->  | W24: =IF(D24="","",VLOOKUP(D24,'10. Condition and Temporal'!$B$6:$C$103,2,FALSE)) ->  | X24: =IF(W24="","",VLOOKUP(W24,'11. Lists'!$F$47:$G$51,2,FALSE)) ->  | AC24: =IF(AB24="","",VLOOKUP(AB24,'11. Lists'!$F$36:$H$38,2,FALSE)) ->  | AD24: =IF(AB24="","",VLOOKUP(AB24,'11. Lists'!$F$36:$H$38,3,FALSE)) ->  | AH24: =IF(T24="","",VLOOKUP(T24,'11. Lists'!$B$47:$D$49,3,FALSE)) ->  | AI24: =IF(D24="","",VLOOKUP(D24,'10. Condition and Temporal'!$B$6:$L$103,4,FALSE)) -> 
B25: 15 | C25: Hedgerows and Lines of trees | T25: =IF(D25="","",VLOOKUP(D25,'9. All Habitats + Multipliers'!$C$4:$K$102,5,FALSE)) ->  | V25: =IF(T25="","",VLOOKUP(T25,'11. Lists'!$S$47:$U$50,2,FALSE)) ->  | W25: =IF(D25="","",VLOOKUP(D25,'10. Condition and Temporal'!$B$6:$C$103,2,FALSE)) ->  | X25: =IF(W25="","",VLOOKUP(W25,'11. Lists'!$F$47:$G$51,2,FALSE)) ->  | AC25: =IF(AB25="","",VLOOKUP(AB25,'11. Lists'!$F$36:$H$38,2,FALSE)) ->  | AD25: =IF(AB25="","",VLOOKUP(AB25,'11. Lists'!$F$36:$H$38,3,FALSE)) ->  | AH25: =IF(T25="","",VLOOKUP(T25,'11. Lists'!$B$47:$D$49,3,FALSE)) ->  | AI25: =IF(D25="","",VLOOKUP(D25,'10. Condition and Temporal'!$B$6:$L$103,4,FALSE)) -> 
B26: 16 | C26: Hedgerows and Lines of trees | T26: =IF(D26="","",VLOOKUP(D26,'9. All Habitats + Multipliers'!$C$4:$K$102,5,FALSE)) ->  | V26: =IF(T26="","",VLOOKUP(T26,'11. Lists'!$S$47:$U$50,2,FALSE)) ->  | W26: =IF(D26="","",VLOOKUP(D26,'10. Condition and Temporal'!$B$6:$C$103,2,FALSE)) ->  | X26: =IF(W26="","",VLOOKUP(W26,'11. Lists'!$F$47:$G$51,2,FALSE)) ->  | AC26: =IF(AB26="","",VLOOKUP(AB26,'11. Lists'!$F$36:$H$38,2,FALSE)) ->  | AD26: =IF(AB26="","",VLOOKUP(AB26,'11. Lists'!$F$36:$H$38,3,FALSE)) ->  | AH26: =IF(T26="","",VLOOKUP(T26,'11. Lists'!$B$47:$D$49,3,FALSE)) ->  | AI26: =IF(D26="","",VLOOKUP(D26,'10. Condition and Temporal'!$B$6:$L$103,4,FALSE)) -> 
B27: 17 | C27: Hedgerows and Lines of trees | T27: =IF(D27="","",VLOOKUP(D27,'9. All Habitats + Multipliers'!$C$4:$K$102,5,FALSE)) ->  | V27: =IF(T27="","",VLOOKUP(T27,'11. Lists'!$S$47:$U$50,2,FALSE)) ->  | W27: =IF(D27="","",VLOOKUP(D27,'10. Condition and Temporal'!$B$6:$C$103,2,FALSE)) ->  | X27: =IF(W27="","",VLOOKUP(W27,'11. Lists'!$F$47:$G$51,2,FALSE)) ->  | AC27: =IF(AB27="","",VLOOKUP(AB27,'11. Lists'!$F$36:$H$38,2,FALSE)) ->  | AD27: =IF(AB27="","",VLOOKUP(AB27,'11. Lists'!$F$36:$H$38,3,FALSE)) ->  | AH27: =IF(T27="","",VLOOKUP(T27,'11. Lists'!$B$47:$D$49,3,FALSE)) ->  | AI27: =IF(D27="","",VLOOKUP(D27,'10. Condition and Temporal'!$B$6:$L$103,4,FALSE)) -> 
B28: 18 | C28: Hedgerows and Lines of trees | T28: =IF(D28="","",VLOOKUP(D28,'9. All Habitats + Multipliers'!$C$4:$K$102,5,FALSE)) ->  | V28: =IF(T28="","",VLOOKUP(T28,'11. Lists'!$S$47:$U$50,2,FALSE)) ->  | W28: =IF(D28="","",VLOOKUP(D28,'10. Condition and Temporal'!$B$6:$C$103,2,FALSE)) ->  | X28: =IF(W28="","",VLOOKUP(W28,'11. Lists'!$F$47:$G$51,2,FALSE)) ->  | AC28: =IF(AB28="","",VLOOKUP(AB28,'11. Lists'!$F$36:$H$38,2,FALSE)) ->  | AD28: =IF(AB28="","",VLOOKUP(AB28,'11. Lists'!$F$36:$H$38,3,FALSE)) ->  | AH28: =IF(T28="","",VLOOKUP(T28,'11. Lists'!$B$47:$D$49,3,FALSE)) ->  | AI28: =IF(D28="","",VLOOKUP(D28,'10. Condition and Temporal'!$B$6:$L$103,4,FALSE)) -> 
B29: 19 | C29: Hedgerows and Lines of trees | T29: =IF(D29="","",VLOOKUP(D29,'9. All Habitats + Multipliers'!$C$4:$K$102,5,FALSE)) ->  | V29: =IF(T29="","",VLOOKUP(T29,'11. Lists'!$S$47:$U$50,2,FALSE)) ->  | W29: =IF(D29="","",VLOOKUP(D29,'10. Condition and Temporal'!$B$6:$C$103,2,FALSE)) ->  | X29: =IF(W29="","",VLOOKUP(W29,'11. Lists'!$F$47:$G$51,2,FALSE)) ->  | AC29: =IF(AB29="","",VLOOKUP(AB29,'11. Lists'!$F$36:$H$38,2,FALSE)) ->  | AD29: =IF(AB29="","",VLOOKUP(AB29,'11. Lists'!$F$36:$H$38,3,FALSE)) ->  | AH29: =IF(T29="","",VLOOKUP(T29,'11. Lists'!$B$47:$D$49,3,FALSE)) ->  | AI29: =IF(D29="","",VLOOKUP(D29,'10. Condition and Temporal'!$B$6:$L$103,4,FALSE)) -> 
B30: 20 | C30: Hedgerows and Lines of trees | T30: =IF(D30="","",VLOOKUP(D30,'9. All Habitats + Multipliers'!$C$4:$K$102,5,FALSE)) ->  | V30: =IF(T30="","",VLOOKUP(T30,'11. Lists'!$S$47:$U$50,2,FALSE)) ->  | W30: =IF(D30="","",VLOOKUP(D30,'10. Condition and Temporal'!$B$6:$C$103,2,FALSE)) ->  | X30: =IF(W30="","",VLOOKUP(W30,'11. Lists'!$F$47:$G$51,2,FALSE)) ->  | AC30: =IF(AB30="","",VLOOKUP(AB30,'11. Lists'!$F$36:$H$38,2,FALSE)) ->  | AD30: =IF(AB30="","",VLOOKUP(AB30,'11. Lists'!$F$36:$H$38,3,FALSE)) ->  | AH30: =IF(T30="","",VLOOKUP(T30,'11. Lists'!$B$47:$D$49,3,FALSE)) ->  | AI30: =IF(D30="","",VLOOKUP(D30,'10. Condition and Temporal'!$B$6:$L$103,4,FALSE)) -> 
H31: Totals | I31: =SUM(I11:I30) -> 0 | J31: 0 | K31: 0 | L31: 0 | M31: 0 | N31: 0
H32: Error Check 1 | I32: =IF(I31<J31+K31,"Error - Lengths Retained and Enhanced Exceed Total Length ▲","Lengths Acceptable ✓") -> Lengths Acceptable ✓ | O32: =IFERROR(FIND("Error",I32),0) -> 0
H33: Error Check 2 | I33: =IF(I31<5000,"Lengths Acceptable ✓",IF(I31>=5000,"Length Exceeds Length Appropriate for Small Sites Metric ▲")) -> Lengths Acceptable ✓ | O33: =COUNTIF(L11:N30,"*"&"error"&"*") -> 0
R34: Data beyond this column is automated
B35: 1b. Habitats to be created
B37: Ref | E37: Condition Assessment | H37: D. Strategic significance | I37: E. Total Length created (m) | L37: Units created on-site | O37: Comments | T37: Habitat distinctiveness | W37: Habitat condition | AB37: Strategic significance | AE37: Temporal multiplier | AG37: Difficulty multipliers
C38: A. Broad Habitat | D38: B. Habitat type | E38: Acceptable condition options | F38: C. Targeted condition | O38: User comments | P38: LPA comments | T38: Distinctiveness | V38: Score | W38: Condition | X38: Score | AB38: Strategic significance | AC38: Strategic significance | AD38: Strategic significance multiplier | AE38: Time to target condition/years | AF38: Time to target multiplier | AG38: Difficulty of creation category | AH38: Difficulty of creation multiplier
B39: 1 | C39: Hedgerows and Lines of trees | E39: =IF(D39="","",VLOOKUP(D39,'10. Condition and Temporal'!$B$6:$D$103,3,FALSE)) ->  | L39: =IF(D39="","",IFERROR(IF(I39="","",((I39/1000)*(V39*X39))*(AH39*AF39)*AD39),"This intervention is not permitted within the SSM ▲")) ->  | T39: =IF(D39="","",VLOOKUP(D39,'9. All Habitats + Multipliers'!$C$4:$K$102,5,FALSE)) ->  | V39: =IF(T39="","",VLOOKUP(T39,'11. Lists'!$S$47:$U$50,2,FALSE)) ->  | W39: =IF(F39="","",F39) ->  | X39: =IF(W39="","",VLOOKUP(W39,'11. Lists'!$F$47:$G$51,2,FALSE)) ->  | AB39: =IF(H39="","",H39) ->  | AC39: =IF(AB39="","",VLOOKUP(AB39,'11. Lists'!$F$36:$H$38,2,FALSE)) ->  | AD39: =IF(AB39="","",VLOOKUP(AB39,'11. Lists'!$F$36:$H$38,3,FALSE)) ->  | AE39: =IF(F39="","",IF(F39="Moderate",VLOOKUP(D39,'10. Condition and Temporal'!$B$6:$L$103,6,FALSE),IF(F39="Good",VLOOKUP(D39,'10. Condition and Temporal'!$B$6:$L$103,7,FALSE),IF(F39="Poor",VLOOKUP(D39,'10. Condition and Temporal'!$B$6:$L$103,8,FALSE),IF(F39="Condition Assessment N/A",VLOOKUP(D39,'10. Condition and Temporal'!$B$6:$L$103,9,FALSE),IF(F39="N/A - Other",VLOOKUP(D39,'10. Condition and Temporal'!$B$6:$L$103,10,FALSE))))))) ->  | AF39: =IF(AE39="","",VLOOKUP(AE39,'11. Lists'!$I$47:$K$80,3,FALSE)) ->  | AG39: =IF(D39="","",VLOOKUP(D39,'9. All Habitats + Multipliers'!$C$4:$K$102,7,FALSE)) ->  | AH39: =IF(AG39="","",VLOOKUP(AG39,'11. Lists'!$J$35:$K$38,2,FALSE)) -> 
B40: 2 | C40: Hedgerows and Lines of trees | E40: =IF(D40="","",VLOOKUP(D40,'10. Condition and Temporal'!$B$6:$D$103,3,FALSE)) ->  | L40: =IF(D40="","",IFERROR(IF(I40="","",((I40/1000)*(V40*X40))*(AH40*AF40)*AD40),"This intervention is not permitted within the SSM ▲")) ->  | T40: =IF(D40="","",VLOOKUP(D40,'9. All Habitats + Multipliers'!$C$4:$K$102,5,FALSE)) ->  | V40: =IF(T40="","",VLOOKUP(T40,'11. Lists'!$S$47:$U$50,2,FALSE)) ->  | W40: =IF(F40="","",F40) ->  | X40: =IF(W40="","",VLOOKUP(W40,'11. Lists'!$F$47:$G$51,2,FALSE)) ->  | AB40: =IF(H40="","",H40) ->  | AC40: =IF(AB40="","",VLOOKUP(AB40,'11. Lists'!$F$36:$H$38,2,FALSE)) ->  | AD40: =IF(AB40="","",VLOOKUP(AB40,'11. Lists'!$F$36:$H$38,3,FALSE)) ->  | AE40: =IF(F40="","",IF(F40="Moderate",VLOOKUP(D40,'10. Condition and Temporal'!$B$6:$L$103,6,FALSE),IF(F40="Good",VLOOKUP(D40,'10. Condition and Temporal'!$B$6:$L$103,7,FALSE),IF(F40="Poor",VLOOKUP(D40,'10. Condition and Temporal'!$B$6:$L$103,8,FALSE),IF(F40="Condition Assessment N/A",VLOOKUP(D40,'10. Condition and Temporal'!$B$6:$L$103,9,FALSE),IF(F40="N/A - Other",VLOOKUP(D40,'10. Condition and Temporal'!$B$6:$L$103,10,FALSE))))))) ->  | AF40: =IF(AE40="","",VLOOKUP(AE40,'11. Lists'!$I$47:$K$80,3,FALSE)) ->  | AG40: =IF(D40="","",VLOOKUP(D40,'9. All Habitats + Multipliers'!$C$4:$K$102,7,FALSE)) ->  | AH40: =IF(AG40="","",VLOOKUP(AG40,'11. Lists'!$J$35:$K$38,2,FALSE)) -> 
B41: 3 | C41: Hedgerows and Lines of trees | E41: =IF(D41="","",VLOOKUP(D41,'10. Condition and Temporal'!$B$6:$D$103,3,FALSE)) ->  | T41: =IF(D41="","",VLOOKUP(D41,'9. All Habitats + Multipliers'!$C$4:$K$102,5,FALSE)) ->  | V41: =IF(T41="","",VLOOKUP(T41,'11. Lists'!$S$47:$U$50,2,FALSE)) ->  | W41: =IF(F41="","",F41) ->  | X41: =IF(W41="","",VLOOKUP(W41,'11. Lists'!$F$47:$G$51,2,FALSE)) ->  | AC41: =IF(AB41="","",VLOOKUP(AB41,'11. Lists'!$F$36:$H$38,2,FALSE)) ->  | AD41: =IF(AB41="","",VLOOKUP(AB41,'11. Lists'!$F$36:$H$38,3,FALSE)) ->  | AE41: =IF(F41="","",IF(F41="Moderate",VLOOKUP(D41,'10. Condition and Temporal'!$B$6:$L$103,6,FALSE),IF(F41="Good",VLOOKUP(D41,'10. Condition and Temporal'!$B$6:$L$103,7,FALSE),IF(F41="Poor",VLOOKUP(D41,'10. Condition and Temporal'!$B$6:$L$103,8,FALSE),IF(F41="Condition Assessment N/A",VLOOKUP(D41,'10. Condition and Temporal'!$B$6:$L$103,9,FALSE),IF(F41="N/A - Other",VLOOKUP(D41,'10. Condition and Temporal'!$B$6:$L$103,10,FALSE))))))) ->  | AF41: =IF(AE41="","",VLOOKUP(AE41,'11. Lists'!$I$47:$K$80,3,FALSE)) ->  | AG41: =IF(D41="","",VLOOKUP(D41,'9. All Habitats + Multipliers'!$C$4:$K$102,7,FALSE)) ->  | AH41: =IF(AG41="","",VLOOKUP(AG41,'11. Lists'!$J$35:$K$38,2,FALSE)) -> 
B42: 4 | C42: Hedgerows and Lines of trees | E42: =IF(D42="","",VLOOKUP(D42,'10. Condition and Temporal'!$B$6:$D$103,3,FALSE)) ->  | T42: =IF(D42="","",VLOOKUP(D42,'9. All Habitats + Multipliers'!$C$4:$K$102,5,FALSE)) ->  | V42: =IF(T42="","",VLOOKUP(T42,'11. Lists'!$S$47:$U$50,2,FALSE)) ->  | W42: =IF(F42="","",F42) ->  | X42: =IF(W42="","",VLOOKUP(W42,'11. Lists'!$F$47:$G$51,2,FALSE)) ->  | AC42: =IF(AB42="","",VLOOKUP(AB42,'11. Lists'!$F$36:$H$38,2,FALSE)) ->  | AD42: =IF(AB42="","",VLOOKUP(AB42,'11. Lists'!$F$36:$H$38,3,FALSE)) ->  | AE42: =IF(F42="","",IF(F42="Moderate",VLOOKUP(D42,'10. Condition and Temporal'!$B$6:$L$103,6,FALSE),IF(F42="Good",VLOOKUP(D42,'10. Condition and Temporal'!$B$6:$L$103,7,FALSE),IF(F42="Poor",VLOOKUP(D42,'10. Condition and Temporal'!$B$6:$L$103,8,FALSE),IF(F42="Condition Assessment N/A",VLOOKUP(D42,'10. Condition and Temporal'!$B$6:$L$103,9,FALSE),IF(F42="N/A - Other",VLOOKUP(D42,'10. Condition and Temporal'!$B$6:$L$103,10,FALSE))))))) ->  | AF42: =IF(AE42="","",VLOOKUP(AE42,'11. Lists'!$I$47:$K$80,3,FALSE)) ->  | AG42: =IF(D42="","",VLOOKUP(D42,'9. All Habitats + Multipliers'!$C$4:$K$102,7,FALSE)) ->  | AH42: =IF(AG42="","",VLOOKUP(AG42,'11. Lists'!$J$35:$K$38,2,FALSE)) -> 
B43: 5 | C43: Hedgerows and Lines of trees | E43: =IF(D43="","",VLOOKUP(D43,'10. Condition and Temporal'!$B$6:$D$103,3,FALSE)) ->  | T43: =IF(D43="","",VLOOKUP(D43,'9. All Habitats + Multipliers'!$C$4:$K$102,5,FALSE)) ->  | V43: =IF(T43="","",VLOOKUP(T43,'11. Lists'!$S$47:$U$50,2,FALSE)) ->  | W43: =IF(F43="","",F43) ->  | X43: =IF(W43="","",VLOOKUP(W43,'11. Lists'!$F$47:$G$51,2,FALSE)) ->  | AC43: =IF(AB43="","",VLOOKUP(AB43,'11. Lists'!$F$36:$H$38,2,FALSE)) ->  | AD43: =IF(AB43="","",VLOOKUP(AB43,'11. Lists'!$F$36:$H$38,3,FALSE)) ->  | AE43: =IF(F43="","",IF(F43="Moderate",VLOOKUP(D43,'10. Condition and Temporal'!$B$6:$L$103,6,FALSE),IF(F43="Good",VLOOKUP(D43,'10. Condition and Temporal'!$B$6:$L$103,7,FALSE),IF(F43="Poor",VLOOKUP(D43,'10. Condition and Temporal'!$B$6:$L$103,8,FALSE),IF(F43="Condition Assessment N/A",VLOOKUP(D43,'10. Condition and Temporal'!$B$6:$L$103,9,FALSE),IF(F43="N/A - Other",VLOOKUP(D43,'10. Condition and Temporal'!$B$6:$L$103,10,FALSE))))))) ->  | AF43: =IF(AE43="","",VLOOKUP(AE43,'11. Lists'!$I$47:$K$80,3,FALSE)) ->  | AG43: =IF(D43="","",VLOOKUP(D43,'9. All Habitats + Multipliers'!$C$4:$K$102,7,FALSE)) ->  | AH43: =IF(AG43="","",VLOOKUP(AG43,'11. Lists'!$J$35:$K$38,2,FALSE)) -> 
B44: 6 | C44: Hedgerows and Lines of trees | E44: =IF(D44="","",VLOOKUP(D44,'10. Condition and Temporal'!$B$6:$D$103,3,FALSE)) ->  | T44: =IF(D44="","",VLOOKUP(D44,'9. All Habitats + Multipliers'!$C$4:$K$102,5,FALSE)) ->  | V44: =IF(T44="","",VLOOKUP(T44,'11. Lists'!$S$47:$U$50,2,FALSE)) ->  | X44: =IF(W44="","",VLOOKUP(W44,'11. Lists'!$F$47:$G$51,2,FALSE)) ->  | AC44: =IF(AB44="","",VLOOKUP(AB44,'11. Lists'!$F$36:$H$38,2,FALSE)) ->  | AD44: =IF(AB44="","",VLOOKUP(AB44,'11. Lists'!$F$36:$H$38,3,FALSE)) ->  | AE44: =IF(F44="","",IF(F44="Moderate",VLOOKUP(D44,'10. Condition and Temporal'!$B$6:$L$103,6,FALSE),IF(F44="Good",VLOOKUP(D44,'10. Condition and Temporal'!$B$6:$L$103,7,FALSE),IF(F44="Poor",VLOOKUP(D44,'10. Condition and Temporal'!$B$6:$L$103,8,FALSE),IF(F44="Condition Assessment N/A",VLOOKUP(D44,'10. Condition and Temporal'!$B$6:$L$103,9,FALSE),IF(F44="N/A - Other",VLOOKUP(D44,'10. Condition and Temporal'!$B$6:$L$103,10,FALSE))))))) ->  | AF44: =IF(AE44="","",VLOOKUP(AE44,'11. Lists'!$I$47:$K$80,3,FALSE)) ->  | AG44: =IF(D44="","",VLOOKUP(D44,'9. All Habitats + Multipliers'!$C$4:$K$102,7,FALSE)) ->  | AH44: =IF(AG44="","",VLOOKUP(AG44,'11. Lists'!$J$35:$K$38,2,FALSE)) -> 
B45: 7 | C45: Hedgerows and Lines of trees | E45: =IF(D45="","",VLOOKUP(D45,'10. Condition and Temporal'!$B$6:$D$103,3,FALSE)) ->  | T45: =IF(D45="","",VLOOKUP(D45,'9. All Habitats + Multipliers'!$C$4:$K$102,5,FALSE)) ->  | V45: =IF(T45="","",VLOOKUP(T45,'11. Lists'!$S$47:$U$50,2,FALSE)) ->  | X45: =IF(W45="","",VLOOKUP(W45,'11. Lists'!$F$47:$G$51,2,FALSE)) ->  | AC45: =IF(AB45="","",VLOOKUP(AB45,'11. Lists'!$F$36:$H$38,2,FALSE)) ->  | AD45: =IF(AB45="","",VLOOKUP(AB45,'11. Lists'!$F$36:$H$38,3,FALSE)) ->  | AE45: =IF(F45="","",IF(F45="Moderate",VLOOKUP(D45,'10. Condition and Temporal'!$B$6:$L$103,6,FALSE),IF(F45="Good",VLOOKUP(D45,'10. Condition and Temporal'!$B$6:$L$103,7,FALSE),IF(F45="Poor",VLOOKUP(D45,'10. Condition and Temporal'!$B$6:$L$103,8,FALSE),IF(F45="Condition Assessment N/A",VLOOKUP(D45,'10. Condition and Temporal'!$B$6:$L$103,9,FALSE),IF(F45="N/A - Other",VLOOKUP(D45,'10. Condition and Temporal'!$B$6:$L$103,10,FALSE))))))) ->  | AF45: =IF(AE45="","",VLOOKUP(AE45,'11. Lists'!$I$47:$K$80,3,FALSE)) ->  | AG45: =IF(D45="","",VLOOKUP(D45,'9. All Habitats + Multipliers'!$C$4:$K$102,7,FALSE)) ->  | AH45: =IF(AG45="","",VLOOKUP(AG45,'11. Lists'!$J$35:$K$38,2,FALSE)) -> 
B46: 8 | C46: Hedgerows and Lines of trees | E46: =IF(D46="","",VLOOKUP(D46,'10. Condition and Temporal'!$B$6:$D$103,3,FALSE)) ->  | T46: =IF(D46="","",VLOOKUP(D46,'9. All Habitats + Multipliers'!$C$4:$K$102,5,FALSE)) ->  | V46: =IF(T46="","",VLOOKUP(T46,'11. Lists'!$S$47:$U$50,2,FALSE)) ->  | X46: =IF(W46="","",VLOOKUP(W46,'11. Lists'!$F$47:$G$51,2,FALSE)) ->  | AC46: =IF(AB46="","",VLOOKUP(AB46,'11. Lists'!$F$36:$H$38,2,FALSE)) ->  | AD46: =IF(AB46="","",VLOOKUP(AB46,'11. Lists'!$F$36:$H$38,3,FALSE)) ->  | AE46: =IF(F46="","",IF(F46="Moderate",VLOOKUP(D46,'10. Condition and Temporal'!$B$6:$L$103,6,FALSE),IF(F46="Good",VLOOKUP(D46,'10. Condition and Temporal'!$B$6:$L$103,7,FALSE),IF(F46="Poor",VLOOKUP(D46,'10. Condition and Temporal'!$B$6:$L$103,8,FALSE),IF(F46="Condition Assessment N/A",VLOOKUP(D46,'10. Condition and Temporal'!$B$6:$L$103,9,FALSE),IF(F46="N/A - Other",VLOOKUP(D46,'10. Condition and Temporal'!$B$6:$L$103,10,FALSE))))))) ->  | AF46: =IF(AE46="","",VLOOKUP(AE46,'11. Lists'!$I$47:$K$80,3,FALSE)) ->  | AG46: =IF(D46="","",VLOOKUP(D46,'9. All Habitats + Multipliers'!$C$4:$K$102,7,FALSE)) ->  | AH46: =IF(AG46="","",VLOOKUP(AG46,'11. Lists'!$J$35:$K$38,2,FALSE)) -> 
B47: 9 | C47: Hedgerows and Lines of trees | E47: =IF(D47="","",VLOOKUP(D47,'10. Condition and Temporal'!$B$6:$D$103,3,FALSE)) ->  | T47: =IF(D47="","",VLOOKUP(D47,'9. All Habitats + Multipliers'!$C$4:$K$102,5,FALSE)) ->  | V47: =IF(T47="","",VLOOKUP(T47,'11. Lists'!$S$47:$U$50,2,FALSE)) ->  | X47: =IF(W47="","",VLOOKUP(W47,'11. Lists'!$F$47:$G$51,2,FALSE)) ->  | AC47: =IF(AB47="","",VLOOKUP(AB47,'11. Lists'!$F$36:$H$38,2,FALSE)) ->  | AD47: =IF(AB47="","",VLOOKUP(AB47,'11. Lists'!$F$36:$H$38,3,FALSE)) ->  | AE47: =IF(F47="","",IF(F47="Moderate",VLOOKUP(D47,'10. Condition and Temporal'!$B$6:$L$103,6,FALSE),IF(F47="Good",VLOOKUP(D47,'10. Condition and Temporal'!$B$6:$L$103,7,FALSE),IF(F47="Poor",VLOOKUP(D47,'10. Condition and Temporal'!$B$6:$L$103,8,FALSE),IF(F47="Condition Assessment N/A",VLOOKUP(D47,'10. Condition and Temporal'!$B$6:$L$103,9,FALSE),IF(F47="N/A - Other",VLOOKUP(D47,'10. Condition and Temporal'!$B$6:$L$103,10,FALSE))))))) ->  | AF47: =IF(AE47="","",VLOOKUP(AE47,'11. Lists'!$I$47:$K$80,3,FALSE)) ->  | AG47: =IF(D47="","",VLOOKUP(D47,'9. All Habitats + Multipliers'!$C$4:$K$102,7,FALSE)) ->  | AH47: =IF(AG47="","",VLOOKUP(AG47,'11. Lists'!$J$35:$K$38,2,FALSE)) -> 
B48: 10 | C48: Hedgerows and Lines of trees | E48: =IF(D48="","",VLOOKUP(D48,'10. Condition and Temporal'!$B$6:$D$103,3,FALSE)) ->  | T48: =IF(D48="","",VLOOKUP(D48,'9. All Habitats + Multipliers'!$C$4:$K$102,5,FALSE)) ->  | V48: =IF(T48="","",VLOOKUP(T48,'11. Lists'!$S$47:$U$50,2,FALSE)) ->  | X48: =IF(W48="","",VLOOKUP(W48,'11. Lists'!$F$47:$G$51,2,FALSE)) ->  | AC48: =IF(AB48="","",VLOOKUP(AB48,'11. Lists'!$F$36:$H$38,2,FALSE)) ->  | AD48: =IF(AB48="","",VLOOKUP(AB48,'11. Lists'!$F$36:$H$38,3,FALSE)) ->  | AE48: =IF(F48="","",IF(F48="Moderate",VLOOKUP(D48,'10. Condition and Temporal'!$B$6:$L$103,6,FALSE),IF(F48="Good",VLOOKUP(D48,'10. Condition and Temporal'!$B$6:$L$103,7,FALSE),IF(F48="Poor",VLOOKUP(D48,'10. Condition and Temporal'!$B$6:$L$103,8,FALSE),IF(F48="Condition Assessment N/A",VLOOKUP(D48,'10. Condition and Temporal'!$B$6:$L$103,9,FALSE),IF(F48="N/A - Other",VLOOKUP(D48,'10. Condition and Temporal'!$B$6:$L$103,10,FALSE))))))) ->  | AF48: =IF(AE48="","",VLOOKUP(AE48,'11. Lists'!$I$47:$K$80,3,FALSE)) ->  | AG48: =IF(D48="","",VLOOKUP(D48,'9. All Habitats + Multipliers'!$C$4:$K$102,7,FALSE)) ->  | AH48: =IF(AG48="","",VLOOKUP(AG48,'11. Lists'!$J$35:$K$38,2,FALSE)) -> 
B49: 11 | C49: Hedgerows and Lines of trees | E49: =IF(D49="","",VLOOKUP(D49,'10. Condition and Temporal'!$B$6:$D$103,3,FALSE)) ->  | T49: =IF(D49="","",VLOOKUP(D49,'9. All Habitats + Multipliers'!$C$4:$K$102,5,FALSE)) ->  | V49: =IF(T49="","",VLOOKUP(T49,'11. Lists'!$S$47:$U$50,2,FALSE)) ->  | X49: =IF(W49="","",VLOOKUP(W49,'11. Lists'!$F$47:$G$51,2,FALSE)) ->  | AC49: =IF(AB49="","",VLOOKUP(AB49,'11. Lists'!$F$36:$H$38,2,FALSE)) ->  | AD49: =IF(AB49="","",VLOOKUP(AB49,'11. Lists'!$F$36:$H$38,3,FALSE)) ->  | AE49: =IF(F49="","",IF(F49="Moderate",VLOOKUP(D49,'10. Condition and Temporal'!$B$6:$L$103,6,FALSE),IF(F49="Good",VLOOKUP(D49,'10. Condition and Temporal'!$B$6:$L$103,7,FALSE),IF(F49="Poor",VLOOKUP(D49,'10. Condition and Temporal'!$B$6:$L$103,8,FALSE),IF(F49="Condition Assessment N/A",VLOOKUP(D49,'10. Condition and Temporal'!$B$6:$L$103,9,FALSE),IF(F49="N/A - Other",VLOOKUP(D49,'10. Condition and Temporal'!$B$6:$L$103,10,FALSE))))))) ->  | AF49: =IF(AE49="","",VLOOKUP(AE49,'11. Lists'!$I$47:$K$80,3,FALSE)) ->  | AG49: =IF(D49="","",VLOOKUP(D49,'9. All Habitats + Multipliers'!$C$4:$K$102,7,FALSE)) ->  | AH49: =IF(AG49="","",VLOOKUP(AG49,'11. Lists'!$J$35:$K$38,2,FALSE)) -> 
B50: 12 | C50: Hedgerows and Lines of trees | E50: =IF(D50="","",VLOOKUP(D50,'10. Condition and Temporal'!$B$6:$D$103,3,FALSE)) ->  | T50: =IF(D50="","",VLOOKUP(D50,'9. All Habitats + Multipliers'!$C$4:$K$102,5,FALSE)) ->  | V50: =IF(T50="","",VLOOKUP(T50,'11. Lists'!$S$47:$U$50,2,FALSE)) ->  | X50: =IF(W50="","",VLOOKUP(W50,'11. Lists'!$F$47:$G$51,2,FALSE)) ->  | AC50: =IF(AB50="","",VLOOKUP(AB50,'11. Lists'!$F$36:$H$38,2,FALSE)) ->  | AD50: =IF(AB50="","",VLOOKUP(AB50,'11. Lists'!$F$36:$H$38,3,FALSE)) ->  | AE50: =IF(F50="","",IF(F50="Moderate",VLOOKUP(D50,'10. Condition and Temporal'!$B$6:$L$103,6,FALSE),IF(F50="Good",VLOOKUP(D50,'10. Condition and Temporal'!$B$6:$L$103,7,FALSE),IF(F50="Poor",VLOOKUP(D50,'10. Condition and Temporal'!$B$6:$L$103,8,FALSE),IF(F50="Condition Assessment N/A",VLOOKUP(D50,'10. Condition and Temporal'!$B$6:$L$103,9,FALSE),IF(F50="N/A - Other",VLOOKUP(D50,'10. Condition and Temporal'!$B$6:$L$103,10,FALSE))))))) ->  | AF50: =IF(AE50="","",VLOOKUP(AE50,'11. Lists'!$I$47:$K$80,3,FALSE)) ->  | AG50: =IF(D50="","",VLOOKUP(D50,'9. All Habitats + Multipliers'!$C$4:$K$102,7,FALSE)) ->  | AH50: =IF(AG50="","",VLOOKUP(AG50,'11. Lists'!$J$35:$K$38,2,FALSE)) -> 
B51: 13 | C51: Hedgerows and Lines of trees | E51: =IF(D51="","",VLOOKUP(D51,'10. Condition and Temporal'!$B$6:$D$103,3,FALSE)) ->  | T51: =IF(D51="","",VLOOKUP(D51,'9. All Habitats + Multipliers'!$C$4:$K$102,5,FALSE)) ->  | V51: =IF(T51="","",VLOOKUP(T51,'11. Lists'!$S$47:$U$50,2,FALSE)) ->  | X51: =IF(W51="","",VLOOKUP(W51,'11. Lists'!$F$47:$G$51,2,FALSE)) ->  | AC51: =IF(AB51="","",VLOOKUP(AB51,'11. Lists'!$F$36:$H$38,2,FALSE)) ->  | AD51: =IF(AB51="","",VLOOKUP(AB51,'11. Lists'!$F$36:$H$38,3,FALSE)) ->  | AE51: =IF(F51="","",IF(F51="Moderate",VLOOKUP(D51,'10. Condition and Temporal'!$B$6:$L$103,6,FALSE),IF(F51="Good",VLOOKUP(D51,'10. Condition and Temporal'!$B$6:$L$103,7,FALSE),IF(F51="Poor",VLOOKUP(D51,'10. Condition and Temporal'!$B$6:$L$103,8,FALSE),IF(F51="Condition Assessment N/A",VLOOKUP(D51,'10. Condition and Temporal'!$B$6:$L$103,9,FALSE),IF(F51="N/A - Other",VLOOKUP(D51,'10. Condition and Temporal'!$B$6:$L$103,10,FALSE))))))) ->  | AF51: =IF(AE51="","",VLOOKUP(AE51,'11. Lists'!$I$47:$K$80,3,FALSE)) ->  | AG51: =IF(D51="","",VLOOKUP(D51,'9. All Habitats + Multipliers'!$C$4:$K$102,7,FALSE)) ->  | AH51: =IF(AG51="","",VLOOKUP(AG51,'11. Lists'!$J$35:$K$38,2,FALSE)) -> 
B52: 14 | C52: Hedgerows and Lines of trees | E52: =IF(D52="","",VLOOKUP(D52,'10. Condition and Temporal'!$B$6:$D$103,3,FALSE)) ->  | T52: =IF(D52="","",VLOOKUP(D52,'9. All Habitats + Multipliers'!$C$4:$K$102,5,FALSE)) ->  | V52: =IF(T52="","",VLOOKUP(T52,'11. Lists'!$S$47:$U$50,2,FALSE)) ->  | X52: =IF(W52="","",VLOOKUP(W52,'11. Lists'!$F$47:$G$51,2,FALSE)) ->  | AC52: =IF(AB52="","",VLOOKUP(AB52,'11. Lists'!$F$36:$H$38,2,FALSE)) ->  | AD52: =IF(AB52="","",VLOOKUP(AB52,'11. Lists'!$F$36:$H$38,3,FALSE)) ->  | AE52: =IF(F52="","",IF(F52="Moderate",VLOOKUP(D52,'10. Condition and Temporal'!$B$6:$L$103,6,FALSE),IF(F52="Good",VLOOKUP(D52,'10. Condition and Temporal'!$B$6:$L$103,7,FALSE),IF(F52="Poor",VLOOKUP(D52,'10. Condition and Temporal'!$B$6:$L$103,8,FALSE),IF(F52="Condition Assessment N/A",VLOOKUP(D52,'10. Condition and Temporal'!$B$6:$L$103,9,FALSE),IF(F52="N/A - Other",VLOOKUP(D52,'10. Condition and Temporal'!$B$6:$L$103,10,FALSE))))))) ->  | AF52: =IF(AE52="","",VLOOKUP(AE52,'11. Lists'!$I$47:$K$80,3,FALSE)) ->  | AG52: =IF(D52="","",VLOOKUP(D52,'9. All Habitats + Multipliers'!$C$4:$K$102,7,FALSE)) ->  | AH52: =IF(AG52="","",VLOOKUP(AG52,'11. Lists'!$J$35:$K$38,2,FALSE)) -> 
B53: 15 | C53: Hedgerows and Lines of trees | E53: =IF(D53="","",VLOOKUP(D53,'10. Condition and Temporal'!$B$6:$D$103,3,FALSE)) ->  | T53: =IF(D53="","",VLOOKUP(D53,'9. All Habitats + Multipliers'!$C$4:$K$102,5,FALSE)) ->  | V53: =IF(T53="","",VLOOKUP(T53,'11. Lists'!$S$47:$U$50,2,FALSE)) ->  | X53: =IF(W53="","",VLOOKUP(W53,'11. Lists'!$F$47:$G$51,2,FALSE)) ->  | AC53: =IF(AB53="","",VLOOKUP(AB53,'11. Lists'!$F$36:$H$38,2,FALSE)) ->  | AD53: =IF(AB53="","",VLOOKUP(AB53,'11. Lists'!$F$36:$H$38,3,FALSE)) ->  | AE53: =IF(F53="","",IF(F53="Moderate",VLOOKUP(D53,'10. Condition and Temporal'!$B$6:$L$103,6,FALSE),IF(F53="Good",VLOOKUP(D53,'10. Condition and Temporal'!$B$6:$L$103,7,FALSE),IF(F53="Poor",VLOOKUP(D53,'10. Condition and Temporal'!$B$6:$L$103,8,FALSE),IF(F53="Condition Assessment N/A",VLOOKUP(D53,'10. Condition and Temporal'!$B$6:$L$103,9,FALSE),IF(F53="N/A - Other",VLOOKUP(D53,'10. Condition and Temporal'!$B$6:$L$103,10,FALSE))))))) ->  | AF53: =IF(AE53="","",VLOOKUP(AE53,'11. Lists'!$I$47:$K$80,3,FALSE)) ->  | AG53: =IF(D53="","",VLOOKUP(D53,'9. All Habitats + Multipliers'!$C$4:$K$102,7,FALSE)) ->  | AH53: =IF(AG53="","",VLOOKUP(AG53,'11. Lists'!$J$35:$K$38,2,FALSE)) -> 
B54: 16 | C54: Hedgerows and Lines of trees | E54: =IF(D54="","",VLOOKUP(D54,'10. Condition and Temporal'!$B$6:$D$103,3,FALSE)) ->  | T54: =IF(D54="","",VLOOKUP(D54,'9. All Habitats + Multipliers'!$C$4:$K$102,5,FALSE)) ->  | V54: =IF(T54="","",VLOOKUP(T54,'11. Lists'!$S$47:$U$50,2,FALSE)) ->  | X54: =IF(W54="","",VLOOKUP(W54,'11. Lists'!$F$47:$G$51,2,FALSE)) ->  | AC54: =IF(AB54="","",VLOOKUP(AB54,'11. Lists'!$F$36:$H$38,2,FALSE)) ->  | AD54: =IF(AB54="","",VLOOKUP(AB54,'11. Lists'!$F$36:$H$38,3,FALSE)) ->  | AE54: =IF(F54="","",IF(F54="Moderate",VLOOKUP(D54,'10. Condition and Temporal'!$B$6:$L$103,6,FALSE),IF(F54="Good",VLOOKUP(D54,'10. Condition and Temporal'!$B$6:$L$103,7,FALSE),IF(F54="Poor",VLOOKUP(D54,'10. Condition and Temporal'!$B$6:$L$103,8,FALSE),IF(F54="Condition Assessment N/A",VLOOKUP(D54,'10. Condition and Temporal'!$B$6:$L$103,9,FALSE),IF(F54="N/A - Other",VLOOKUP(D54,'10. Condition and Temporal'!$B$6:$L$103,10,FALSE))))))) ->  | AF54: =IF(AE54="","",VLOOKUP(AE54,'11. Lists'!$I$47:$K$80,3,FALSE)) ->  | AG54: =IF(D54="","",VLOOKUP(D54,'9. All Habitats + Multipliers'!$C$4:$K$102,7,FALSE)) ->  | AH54: =IF(AG54="","",VLOOKUP(AG54,'11. Lists'!$J$35:$K$38,2,FALSE)) -> 
B55: 17 | C55: Hedgerows and Lines of trees | E55: =IF(D55="","",VLOOKUP(D55,'10. Condition and Temporal'!$B$6:$D$103,3,FALSE)) ->  | T55: =IF(D55="","",VLOOKUP(D55,'9. All Habitats + Multipliers'!$C$4:$K$102,5,FALSE)) ->  | V55: =IF(T55="","",VLOOKUP(T55,'11. Lists'!$S$47:$U$50,2,FALSE)) ->  | X55: =IF(W55="","",VLOOKUP(W55,'11. Lists'!$F$47:$G$51,2,FALSE)) ->  | AC55: =IF(AB55="","",VLOOKUP(AB55,'11. Lists'!$F$36:$H$38,2,FALSE)) ->  | AD55: =IF(AB55="","",VLOOKUP(AB55,'11. Lists'!$F$36:$H$38,3,FALSE)) ->  | AE55: =IF(F55="","",IF(F55="Moderate",VLOOKUP(D55,'10. Condition and Temporal'!$B$6:$L$103,6,FALSE),IF(F55="Good",VLOOKUP(D55,'10. Condition and Temporal'!$B$6:$L$103,7,FALSE),IF(F55="Poor",VLOOKUP(D55,'10. Condition and Temporal'!$B$6:$L$103,8,FALSE),IF(F55="Condition Assessment N/A",VLOOKUP(D55,'10. Condition and Temporal'!$B$6:$L$103,9,FALSE),IF(F55="N/A - Other",VLOOKUP(D55,'10. Condition and Temporal'!$B$6:$L$103,10,FALSE))))))) ->  | AF55: =IF(AE55="","",VLOOKUP(AE55,'11. Lists'!$I$47:$K$80,3,FALSE)) ->  | AG55: =IF(D55="","",VLOOKUP(D55,'9. All Habitats + Multipliers'!$C$4:$K$102,7,FALSE)) ->  | AH55: =IF(AG55="","",VLOOKUP(AG55,'11. Lists'!$J$35:$K$38,2,FALSE)) -> 
B56: 18 | C56: Hedgerows and Lines of trees | E56: =IF(D56="","",VLOOKUP(D56,'10. Condition and Temporal'!$B$6:$D$103,3,FALSE)) ->  | T56: =IF(D56="","",VLOOKUP(D56,'9. All Habitats + Multipliers'!$C$4:$K$102,5,FALSE)) ->  | V56: =IF(T56="","",VLOOKUP(T56,'11. Lists'!$S$47:$U$50,2,FALSE)) ->  | X56: =IF(W56="","",VLOOKUP(W56,'11. Lists'!$F$47:$G$51,2,FALSE)) ->  | AC56: =IF(AB56="","",VLOOKUP(AB56,'11. Lists'!$F$36:$H$38,2,FALSE)) ->  | AD56: =IF(AB56="","",VLOOKUP(AB56,'11. Lists'!$F$36:$H$38,3,FALSE)) ->  | AE56: =IF(F56="","",IF(F56="Moderate",VLOOKUP(D56,'10. Condition and Temporal'!$B$6:$L$103,6,FALSE),IF(F56="Good",VLOOKUP(D56,'10. Condition and Temporal'!$B$6:$L$103,7,FALSE),IF(F56="Poor",VLOOKUP(D56,'10. Condition and Temporal'!$B$6:$L$103,8,FALSE),IF(F56="Condition Assessment N/A",VLOOKUP(D56,'10. Condition and Temporal'!$B$6:$L$103,9,FALSE),IF(F56="N/A - Other",VLOOKUP(D56,'10. Condition and Temporal'!$B$6:$L$103,10,FALSE))))))) ->  | AF56: =IF(AE56="","",VLOOKUP(AE56,'11. Lists'!$I$47:$K$80,3,FALSE)) ->  | AG56: =IF(D56="","",VLOOKUP(D56,'9. All Habitats + Multipliers'!$C$4:$K$102,7,FALSE)) ->  | AH56: =IF(AG56="","",VLOOKUP(AG56,'11. Lists'!$J$35:$K$38,2,FALSE)) -> 
B57: 19 | C57: Hedgerows and Lines of trees | E57: =IF(D57="","",VLOOKUP(D57,'10. Condition and Temporal'!$B$6:$D$103,3,FALSE)) ->  | T57: =IF(D57="","",VLOOKUP(D57,'9. All Habitats + Multipliers'!$C$4:$K$102,5,FALSE)) ->  | V57: =IF(T57="","",VLOOKUP(T57,'11. Lists'!$S$47:$U$50,2,FALSE)) ->  | X57: =IF(W57="","",VLOOKUP(W57,'11. Lists'!$F$47:$G$51,2,FALSE)) ->  | AC57: =IF(AB57="","",VLOOKUP(AB57,'11. Lists'!$F$36:$H$38,2,FALSE)) ->  | AD57: =IF(AB57="","",VLOOKUP(AB57,'11. Lists'!$F$36:$H$38,3,FALSE)) ->  | AE57: =IF(F57="","",IF(F57="Moderate",VLOOKUP(D57,'10. Condition and Temporal'!$B$6:$L$103,6,FALSE),IF(F57="Good",VLOOKUP(D57,'10. Condition and Temporal'!$B$6:$L$103,7,FALSE),IF(F57="Poor",VLOOKUP(D57,'10. Condition and Temporal'!$B$6:$L$103,8,FALSE),IF(F57="Condition Assessment N/A",VLOOKUP(D57,'10. Condition and Temporal'!$B$6:$L$103,9,FALSE),IF(F57="N/A - Other",VLOOKUP(D57,'10. Condition and Temporal'!$B$6:$L$103,10,FALSE))))))) ->  | AF57: =IF(AE57="","",VLOOKUP(AE57,'11. Lists'!$I$47:$K$80,3,FALSE)) ->  | AG57: =IF(D57="","",VLOOKUP(D57,'9. All Habitats + Multipliers'!$C$4:$K$102,7,FALSE)) ->  | AH57: =IF(AG57="","",VLOOKUP(AG57,'11. Lists'!$J$35:$K$38,2,FALSE)) -> 
B58: 20 | C58: Hedgerows and Lines of trees | E58: =IF(D58="","",VLOOKUP(D58,'10. Condition and Temporal'!$B$6:$D$103,3,FALSE)) ->  | T58: =IF(D58="","",VLOOKUP(D58,'9. All Habitats + Multipliers'!$C$4:$K$102,5,FALSE)) ->  | V58: =IF(T58="","",VLOOKUP(T58,'11. Lists'!$S$47:$U$50,2,FALSE)) ->  | X58: =IF(W58="","",VLOOKUP(W58,'11. Lists'!$F$47:$G$51,2,FALSE)) ->  | AC58: =IF(AB58="","",VLOOKUP(AB58,'11. Lists'!$F$36:$H$38,2,FALSE)) ->  | AD58: =IF(AB58="","",VLOOKUP(AB58,'11. Lists'!$F$36:$H$38,3,FALSE)) ->  | AE58: =IF(F58="","",IF(F58="Moderate",VLOOKUP(D58,'10. Condition and Temporal'!$B$6:$L$103,6,FALSE),IF(F58="Good",VLOOKUP(D58,'10. Condition and Temporal'!$B$6:$L$103,7,FALSE),IF(F58="Poor",VLOOKUP(D58,'10. Condition and Temporal'!$B$6:$L$103,8,FALSE),IF(F58="Condition Assessment N/A",VLOOKUP(D58,'10. Condition and Temporal'!$B$6:$L$103,9,FALSE),IF(F58="N/A - Other",VLOOKUP(D58,'10. Condition and Temporal'!$B$6:$L$103,10,FALSE))))))) ->  | AF58: =IF(AE58="","",VLOOKUP(AE58,'11. Lists'!$I$47:$K$80,3,FALSE)) ->  | AG58: =IF(D58="","",VLOOKUP(D58,'9. All Habitats + Multipliers'!$C$4:$K$102,7,FALSE)) ->  | AH58: =IF(AG58="","",VLOOKUP(AG58,'11. Lists'!$J$35:$K$38,2,FALSE)) -> 
H59: Totals | I59: =SUM(I39:K58) -> 0 | L59: =SUM(L39:N58) -> 0
H60: Error Check 1 | I60: =IF(I59<5000,"Lengths Acceptable ✓",IF(I59>=5000,"Length Exceeds Length Appropriate for Small Sites Metric ▲")) -> Lengths Acceptable ✓
BA61: Divider
B62: 1c. Habitats to be enhanced | BA62: ,
B64: Baseline ref | C64: Existing Habitat Type | E64: Enhanced Habitat type | H64: B. Strategic significance | I64: Length Enhanced (m) | J64: Enhanced Condition | L64: Total Units | M64: Net Improvement | O64: Comments | T64: Baseline Values | AE64: Distinctiveness change acceptable? | AF64: Enhanced multipliers | AQ64: Condition enhancement - Time to target condition/years | AR64: Enhanced multipliers | BA64: Number of options | BB64: =COUNTIF(BB66:BB85,"?*") -> 0 | BC64: =COUNTIF(BC66:BC85,"?*") -> 0 | BD64: 0 | BE64: 0 | BF64: 0 | BG64: 0 | BH64: 0 | BI64: 0 | BJ64: 0 | BK64: 0 | BL64: 0 | BM64: 0 | BN64: 0 | BO64: 0 | BP64: 0 | BQ64: 0 | BR64: 0 | BS64: 0 | BT64: 0 | BU64: 0
C65: Broad habitat type | D65: Existing habitat type | E65: Enhancement Type | F65: A. Enhanced habitat type | O65: User comments | P65: LPA comments | T65: Area enhanced | U65: Baseline distinctiveness band | V65: Baseline distinctiveness score | W65: Baseline condition category | X65: Baseline condition score | AB65: Baseline strategic significance category | AC65: Baseline strategic significance score | AD65: Baseline value of area enhanced | AF65: Area enhanced | AG65: Distinctiveness | AH65: Score | AI65: Condition | AJ65: Score | AN65: Strategic significance | AO65: Strategic significance | AP65: Strategic significance multiplier | AR65: Condition enhancement - Time to target multiplier | AS65: Distinctiveness enhancement - Time to target condition/years | AT65: Distinctiveness enhancement - Time to target multiplier | AU65: Difficulty of enhancement category | AV65: Difficulty of enhancement multiplier | AW65: Acceptable habitat types | AX65: Enhancement type | BA65: option number | BB65: 1 | BC65: 2 | BD65: 3 | BE65: 4 | BF65: 5 | BG65: 6 | BH65: 7 | BI65: 8 | BJ65: 9 | BK65: 10 | BL65: 11 | BM65: 12 | BN65: 13 | BO65: 14 | BP65: 15 | BQ65: 16 | BR65: 17 | BS65: 18 | BT65: 19 | BU65: 20 | BV65: List range | BW65: Column ref | BX65: list length
B66: 1 | C66: =IF(D66="","",C11) ->  | D66: =IF(OR(K11="", K11=0),"",D11) ->  | E66: =IF(AX66="","",AX66) ->  | H66: =IF(D66="","",AB66) ->  | I66: =IF(OR(K11="", K11=0),"",K11) ->  | J66: =IFERROR(IF(F66="","",VLOOKUP(F66,'10. Condition and Temporal'!$B$6:$F$103,5,FALSE)), "Error ▲") ->  | L66: =IFERROR(IF(D66="","",IF(AX66="Distinctiveness",(((((I66*AH66*AJ66)-(I66*V66*X66))*(AV66*AT66))+(I66*V66*X66))*AP66/1000),((((I66*AH66*AJ66)-(I66*V66*X66))*(AV66*AR66))+(I66*V66*X66))*AP66/1000)),"This intervention is not permitted within the SSM ▲") ->  | M66: =IFERROR(IF(F66="","",L66-AD66), "Error ▲") ->  | T66: =IF(D66="","",K11) ->  | U66: =IF($D66="","",T11) ->  | V66: =IF($D66="","",V11) ->  | AB66: =IF($D66="","",AB11) ->  | AC66: =IF($D66="","",AD11) ->  | AD66: =IF(AC66="","",(T66*V66*X66)*AC66/1000) ->  | AE66: =IF(AD66="","",IF(AH66<V66,"Not Acceptable","Acceptable")) ->  | AF66: =IF(D66="","",I66) ->  | AG66: =IF(D66="","",VLOOKUP(F66,'9. All Habitats + Multipliers'!$C$4:$K$102,5,FALSE)) ->  | AH66: =IF(AG66="","",VLOOKUP(AG66,'11. Lists'!$S$47:$U$50,2,FALSE)) ->  | AI66: =IF(D66="","",J66) ->  | AJ66: =IF(AI66="","",VLOOKUP(AI66,'11. Lists'!$F$47:$G$51,2,FALSE)) ->  | AN66: =IF(H66="","",H66) ->  | AO66: =IF(AN66="","",VLOOKUP(AN66,'11. Lists'!$F$36:$H$38,2,FALSE)) ->  | AP66: =IF(AN66="","",VLOOKUP(AN66,'11. Lists'!$F$36:$H$38,3,FALSE)) ->  | AQ66: =IF(D66="","",IF(AX66="Distinctiveness","N/A",VLOOKUP(F66,'10. Condition and Temporal'!$B$6:$L$103,11,FALSE))) ->  | AR66: =IF(AQ66="","",IF(AQ66="N/A","1",VLOOKUP(AQ66,'11. Lists'!$I$47:$K$80,3,FALSE))) ->  | AS66: =IF(D66="","",IF(AX66="Condition","N/A",VLOOKUP(F66,'10. Condition and Temporal'!$B$6:$M$106,12,FALSE))) ->  | AT66: =IF(AS66="","",IF(AS66="N/A","1",VLOOKUP(AS66,'11. Lists'!$I$47:$K$80,3,FALSE))) ->  | AU66: =IF(D66="","",VLOOKUP(F66,'9. All Habitats + Multipliers'!$C$4:$K$102,8,FALSE)) ->  | AV66: =IF(AU66="","",VLOOKUP(AU66,'11. Lists'!$J$35:$K$38,2,FALSE)) ->  | AW66: =IF(D66="","",VLOOKUP(D66,'10. Condition and Temporal'!$B$6:$M$103,4,FALSE)) ->  | AX66: =IF(F66="","",IF(D66=F66,"Condition","Distinctiveness")) ->  | BA66: 1 | BB66: =TRIM(MID(SUBSTITUTE($AW$66,$BA$62,REPT(" ",LEN($AW$66))),($BA66-1)*LEN($AW$66)+1,LEN($AW$66))) ->  | BC66: =TRIM(MID(SUBSTITUTE($AW$67,$BA$62,REPT(" ",LEN($AW$67))),($BA66-1)*LEN($AW$67)+1,LEN($AW$67))) ->  | BD66: =TRIM(MID(SUBSTITUTE($AW$68,$BA$62,REPT(" ",LEN($AW$68))),($BA66-1)*LEN($AW$68)+1,LEN($AW$68))) ->  | BE66: =TRIM(MID(SUBSTITUTE($AW$69,$BA$62,REPT(" ",LEN($AW$69))),($BA66-1)*LEN($AW$69)+1,LEN($AW$69))) ->  | BF66: =TRIM(MID(SUBSTITUTE($AW$70,$BA$62,REPT(" ",LEN($AW$70))),($BA66-1)*LEN($AW$70)+1,LEN($AW$70))) ->  | BG66: =TRIM(MID(SUBSTITUTE($AW$71,$BA$62,REPT(" ",LEN($AW$71))),($BA66-1)*LEN($AW$71)+1,LEN($AW$71))) ->  | BH66: =TRIM(MID(SUBSTITUTE($AW$72,$BA$62,REPT(" ",LEN($AW$72))),($BA66-1)*LEN($AW$72)+1,LEN($AW$72))) ->  | BI66: =TRIM(MID(SUBSTITUTE($AW$73,$BA$62,REPT(" ",LEN($AW$73))),($BA66-1)*LEN($AW$73)+1,LEN($AW$73))) ->  | BJ66: =TRIM(MID(SUBSTITUTE($AW$74,$BA$62,REPT(" ",LEN($AW$74))),($BA66-1)*LEN($AW$74)+1,LEN($AW$74))) ->  | BK66: =TRIM(MID(SUBSTITUTE($AW$75,$BA$62,REPT(" ",LEN($AW$75))),($BA66-1)*LEN($AW$75)+1,LEN($AW$75))) ->  | BL66: =TRIM(MID(SUBSTITUTE($AW$76,$BA$62,REPT(" ",LEN($AW$76))),($BA66-1)*LEN($AW$76)+1,LEN($AW$76))) ->  | BM66: =TRIM(MID(SUBSTITUTE($AW$77,$BA$62,REPT(" ",LEN($AW$77))),($BA66-1)*LEN($AW$77)+1,LEN($AW$77))) ->  | BN66: =TRIM(MID(SUBSTITUTE($AW$78,$BA$62,REPT(" ",LEN($AW$78))),($BA66-1)*LEN($AW$78)+1,LEN($AW$78))) ->  | BO66: =TRIM(MID(SUBSTITUTE($AW$79,$BA$62,REPT(" ",LEN($AW$79))),($BA66-1)*LEN($AW$79)+1,LEN($AW$79))) ->  | BP66: =TRIM(MID(SUBSTITUTE($AW$80,$BA$62,REPT(" ",LEN($AW$80))),($BA66-1)*LEN($AW$80)+1,LEN($AW$80))) ->  | BQ66: =TRIM(MID(SUBSTITUTE($AW$81,$BA$62,REPT(" ",LEN($AW$81))),($BA66-1)*LEN($AW$81)+1,LEN($AW$81))) ->  | BR66: =TRIM(MID(SUBSTITUTE($AW$82,$BA$62,REPT(" ",LEN($AW$82))),($BA66-1)*LEN($AW$82)+1,LEN($AW$82))) ->  | BS66: =TRIM(MID(SUBSTITUTE($AW$83,$BA$62,REPT(" ",LEN($AW$83))),($BA66-1)*LEN($AW$83)+1,LEN($AW$83))) ->  | BT66: =TRIM(MID(SUBSTITUTE($AW$84,$BA$62,REPT(" ",LEN($AW$84))),($BA66-1)*LEN($AW$84)+1,LEN($AW$84))) ->  | BU66: =TRIM(MID(SUBSTITUTE($AW$85,$BA$62,REPT(" ",LEN($AW$85))),($BA66-1)*LEN($AW$85)+1,LEN($AW$85))) ->  | BV66: =IF(BX66=0,"",CONCATENATE(BW66,"66:",BW66,BX66+65)) ->  | BW66: BB | BX66: =BB64 -> 0
B67: 2 | D67: =IF(OR(K12="", K12=0),"",D12) ->  | I67: =IF(OR(K12="", K12=0),"",K12) ->  | J67: =IFERROR(IF(F67="","",VLOOKUP(F67,'10. Condition and Temporal'!$B$6:$F$103,5,FALSE)), "Error ▲") ->  | L67: =IFERROR(IF(D67="","",IF(AX67="Distinctiveness",(((((I67*AH67*AJ67)-(I67*V67*X67))*(AV67*AT67))+(I67*V67*X67))*AP67/1000),((((I67*AH67*AJ67)-(I67*V67*X67))*(AV67*AR67))+(I67*V67*X67))*AP67/1000)),"This intervention is not permitted within the SSM ▲") ->  | M67: =IFERROR(IF(F67="","",L67-AD67), "Error ▲") ->  | U67: =IF($D67="","",T12) ->  | AD67: =IF(AC67="","",(T67*V67*X67)*AC67/1000) ->  | AE67: =IF(AD67="","",IF(AH67<V67,"Not Acceptable","Acceptable")) ->  | AG67: =IF(D67="","",VLOOKUP(F67,'9. All Habitats + Multipliers'!$C$4:$K$102,5,FALSE)) ->  | AH67: =IF(AG67="","",VLOOKUP(AG67,'11. Lists'!$S$47:$U$50,2,FALSE)) ->  | AJ67: =IF(AI67="","",VLOOKUP(AI67,'11. Lists'!$F$47:$G$51,2,FALSE)) ->  | AO67: =IF(AN67="","",VLOOKUP(AN67,'11. Lists'!$F$36:$H$38,2,FALSE)) ->  | AP67: =IF(AN67="","",VLOOKUP(AN67,'11. Lists'!$F$36:$H$38,3,FALSE)) ->  | AQ67: =IF(D67="","",IF(AX67="Distinctiveness","N/A",VLOOKUP(F67,'10. Condition and Temporal'!$B$6:$L$103,11,FALSE))) ->  | AR67: =IF(AQ67="","",IF(AQ67="N/A","1",VLOOKUP(AQ67,'11. Lists'!$I$47:$K$80,3,FALSE))) ->  | AS67: =IF(D67="","",IF(AX67="Condition","N/A",VLOOKUP(F67,'10. Condition and Temporal'!$B$6:$M$106,12,FALSE))) ->  | AT67: =IF(AS67="","",IF(AS67="N/A","1",VLOOKUP(AS67,'11. Lists'!$I$47:$K$80,3,FALSE))) ->  | AU67: =IF(D67="","",VLOOKUP(F67,'9. All Habitats + Multipliers'!$C$4:$K$102,8,FALSE)) ->  | AV67: =IF(AU67="","",VLOOKUP(AU67,'11. Lists'!$J$35:$K$38,2,FALSE)) ->  | AW67: =IF(D67="","",VLOOKUP(D67,'10. Condition and Temporal'!$B$6:$M$103,4,FALSE)) ->  | BA67: 2 | BV67: =IF(BX67=0,"",CONCATENATE(BW67,"66:",BW67,BX67+65)) ->  | BW67: BC | BX67: =BC64 -> 0
B68: 3 | J68: =IFERROR(IF(F68="","",VLOOKUP(F68,'10. Condition and Temporal'!$B$6:$F$103,5,FALSE)), "Error ▲") ->  | AD68: =IF(AC68="","",(T68*V68*X68)*AC68/1000) ->  | AG68: =IF(D68="","",VLOOKUP(F68,'9. All Habitats + Multipliers'!$C$4:$K$102,5,FALSE)) ->  | AH68: =IF(AG68="","",VLOOKUP(AG68,'11. Lists'!$S$47:$U$50,2,FALSE)) ->  | AJ68: =IF(AI68="","",VLOOKUP(AI68,'11. Lists'!$F$47:$G$51,2,FALSE)) ->  | AO68: =IF(AN68="","",VLOOKUP(AN68,'11. Lists'!$F$36:$H$38,2,FALSE)) ->  | AP68: =IF(AN68="","",VLOOKUP(AN68,'11. Lists'!$F$36:$H$38,3,FALSE)) ->  | AQ68: =IF(D68="","",IF(AX68="Distinctiveness","N/A",VLOOKUP(F68,'10. Condition and Temporal'!$B$6:$L$103,11,FALSE))) ->  | AR68: =IF(AQ68="","",IF(AQ68="N/A","1",VLOOKUP(AQ68,'11. Lists'!$I$47:$K$80,3,FALSE))) ->  | AS68: =IF(D68="","",IF(AX68="Condition","N/A",VLOOKUP(F68,'10. Condition and Temporal'!$B$6:$M$106,12,FALSE))) ->  | AT68: =IF(AS68="","",IF(AS68="N/A","1",VLOOKUP(AS68,'11. Lists'!$I$47:$K$80,3,FALSE))) ->  | AU68: =IF(D68="","",VLOOKUP(F68,'9. All Habitats + Multipliers'!$C$4:$K$102,8,FALSE)) ->  | AV68: =IF(AU68="","",VLOOKUP(AU68,'11. Lists'!$J$35:$K$38,2,FALSE)) ->  | AW68: =IF(D68="","",VLOOKUP(D68,'10. Condition and Temporal'!$B$6:$M$103,4,FALSE)) ->  | BA68: 3 | BW68: BD | BX68: =BD64 -> 0
B69: 4 | J69: =IFERROR(IF(F69="","",VLOOKUP(F69,'10. Condition and Temporal'!$B$6:$F$103,5,FALSE)), "Error ▲") ->  | AG69: =IF(D69="","",VLOOKUP(F69,'9. All Habitats + Multipliers'!$C$4:$K$102,5,FALSE)) ->  | AH69: =IF(AG69="","",VLOOKUP(AG69,'11. Lists'!$S$47:$U$50,2,FALSE)) ->  | AJ69: =IF(AI69="","",VLOOKUP(AI69,'11. Lists'!$F$47:$G$51,2,FALSE)) ->  | AO69: =IF(AN69="","",VLOOKUP(AN69,'11. Lists'!$F$36:$H$38,2,FALSE)) ->  | AP69: =IF(AN69="","",VLOOKUP(AN69,'11. Lists'!$F$36:$H$38,3,FALSE)) ->  | AQ69: =IF(D69="","",IF(AX69="Distinctiveness","N/A",VLOOKUP(F69,'10. Condition and Temporal'!$B$6:$L$103,11,FALSE))) ->  | AR69: =IF(AQ69="","",IF(AQ69="N/A","1",VLOOKUP(AQ69,'11. Lists'!$I$47:$K$80,3,FALSE))) ->  | AS69: =IF(D69="","",IF(AX69="Condition","N/A",VLOOKUP(F69,'10. Condition and Temporal'!$B$6:$M$106,12,FALSE))) ->  | AT69: =IF(AS69="","",IF(AS69="N/A","1",VLOOKUP(AS69,'11. Lists'!$I$47:$K$80,3,FALSE))) ->  | AU69: =IF(D69="","",VLOOKUP(F69,'9. All Habitats + Multipliers'!$C$4:$K$102,8,FALSE)) ->  | AV69: =IF(AU69="","",VLOOKUP(AU69,'11. Lists'!$J$35:$K$38,2,FALSE)) ->  | AW69: =IF(D69="","",VLOOKUP(D69,'10. Condition and Temporal'!$B$6:$M$103,4,FALSE)) ->  | BA69: 4 | BW69: BE | BX69: =BE64 -> 0
B70: 5 | J70: =IFERROR(IF(F70="","",VLOOKUP(F70,'10. Condition and Temporal'!$B$6:$F$103,5,FALSE)), "Error ▲") ->  | AG70: =IF(D70="","",VLOOKUP(F70,'9. All Habitats + Multipliers'!$C$4:$K$102,5,FALSE)) ->  | AH70: =IF(AG70="","",VLOOKUP(AG70,'11. Lists'!$S$47:$U$50,2,FALSE)) ->  | AJ70: =IF(AI70="","",VLOOKUP(AI70,'11. Lists'!$F$47:$G$51,2,FALSE)) ->  | AO70: =IF(AN70="","",VLOOKUP(AN70,'11. Lists'!$F$36:$H$38,2,FALSE)) ->  | AP70: =IF(AN70="","",VLOOKUP(AN70,'11. Lists'!$F$36:$H$38,3,FALSE)) ->  | AQ70: =IF(D70="","",IF(AX70="Distinctiveness","N/A",VLOOKUP(F70,'10. Condition and Temporal'!$B$6:$L$103,11,FALSE))) ->  | AR70: =IF(AQ70="","",IF(AQ70="N/A","1",VLOOKUP(AQ70,'11. Lists'!$I$47:$K$80,3,FALSE))) ->  | AS70: =IF(D70="","",IF(AX70="Condition","N/A",VLOOKUP(F70,'10. Condition and Temporal'!$B$6:$M$106,12,FALSE))) ->  | AT70: =IF(AS70="","",IF(AS70="N/A","1",VLOOKUP(AS70,'11. Lists'!$I$47:$K$80,3,FALSE))) ->  | AU70: =IF(D70="","",VLOOKUP(F70,'9. All Habitats + Multipliers'!$C$4:$K$102,8,FALSE)) ->  | AV70: =IF(AU70="","",VLOOKUP(AU70,'11. Lists'!$J$35:$K$38,2,FALSE)) ->  | AW70: =IF(D70="","",VLOOKUP(D70,'10. Condition and Temporal'!$B$6:$M$103,4,FALSE)) ->  | BA70: 5 | BW70: BF | BX70: =BF64 -> 0
B71: 6 | J71: =IFERROR(IF(F71="","",VLOOKUP(F71,'10. Condition and Temporal'!$B$6:$F$103,5,FALSE)), "Error ▲") ->  | AG71: =IF(D71="","",VLOOKUP(F71,'9. All Habitats + Multipliers'!$C$4:$K$102,5,FALSE)) ->  | AH71: =IF(AG71="","",VLOOKUP(AG71,'11. Lists'!$S$47:$U$50,2,FALSE)) ->  | AJ71: =IF(AI71="","",VLOOKUP(AI71,'11. Lists'!$F$47:$G$51,2,FALSE)) ->  | AO71: =IF(AN71="","",VLOOKUP(AN71,'11. Lists'!$F$36:$H$38,2,FALSE)) ->  | AP71: =IF(AN71="","",VLOOKUP(AN71,'11. Lists'!$F$36:$H$38,3,FALSE)) ->  | AQ71: =IF(D71="","",IF(AX71="Distinctiveness","N/A",VLOOKUP(F71,'10. Condition and Temporal'!$B$6:$L$103,11,FALSE))) ->  | AR71: =IF(AQ71="","",IF(AQ71="N/A","1",VLOOKUP(AQ71,'11. Lists'!$I$47:$K$80,3,FALSE))) ->  | AS71: =IF(D71="","",IF(AX71="Condition","N/A",VLOOKUP(F71,'10. Condition and Temporal'!$B$6:$M$106,12,FALSE))) ->  | AT71: =IF(AS71="","",IF(AS71="N/A","1",VLOOKUP(AS71,'11. Lists'!$I$47:$K$80,3,FALSE))) ->  | AU71: =IF(D71="","",VLOOKUP(F71,'9. All Habitats + Multipliers'!$C$4:$K$102,8,FALSE)) ->  | AV71: =IF(AU71="","",VLOOKUP(AU71,'11. Lists'!$J$35:$K$38,2,FALSE)) ->  | AW71: =IF(D71="","",VLOOKUP(D71,'10. Condition and Temporal'!$B$6:$M$103,4,FALSE)) ->  | BA71: 6 | BW71: BG | BX71: =BG64 -> 0
B72: 7 | J72: =IFERROR(IF(F72="","",VLOOKUP(F72,'10. Condition and Temporal'!$B$6:$F$103,5,FALSE)), "Error ▲") ->  | AG72: =IF(D72="","",VLOOKUP(F72,'9. All Habitats + Multipliers'!$C$4:$K$102,5,FALSE)) ->  | AH72: =IF(AG72="","",VLOOKUP(AG72,'11. Lists'!$S$47:$U$50,2,FALSE)) ->  | AJ72: =IF(AI72="","",VLOOKUP(AI72,'11. Lists'!$F$47:$G$51,2,FALSE)) ->  | AO72: =IF(AN72="","",VLOOKUP(AN72,'11. Lists'!$F$36:$H$38,2,FALSE)) ->  | AP72: =IF(AN72="","",VLOOKUP(AN72,'11. Lists'!$F$36:$H$38,3,FALSE)) ->  | AQ72: =IF(D72="","",IF(AX72="Distinctiveness","N/A",VLOOKUP(F72,'10. Condition and Temporal'!$B$6:$L$103,11,FALSE))) ->  | AR72: =IF(AQ72="","",IF(AQ72="N/A","1",VLOOKUP(AQ72,'11. Lists'!$I$47:$K$80,3,FALSE))) ->  | AS72: =IF(D72="","",IF(AX72="Condition","N/A",VLOOKUP(F72,'10. Condition and Temporal'!$B$6:$M$106,12,FALSE))) ->  | AT72: =IF(AS72="","",IF(AS72="N/A","1",VLOOKUP(AS72,'11. Lists'!$I$47:$K$80,3,FALSE))) ->  | AU72: =IF(D72="","",VLOOKUP(F72,'9. All Habitats + Multipliers'!$C$4:$K$102,8,FALSE)) ->  | AV72: =IF(AU72="","",VLOOKUP(AU72,'11. Lists'!$J$35:$K$38,2,FALSE)) ->  | AW72: =IF(D72="","",VLOOKUP(D72,'10. Condition and Temporal'!$B$6:$M$103,4,FALSE)) ->  | BA72: 7 | BW72: BH | BX72: =BH64 -> 0
B73: 8 | J73: =IFERROR(IF(F73="","",VLOOKUP(F73,'10. Condition and Temporal'!$B$6:$F$103,5,FALSE)), "Error ▲") ->  | AG73: =IF(D73="","",VLOOKUP(F73,'9. All Habitats + Multipliers'!$C$4:$K$102,5,FALSE)) ->  | AH73: =IF(AG73="","",VLOOKUP(AG73,'11. Lists'!$S$47:$U$50,2,FALSE)) ->  | AJ73: =IF(AI73="","",VLOOKUP(AI73,'11. Lists'!$F$47:$G$51,2,FALSE)) ->  | AO73: =IF(AN73="","",VLOOKUP(AN73,'11. Lists'!$F$36:$H$38,2,FALSE)) ->  | AP73: =IF(AN73="","",VLOOKUP(AN73,'11. Lists'!$F$36:$H$38,3,FALSE)) ->  | AQ73: =IF(D73="","",IF(AX73="Distinctiveness","N/A",VLOOKUP(F73,'10. Condition and Temporal'!$B$6:$L$103,11,FALSE))) ->  | AR73: =IF(AQ73="","",IF(AQ73="N/A","1",VLOOKUP(AQ73,'11. Lists'!$I$47:$K$80,3,FALSE))) ->  | AS73: =IF(D73="","",IF(AX73="Condition","N/A",VLOOKUP(F73,'10. Condition and Temporal'!$B$6:$M$106,12,FALSE))) ->  | AT73: =IF(AS73="","",IF(AS73="N/A","1",VLOOKUP(AS73,'11. Lists'!$I$47:$K$80,3,FALSE))) ->  | AU73: =IF(D73="","",VLOOKUP(F73,'9. All Habitats + Multipliers'!$C$4:$K$102,8,FALSE)) ->  | AV73: =IF(AU73="","",VLOOKUP(AU73,'11. Lists'!$J$35:$K$38,2,FALSE)) ->  | AW73: =IF(D73="","",VLOOKUP(D73,'10. Condition and Temporal'!$B$6:$M$103,4,FALSE)) ->  | BA73: 8 | BW73: BI | BX73: =BI64 -> 0
B74: 9 | J74: =IFERROR(IF(F74="","",VLOOKUP(F74,'10. Condition and Temporal'!$B$6:$F$103,5,FALSE)), "Error ▲") ->  | AG74: =IF(D74="","",VLOOKUP(F74,'9. All Habitats + Multipliers'!$C$4:$K$102,5,FALSE)) ->  | AH74: =IF(AG74="","",VLOOKUP(AG74,'11. Lists'!$S$47:$U$50,2,FALSE)) ->  | AJ74: =IF(AI74="","",VLOOKUP(AI74,'11. Lists'!$F$47:$G$51,2,FALSE)) ->  | AO74: =IF(AN74="","",VLOOKUP(AN74,'11. Lists'!$F$36:$H$38,2,FALSE)) ->  | AP74: =IF(AN74="","",VLOOKUP(AN74,'11. Lists'!$F$36:$H$38,3,FALSE)) ->  | AQ74: =IF(D74="","",IF(AX74="Distinctiveness","N/A",VLOOKUP(F74,'10. Condition and Temporal'!$B$6:$L$103,11,FALSE))) ->  | AR74: =IF(AQ74="","",IF(AQ74="N/A","1",VLOOKUP(AQ74,'11. Lists'!$I$47:$K$80,3,FALSE))) ->  | AS74: =IF(D74="","",IF(AX74="Condition","N/A",VLOOKUP(F74,'10. Condition and Temporal'!$B$6:$M$106,12,FALSE))) ->  | AT74: =IF(AS74="","",IF(AS74="N/A","1",VLOOKUP(AS74,'11. Lists'!$I$47:$K$80,3,FALSE))) ->  | AU74: =IF(D74="","",VLOOKUP(F74,'9. All Habitats + Multipliers'!$C$4:$K$102,8,FALSE)) ->  | AV74: =IF(AU74="","",VLOOKUP(AU74,'11. Lists'!$J$35:$K$38,2,FALSE)) ->  | AW74: =IF(D74="","",VLOOKUP(D74,'10. Condition and Temporal'!$B$6:$M$103,4,FALSE)) ->  | BA74: 9 | BW74: BJ | BX74: =BJ64 -> 0
B75: 10 | J75: =IFERROR(IF(F75="","",VLOOKUP(F75,'10. Condition and Temporal'!$B$6:$F$103,5,FALSE)), "Error ▲") ->  | AG75: =IF(D75="","",VLOOKUP(F75,'9. All Habitats + Multipliers'!$C$4:$K$102,5,FALSE)) ->  | AH75: =IF(AG75="","",VLOOKUP(AG75,'11. Lists'!$S$47:$U$50,2,FALSE)) ->  | AJ75: =IF(AI75="","",VLOOKUP(AI75,'11. Lists'!$F$47:$G$51,2,FALSE)) ->  | AO75: =IF(AN75="","",VLOOKUP(AN75,'11. Lists'!$F$36:$H$38,2,FALSE)) ->  | AP75: =IF(AN75="","",VLOOKUP(AN75,'11. Lists'!$F$36:$H$38,3,FALSE)) ->  | AQ75: =IF(D75="","",IF(AX75="Distinctiveness","N/A",VLOOKUP(F75,'10. Condition and Temporal'!$B$6:$L$103,11,FALSE))) ->  | AR75: =IF(AQ75="","",IF(AQ75="N/A","1",VLOOKUP(AQ75,'11. Lists'!$I$47:$K$80,3,FALSE))) ->  | AS75: =IF(D75="","",IF(AX75="Condition","N/A",VLOOKUP(F75,'10. Condition and Temporal'!$B$6:$M$106,12,FALSE))) ->  | AT75: =IF(AS75="","",IF(AS75="N/A","1",VLOOKUP(AS75,'11. Lists'!$I$47:$K$80,3,FALSE))) ->  | AU75: =IF(D75="","",VLOOKUP(F75,'9. All Habitats + Multipliers'!$C$4:$K$102,8,FALSE)) ->  | AV75: =IF(AU75="","",VLOOKUP(AU75,'11. Lists'!$J$35:$K$38,2,FALSE)) ->  | AW75: =IF(D75="","",VLOOKUP(D75,'10. Condition and Temporal'!$B$6:$M$103,4,FALSE)) ->  | BA75: 10 | BW75: BK | BX75: =BK64 -> 0
B76: 11 | J76: =IFERROR(IF(F76="","",VLOOKUP(F76,'10. Condition and Temporal'!$B$6:$F$103,5,FALSE)), "Error ▲") ->  | AG76: =IF(D76="","",VLOOKUP(F76,'9. All Habitats + Multipliers'!$C$4:$K$102,5,FALSE)) ->  | AH76: =IF(AG76="","",VLOOKUP(AG76,'11. Lists'!$S$47:$U$50,2,FALSE)) ->  | AJ76: =IF(AI76="","",VLOOKUP(AI76,'11. Lists'!$F$47:$G$51,2,FALSE)) ->  | AO76: =IF(AN76="","",VLOOKUP(AN76,'11. Lists'!$F$36:$H$38,2,FALSE)) ->  | AP76: =IF(AN76="","",VLOOKUP(AN76,'11. Lists'!$F$36:$H$38,3,FALSE)) ->  | AQ76: =IF(D76="","",IF(AX76="Distinctiveness","N/A",VLOOKUP(F76,'10. Condition and Temporal'!$B$6:$L$103,11,FALSE))) ->  | AR76: =IF(AQ76="","",IF(AQ76="N/A","1",VLOOKUP(AQ76,'11. Lists'!$I$47:$K$80,3,FALSE))) ->  | AS76: =IF(D76="","",IF(AX76="Condition","N/A",VLOOKUP(F76,'10. Condition and Temporal'!$B$6:$M$106,12,FALSE))) ->  | AT76: =IF(AS76="","",IF(AS76="N/A","1",VLOOKUP(AS76,'11. Lists'!$I$47:$K$80,3,FALSE))) ->  | AU76: =IF(D76="","",VLOOKUP(F76,'9. All Habitats + Multipliers'!$C$4:$K$102,8,FALSE)) ->  | AV76: =IF(AU76="","",VLOOKUP(AU76,'11. Lists'!$J$35:$K$38,2,FALSE)) ->  | AW76: =IF(D76="","",VLOOKUP(D76,'10. Condition and Temporal'!$B$6:$M$103,4,FALSE)) ->  | BA76: 11 | BW76: BL | BX76: =BL64 -> 0
B77: 12 | J77: =IFERROR(IF(F77="","",VLOOKUP(F77,'10. Condition and Temporal'!$B$6:$F$103,5,FALSE)), "Error ▲") ->  | AG77: =IF(D77="","",VLOOKUP(F77,'9. All Habitats + Multipliers'!$C$4:$K$102,5,FALSE)) ->  | AH77: =IF(AG77="","",VLOOKUP(AG77,'11. Lists'!$S$47:$U$50,2,FALSE)) ->  | AJ77: =IF(AI77="","",VLOOKUP(AI77,'11. Lists'!$F$47:$G$51,2,FALSE)) ->  | AO77: =IF(AN77="","",VLOOKUP(AN77,'11. Lists'!$F$36:$H$38,2,FALSE)) ->  | AP77: =IF(AN77="","",VLOOKUP(AN77,'11. Lists'!$F$36:$H$38,3,FALSE)) ->  | AQ77: =IF(D77="","",IF(AX77="Distinctiveness","N/A",VLOOKUP(F77,'10. Condition and Temporal'!$B$6:$L$103,11,FALSE))) ->  | AR77: =IF(AQ77="","",IF(AQ77="N/A","1",VLOOKUP(AQ77,'11. Lists'!$I$47:$K$80,3,FALSE))) ->  | AS77: =IF(D77="","",IF(AX77="Condition","N/A",VLOOKUP(F77,'10. Condition and Temporal'!$B$6:$M$106,12,FALSE))) ->  | AT77: =IF(AS77="","",IF(AS77="N/A","1",VLOOKUP(AS77,'11. Lists'!$I$47:$K$80,3,FALSE))) ->  | AU77: =IF(D77="","",VLOOKUP(F77,'9. All Habitats + Multipliers'!$C$4:$K$102,8,FALSE)) ->  | AV77: =IF(AU77="","",VLOOKUP(AU77,'11. Lists'!$J$35:$K$38,2,FALSE)) ->  | AW77: =IF(D77="","",VLOOKUP(D77,'10. Condition and Temporal'!$B$6:$M$103,4,FALSE)) ->  | BA77: 12 | BW77: BM | BX77: =BM64 -> 0
B78: 13 | J78: =IFERROR(IF(F78="","",VLOOKUP(F78,'10. Condition and Temporal'!$B$6:$F$103,5,FALSE)), "Error ▲") ->  | L78: =IFERROR(IF(D78="","",IF(AX78="Distinctiveness",(((((I78*AH78*AJ78)-(I78*V78*X78))*(AV78*AT78))+(I78*V78*X78))*AP78/1000),((((I78*AH78*AJ78)-(I78*V78*X78))*(AV78*AR78))+(I78*V78*X78))*AP78/1000)),"This intervention is not permitted within the SSM ▲") ->  | AG78: =IF(D78="","",VLOOKUP(F78,'9. All Habitats + Multipliers'!$C$4:$K$102,5,FALSE)) ->  | AH78: =IF(AG78="","",VLOOKUP(AG78,'11. Lists'!$S$47:$U$50,2,FALSE)) ->  | AJ78: =IF(AI78="","",VLOOKUP(AI78,'11. Lists'!$F$47:$G$51,2,FALSE)) ->  | AO78: =IF(AN78="","",VLOOKUP(AN78,'11. Lists'!$F$36:$H$38,2,FALSE)) ->  | AP78: =IF(AN78="","",VLOOKUP(AN78,'11. Lists'!$F$36:$H$38,3,FALSE)) ->  | AQ78: =IF(D78="","",IF(AX78="Distinctiveness","N/A",VLOOKUP(F78,'10. Condition and Temporal'!$B$6:$L$103,11,FALSE))) ->  | AR78: =IF(AQ78="","",IF(AQ78="N/A","1",VLOOKUP(AQ78,'11. Lists'!$I$47:$K$80,3,FALSE))) ->  | AS78: =IF(D78="","",IF(AX78="Condition","N/A",VLOOKUP(F78,'10. Condition and Temporal'!$B$6:$M$106,12,FALSE))) ->  | AT78: =IF(AS78="","",IF(AS78="N/A","1",VLOOKUP(AS78,'11. Lists'!$I$47:$K$80,3,FALSE))) ->  | AU78: =IF(D78="","",VLOOKUP(F78,'9. All Habitats + Multipliers'!$C$4:$K$102,8,FALSE)) ->  | AV78: =IF(AU78="","",VLOOKUP(AU78,'11. Lists'!$J$35:$K$38,2,FALSE)) ->  | AW78: =IF(D78="","",VLOOKUP(D78,'10. Condition and Temporal'!$B$6:$M$103,4,FALSE)) ->  | BA78: 13 | BW78: BN | BX78: =BN64 -> 0
B79: 14 | J79: =IFERROR(IF(F79="","",VLOOKUP(F79,'10. Condition and Temporal'!$B$6:$F$103,5,FALSE)), "Error ▲") ->  | AG79: =IF(D79="","",VLOOKUP(F79,'9. All Habitats + Multipliers'!$C$4:$K$102,5,FALSE)) ->  | AH79: =IF(AG79="","",VLOOKUP(AG79,'11. Lists'!$S$47:$U$50,2,FALSE)) ->  | AJ79: =IF(AI79="","",VLOOKUP(AI79,'11. Lists'!$F$47:$G$51,2,FALSE)) ->  | AO79: =IF(AN79="","",VLOOKUP(AN79,'11. Lists'!$F$36:$H$38,2,FALSE)) ->  | AP79: =IF(AN79="","",VLOOKUP(AN79,'11. Lists'!$F$36:$H$38,3,FALSE)) ->  | AQ79: =IF(D79="","",IF(AX79="Distinctiveness","N/A",VLOOKUP(F79,'10. Condition and Temporal'!$B$6:$L$103,11,FALSE))) ->  | AR79: =IF(AQ79="","",IF(AQ79="N/A","1",VLOOKUP(AQ79,'11. Lists'!$I$47:$K$80,3,FALSE))) ->  | AS79: =IF(D79="","",IF(AX79="Condition","N/A",VLOOKUP(F79,'10. Condition and Temporal'!$B$6:$M$106,12,FALSE))) ->  | AT79: =IF(AS79="","",IF(AS79="N/A","1",VLOOKUP(AS79,'11. Lists'!$I$47:$K$80,3,FALSE))) ->  | AU79: =IF(D79="","",VLOOKUP(F79,'9. All Habitats + Multipliers'!$C$4:$K$102,8,FALSE)) ->  | AV79: =IF(AU79="","",VLOOKUP(AU79,'11. Lists'!$J$35:$K$38,2,FALSE)) ->  | AW79: =IF(D79="","",VLOOKUP(D79,'10. Condition and Temporal'!$B$6:$M$103,4,FALSE)) ->  | BA79: 14 | BW79: BO | BX79: =BO64 -> 0
B80: 15 | J80: =IFERROR(IF(F80="","",VLOOKUP(F80,'10. Condition and Temporal'!$B$6:$F$103,5,FALSE)), "Error ▲") ->  | AG80: =IF(D80="","",VLOOKUP(F80,'9. All Habitats + Multipliers'!$C$4:$K$102,5,FALSE)) ->  | AH80: =IF(AG80="","",VLOOKUP(AG80,'11. Lists'!$S$47:$U$50,2,FALSE)) ->  | AJ80: =IF(AI80="","",VLOOKUP(AI80,'11. Lists'!$F$47:$G$51,2,FALSE)) ->  | AO80: =IF(AN80="","",VLOOKUP(AN80,'11. Lists'!$F$36:$H$38,2,FALSE)) ->  | AP80: =IF(AN80="","",VLOOKUP(AN80,'11. Lists'!$F$36:$H$38,3,FALSE)) ->  | AQ80: =IF(D80="","",IF(AX80="Distinctiveness","N/A",VLOOKUP(F80,'10. Condition and Temporal'!$B$6:$L$103,11,FALSE))) ->  | AR80: =IF(AQ80="","",IF(AQ80="N/A","1",VLOOKUP(AQ80,'11. Lists'!$I$47:$K$80,3,FALSE))) ->  | AS80: =IF(D80="","",IF(AX80="Condition","N/A",VLOOKUP(F80,'10. Condition and Temporal'!$B$6:$M$106,12,FALSE))) ->  | AT80: =IF(AS80="","",IF(AS80="N/A","1",VLOOKUP(AS80,'11. Lists'!$I$47:$K$80,3,FALSE))) ->  | AU80: =IF(D80="","",VLOOKUP(F80,'9. All Habitats + Multipliers'!$C$4:$K$102,8,FALSE)) ->  | AV80: =IF(AU80="","",VLOOKUP(AU80,'11. Lists'!$J$35:$K$38,2,FALSE)) ->  | AW80: =IF(D80="","",VLOOKUP(D80,'10. Condition and Temporal'!$B$6:$M$103,4,FALSE)) ->  | BA80: 15 | BW80: BP | BX80: =BP64 -> 0
B81: 16 | J81: =IFERROR(IF(F81="","",VLOOKUP(F81,'10. Condition and Temporal'!$B$6:$F$103,5,FALSE)), "Error ▲") ->  | AG81: =IF(D81="","",VLOOKUP(F81,'9. All Habitats + Multipliers'!$C$4:$K$102,5,FALSE)) ->  | AH81: =IF(AG81="","",VLOOKUP(AG81,'11. Lists'!$S$47:$U$50,2,FALSE)) ->  | AJ81: =IF(AI81="","",VLOOKUP(AI81,'11. Lists'!$F$47:$G$51,2,FALSE)) ->  | AO81: =IF(AN81="","",VLOOKUP(AN81,'11. Lists'!$F$36:$H$38,2,FALSE)) ->  | AP81: =IF(AN81="","",VLOOKUP(AN81,'11. Lists'!$F$36:$H$38,3,FALSE)) ->  | AQ81: =IF(D81="","",IF(AX81="Distinctiveness","N/A",VLOOKUP(F81,'10. Condition and Temporal'!$B$6:$L$103,11,FALSE))) ->  | AR81: =IF(AQ81="","",IF(AQ81="N/A","1",VLOOKUP(AQ81,'11. Lists'!$I$47:$K$80,3,FALSE))) ->  | AS81: =IF(D81="","",IF(AX81="Condition","N/A",VLOOKUP(F81,'10. Condition and Temporal'!$B$6:$M$106,12,FALSE))) ->  | AT81: =IF(AS81="","",IF(AS81="N/A","1",VLOOKUP(AS81,'11. Lists'!$I$47:$K$80,3,FALSE))) ->  | AU81: =IF(D81="","",VLOOKUP(F81,'9. All Habitats + Multipliers'!$C$4:$K$102,8,FALSE)) ->  | AV81: =IF(AU81="","",VLOOKUP(AU81,'11. Lists'!$J$35:$K$38,2,FALSE)) ->  | AW81: =IF(D81="","",VLOOKUP(D81,'10. Condition and Temporal'!$B$6:$M$103,4,FALSE)) ->  | BA81: 16 | BW81: BQ | BX81: =BQ64 -> 0
B82: 17 | J82: =IFERROR(IF(F82="","",VLOOKUP(F82,'10. Condition and Temporal'!$B$6:$F$103,5,FALSE)), "Error ▲") ->  | AG82: =IF(D82="","",VLOOKUP(F82,'9. All Habitats + Multipliers'!$C$4:$K$102,5,FALSE)) ->  | AH82: =IF(AG82="","",VLOOKUP(AG82,'11. Lists'!$S$47:$U$50,2,FALSE)) ->  | AJ82: =IF(AI82="","",VLOOKUP(AI82,'11. Lists'!$F$47:$G$51,2,FALSE)) ->  | AO82: =IF(AN82="","",VLOOKUP(AN82,'11. Lists'!$F$36:$H$38,2,FALSE)) ->  | AP82: =IF(AN82="","",VLOOKUP(AN82,'11. Lists'!$F$36:$H$38,3,FALSE)) ->  | AQ82: =IF(D82="","",IF(AX82="Distinctiveness","N/A",VLOOKUP(F82,'10. Condition and Temporal'!$B$6:$L$103,11,FALSE))) ->  | AR82: =IF(AQ82="","",IF(AQ82="N/A","1",VLOOKUP(AQ82,'11. Lists'!$I$47:$K$80,3,FALSE))) ->  | AS82: =IF(D82="","",IF(AX82="Condition","N/A",VLOOKUP(F82,'10. Condition and Temporal'!$B$6:$M$106,12,FALSE))) ->  | AT82: =IF(AS82="","",IF(AS82="N/A","1",VLOOKUP(AS82,'11. Lists'!$I$47:$K$80,3,FALSE))) ->  | AU82: =IF(D82="","",VLOOKUP(F82,'9. All Habitats + Multipliers'!$C$4:$K$102,8,FALSE)) ->  | AV82: =IF(AU82="","",VLOOKUP(AU82,'11. Lists'!$J$35:$K$38,2,FALSE)) ->  | AW82: =IF(D82="","",VLOOKUP(D82,'10. Condition and Temporal'!$B$6:$M$103,4,FALSE)) ->  | BA82: 17 | BW82: BR | BX82: =BR64 -> 0
B83: 18 | J83: =IFERROR(IF(F83="","",VLOOKUP(F83,'10. Condition and Temporal'!$B$6:$F$103,5,FALSE)), "Error ▲") ->  | AG83: =IF(D83="","",VLOOKUP(F83,'9. All Habitats + Multipliers'!$C$4:$K$102,5,FALSE)) ->  | AH83: =IF(AG83="","",VLOOKUP(AG83,'11. Lists'!$S$47:$U$50,2,FALSE)) ->  | AJ83: =IF(AI83="","",VLOOKUP(AI83,'11. Lists'!$F$47:$G$51,2,FALSE)) ->  | AO83: =IF(AN83="","",VLOOKUP(AN83,'11. Lists'!$F$36:$H$38,2,FALSE)) ->  | AP83: =IF(AN83="","",VLOOKUP(AN83,'11. Lists'!$F$36:$H$38,3,FALSE)) ->  | AQ83: =IF(D83="","",IF(AX83="Distinctiveness","N/A",VLOOKUP(F83,'10. Condition and Temporal'!$B$6:$L$103,11,FALSE))) ->  | AR83: =IF(AQ83="","",IF(AQ83="N/A","1",VLOOKUP(AQ83,'11. Lists'!$I$47:$K$80,3,FALSE))) ->  | AS83: =IF(D83="","",IF(AX83="Condition","N/A",VLOOKUP(F83,'10. Condition and Temporal'!$B$6:$M$106,12,FALSE))) ->  | AT83: =IF(AS83="","",IF(AS83="N/A","1",VLOOKUP(AS83,'11. Lists'!$I$47:$K$80,3,FALSE))) ->  | AU83: =IF(D83="","",VLOOKUP(F83,'9. All Habitats + Multipliers'!$C$4:$K$102,8,FALSE)) ->  | AV83: =IF(AU83="","",VLOOKUP(AU83,'11. Lists'!$J$35:$K$38,2,FALSE)) ->  | AW83: =IF(D83="","",VLOOKUP(D83,'10. Condition and Temporal'!$B$6:$M$103,4,FALSE)) ->  | BA83: 18 | BW83: BS | BX83: =BS64 -> 0
B84: 19 | J84: =IFERROR(IF(F84="","",VLOOKUP(F84,'10. Condition and Temporal'!$B$6:$F$103,5,FALSE)), "Error ▲") ->  | AG84: =IF(D84="","",VLOOKUP(F84,'9. All Habitats + Multipliers'!$C$4:$K$102,5,FALSE)) ->  | AH84: =IF(AG84="","",VLOOKUP(AG84,'11. Lists'!$S$47:$U$50,2,FALSE)) ->  | AJ84: =IF(AI84="","",VLOOKUP(AI84,'11. Lists'!$F$47:$G$51,2,FALSE)) ->  | AO84: =IF(AN84="","",VLOOKUP(AN84,'11. Lists'!$F$36:$H$38,2,FALSE)) ->  | AP84: =IF(AN84="","",VLOOKUP(AN84,'11. Lists'!$F$36:$H$38,3,FALSE)) ->  | AQ84: =IF(D84="","",IF(AX84="Distinctiveness","N/A",VLOOKUP(F84,'10. Condition and Temporal'!$B$6:$L$103,11,FALSE))) ->  | AR84: =IF(AQ84="","",IF(AQ84="N/A","1",VLOOKUP(AQ84,'11. Lists'!$I$47:$K$80,3,FALSE))) ->  | AS84: =IF(D84="","",IF(AX84="Condition","N/A",VLOOKUP(F84,'10. Condition and Temporal'!$B$6:$M$106,12,FALSE))) ->  | AT84: =IF(AS84="","",IF(AS84="N/A","1",VLOOKUP(AS84,'11. Lists'!$I$47:$K$80,3,FALSE))) ->  | AU84: =IF(D84="","",VLOOKUP(F84,'9. All Habitats + Multipliers'!$C$4:$K$102,8,FALSE)) ->  | AV84: =IF(AU84="","",VLOOKUP(AU84,'11. Lists'!$J$35:$K$38,2,FALSE)) ->  | AW84: =IF(D84="","",VLOOKUP(D84,'10. Condition and Temporal'!$B$6:$M$103,4,FALSE)) ->  | BA84: 19 | BW84: BT | BX84: =BT64 -> 0
B85: 20 | J85: =IFERROR(IF(F85="","",VLOOKUP(F85,'10. Condition and Temporal'!$B$6:$F$103,5,FALSE)), "Error ▲") ->  | AG85: =IF(D85="","",VLOOKUP(F85,'9. All Habitats + Multipliers'!$C$4:$K$102,5,FALSE)) ->  | AH85: =IF(AG85="","",VLOOKUP(AG85,'11. Lists'!$S$47:$U$50,2,FALSE)) ->  | AJ85: =IF(AI85="","",VLOOKUP(AI85,'11. Lists'!$F$47:$G$51,2,FALSE)) ->  | AO85: =IF(AN85="","",VLOOKUP(AN85,'11. Lists'!$F$36:$H$38,2,FALSE)) ->  | AP85: =IF(AN85="","",VLOOKUP(AN85,'11. Lists'!$F$36:$H$38,3,FALSE)) ->  | AQ85: =IF(D85="","",IF(AX85="Distinctiveness","N/A",VLOOKUP(F85,'10. Condition and Temporal'!$B$6:$L$103,11,FALSE))) ->  | AR85: =IF(AQ85="","",IF(AQ85="N/A","1",VLOOKUP(AQ85,'11. Lists'!$I$47:$K$80,3,FALSE))) ->  | AS85: =IF(D85="","",IF(AX85="Condition","N/A",VLOOKUP(F85,'10. Condition and Temporal'!$B$6:$M$106,12,FALSE))) ->  | AT85: =IF(AS85="","",IF(AS85="N/A","1",VLOOKUP(AS85,'11. Lists'!$I$47:$K$80,3,FALSE))) ->  | AU85: =IF(D85="","",VLOOKUP(F85,'9. All Habitats + Multipliers'!$C$4:$K$102,8,FALSE)) ->  | AV85: =IF(AU85="","",VLOOKUP(AU85,'11. Lists'!$J$35:$K$38,2,FALSE)) ->  | AW85: =IF(D85="","",VLOOKUP(D85,'10. Condition and Temporal'!$B$6:$M$103,4,FALSE)) ->  | BA85: 20 | BW85: BU | BX85: =BU64 -> 0
H86: Totals | I86: =SUM(I66:I85) -> 0 | L86: =SUM(L66:L85) -> 0 | M86: =SUM(M66:N85) -> 0
A91: Data beyond this row is automated
B95: 1e . Trading Summary
B97: Distinctiveness and Habitat Type | E97: =IF(OR(H103:H113="No ▲"),"Error - Trading Rules Not Satisfied ▲","Trading Rules Satisfied ✓") -> Trading Rules Satisfied ✓ | J97: =IFERROR(FIND("Error",E97),0) -> 0
B99: 1f . Habitat trading assessment
B102: Broad habitat type | C102: Distinctiveness | D102: Habitat type | E102: Baseline units | F102: Onsite provision | G102: Net change | H102: Trading satisfied?
B103: Hedgerows and Lines of trees | C103: Medium | D103: Species-rich native hedgerow | E103: =SUMIF($D$11:$E$30,D103,$L$11:$L$30) -> 0 | F103: =IF($I$31+$I$59+$I$86=0,0,SUMIF($D$39:$D$58,D103,$L$39:$N$58)+SUMIF($F$66:$G$85,D103,$L$66:$L$85)+SUMIF($D$11:$E$30,D103,$AE$11:$AE$30)) -> 0 | G103: =$F$103-$E$103 -> 0 | H103: =IF(G108>=0, "Yes ✓", "No ▲") -> Yes ✓
D104: Native hedgerow - associated with bank or ditch | E104: =SUMIF($D$11:$E$30,D104,$L$11:$L$30) -> 0 | F104: =IF($I$31+$I$59+$I$86=0,0,SUMIF($D$39:$D$58,D104,$L$39:$N$58)+SUMIF($F$66:$G$85,D104,$L$66:$L$85)+SUMIF($D$11:$E$30,D104,$AE$11:$AE$30)) -> 0 | G104: =$F$104-$E$104 -> 0
D105: Native hedgerow with trees | E105: 0 | F105: 0 | G105: =$F$105-$E$105 -> 0
D106: Ecologically valuable line of trees | E106: 0 | F106: 0 | G106: =$F$106-$E$106 -> 0
D107: Ecologically valuable line of trees - associated with bank or ditch | E107: 0 | F107: 0 | G107: =$F$107-$E$107 -> 0
D108: Sum | E108: =SUM($E$103:$E$107) -> 0 | F108: =SUM($F$103:$F$107) -> 0 | G108: =SUM($G$103:$G$107) -> 0 | I108: =IF($H$103="No ▲",1,0) -> 0
C109: Low | D109: Native hedgerow | E109: 0 | F109: 0 | G109: =$F$109-$E$109 -> 0 | H109: =IF(G112>=0,"Yes ✓",IF(E114>=0,"Yes ✓","No ▲")) -> Yes ✓
D110: Line of trees | E110: 0 | F110: 0 | G110: =$F$110-$E$110 -> 0
D111: Line of trees - associated with bank or ditch | E111: 0 | F111: 0 | G111: =$F$111-$E$111 -> 0
D112: Sum | E112: =SUM($E$109:$E$111) -> 0 | F112: =SUM($F$109:$F$111) -> 0 | G112: =SUM($G$109:$G$111) -> 0 | I112: =IF($H$109="No ▲",1,0) -> 0
C113: Very low | D113: Non-native and ornamental hedgerow | E113: 0 | F113: 0 | G113: =$F$113-$E$113 -> 0 | H113: =IF(G113>=0,"Yes✓",IF(F114>=0,"Yes ✓","No ▲")) -> Yes✓ | I113: =IF($H$113="No ▲",1,0) -> 0
E114: =G108+G112 -> 0 | F114: =IF(G108<0,0,($G$108+$G$112+$G$113)) -> 0
B115: Surplus medium distinctiveness units to offset low and very low distinctiveness units | F115: =$G$108 -> 0 | G115: =IF($G$108<=0,0,($G$108+$G$112)) -> 0
B116: Cumulative surplus of units after offsetting low distinctiveness units | F116: =IF($G$108>0,($G$112+$G$108),$G$112) -> 0 | G116: =IF($G$108<=0,0,($G$108+$G$112+$G$113)) -> 0
B117: Cumulative surplus of units after offsetting very low distinctiveness units | F117: =IF($F$116>0,($F$116+$G$113),$G$113) -> 0

Sheet 7. Watercourses
O1: Retained Units | P1: =IFERROR(SUM(AE11:AE30), "Error ▲") -> 0 | R1: Data beyond this column is automated
B2: Site Name | C2: =IF('2. Site Details'!D4="","Enter site name on 2. Site Details",'2. Site Details'!D4) -> Enter site name on 2. Site Details | F2: Instructions: 1. Enter data into 1a. Baseline habitats 2. Enter data on habitats to be created into 1b. Habitats to be created 3. Enter data on Habitats to be enhanced into 1c. Habitats to be enhanced | J2: =IFERROR(IF(OR((ISNUMBER(SEARCH("▲",A7:Q101)))),"Input Errors Present On Sheet - Red Cells Or ▲ Highlight Errors","All Key Rules Satisfied ✓ "),"Technical Errors On Sheet ▲") -> All Key Rules Satisfied ✓ | O2: Lost Units | P2: =IFERROR(N31, "Error ▲") -> 0
B3: Sheet Name | C3: 7. Watercourses | O3: Created Units | P3: =IFERROR(L59, "Error ▲") -> 0
O4: Enhancement Units | P4: =IFERROR(L86, "Error ▲") -> 0
O5: Net Change | P5: =IFERROR(P1+L59+L86-L31, "Error ▲") -> 0
B7: 1a. Baseline habitats
B9: Ref | C9: Habitat | F9: C. Strategic significance | I9: Length M | L9: Baseline results | O9: Comments | T9: Habitat distinctiveness | W9: Habitat condition | AB9: Strategic significance | AE9: Ecological baseline | AH9: Suggested action to address habitat losses | AI9: Enhancement rules | AJ9: Baseline watercourse and riparian encroachment
C10: A. Broad Habitat | D10: B. Habitat type | I10: D. Total Length | J10: E. Length retained | K10: F. Length enhanced | L10: Total units onsite | M10: Length Lost | N10: Units lost | O10: User comments | P10: LPA comments | T10: Distinctiveness | V10: Score | W10: Condition | X10: Score | AB10: Strategic significance | AC10: Strategic significance | AD10: Strategic significance multiplier | AE10: Baseline units retained | AF10: Baseline units to be enhanced | AG10: Area lost | AR10: Baseline units pre-encroachment
B11: 1 | C11: Watercourses | L11: =IF(D11="","",IFERROR(IF(I11="","",((I11/1000)*V11*X11)*AD11*AJ11),"This intervention is not permitted within the SSM ▲")) ->  | M11: =IF(I11="","",IF(J11+K11>I11,"Length Error ▲",I11-J11-K11)) ->  | N11: =IFERROR(IF(I11="","",IF(M11="Length Error ▲","Length Error ▲",((M11/1000)*V11*X11)*AD11*AJ11)),"This intervention is not permitted within the SSM ▲") ->  | T11: =IF(D11="","",VLOOKUP(D11,'9. All Habitats + Multipliers'!$C$4:$K$102,5,FALSE)) ->  | V11: =IF(T11="","",VLOOKUP(T11,'11. Lists'!$B$47:$D$49,2,FALSE)) ->  | W11: =IF(D11="","",VLOOKUP(D11,'10. Condition and Temporal'!$B$6:$C$103,2,FALSE)) ->  | X11: =IF(W11="","",VLOOKUP(W11,'11. Lists'!$F$47:$G$51,2,FALSE)) ->  | AB11: =IF(F11="","",F11) ->  | AC11: =IF(AB11="","",VLOOKUP(AB11,'11. Lists'!$F$36:$H$38,2,FALSE)) ->  | AD11: =IF(AB11="","",VLOOKUP(AB11,'11. Lists'!$F$36:$H$38,3,FALSE)) ->  | AE11: =IF(D11="","",((J11/1000)*V11*X11)*AD11) ->  | AF11: =IF(D11="","",((K11/1000)*V11*X11)*AD11*AJ11) ->  | AG11: =IF(D11="","",M11) ->  | AH11: =IF(T11="","",VLOOKUP(T11,'11. Lists'!$B$47:$D$49,3,FALSE)) ->  | AI11: =IF(D11="","",VLOOKUP(D11,'10. Condition and Temporal'!$B$6:$L$103,4,FALSE)) ->  | AJ11: =IF($D$11:$E$30="Culvert","0.68","1") -> 1 | AK11: 1 | AR11: =IF(D11="","",IFERROR(IF(I11="","",((I11/1000)*V11*X11)*AD11),"This intervention is not permitted within the SSM ▲")) -> 
B12: 2 | C12: Watercourses | L12: =IF(D12="","",IFERROR(IF(I12="","",((I12/1000)*V12*X12)*AD12*AJ12),"This intervention is not permitted within the SSM ▲")) ->  | M12: =IF(I12="","",IF(J12+K12>I12,"Length Error ▲",I12-J12-K12)) ->  | N12: =IFERROR(IF(I12="","",IF(M12="Length Error ▲","Length Error ▲",((M12/1000)*V12*X12)*AD12*AJ12)),"This intervention is not permitted within the SSM ▲") ->  | T12: =IF(D12="","",VLOOKUP(D12,'9. All Habitats + Multipliers'!$C$4:$K$102,5,FALSE)) ->  | V12: =IF(T12="","",VLOOKUP(T12,'11. Lists'!$B$47:$D$49,2,FALSE)) ->  | W12: =IF(D12="","",VLOOKUP(D12,'10. Condition and Temporal'!$B$6:$C$103,2,FALSE)) ->  | X12: =IF(W12="","",VLOOKUP(W12,'11. Lists'!$F$47:$G$51,2,FALSE)) ->  | AB12: =IF(F12="","",F12) ->  | AC12: =IF(AB12="","",VLOOKUP(AB12,'11. Lists'!$F$36:$H$38,2,FALSE)) ->  | AD12: =IF(AB12="","",VLOOKUP(AB12,'11. Lists'!$F$36:$H$38,3,FALSE)) ->  | AE12: =IF(D12="","",((J12/1000)*V12*X12)*AD12) ->  | AF12: =IF(D12="","",((K12/1000)*V12*X12)*AD12*AJ12) ->  | AG12: =IF(D12="","",M12) ->  | AH12: =IF(T12="","",VLOOKUP(T12,'11. Lists'!$B$47:$D$49,3,FALSE)) ->  | AI12: =IF(D12="","",VLOOKUP(D12,'10. Condition and Temporal'!$B$6:$L$103,4,FALSE)) ->  | AJ12: 1 | AK12: 1 | AR12: =IF(D12="","",IFERROR(IF(I12="","",((I12/1000)*V12*X12)*AD12),"This intervention is not permitted within the SSM ▲")) -> 
B13: 3 | C13: Watercourses | M13: =IF(I13="","",IF(J13+K13>I13,"Length Error ▲",I13-J13-K13)) ->  | T13: =IF(D13="","",VLOOKUP(D13,'9. All Habitats + Multipliers'!$C$4:$K$102,5,FALSE)) ->  | V13: =IF(T13="","",VLOOKUP(T13,'11. Lists'!$B$47:$D$49,2,FALSE)) ->  | W13: =IF(D13="","",VLOOKUP(D13,'10. Condition and Temporal'!$B$6:$C$103,2,FALSE)) ->  | X13: =IF(W13="","",VLOOKUP(W13,'11. Lists'!$F$47:$G$51,2,FALSE)) ->  | AB13: =IF(F13="","",F13) ->  | AC13: =IF(AB13="","",VLOOKUP(AB13,'11. Lists'!$F$36:$H$38,2,FALSE)) ->  | AD13: =IF(AB13="","",VLOOKUP(AB13,'11. Lists'!$F$36:$H$38,3,FALSE)) ->  | AH13: =IF(T13="","",VLOOKUP(T13,'11. Lists'!$B$47:$D$49,3,FALSE)) ->  | AI13: =IF(D13="","",VLOOKUP(D13,'10. Condition and Temporal'!$B$6:$L$103,4,FALSE)) ->  | AJ13: 1 | AK13: 1
B14: 4 | C14: Watercourses | T14: =IF(D14="","",VLOOKUP(D14,'9. All Habitats + Multipliers'!$C$4:$K$102,5,FALSE)) ->  | V14: =IF(T14="","",VLOOKUP(T14,'11. Lists'!$B$47:$D$49,2,FALSE)) ->  | W14: =IF(D14="","",VLOOKUP(D14,'10. Condition and Temporal'!$B$6:$C$103,2,FALSE)) ->  | X14: =IF(W14="","",VLOOKUP(W14,'11. Lists'!$F$47:$G$51,2,FALSE)) ->  | AC14: =IF(AB14="","",VLOOKUP(AB14,'11. Lists'!$F$36:$H$38,2,FALSE)) ->  | AD14: =IF(AB14="","",VLOOKUP(AB14,'11. Lists'!$F$36:$H$38,3,FALSE)) ->  | AH14: =IF(T14="","",VLOOKUP(T14,'11. Lists'!$B$47:$D$49,3,FALSE)) ->  | AI14: =IF(D14="","",VLOOKUP(D14,'10. Condition and Temporal'!$B$6:$L$103,4,FALSE)) ->  | AJ14: 1 | AK14: 1
B15: 5 | C15: Watercourses | T15: =IF(D15="","",VLOOKUP(D15,'9. All Habitats + Multipliers'!$C$4:$K$102,5,FALSE)) ->  | V15: =IF(T15="","",VLOOKUP(T15,'11. Lists'!$B$47:$D$49,2,FALSE)) ->  | W15: =IF(D15="","",VLOOKUP(D15,'10. Condition and Temporal'!$B$6:$C$103,2,FALSE)) ->  | X15: =IF(W15="","",VLOOKUP(W15,'11. Lists'!$F$47:$G$51,2,FALSE)) ->  | AC15: =IF(AB15="","",VLOOKUP(AB15,'11. Lists'!$F$36:$H$38,2,FALSE)) ->  | AD15: =IF(AB15="","",VLOOKUP(AB15,'11. Lists'!$F$36:$H$38,3,FALSE)) ->  | AH15: =IF(T15="","",VLOOKUP(T15,'11. Lists'!$B$47:$D$49,3,FALSE)) ->  | AI15: =IF(D15="","",VLOOKUP(D15,'10. Condition and Temporal'!$B$6:$L$103,4,FALSE)) ->  | AJ15: 1 | AK15: 1
B16: 6 | C16: Watercourses | T16: =IF(D16="","",VLOOKUP(D16,'9. All Habitats + Multipliers'!$C$4:$K$102,5,FALSE)) ->  | V16: =IF(T16="","",VLOOKUP(T16,'11. Lists'!$B$47:$D$49,2,FALSE)) ->  | W16: =IF(D16="","",VLOOKUP(D16,'10. Condition and Temporal'!$B$6:$C$103,2,FALSE)) ->  | X16: =IF(W16="","",VLOOKUP(W16,'11. Lists'!$F$47:$G$51,2,FALSE)) ->  | AC16: =IF(AB16="","",VLOOKUP(AB16,'11. Lists'!$F$36:$H$38,2,FALSE)) ->  | AD16: =IF(AB16="","",VLOOKUP(AB16,'11. Lists'!$F$36:$H$38,3,FALSE)) ->  | AH16: =IF(T16="","",VLOOKUP(T16,'11. Lists'!$B$47:$D$49,3,FALSE)) ->  | AI16: =IF(D16="","",VLOOKUP(D16,'10. Condition and Temporal'!$B$6:$L$103,4,FALSE)) ->  | AJ16: 1 | AK16: 1
B17: 7 | C17: Watercourses | T17: =IF(D17="","",VLOOKUP(D17,'9. All Habitats + Multipliers'!$C$4:$K$102,5,FALSE)) ->  | V17: =IF(T17="","",VLOOKUP(T17,'11. Lists'!$B$47:$D$49,2,FALSE)) ->  | W17: =IF(D17="","",VLOOKUP(D17,'10. Condition and Temporal'!$B$6:$C$103,2,FALSE)) ->  | X17: =IF(W17="","",VLOOKUP(W17,'11. Lists'!$F$47:$G$51,2,FALSE)) ->  | AC17: =IF(AB17="","",VLOOKUP(AB17,'11. Lists'!$F$36:$H$38,2,FALSE)) ->  | AD17: =IF(AB17="","",VLOOKUP(AB17,'11. Lists'!$F$36:$H$38,3,FALSE)) ->  | AH17: =IF(T17="","",VLOOKUP(T17,'11. Lists'!$B$47:$D$49,3,FALSE)) ->  | AI17: =IF(D17="","",VLOOKUP(D17,'10. Condition and Temporal'!$B$6:$L$103,4,FALSE)) ->  | AJ17: 1 | AK17: 1
B18: 8 | C18: Watercourses | T18: =IF(D18="","",VLOOKUP(D18,'9. All Habitats + Multipliers'!$C$4:$K$102,5,FALSE)) ->  | V18: =IF(T18="","",VLOOKUP(T18,'11. Lists'!$B$47:$D$49,2,FALSE)) ->  | W18: =IF(D18="","",VLOOKUP(D18,'10. Condition and Temporal'!$B$6:$C$103,2,FALSE)) ->  | X18: =IF(W18="","",VLOOKUP(W18,'11. Lists'!$F$47:$G$51,2,FALSE)) ->  | AC18: =IF(AB18="","",VLOOKUP(AB18,'11. Lists'!$F$36:$H$38,2,FALSE)) ->  | AD18: =IF(AB18="","",VLOOKUP(AB18,'11. Lists'!$F$36:$H$38,3,FALSE)) ->  | AH18: =IF(T18="","",VLOOKUP(T18,'11. Lists'!$B$47:$D$49,3,FALSE)) ->  | AI18: =IF(D18="","",VLOOKUP(D18,'10. Condition and Temporal'!$B$6:$L$103,4,FALSE)) ->  | AJ18: 1 | AK18: 1
B19: 9 | C19: Watercourses | T19: =IF(D19="","",VLOOKUP(D19,'9. All Habitats + Multipliers'!$C$4:$K$102,5,FALSE)) ->  | V19: =IF(T19="","",VLOOKUP(T19,'11. Lists'!$B$47:$D$49,2,FALSE)) ->  | W19: =IF(D19="","",VLOOKUP(D19,'10. Condition and Temporal'!$B$6:$C$103,2,FALSE)) ->  | X19: =IF(W19="","",VLOOKUP(W19,'11. Lists'!$F$47:$G$51,2,FALSE)) ->  | AC19: =IF(AB19="","",VLOOKUP(AB19,'11. Lists'!$F$36:$H$38,2,FALSE)) ->  | AD19: =IF(AB19="","",VLOOKUP(AB19,'11. Lists'!$F$36:$H$38,3,FALSE)) ->  | AH19: =IF(T19="","",VLOOKUP(T19,'11. Lists'!$B$47:$D$49,3,FALSE)) ->  | AI19: =IF(D19="","",VLOOKUP(D19,'10. Condition and Temporal'!$B$6:$L$103,4,FALSE)) ->  | AJ19: 1 | AK19: 1
B20: 10 | C20: Watercourses | T20: =IF(D20="","",VLOOKUP(D20,'9. All Habitats + Multipliers'!$C$4:$K$102,5,FALSE)) ->  | V20: =IF(T20="","",VLOOKUP(T20,'11. Lists'!$B$47:$D$49,2,FALSE)) ->  | W20: =IF(D20="","",VLOOKUP(D20,'10. Condition and Temporal'!$B$6:$C$103,2,FALSE)) ->  | X20: =IF(W20="","",VLOOKUP(W20,'11. Lists'!$F$47:$G$51,2,FALSE)) ->  | AC20: =IF(AB20="","",VLOOKUP(AB20,'11. Lists'!$F$36:$H$38,2,FALSE)) ->  | AD20: =IF(AB20="","",VLOOKUP(AB20,'11. Lists'!$F$36:$H$38,3,FALSE)) ->  | AH20: =IF(T20="","",VLOOKUP(T20,'11. Lists'!$B$47:$D$49,3,FALSE)) ->  | AI20: =IF(D20="","",VLOOKUP(D20,'10. Condition and Temporal'!$B$6:$L$103,4,FALSE)) ->  | AJ20: 1 | AK20: 1
B21: 11 | C21: Watercourses | T21: =IF(D21="","",VLOOKUP(D21,'9. All Habitats + Multipliers'!$C$4:$K$102,5,FALSE)) ->  | V21: =IF(T21="","",VLOOKUP(T21,'11. Lists'!$B$47:$D$49,2,FALSE)) ->  | W21: =IF(D21="","",VLOOKUP(D21,'10. Condition and Temporal'!$B$6:$C$103,2,FALSE)) ->  | X21: =IF(W21="","",VLOOKUP(W21,'11. Lists'!$F$47:$G$51,2,FALSE)) ->  | AC21: =IF(AB21="","",VLOOKUP(AB21,'11. Lists'!$F$36:$H$38,2,FALSE)) ->  | AD21: =IF(AB21="","",VLOOKUP(AB21,'11. Lists'!$F$36:$H$38,3,FALSE)) ->  | AH21: =IF(T21="","",VLOOKUP(T21,'11. Lists'!$B$47:$D$49,3,FALSE)) ->  | AI21: =IF(D21="","",VLOOKUP(D21,'10. Condition and Temporal'!$B$6:$L$103,4,FALSE)) ->  | AJ21: 1 | AK21: 1
B22: 12 | C22: Watercourses | T22: =IF(D22="","",VLOOKUP(D22,'9. All Habitats + Multipliers'!$C$4:$K$102,5,FALSE)) ->  | V22: =IF(T22="","",VLOOKUP(T22,'11. Lists'!$B$47:$D$49,2,FALSE)) ->  | W22: =IF(D22="","",VLOOKUP(D22,'10. Condition and Temporal'!$B$6:$C$103,2,FALSE)) ->  | X22: =IF(W22="","",VLOOKUP(W22,'11. Lists'!$F$47:$G$51,2,FALSE)) ->  | AC22: =IF(AB22="","",VLOOKUP(AB22,'11. Lists'!$F$36:$H$38,2,FALSE)) ->  | AD22: =IF(AB22="","",VLOOKUP(AB22,'11. Lists'!$F$36:$H$38,3,FALSE)) ->  | AH22: =IF(T22="","",VLOOKUP(T22,'11. Lists'!$B$47:$D$49,3,FALSE)) ->  | AI22: =IF(D22="","",VLOOKUP(D22,'10. Condition and Temporal'!$B$6:$L$103,4,FALSE)) ->  | AJ22: 1 | AK22: 1
B23: 13 | C23: Watercourses | T23: =IF(D23="","",VLOOKUP(D23,'9. All Habitats + Multipliers'!$C$4:$K$102,5,FALSE)) ->  | V23: =IF(T23="","",VLOOKUP(T23,'11. Lists'!$B$47:$D$49,2,FALSE)) ->  | W23: =IF(D23="","",VLOOKUP(D23,'10. Condition and Temporal'!$B$6:$C$103,2,FALSE)) ->  | X23: =IF(W23="","",VLOOKUP(W23,'11. Lists'!$F$47:$G$51,2,FALSE)) ->  | AC23: =IF(AB23="","",VLOOKUP(AB23,'11. Lists'!$F$36:$H$38,2,FALSE)) ->  | AD23: =IF(AB23="","",VLOOKUP(AB23,'11. Lists'!$F$36:$H$38,3,FALSE)) ->  | AH23: =IF(T23="","",VLOOKUP(T23,'11. Lists'!$B$47:$D$49,3,FALSE)) ->  | AI23: =IF(D23="","",VLOOKUP(D23,'10. Condition and Temporal'!$B$6:$L$103,4,FALSE)) ->  | AJ23: 1 | AK23: 1
B24: 14 | C24: Watercourses | T24: =IF(D24="","",VLOOKUP(D24,'9. All Habitats + Multipliers'!$C$4:$K$102,5,FALSE)) ->  | V24: =IF(T24="","",VLOOKUP(T24,'11. Lists'!$B$47:$D$49,2,FALSE)) ->  | W24: =IF(D24="","",VLOOKUP(D24,'10. Condition and Temporal'!$B$6:$C$103,2,FALSE)) ->  | X24: =IF(W24="","",VLOOKUP(W24,'11. Lists'!$F$47:$G$51,2,FALSE)) ->  | AC24: =IF(AB24="","",VLOOKUP(AB24,'11. Lists'!$F$36:$H$38,2,FALSE)) ->  | AD24: =IF(AB24="","",VLOOKUP(AB24,'11. Lists'!$F$36:$H$38,3,FALSE)) ->  | AH24: =IF(T24="","",VLOOKUP(T24,'11. Lists'!$B$47:$D$49,3,FALSE)) ->  | AI24: =IF(D24="","",VLOOKUP(D24,'10. Condition and Temporal'!$B$6:$L$103,4,FALSE)) ->  | AJ24: 1 | AK24: 1
B25: 15 | C25: Watercourses | T25: =IF(D25="","",VLOOKUP(D25,'9. All Habitats + Multipliers'!$C$4:$K$102,5,FALSE)) ->  | V25: =IF(T25="","",VLOOKUP(T25,'11. Lists'!$B$47:$D$49,2,FALSE)) ->  | W25: =IF(D25="","",VLOOKUP(D25,'10. Condition and Temporal'!$B$6:$C$103,2,FALSE)) ->  | X25: =IF(W25="","",VLOOKUP(W25,'11. Lists'!$F$47:$G$51,2,FALSE)) ->  | AC25: =IF(AB25="","",VLOOKUP(AB25,'11. Lists'!$F$36:$H$38,2,FALSE)) ->  | AD25: =IF(AB25="","",VLOOKUP(AB25,'11. Lists'!$F$36:$H$38,3,FALSE)) ->  | AH25: =IF(T25="","",VLOOKUP(T25,'11. Lists'!$B$47:$D$49,3,FALSE)) ->  | AI25: =IF(D25="","",VLOOKUP(D25,'10. Condition and Temporal'!$B$6:$L$103,4,FALSE)) ->  | AJ25: 1 | AK25: 1
B26: 16 | C26: Watercourses | T26: =IF(D26="","",VLOOKUP(D26,'9. All Habitats + Multipliers'!$C$4:$K$102,5,FALSE)) ->  | V26: =IF(T26="","",VLOOKUP(T26,'11. Lists'!$B$47:$D$49,2,FALSE)) ->  | W26: =IF(D26="","",VLOOKUP(D26,'10. Condition and Temporal'!$B$6:$C$103,2,FALSE)) ->  | X26: =IF(W26="","",VLOOKUP(W26,'11. Lists'!$F$47:$G$51,2,FALSE)) ->  | AC26: =IF(AB26="","",VLOOKUP(AB26,'11. Lists'!$F$36:$H$38,2,FALSE)) ->  | AD26: =IF(AB26="","",VLOOKUP(AB26,'11. Lists'!$F$36:$H$38,3,FALSE)) ->  | AH26: =IF(T26="","",VLOOKUP(T26,'11. Lists'!$B$47:$D$49,3,FALSE)) ->  | AI26: =IF(D26="","",VLOOKUP(D26,'10. Condition and Temporal'!$B$6:$L$103,4,FALSE)) ->  | AJ26: 1 | AK26: 1
B27: 17 | C27: Watercourses | T27: =IF(D27="","",VLOOKUP(D27,'9. All Habitats + Multipliers'!$C$4:$K$102,5,FALSE)) ->  | V27: =IF(T27="","",VLOOKUP(T27,'11. Lists'!$B$47:$D$49,2,FALSE)) ->  | W27: =IF(D27="","",VLOOKUP(D27,'10. Condition and Temporal'!$B$6:$C$103,2,FALSE)) ->  | X27: =IF(W27="","",VLOOKUP(W27,'11. Lists'!$F$47:$G$51,2,FALSE)) ->  | AC27: =IF(AB27="","",VLOOKUP(AB27,'11. Lists'!$F$36:$H$38,2,FALSE)) ->  | AD27: =IF(AB27="","",VLOOKUP(AB27,'11. Lists'!$F$36:$H$38,3,FALSE)) ->  | AH27: =IF(T27="","",VLOOKUP(T27,'11. Lists'!$B$47:$D$49,3,FALSE)) ->  | AI27: =IF(D27="","",VLOOKUP(D27,'10. Condition and Temporal'!$B$6:$L$103,4,FALSE)) ->  | AJ27: 1 | AK27: 1
B28: 18 | C28: Watercourses | T28: =IF(D28="","",VLOOKUP(D28,'9. All Habitats + Multipliers'!$C$4:$K$102,5,FALSE)) ->  | V28: =IF(T28="","",VLOOKUP(T28,'11. Lists'!$B$47:$D$49,2,FALSE)) ->  | W28: =IF(D28="","",VLOOKUP(D28,'10. Condition and Temporal'!$B$6:$C$103,2,FALSE)) ->  | X28: =IF(W28="","",VLOOKUP(W28,'11. Lists'!$F$47:$G$51,2,FALSE)) ->  | AC28: =IF(AB28="","",VLOOKUP(AB28,'11. Lists'!$F$36:$H$38,2,FALSE)) ->  | AD28: =IF(AB28="","",VLOOKUP(AB28,'11. Lists'!$F$36:$H$38,3,FALSE)) ->  | AH28: =IF(T28="","",VLOOKUP(T28,'11. Lists'!$B$47:$D$49,3,FALSE)) ->  | AI28: =IF(D28="","",VLOOKUP(D28,'10. Condition and Temporal'!$B$6:$L$103,4,FALSE)) ->  | AJ28: 1 | AK28: 1
B29: 19 | C29: Watercourses | T29: =IF(D29="","",VLOOKUP(D29,'9. All Habitats + Multipliers'!$C$4:$K$102,5,FALSE)) ->  | V29: =IF(T29="","",VLOOKUP(T29,'11. Lists'!$B$47:$D$49,2,FALSE)) ->  | W29: =IF(D29="","",VLOOKUP(D29,'10. Condition and Temporal'!$B$6:$C$103,2,FALSE)) ->  | X29: =IF(W29="","",VLOOKUP(W29,'11. Lists'!$F$47:$G$51,2,FALSE)) ->  | AC29: =IF(AB29="","",VLOOKUP(AB29,'11. Lists'!$F$36:$H$38,2,FALSE)) ->  | AD29: =IF(AB29="","",VLOOKUP(AB29,'11. Lists'!$F$36:$H$38,3,FALSE)) ->  | AH29: =IF(T29="","",VLOOKUP(T29,'11. Lists'!$B$47:$D$49,3,FALSE)) ->  | AI29: =IF(D29="","",VLOOKUP(D29,'10. Condition and Temporal'!$B$6:$L$103,4,FALSE)) ->  | AJ29: 1 | AK29: 1
B30: 20 | C30: Watercourses | M30: =IF(I30="","",IF(J30+K30>I30,"Length Error ▲",I30-J30-K30)) ->  | T30: =IF(D30="","",VLOOKUP(D30,'9. All Habitats + Multipliers'!$C$4:$K$102,5,FALSE)) ->  | V30: =IF(T30="","",VLOOKUP(T30,'11. Lists'!$B$47:$D$49,2,FALSE)) ->  | W30: =IF(D30="","",VLOOKUP(D30,'10. Condition and Temporal'!$B$6:$C$103,2,FALSE)) ->  | X30: =IF(W30="","",VLOOKUP(W30,'11. Lists'!$F$47:$G$51,2,FALSE)) ->  | AC30: =IF(AB30="","",VLOOKUP(AB30,'11. Lists'!$F$36:$H$38,2,FALSE)) ->  | AD30: =IF(AB30="","",VLOOKUP(AB30,'11. Lists'!$F$36:$H$38,3,FALSE)) ->  | AH30: =IF(T30="","",VLOOKUP(T30,'11. Lists'!$B$47:$D$49,3,FALSE)) ->  | AI30: =IF(D30="","",VLOOKUP(D30,'10. Condition and Temporal'!$B$6:$L$103,4,FALSE)) ->  | AJ30: 1 | AK30: 1
H31: Totals | I31: =SUM(I11:I30) -> 0 | J31: 0 | K31: 0 | L31: 0 | M31: 0 | N31: 0
H32: Error Check 1 | I32: =IF(I31<J31+K31,"Error - Lengths Retained and Enhanced Exceed Total Length ▲","Lengths Acceptable ✓") -> Lengths Acceptable ✓ | O32: =IFERROR(FIND("Error",#REF!),0) -> 0
H33: Error Check 1 | I33: =IF(I31<5000,"Lengths Acceptable ✓",IF(I31>=5000,"Length Exceeds Length Appropriate for Small Sites Metric ▲")) -> Lengths Acceptable ✓ | O33: =COUNTIF(L11:N30,"*"&"error"&"*") -> 0
R34: Data beyond this column is automated
B35: 1b. Habitats to be created
B37: Ref | E37: Condition Assessment | H37: D. Strategic significance | I37: E. Total Length created (m) | L37: Units created onsite | O37: Comments | T37: Habitat distinctiveness | W37: Habitat condition | AB37: Strategic significance | AE37: Temporal multiplier | AG37: Difficulty multipliers | AI37: Watercourse and riparian encroachment
C38: A. Broad Habitat | D38: B. Habitat type | E38: Acceptable condition options | F38: C. Targeted condition | O38: User comments | P38: LPA comments | T38: Distinctiveness | V38: Score | W38: Condition | X38: Score | AB38: Strategic significance | AC38: Strategic significance | AD38: Strategic significance multiplier | AE38: Time to target condition/years | AF38: Time to target multiplier | AG38: Difficulty of creation category | AH38: Difficulty of creation multiplier
B39: 1 | C39: Watercourses | E39: =IF(D39="","",VLOOKUP(D39,'10. Condition and Temporal'!$B$6:$D$103,3,FALSE)) ->  | L39: =IF(D39="","",IFERROR(IF(I39="","",((I39/1000)*(V39*X39))*(AH39*AF39)*AD39*AI39),"This intervention is not permitted within the SSM ▲")) ->  | T39: =IF(D39="","",VLOOKUP(D39,'9. All Habitats + Multipliers'!$C$4:$K$102,5,FALSE)) ->  | V39: =IF(T39="","",VLOOKUP(T39,'11. Lists'!$B$47:$D$49,2,FALSE)) ->  | W39: =IF(F39="","",F39) ->  | X39: =IF(W39="","",VLOOKUP(W39,'11. Lists'!$F$47:$G$51,2,FALSE)) ->  | AB39: =IF(H39="","",H39) ->  | AC39: =IF(AB39="","",VLOOKUP(AB39,'11. Lists'!$F$36:$H$38,2,FALSE)) ->  | AD39: =IF(AB39="","",VLOOKUP(AB39,'11. Lists'!$F$36:$H$38,3,FALSE)) ->  | AE39: =IF(F39="","",IF(F39="Moderate",VLOOKUP(D39,'10. Condition and Temporal'!$B$6:$L$103,6,FALSE),IF(F39="Good",VLOOKUP(D39,'10. Condition and Temporal'!$B$6:$L$103,7,FALSE),IF(F39="Poor",VLOOKUP(D39,'10. Condition and Temporal'!$B$6:$L$103,8,FALSE),IF(F39="Condition Assessment N/A",VLOOKUP(D39,'10. Condition and Temporal'!$B$6:$L$103,9,FALSE),IF(F39="N/A - Other",VLOOKUP(D39,'10. Condition and Temporal'!$B$6:$L$103,10,FALSE))))))) ->  | AF39: =IF(AE39="","",VLOOKUP(AE39,'11. Lists'!$I$47:$K$80,3,FALSE)) ->  | AG39: =IF(D39="","",VLOOKUP(D39,'9. All Habitats + Multipliers'!$C$4:$K$102,7,FALSE)) ->  | AH39: =IF(AG39="","",VLOOKUP(AG39,'11. Lists'!$J$35:$K$38,2,FALSE)) ->  | AI39: =IF($D$39:$D$58="Culvert","0.68","1") -> 1
B40: 2 | C40: Watercourses | E40: =IF(D40="","",VLOOKUP(D40,'10. Condition and Temporal'!$B$6:$D$103,3,FALSE)) ->  | L40: =IF(D40="","",IFERROR(IF(I40="","",((I40/1000)*(V40*X40))*(AH40*AF40)*AD40*AI40),"This intervention is not permitted within the SSM ▲")) ->  | T40: =IF(D40="","",VLOOKUP(D40,'9. All Habitats + Multipliers'!$C$4:$K$102,5,FALSE)) ->  | V40: =IF(T40="","",VLOOKUP(T40,'11. Lists'!$B$47:$D$49,2,FALSE)) ->  | W40: =IF(F40="","",F40) ->  | X40: =IF(W40="","",VLOOKUP(W40,'11. Lists'!$F$47:$G$51,2,FALSE)) ->  | AB40: =IF(H40="","",H40) ->  | AC40: =IF(AB40="","",VLOOKUP(AB40,'11. Lists'!$F$36:$H$38,2,FALSE)) ->  | AD40: =IF(AB40="","",VLOOKUP(AB40,'11. Lists'!$F$36:$H$38,3,FALSE)) ->  | AE40: =IF(F40="","",IF(F40="Moderate",VLOOKUP(D40,'10. Condition and Temporal'!$B$6:$L$103,6,FALSE),IF(F40="Good",VLOOKUP(D40,'10. Condition and Temporal'!$B$6:$L$103,7,FALSE),IF(F40="Poor",VLOOKUP(D40,'10. Condition and Temporal'!$B$6:$L$103,8,FALSE),IF(F40="Condition Assessment N/A",VLOOKUP(D40,'10. Condition and Temporal'!$B$6:$L$103,9,FALSE),IF(F40="N/A - Other",VLOOKUP(D40,'10. Condition and Temporal'!$B$6:$L$103,10,FALSE))))))) ->  | AF40: =IF(AE40="","",VLOOKUP(AE40,'11. Lists'!$I$47:$K$80,3,FALSE)) ->  | AG40: =IF(D40="","",VLOOKUP(D40,'9. All Habitats + Multipliers'!$C$4:$K$102,7,FALSE)) ->  | AH40: =IF(AG40="","",VLOOKUP(AG40,'11. Lists'!$J$35:$K$38,2,FALSE)) ->  | AI40: 1
B41: 3 | C41: Watercourses | E41: =IF(D41="","",VLOOKUP(D41,'10. Condition and Temporal'!$B$6:$D$103,3,FALSE)) ->  | T41: =IF(D41="","",VLOOKUP(D41,'9. All Habitats + Multipliers'!$C$4:$K$102,5,FALSE)) ->  | V41: =IF(T41="","",VLOOKUP(T41,'11. Lists'!$B$47:$D$49,2,FALSE)) ->  | W41: =IF(F41="","",F41) ->  | X41: =IF(W41="","",VLOOKUP(W41,'11. Lists'!$F$47:$G$51,2,FALSE)) ->  | AC41: =IF(AB41="","",VLOOKUP(AB41,'11. Lists'!$F$36:$H$38,2,FALSE)) ->  | AD41: =IF(AB41="","",VLOOKUP(AB41,'11. Lists'!$F$36:$H$38,3,FALSE)) ->  | AE41: =IF(F41="","",IF(F41="Moderate",VLOOKUP(D41,'10. Condition and Temporal'!$B$6:$L$103,6,FALSE),IF(F41="Good",VLOOKUP(D41,'10. Condition and Temporal'!$B$6:$L$103,7,FALSE),IF(F41="Poor",VLOOKUP(D41,'10. Condition and Temporal'!$B$6:$L$103,8,FALSE),IF(F41="Condition Assessment N/A",VLOOKUP(D41,'10. Condition and Temporal'!$B$6:$L$103,9,FALSE),IF(F41="N/A - Other",VLOOKUP(D41,'10. Condition and Temporal'!$B$6:$L$103,10,FALSE))))))) ->  | AF41: =IF(AE41="","",VLOOKUP(AE41,'11. Lists'!$I$47:$K$80,3,FALSE)) ->  | AG41: =IF(D41="","",VLOOKUP(D41,'9. All Habitats + Multipliers'!$C$4:$K$102,7,FALSE)) ->  | AH41: =IF(AG41="","",VLOOKUP(AG41,'11. Lists'!$J$35:$K$38,2,FALSE)) ->  | AI41: 1
B42: 4 | C42: Watercourses | E42: =IF(D42="","",VLOOKUP(D42,'10. Condition and Temporal'!$B$6:$D$103,3,FALSE)) ->  | T42: =IF(D42="","",VLOOKUP(D42,'9. All Habitats + Multipliers'!$C$4:$K$102,5,FALSE)) ->  | V42: =IF(T42="","",VLOOKUP(T42,'11. Lists'!$B$47:$D$49,2,FALSE)) ->  | W42: =IF(F42="","",F42) ->  | X42: =IF(W42="","",VLOOKUP(W42,'11. Lists'!$F$47:$G$51,2,FALSE)) ->  | AC42: =IF(AB42="","",VLOOKUP(AB42,'11. Lists'!$F$36:$H$38,2,FALSE)) ->  | AD42: =IF(AB42="","",VLOOKUP(AB42,'11. Lists'!$F$36:$H$38,3,FALSE)) ->  | AE42: =IF(F42="","",IF(F42="Moderate",VLOOKUP(D42,'10. Condition and Temporal'!$B$6:$L$103,6,FALSE),IF(F42="Good",VLOOKUP(D42,'10. Condition and Temporal'!$B$6:$L$103,7,FALSE),IF(F42="Poor",VLOOKUP(D42,'10. Condition and Temporal'!$B$6:$L$103,8,FALSE),IF(F42="Condition Assessment N/A",VLOOKUP(D42,'10. Condition and Temporal'!$B$6:$L$103,9,FALSE),IF(F42="N/A - Other",VLOOKUP(D42,'10. Condition and Temporal'!$B$6:$L$103,10,FALSE))))))) ->  | AF42: =IF(AE42="","",VLOOKUP(AE42,'11. Lists'!$I$47:$K$80,3,FALSE)) ->  | AG42: =IF(D42="","",VLOOKUP(D42,'9. All Habitats + Multipliers'!$C$4:$K$102,7,FALSE)) ->  | AH42: =IF(AG42="","",VLOOKUP(AG42,'11. Lists'!$J$35:$K$38,2,FALSE)) ->  | AI42: 1
B43: 5 | C43: Watercourses | E43: =IF(D43="","",VLOOKUP(D43,'10. Condition and Temporal'!$B$6:$D$103,3,FALSE)) ->  | T43: =IF(D43="","",VLOOKUP(D43,'9. All Habitats + Multipliers'!$C$4:$K$102,5,FALSE)) ->  | V43: =IF(T43="","",VLOOKUP(T43,'11. Lists'!$B$47:$D$49,2,FALSE)) ->  | W43: =IF(F43="","",F43) ->  | X43: =IF(W43="","",VLOOKUP(W43,'11. Lists'!$F$47:$G$51,2,FALSE)) ->  | AC43: =IF(AB43="","",VLOOKUP(AB43,'11. Lists'!$F$36:$H$38,2,FALSE)) ->  | AD43: =IF(AB43="","",VLOOKUP(AB43,'11. Lists'!$F$36:$H$38,3,FALSE)) ->  | AE43: =IF(F43="","",IF(F43="Moderate",VLOOKUP(D43,'10. Condition and Temporal'!$B$6:$L$103,6,FALSE),IF(F43="Good",VLOOKUP(D43,'10. Condition and Temporal'!$B$6:$L$103,7,FALSE),IF(F43="Poor",VLOOKUP(D43,'10. Condition and Temporal'!$B$6:$L$103,8,FALSE),IF(F43="Condition Assessment N/A",VLOOKUP(D43,'10. Condition and Temporal'!$B$6:$L$103,9,FALSE),IF(F43="N/A - Other",VLOOKUP(D43,'10. Condition and Temporal'!$B$6:$L$103,10,FALSE))))))) ->  | AF43: =IF(AE43="","",VLOOKUP(AE43,'11. Lists'!$I$47:$K$80,3,FALSE)) ->  | AG43: =IF(D43="","",VLOOKUP(D43,'9. All Habitats + Multipliers'!$C$4:$K$102,7,FALSE)) ->  | AH43: =IF(AG43="","",VLOOKUP(AG43,'11. Lists'!$J$35:$K$38,2,FALSE)) ->  | AI43: 1
B44: 6 | C44: Watercourses | E44: =IF(D44="","",VLOOKUP(D44,'10. Condition and Temporal'!$B$6:$D$103,3,FALSE)) ->  | T44: =IF(D44="","",VLOOKUP(D44,'9. All Habitats + Multipliers'!$C$4:$K$102,5,FALSE)) ->  | V44: =IF(T44="","",VLOOKUP(T44,'11. Lists'!$B$47:$D$49,2,FALSE)) ->  | X44: =IF(W44="","",VLOOKUP(W44,'11. Lists'!$F$47:$G$51,2,FALSE)) ->  | AC44: =IF(AB44="","",VLOOKUP(AB44,'11. Lists'!$F$36:$H$38,2,FALSE)) ->  | AD44: =IF(AB44="","",VLOOKUP(AB44,'11. Lists'!$F$36:$H$38,3,FALSE)) ->  | AE44: =IF(F44="","",IF(F44="Moderate",VLOOKUP(D44,'10. Condition and Temporal'!$B$6:$L$103,6,FALSE),IF(F44="Good",VLOOKUP(D44,'10. Condition and Temporal'!$B$6:$L$103,7,FALSE),IF(F44="Poor",VLOOKUP(D44,'10. Condition and Temporal'!$B$6:$L$103,8,FALSE),IF(F44="Condition Assessment N/A",VLOOKUP(D44,'10. Condition and Temporal'!$B$6:$L$103,9,FALSE),IF(F44="N/A - Other",VLOOKUP(D44,'10. Condition and Temporal'!$B$6:$L$103,10,FALSE))))))) ->  | AF44: =IF(AE44="","",VLOOKUP(AE44,'11. Lists'!$I$47:$K$80,3,FALSE)) ->  | AG44: =IF(D44="","",VLOOKUP(D44,'9. All Habitats + Multipliers'!$C$4:$K$102,7,FALSE)) ->  | AH44: =IF(AG44="","",VLOOKUP(AG44,'11. Lists'!$J$35:$K$38,2,FALSE)) ->  | AI44: 1
B45: 7 | C45: Watercourses | E45: =IF(D45="","",VLOOKUP(D45,'10. Condition and Temporal'!$B$6:$D$103,3,FALSE)) ->  | T45: =IF(D45="","",VLOOKUP(D45,'9. All Habitats + Multipliers'!$C$4:$K$102,5,FALSE)) ->  | V45: =IF(T45="","",VLOOKUP(T45,'11. Lists'!$B$47:$D$49,2,FALSE)) ->  | X45: =IF(W45="","",VLOOKUP(W45,'11. Lists'!$F$47:$G$51,2,FALSE)) ->  | AC45: =IF(AB45="","",VLOOKUP(AB45,'11. Lists'!$F$36:$H$38,2,FALSE)) ->  | AD45: =IF(AB45="","",VLOOKUP(AB45,'11. Lists'!$F$36:$H$38,3,FALSE)) ->  | AE45: =IF(F45="","",IF(F45="Moderate",VLOOKUP(D45,'10. Condition and Temporal'!$B$6:$L$103,6,FALSE),IF(F45="Good",VLOOKUP(D45,'10. Condition and Temporal'!$B$6:$L$103,7,FALSE),IF(F45="Poor",VLOOKUP(D45,'10. Condition and Temporal'!$B$6:$L$103,8,FALSE),IF(F45="Condition Assessment N/A",VLOOKUP(D45,'10. Condition and Temporal'!$B$6:$L$103,9,FALSE),IF(F45="N/A - Other",VLOOKUP(D45,'10. Condition and Temporal'!$B$6:$L$103,10,FALSE))))))) ->  | AF45: =IF(AE45="","",VLOOKUP(AE45,'11. Lists'!$I$47:$K$80,3,FALSE)) ->  | AG45: =IF(D45="","",VLOOKUP(D45,'9. All Habitats + Multipliers'!$C$4:$K$102,7,FALSE)) ->  | AH45: =IF(AG45="","",VLOOKUP(AG45,'11. Lists'!$J$35:$K$38,2,FALSE)) ->  | AI45: 1
B46: 8 | C46: Watercourses | E46: =IF(D46="","",VLOOKUP(D46,'10. Condition and Temporal'!$B$6:$D$103,3,FALSE)) ->  | T46: =IF(D46="","",VLOOKUP(D46,'9. All Habitats + Multipliers'!$C$4:$K$102,5,FALSE)) ->  | V46: =IF(T46="","",VLOOKUP(T46,'11. Lists'!$B$47:$D$49,2,FALSE)) ->  | X46: =IF(W46="","",VLOOKUP(W46,'11. Lists'!$F$47:$G$51,2,FALSE)) ->  | AC46: =IF(AB46="","",VLOOKUP(AB46,'11. Lists'!$F$36:$H$38,2,FALSE)) ->  | AD46: =IF(AB46="","",VLOOKUP(AB46,'11. Lists'!$F$36:$H$38,3,FALSE)) ->  | AE46: =IF(F46="","",IF(F46="Moderate",VLOOKUP(D46,'10. Condition and Temporal'!$B$6:$L$103,6,FALSE),IF(F46="Good",VLOOKUP(D46,'10. Condition and Temporal'!$B$6:$L$103,7,FALSE),IF(F46="Poor",VLOOKUP(D46,'10. Condition and Temporal'!$B$6:$L$103,8,FALSE),IF(F46="Condition Assessment N/A",VLOOKUP(D46,'10. Condition and Temporal'!$B$6:$L$103,9,FALSE),IF(F46="N/A - Other",VLOOKUP(D46,'10. Condition and Temporal'!$B$6:$L$103,10,FALSE))))))) ->  | AF46: =IF(AE46="","",VLOOKUP(AE46,'11. Lists'!$I$47:$K$80,3,FALSE)) ->  | AG46: =IF(D46="","",VLOOKUP(D46,'9. All Habitats + Multipliers'!$C$4:$K$102,7,FALSE)) ->  | AH46: =IF(AG46="","",VLOOKUP(AG46,'11. Lists'!$J$35:$K$38,2,FALSE)) ->  | AI46: 1
B47: 9 | C47: Watercourses | E47: =IF(D47="","",VLOOKUP(D47,'10. Condition and Temporal'!$B$6:$D$103,3,FALSE)) ->  | T47: =IF(D47="","",VLOOKUP(D47,'9. All Habitats + Multipliers'!$C$4:$K$102,5,FALSE)) ->  | V47: =IF(T47="","",VLOOKUP(T47,'11. Lists'!$B$47:$D$49,2,FALSE)) ->  | X47: =IF(W47="","",VLOOKUP(W47,'11. Lists'!$F$47:$G$51,2,FALSE)) ->  | AC47: =IF(AB47="","",VLOOKUP(AB47,'11. Lists'!$F$36:$H$38,2,FALSE)) ->  | AD47: =IF(AB47="","",VLOOKUP(AB47,'11. Lists'!$F$36:$H$38,3,FALSE)) ->  | AE47: =IF(F47="","",IF(F47="Moderate",VLOOKUP(D47,'10. Condition and Temporal'!$B$6:$L$103,6,FALSE),IF(F47="Good",VLOOKUP(D47,'10. Condition and Temporal'!$B$6:$L$103,7,FALSE),IF(F47="Poor",VLOOKUP(D47,'10. Condition and Temporal'!$B$6:$L$103,8,FALSE),IF(F47="Condition Assessment N/A",VLOOKUP(D47,'10. Condition and Temporal'!$B$6:$L$103,9,FALSE),IF(F47="N/A - Other",VLOOKUP(D47,'10. Condition and Temporal'!$B$6:$L$103,10,FALSE))))))) ->  | AF47: =IF(AE47="","",VLOOKUP(AE47,'11. Lists'!$I$47:$K$80,3,FALSE)) ->  | AG47: =IF(D47="","",VLOOKUP(D47,'9. All Habitats + Multipliers'!$C$4:$K$102,7,FALSE)) ->  | AH47: =IF(AG47="","",VLOOKUP(AG47,'11. Lists'!$J$35:$K$38,2,FALSE)) ->  | AI47: 1
B48: 10 | C48: Watercourses | E48: =IF(D48="","",VLOOKUP(D48,'10. Condition and Temporal'!$B$6:$D$103,3,FALSE)) ->  | T48: =IF(D48="","",VLOOKUP(D48,'9. All Habitats + Multipliers'!$C$4:$K$102,5,FALSE)) ->  | V48: =IF(T48="","",VLOOKUP(T48,'11. Lists'!$B$47:$D$49,2,FALSE)) ->  | X48: =IF(W48="","",VLOOKUP(W48,'11. Lists'!$F$47:$G$51,2,FALSE)) ->  | AC48: =IF(AB48="","",VLOOKUP(AB48,'11. Lists'!$F$36:$H$38,2,FALSE)) ->  | AD48: =IF(AB48="","",VLOOKUP(AB48,'11. Lists'!$F$36:$H$38,3,FALSE)) ->  | AE48: =IF(F48="","",IF(F48="Moderate",VLOOKUP(D48,'10. Condition and Temporal'!$B$6:$L$103,6,FALSE),IF(F48="Good",VLOOKUP(D48,'10. Condition and Temporal'!$B$6:$L$103,7,FALSE),IF(F48="Poor",VLOOKUP(D48,'10. Condition and Temporal'!$B$6:$L$103,8,FALSE),IF(F48="Condition Assessment N/A",VLOOKUP(D48,'10. Condition and Temporal'!$B$6:$L$103,9,FALSE),IF(F48="N/A - Other",VLOOKUP(D48,'10. Condition and Temporal'!$B$6:$L$103,10,FALSE))))))) ->  | AF48: =IF(AE48="","",VLOOKUP(AE48,'11. Lists'!$I$47:$K$80,3,FALSE)) ->  | AG48: =IF(D48="","",VLOOKUP(D48,'9. All Habitats + Multipliers'!$C$4:$K$102,7,FALSE)) ->  | AH48: =IF(AG48="","",VLOOKUP(AG48,'11. Lists'!$J$35:$K$38,2,FALSE)) ->  | AI48: 1
B49: 11 | C49: Watercourses | E49: =IF(D49="","",VLOOKUP(D49,'10. Condition and Temporal'!$B$6:$D$103,3,FALSE)) ->  | T49: =IF(D49="","",VLOOKUP(D49,'9. All Habitats + Multipliers'!$C$4:$K$102,5,FALSE)) ->  | V49: =IF(T49="","",VLOOKUP(T49,'11. Lists'!$B$47:$D$49,2,FALSE)) ->  | X49: =IF(W49="","",VLOOKUP(W49,'11. Lists'!$F$47:$G$51,2,FALSE)) ->  | AC49: =IF(AB49="","",VLOOKUP(AB49,'11. Lists'!$F$36:$H$38,2,FALSE)) ->  | AD49: =IF(AB49="","",VLOOKUP(AB49,'11. Lists'!$F$36:$H$38,3,FALSE)) ->  | AE49: =IF(F49="","",IF(F49="Moderate",VLOOKUP(D49,'10. Condition and Temporal'!$B$6:$L$103,6,FALSE),IF(F49="Good",VLOOKUP(D49,'10. Condition and Temporal'!$B$6:$L$103,7,FALSE),IF(F49="Poor",VLOOKUP(D49,'10. Condition and Temporal'!$B$6:$L$103,8,FALSE),IF(F49="Condition Assessment N/A",VLOOKUP(D49,'10. Condition and Temporal'!$B$6:$L$103,9,FALSE),IF(F49="N/A - Other",VLOOKUP(D49,'10. Condition and Temporal'!$B$6:$L$103,10,FALSE))))))) ->  | AF49: =IF(AE49="","",VLOOKUP(AE49,'11. Lists'!$I$47:$K$80,3,FALSE)) ->  | AG49: =IF(D49="","",VLOOKUP(D49,'9. All Habitats + Multipliers'!$C$4:$K$102,7,FALSE)) ->  | AH49: =IF(AG49="","",VLOOKUP(AG49,'11. Lists'!$J$35:$K$38,2,FALSE)) ->  | AI49: 1
B50: 12 | C50: Watercourses | E50: =IF(D50="","",VLOOKUP(D50,'10. Condition and Temporal'!$B$6:$D$103,3,FALSE)) ->  | T50: =IF(D50="","",VLOOKUP(D50,'9. All Habitats + Multipliers'!$C$4:$K$102,5,FALSE)) ->  | V50: =IF(T50="","",VLOOKUP(T50,'11. Lists'!$B$47:$D$49,2,FALSE)) ->  | X50: =IF(W50="","",VLOOKUP(W50,'11. Lists'!$F$47:$G$51,2,FALSE)) ->  | AC50: =IF(AB50="","",VLOOKUP(AB50,'11. Lists'!$F$36:$H$38,2,FALSE)) ->  | AD50: =IF(AB50="","",VLOOKUP(AB50,'11. Lists'!$F$36:$H$38,3,FALSE)) ->  | AE50: =IF(F50="","",IF(F50="Moderate",VLOOKUP(D50,'10. Condition and Temporal'!$B$6:$L$103,6,FALSE),IF(F50="Good",VLOOKUP(D50,'10. Condition and Temporal'!$B$6:$L$103,7,FALSE),IF(F50="Poor",VLOOKUP(D50,'10. Condition and Temporal'!$B$6:$L$103,8,FALSE),IF(F50="Condition Assessment N/A",VLOOKUP(D50,'10. Condition and Temporal'!$B$6:$L$103,9,FALSE),IF(F50="N/A - Other",VLOOKUP(D50,'10. Condition and Temporal'!$B$6:$L$103,10,FALSE))))))) ->  | AF50: =IF(AE50="","",VLOOKUP(AE50,'11. Lists'!$I$47:$K$80,3,FALSE)) ->  | AG50: =IF(D50="","",VLOOKUP(D50,'9. All Habitats + Multipliers'!$C$4:$K$102,7,FALSE)) ->  | AH50: =IF(AG50="","",VLOOKUP(AG50,'11. Lists'!$J$35:$K$38,2,FALSE)) ->  | AI50: 1
B51: 13 | C51: Watercourses | E51: =IF(D51="","",VLOOKUP(D51,'10. Condition and Temporal'!$B$6:$D$103,3,FALSE)) ->  | T51: =IF(D51="","",VLOOKUP(D51,'9. All Habitats + Multipliers'!$C$4:$K$102,5,FALSE)) ->  | V51: =IF(T51="","",VLOOKUP(T51,'11. Lists'!$B$47:$D$49,2,FALSE)) ->  | X51: =IF(W51="","",VLOOKUP(W51,'11. Lists'!$F$47:$G$51,2,FALSE)) ->  | AC51: =IF(AB51="","",VLOOKUP(AB51,'11. Lists'!$F$36:$H$38,2,FALSE)) ->  | AD51: =IF(AB51="","",VLOOKUP(AB51,'11. Lists'!$F$36:$H$38,3,FALSE)) ->  | AE51: =IF(F51="","",IF(F51="Moderate",VLOOKUP(D51,'10. Condition and Temporal'!$B$6:$L$103,6,FALSE),IF(F51="Good",VLOOKUP(D51,'10. Condition and Temporal'!$B$6:$L$103,7,FALSE),IF(F51="Poor",VLOOKUP(D51,'10. Condition and Temporal'!$B$6:$L$103,8,FALSE),IF(F51="Condition Assessment N/A",VLOOKUP(D51,'10. Condition and Temporal'!$B$6:$L$103,9,FALSE),IF(F51="N/A - Other",VLOOKUP(D51,'10. Condition and Temporal'!$B$6:$L$103,10,FALSE))))))) ->  | AF51: =IF(AE51="","",VLOOKUP(AE51,'11. Lists'!$I$47:$K$80,3,FALSE)) ->  | AG51: =IF(D51="","",VLOOKUP(D51,'9. All Habitats + Multipliers'!$C$4:$K$102,7,FALSE)) ->  | AH51: =IF(AG51="","",VLOOKUP(AG51,'11. Lists'!$J$35:$K$38,2,FALSE)) ->  | AI51: 1
B52: 14 | C52: Watercourses | E52: =IF(D52="","",VLOOKUP(D52,'10. Condition and Temporal'!$B$6:$D$103,3,FALSE)) ->  | T52: =IF(D52="","",VLOOKUP(D52,'9. All Habitats + Multipliers'!$C$4:$K$102,5,FALSE)) ->  | V52: =IF(T52="","",VLOOKUP(T52,'11. Lists'!$B$47:$D$49,2,FALSE)) ->  | X52: =IF(W52="","",VLOOKUP(W52,'11. Lists'!$F$47:$G$51,2,FALSE)) ->  | AC52: =IF(AB52="","",VLOOKUP(AB52,'11. Lists'!$F$36:$H$38,2,FALSE)) ->  | AD52: =IF(AB52="","",VLOOKUP(AB52,'11. Lists'!$F$36:$H$38,3,FALSE)) ->  | AE52: =IF(F52="","",IF(F52="Moderate",VLOOKUP(D52,'10. Condition and Temporal'!$B$6:$L$103,6,FALSE),IF(F52="Good",VLOOKUP(D52,'10. Condition and Temporal'!$B$6:$L$103,7,FALSE),IF(F52="Poor",VLOOKUP(D52,'10. Condition and Temporal'!$B$6:$L$103,8,FALSE),IF(F52="Condition Assessment N/A",VLOOKUP(D52,'10. Condition and Temporal'!$B$6:$L$103,9,FALSE),IF(F52="N/A - Other",VLOOKUP(D52,'10. Condition and Temporal'!$B$6:$L$103,10,FALSE))))))) ->  | AF52: =IF(AE52="","",VLOOKUP(AE52,'11. Lists'!$I$47:$K$80,3,FALSE)) ->  | AG52: =IF(D52="","",VLOOKUP(D52,'9. All Habitats + Multipliers'!$C$4:$K$102,7,FALSE)) ->  | AH52: =IF(AG52="","",VLOOKUP(AG52,'11. Lists'!$J$35:$K$38,2,FALSE)) ->  | AI52: 1
B53: 15 | C53: Watercourses | E53: =IF(D53="","",VLOOKUP(D53,'10. Condition and Temporal'!$B$6:$D$103,3,FALSE)) ->  | T53: =IF(D53="","",VLOOKUP(D53,'9. All Habitats + Multipliers'!$C$4:$K$102,5,FALSE)) ->  | V53: =IF(T53="","",VLOOKUP(T53,'11. Lists'!$B$47:$D$49,2,FALSE)) ->  | X53: =IF(W53="","",VLOOKUP(W53,'11. Lists'!$F$47:$G$51,2,FALSE)) ->  | AC53: =IF(AB53="","",VLOOKUP(AB53,'11. Lists'!$F$36:$H$38,2,FALSE)) ->  | AD53: =IF(AB53="","",VLOOKUP(AB53,'11. Lists'!$F$36:$H$38,3,FALSE)) ->  | AE53: =IF(F53="","",IF(F53="Moderate",VLOOKUP(D53,'10. Condition and Temporal'!$B$6:$L$103,6,FALSE),IF(F53="Good",VLOOKUP(D53,'10. Condition and Temporal'!$B$6:$L$103,7,FALSE),IF(F53="Poor",VLOOKUP(D53,'10. Condition and Temporal'!$B$6:$L$103,8,FALSE),IF(F53="Condition Assessment N/A",VLOOKUP(D53,'10. Condition and Temporal'!$B$6:$L$103,9,FALSE),IF(F53="N/A - Other",VLOOKUP(D53,'10. Condition and Temporal'!$B$6:$L$103,10,FALSE))))))) ->  | AF53: =IF(AE53="","",VLOOKUP(AE53,'11. Lists'!$I$47:$K$80,3,FALSE)) ->  | AG53: =IF(D53="","",VLOOKUP(D53,'9. All Habitats + Multipliers'!$C$4:$K$102,7,FALSE)) ->  | AH53: =IF(AG53="","",VLOOKUP(AG53,'11. Lists'!$J$35:$K$38,2,FALSE)) ->  | AI53: 1
B54: 16 | C54: Watercourses | E54: =IF(D54="","",VLOOKUP(D54,'10. Condition and Temporal'!$B$6:$D$103,3,FALSE)) ->  | T54: =IF(D54="","",VLOOKUP(D54,'9. All Habitats + Multipliers'!$C$4:$K$102,5,FALSE)) ->  | V54: =IF(T54="","",VLOOKUP(T54,'11. Lists'!$B$47:$D$49,2,FALSE)) ->  | X54: =IF(W54="","",VLOOKUP(W54,'11. Lists'!$F$47:$G$51,2,FALSE)) ->  | AC54: =IF(AB54="","",VLOOKUP(AB54,'11. Lists'!$F$36:$H$38,2,FALSE)) ->  | AD54: =IF(AB54="","",VLOOKUP(AB54,'11. Lists'!$F$36:$H$38,3,FALSE)) ->  | AE54: =IF(F54="","",IF(F54="Moderate",VLOOKUP(D54,'10. Condition and Temporal'!$B$6:$L$103,6,FALSE),IF(F54="Good",VLOOKUP(D54,'10. Condition and Temporal'!$B$6:$L$103,7,FALSE),IF(F54="Poor",VLOOKUP(D54,'10. Condition and Temporal'!$B$6:$L$103,8,FALSE),IF(F54="Condition Assessment N/A",VLOOKUP(D54,'10. Condition and Temporal'!$B$6:$L$103,9,FALSE),IF(F54="N/A - Other",VLOOKUP(D54,'10. Condition and Temporal'!$B$6:$L$103,10,FALSE))))))) ->  | AF54: =IF(AE54="","",VLOOKUP(AE54,'11. Lists'!$I$47:$K$80,3,FALSE)) ->  | AG54: =IF(D54="","",VLOOKUP(D54,'9. All Habitats + Multipliers'!$C$4:$K$102,7,FALSE)) ->  | AH54: =IF(AG54="","",VLOOKUP(AG54,'11. Lists'!$J$35:$K$38,2,FALSE)) ->  | AI54: 1
B55: 17 | C55: Watercourses | E55: =IF(D55="","",VLOOKUP(D55,'10. Condition and Temporal'!$B$6:$D$103,3,FALSE)) ->  | T55: =IF(D55="","",VLOOKUP(D55,'9. All Habitats + Multipliers'!$C$4:$K$102,5,FALSE)) ->  | V55: =IF(T55="","",VLOOKUP(T55,'11. Lists'!$B$47:$D$49,2,FALSE)) ->  | X55: =IF(W55="","",VLOOKUP(W55,'11. Lists'!$F$47:$G$51,2,FALSE)) ->  | AC55: =IF(AB55="","",VLOOKUP(AB55,'11. Lists'!$F$36:$H$38,2,FALSE)) ->  | AD55: =IF(AB55="","",VLOOKUP(AB55,'11. Lists'!$F$36:$H$38,3,FALSE)) ->  | AE55: =IF(F55="","",IF(F55="Moderate",VLOOKUP(D55,'10. Condition and Temporal'!$B$6:$L$103,6,FALSE),IF(F55="Good",VLOOKUP(D55,'10. Condition and Temporal'!$B$6:$L$103,7,FALSE),IF(F55="Poor",VLOOKUP(D55,'10. Condition and Temporal'!$B$6:$L$103,8,FALSE),IF(F55="Condition Assessment N/A",VLOOKUP(D55,'10. Condition and Temporal'!$B$6:$L$103,9,FALSE),IF(F55="N/A - Other",VLOOKUP(D55,'10. Condition and Temporal'!$B$6:$L$103,10,FALSE))))))) ->  | AF55: =IF(AE55="","",VLOOKUP(AE55,'11. Lists'!$I$47:$K$80,3,FALSE)) ->  | AG55: =IF(D55="","",VLOOKUP(D55,'9. All Habitats + Multipliers'!$C$4:$K$102,7,FALSE)) ->  | AH55: =IF(AG55="","",VLOOKUP(AG55,'11. Lists'!$J$35:$K$38,2,FALSE)) ->  | AI55: 1
B56: 18 | C56: Watercourses | E56: =IF(D56="","",VLOOKUP(D56,'10. Condition and Temporal'!$B$6:$D$103,3,FALSE)) ->  | T56: =IF(D56="","",VLOOKUP(D56,'9. All Habitats + Multipliers'!$C$4:$K$102,5,FALSE)) ->  | V56: =IF(T56="","",VLOOKUP(T56,'11. Lists'!$B$47:$D$49,2,FALSE)) ->  | X56: =IF(W56="","",VLOOKUP(W56,'11. Lists'!$F$47:$G$51,2,FALSE)) ->  | AC56: =IF(AB56="","",VLOOKUP(AB56,'11. Lists'!$F$36:$H$38,2,FALSE)) ->  | AD56: =IF(AB56="","",VLOOKUP(AB56,'11. Lists'!$F$36:$H$38,3,FALSE)) ->  | AE56: =IF(F56="","",IF(F56="Moderate",VLOOKUP(D56,'10. Condition and Temporal'!$B$6:$L$103,6,FALSE),IF(F56="Good",VLOOKUP(D56,'10. Condition and Temporal'!$B$6:$L$103,7,FALSE),IF(F56="Poor",VLOOKUP(D56,'10. Condition and Temporal'!$B$6:$L$103,8,FALSE),IF(F56="Condition Assessment N/A",VLOOKUP(D56,'10. Condition and Temporal'!$B$6:$L$103,9,FALSE),IF(F56="N/A - Other",VLOOKUP(D56,'10. Condition and Temporal'!$B$6:$L$103,10,FALSE))))))) ->  | AF56: =IF(AE56="","",VLOOKUP(AE56,'11. Lists'!$I$47:$K$80,3,FALSE)) ->  | AG56: =IF(D56="","",VLOOKUP(D56,'9. All Habitats + Multipliers'!$C$4:$K$102,7,FALSE)) ->  | AH56: =IF(AG56="","",VLOOKUP(AG56,'11. Lists'!$J$35:$K$38,2,FALSE)) ->  | AI56: 1
B57: 19 | C57: Watercourses | E57: =IF(D57="","",VLOOKUP(D57,'10. Condition and Temporal'!$B$6:$D$103,3,FALSE)) ->  | T57: =IF(D57="","",VLOOKUP(D57,'9. All Habitats + Multipliers'!$C$4:$K$102,5,FALSE)) ->  | V57: =IF(T57="","",VLOOKUP(T57,'11. Lists'!$B$47:$D$49,2,FALSE)) ->  | X57: =IF(W57="","",VLOOKUP(W57,'11. Lists'!$F$47:$G$51,2,FALSE)) ->  | AC57: =IF(AB57="","",VLOOKUP(AB57,'11. Lists'!$F$36:$H$38,2,FALSE)) ->  | AD57: =IF(AB57="","",VLOOKUP(AB57,'11. Lists'!$F$36:$H$38,3,FALSE)) ->  | AE57: =IF(F57="","",IF(F57="Moderate",VLOOKUP(D57,'10. Condition and Temporal'!$B$6:$L$103,6,FALSE),IF(F57="Good",VLOOKUP(D57,'10. Condition and Temporal'!$B$6:$L$103,7,FALSE),IF(F57="Poor",VLOOKUP(D57,'10. Condition and Temporal'!$B$6:$L$103,8,FALSE),IF(F57="Condition Assessment N/A",VLOOKUP(D57,'10. Condition and Temporal'!$B$6:$L$103,9,FALSE),IF(F57="N/A - Other",VLOOKUP(D57,'10. Condition and Temporal'!$B$6:$L$103,10,FALSE))))))) ->  | AF57: =IF(AE57="","",VLOOKUP(AE57,'11. Lists'!$I$47:$K$80,3,FALSE)) ->  | AG57: =IF(D57="","",VLOOKUP(D57,'9. All Habitats + Multipliers'!$C$4:$K$102,7,FALSE)) ->  | AH57: =IF(AG57="","",VLOOKUP(AG57,'11. Lists'!$J$35:$K$38,2,FALSE)) ->  | AI57: 1
B58: 20 | C58: Watercourses | E58: =IF(D58="","",VLOOKUP(D58,'10. Condition and Temporal'!$B$6:$D$103,3,FALSE)) ->  | T58: =IF(D58="","",VLOOKUP(D58,'9. All Habitats + Multipliers'!$C$4:$K$102,5,FALSE)) ->  | V58: =IF(T58="","",VLOOKUP(T58,'11. Lists'!$B$47:$D$49,2,FALSE)) ->  | X58: =IF(W58="","",VLOOKUP(W58,'11. Lists'!$F$47:$G$51,2,FALSE)) ->  | AC58: =IF(AB58="","",VLOOKUP(AB58,'11. Lists'!$F$36:$H$38,2,FALSE)) ->  | AD58: =IF(AB58="","",VLOOKUP(AB58,'11. Lists'!$F$36:$H$38,3,FALSE)) ->  | AE58: =IF(F58="","",IF(F58="Moderate",VLOOKUP(D58,'10. Condition and Temporal'!$B$6:$L$103,6,FALSE),IF(F58="Good",VLOOKUP(D58,'10. Condition and Temporal'!$B$6:$L$103,7,FALSE),IF(F58="Poor",VLOOKUP(D58,'10. Condition and Temporal'!$B$6:$L$103,8,FALSE),IF(F58="Condition Assessment N/A",VLOOKUP(D58,'10. Condition and Temporal'!$B$6:$L$103,9,FALSE),IF(F58="N/A - Other",VLOOKUP(D58,'10. Condition and Temporal'!$B$6:$L$103,10,FALSE))))))) ->  | AF58: =IF(AE58="","",VLOOKUP(AE58,'11. Lists'!$I$47:$K$80,3,FALSE)) ->  | AG58: =IF(D58="","",VLOOKUP(D58,'9. All Habitats + Multipliers'!$C$4:$K$102,7,FALSE)) ->  | AH58: =IF(AG58="","",VLOOKUP(AG58,'11. Lists'!$J$35:$K$38,2,FALSE)) ->  | AI58: 1
H59: Totals | I59: =SUM(I39:K58) -> 0 | L59: =SUM(L39:N58) -> 0
BA61: Divider
B62: 1c. Habitats to be enhanced | BA62: ,
BA63: Number of options
B64: Baseline ref | C64: Existing Habitat Type | E64: Enhanced Habitat type | H64: B. Strategic significance | I64: Length Enhanced | J64: Enhanced Condition | L64: Total Units | M64: Net Improvement | O64: Comments | T64: Baseline Values | AE64: Distinctiveness change acceptable? | AF64: Enhanced multipliers | AQ64: Condition enhancement - Time to target condition/years | AR64: Enhanced multipliers | BB64: =COUNTIF(BB66:BB85,"?*") -> 0 | BC64: =COUNTIF(BC66:BC85,"?*") -> 0 | BD64: 0 | BE64: 0 | BF64: 0 | BG64: 0 | BH64: 0 | BI64: 0 | BJ64: 0 | BK64: 0 | BL64: 0 | BM64: 0 | BN64: 0 | BO64: 0 | BP64: 0 | BQ64: 0 | BR64: 0 | BS64: 0 | BT64: 0 | BU64: 0
C65: Broad habitat type | D65: Existing habitat type | E65: Enhancement Type | F65: A. Enhanced habitat type | O65: User comments | P65: LPA comments | T65: Area enhanced | U65: Baseline distinctiveness band | V65: Baseline distinctiveness score | W65: Baseline condition category | X65: Baseline condition score | AB65: Baseline strategic significance category | AC65: Baseline strategic significance score | AD65: Baseline value of area enhanced | AF65: Area enhanced | AG65: Distinctiveness | AH65: Score | AI65: Condition | AJ65: Score | AN65: Strategic significance | AO65: Strategic significance | AP65: Strategic significance multiplier | AR65: Condition enhancement - Time to target multiplier | AS65: Distinctiveness enhancement - Time to target condition/years | AT65: Distinctiveness enhancement - Time to target multiplier | AU65: Difficulty of enhancement category | AV65: Difficulty of enhancement multiplier | AW65: Acceptable habitat types | AX65: Enhancement type | AY65: Enhanced watercourse and riparian encroachment | BA65: Option number | BB65: 1 | BC65: 2 | BD65: 3 | BE65: 4 | BF65: 5 | BG65: 6 | BH65: 7 | BI65: 8 | BJ65: 9 | BK65: 10 | BL65: 11 | BM65: 12 | BN65: 13 | BO65: 14 | BP65: 15 | BQ65: 16 | BR65: 17 | BS65: 18 | BT65: 19 | BU65: 20 | BV65: List range | BW65: Column ref | BX65: list length
B66: 1 | C66: =IF(D66="","",C11) ->  | D66: =IF(OR(K11="", K11=0),"",D11) ->  | E66: =IF(AX66="","",AX66) ->  | H66: =IF(D66="","",AB66) ->  | I66: =IF(OR(K11="",K11=0),"",K11) ->  | J66: =IF(F66="","",VLOOKUP(F66,'10. Condition and Temporal'!$B$6:$F$103,5,FALSE)) ->  | L66: =IFERROR(IF(D66="","",IF(AX66="Distinctiveness",(((((I66*AH66*AJ66*AY66)-(I66*V66*X66))*(AV66*AT66))+(I66*V66*X66))*AP66)/1000,((((I66*AH66*AJ66*AY66)-(I66*V66*X66*AJ11))*(AV66*AR66))+(I66*V66*X66*AJ11))*AP66/1000)),"This intervention is not permitted within the SSM ▲") ->  | M66: =IFERROR(IF(F66="","",L66-AD66), "Error ▲") ->  | T66: =IF(D66="","",K11) ->  | U66: =IF($D66="","",T11) ->  | V66: =IF($D66="","",V11) ->  | AB66: =IF($D66="","",AB11) ->  | AC66: =IF($D66="","",AD11) ->  | AD66: =IF(AC66="","",((T66*V66*X66)*AC66*AJ11)/1000) ->  | AE66: =IF(AD66="","",IF(AH66<V66,"Not Acceptable","Acceptable")) ->  | AF66: =IF(D66="","",I66) ->  | AG66: =IF(D66="","",VLOOKUP(F66,'9. All Habitats + Multipliers'!$C$4:$K$102,5,FALSE)) ->  | AH66: =IF(AG66="","",VLOOKUP(AG66,'11. Lists'!$B$47:$D$49,2,FALSE)) ->  | AI66: =IF(D66="","",J66) ->  | AJ66: =IF(AI66="","",VLOOKUP(AI66,'11. Lists'!$F$47:$G$51,2,FALSE)) ->  | AN66: =IF(H66="","",H66) ->  | AO66: =IF(AN66="","",VLOOKUP(AN66,'11. Lists'!$F$36:$H$38,2,FALSE)) ->  | AP66: =IF(AN66="","",VLOOKUP(AN66,'11. Lists'!$F$36:$H$38,3,FALSE)) ->  | AQ66: =IF(D66="","",IF(AX66="Distinctiveness","N/A",VLOOKUP(F66,'10. Condition and Temporal'!$B$6:$L$103,11,FALSE))) ->  | AR66: =IF(AQ66="","",IF(AQ66="N/A","1",VLOOKUP(AQ66,'11. Lists'!$I$47:$K$80,3,FALSE))) ->  | AS66: =IF(D66="","",IF(AX66="Condition","N/A",VLOOKUP(F66,'10. Condition and Temporal'!$B$6:$M$106,12,FALSE))) ->  | AT66: =IF(AS66="","",IF(AS66="N/A","1",VLOOKUP(AS66,'11. Lists'!$I$47:$K$80,3,FALSE))) ->  | AU66: =IF(D66="","",VLOOKUP(F66,'9. All Habitats + Multipliers'!$C$4:$K$102,8,FALSE)) ->  | AV66: =IF(AU66="","",VLOOKUP(AU66,'11. Lists'!$J$35:$K$38,2,FALSE)) ->  | AW66: =IF(D66="","",VLOOKUP(D66,'10. Condition and Temporal'!$B$6:$M$103,4,FALSE)) ->  | AX66: =IF(F66="","",IF(D66=F66,"Condition","Distinctiveness")) ->  | AY66: =IF($F$66:$G$85="Culvert","0.68","1") -> 1 | AZ66: 1 | BA66: 1 | BB66: =TRIM(MID(SUBSTITUTE($AW$66,$BA$62,REPT(" ",LEN($AW$66))),($BA66-1)*LEN($AW$66)+1,LEN($AW$66))) ->  | BC66: =TRIM(MID(SUBSTITUTE($AW$67,$BA$62,REPT(" ",LEN($AW$67))),($BA66-1)*LEN($AW$67)+1,LEN($AW$67))) ->  | BD66: =TRIM(MID(SUBSTITUTE($AW$68,$BA$62,REPT(" ",LEN($AW$68))),($BA66-1)*LEN($AW$68)+1,LEN($AW$68))) ->  | BE66: =TRIM(MID(SUBSTITUTE($AW$69,$BA$62,REPT(" ",LEN($AW$69))),($BA66-1)*LEN($AW$69)+1,LEN($AW$69))) ->  | BF66: =TRIM(MID(SUBSTITUTE($AW$70,$BA$62,REPT(" ",LEN($AW$70))),($BA66-1)*LEN($AW$70)+1,LEN($AW$70))) ->  | BG66: =TRIM(MID(SUBSTITUTE($AW$71,$BA$62,REPT(" ",LEN($AW$71))),($BA66-1)*LEN($AW$71)+1,LEN($AW$71))) ->  | BH66: =TRIM(MID(SUBSTITUTE($AW$72,$BA$62,REPT(" ",LEN($AW$72))),($BA66-1)*LEN($AW$72)+1,LEN($AW$72))) ->  | BI66: =TRIM(MID(SUBSTITUTE($AW$73,$BA$62,REPT(" ",LEN($AW$73))),($BA66-1)*LEN($AW$73)+1,LEN($AW$73))) ->  | BJ66: =TRIM(MID(SUBSTITUTE($AW$74,$BA$62,REPT(" ",LEN($AW$74))),($BA66-1)*LEN($AW$74)+1,LEN($AW$74))) ->  | BK66: =TRIM(MID(SUBSTITUTE($AW$75,$BA$62,REPT(" ",LEN($AW$75))),($BA66-1)*LEN($AW$75)+1,LEN($AW$75))) ->  | BL66: =TRIM(MID(SUBSTITUTE($AW$76,$BA$62,REPT(" ",LEN($AW$76))),($BA66-1)*LEN($AW$76)+1,LEN($AW$76))) ->  | BM66: =TRIM(MID(SUBSTITUTE($AW$77,$BA$62,REPT(" ",LEN($AW$77))),($BA66-1)*LEN($AW$77)+1,LEN($AW$77))) ->  | BN66: =TRIM(MID(SUBSTITUTE($AW$78,$BA$62,REPT(" ",LEN($AW$78))),($BA66-1)*LEN($AW$78)+1,LEN($AW$78))) ->  | BO66: =TRIM(MID(SUBSTITUTE($AW$79,$BA$62,REPT(" ",LEN($AW$79))),($BA66-1)*LEN($AW$79)+1,LEN($AW$79))) ->  | BP66: =TRIM(MID(SUBSTITUTE($AW$80,$BA$62,REPT(" ",LEN($AW$80))),($BA66-1)*LEN($AW$80)+1,LEN($AW$80))) ->  | BQ66: =TRIM(MID(SUBSTITUTE($AW$81,$BA$62,REPT(" ",LEN($AW$81))),($BA66-1)*LEN($AW$81)+1,LEN($AW$81))) ->  | BR66: =TRIM(MID(SUBSTITUTE($AW$82,$BA$62,REPT(" ",LEN($AW$82))),($BA66-1)*LEN($AW$82)+1,LEN($AW$82))) ->  | BS66: =TRIM(MID(SUBSTITUTE($AW$83,$BA$62,REPT(" ",LEN($AW$83))),($BA66-1)*LEN($AW$83)+1,LEN($AW$83))) ->  | BT66: =TRIM(MID(SUBSTITUTE($AW$84,$BA$62,REPT(" ",LEN($AW$84))),($BA66-1)*LEN($AW$84)+1,LEN($AW$84))) ->  | BU66: =TRIM(MID(SUBSTITUTE($AW$85,$BA$62,REPT(" ",LEN($AW$85))),($BA66-1)*LEN($AW$85)+1,LEN($AW$85))) ->  | BV66: =IF(BX66=0,"",CONCATENATE(BW66,"66:",BW66,BX66+65)) ->  | BW66: BB | BX66: =BB64 -> 0
B67: 2 | D67: =IF(OR(K12="", K12=0),"",D12) ->  | I67: =IF(OR(K12="",K12=0),"",K12) ->  | J67: =IF(F67="","",VLOOKUP(F67,'10. Condition and Temporal'!$B$6:$F$103,5,FALSE)) ->  | L67: =IFERROR(IF(D67="","",IF(AX67="Distinctiveness",(((((I67*AH67*AJ67*AY67)-(I67*V67*X67))*(AV67*AT67))+(I67*V67*X67))*AP67)/1000,((((I67*AH67*AJ67*AY67)-(I67*V67*X67*AJ12))*(AV67*AR67))+(I67*V67*X67*AJ12))*AP67/1000)),"This intervention is not permitted within the SSM ▲") ->  | M67: =IFERROR(IF(F67="","",L67-AD67), "Error ▲") ->  | U67: =IF($D67="","",T12) ->  | AD67: =IF(AC67="","",((T67*V67*X67)*AC67*AJ12)/1000) ->  | AE67: =IF(AD67="","",IF(AH67<V67,"Not Acceptable","Acceptable")) ->  | AG67: =IF(D67="","",VLOOKUP(F67,'9. All Habitats + Multipliers'!$C$4:$K$102,5,FALSE)) ->  | AH67: =IF(AG67="","",VLOOKUP(AG67,'11. Lists'!$B$47:$D$49,2,FALSE)) ->  | AJ67: =IF(AI67="","",VLOOKUP(AI67,'11. Lists'!$F$47:$G$51,2,FALSE)) ->  | AO67: =IF(AN67="","",VLOOKUP(AN67,'11. Lists'!$F$36:$H$38,2,FALSE)) ->  | AP67: =IF(AN67="","",VLOOKUP(AN67,'11. Lists'!$F$36:$H$38,3,FALSE)) ->  | AQ67: =IF(D67="","",IF(AX67="Distinctiveness","N/A",VLOOKUP(F67,'10. Condition and Temporal'!$B$6:$L$103,11,FALSE))) ->  | AR67: =IF(AQ67="","",IF(AQ67="N/A","1",VLOOKUP(AQ67,'11. Lists'!$I$47:$K$80,3,FALSE))) ->  | AS67: =IF(D67="","",IF(AX67="Condition","N/A",VLOOKUP(F67,'10. Condition and Temporal'!$B$6:$M$106,12,FALSE))) ->  | AT67: =IF(AS67="","",IF(AS67="N/A","1",VLOOKUP(AS67,'11. Lists'!$I$47:$K$80,3,FALSE))) ->  | AU67: =IF(D67="","",VLOOKUP(F67,'9. All Habitats + Multipliers'!$C$4:$K$102,8,FALSE)) ->  | AV67: =IF(AU67="","",VLOOKUP(AU67,'11. Lists'!$J$35:$K$38,2,FALSE)) ->  | AW67: =IF(D67="","",VLOOKUP(D67,'10. Condition and Temporal'!$B$6:$M$103,4,FALSE)) ->  | AY67: 1 | AZ67: 1 | BA67: 2 | BV67: =IF(BX67=0,"",CONCATENATE(BW67,"66:",BW67,BX67+65)) ->  | BW67: BC | BX67: =BC64 -> 0
B68: 3 | J68: =IF(F68="","",VLOOKUP(F68,'10. Condition and Temporal'!$B$6:$F$103,5,FALSE)) ->  | AG68: =IF(D68="","",VLOOKUP(F68,'9. All Habitats + Multipliers'!$C$4:$K$102,5,FALSE)) ->  | AH68: =IF(AG68="","",VLOOKUP(AG68,'11. Lists'!$B$47:$D$49,2,FALSE)) ->  | AJ68: =IF(AI68="","",VLOOKUP(AI68,'11. Lists'!$F$47:$G$51,2,FALSE)) ->  | AO68: =IF(AN68="","",VLOOKUP(AN68,'11. Lists'!$F$36:$H$38,2,FALSE)) ->  | AP68: =IF(AN68="","",VLOOKUP(AN68,'11. Lists'!$F$36:$H$38,3,FALSE)) ->  | AQ68: =IF(D68="","",IF(AX68="Distinctiveness","N/A",VLOOKUP(F68,'10. Condition and Temporal'!$B$6:$L$103,11,FALSE))) ->  | AR68: =IF(AQ68="","",IF(AQ68="N/A","1",VLOOKUP(AQ68,'11. Lists'!$I$47:$K$80,3,FALSE))) ->  | AS68: =IF(D68="","",IF(AX68="Condition","N/A",VLOOKUP(F68,'10. Condition and Temporal'!$B$6:$M$106,12,FALSE))) ->  | AT68: =IF(AS68="","",IF(AS68="N/A","1",VLOOKUP(AS68,'11. Lists'!$I$47:$K$80,3,FALSE))) ->  | AU68: =IF(D68="","",VLOOKUP(F68,'9. All Habitats + Multipliers'!$C$4:$K$102,8,FALSE)) ->  | AV68: =IF(AU68="","",VLOOKUP(AU68,'11. Lists'!$J$35:$K$38,2,FALSE)) ->  | AW68: =IF(D68="","",VLOOKUP(D68,'10. Condition and Temporal'!$B$6:$M$103,4,FALSE)) ->  | AY68: 1 | AZ68: 1 | BA68: 3 | BW68: BD | BX68: =BD64 -> 0
B69: 4 | J69: =IF(F69="","",VLOOKUP(F69,'10. Condition and Temporal'!$B$6:$F$103,5,FALSE)) ->  | AG69: =IF(D69="","",VLOOKUP(F69,'9. All Habitats + Multipliers'!$C$4:$K$102,5,FALSE)) ->  | AH69: =IF(AG69="","",VLOOKUP(AG69,'11. Lists'!$B$47:$D$49,2,FALSE)) ->  | AJ69: =IF(AI69="","",VLOOKUP(AI69,'11. Lists'!$F$47:$G$51,2,FALSE)) ->  | AO69: =IF(AN69="","",VLOOKUP(AN69,'11. Lists'!$F$36:$H$38,2,FALSE)) ->  | AP69: =IF(AN69="","",VLOOKUP(AN69,'11. Lists'!$F$36:$H$38,3,FALSE)) ->  | AQ69: =IF(D69="","",IF(AX69="Distinctiveness","N/A",VLOOKUP(F69,'10. Condition and Temporal'!$B$6:$L$103,11,FALSE))) ->  | AR69: =IF(AQ69="","",IF(AQ69="N/A","1",VLOOKUP(AQ69,'11. Lists'!$I$47:$K$80,3,FALSE))) ->  | AS69: =IF(D69="","",IF(AX69="Condition","N/A",VLOOKUP(F69,'10. Condition and Temporal'!$B$6:$M$106,12,FALSE))) ->  | AT69: =IF(AS69="","",IF(AS69="N/A","1",VLOOKUP(AS69,'11. Lists'!$I$47:$K$80,3,FALSE))) ->  | AU69: =IF(D69="","",VLOOKUP(F69,'9. All Habitats + Multipliers'!$C$4:$K$102,8,FALSE)) ->  | AV69: =IF(AU69="","",VLOOKUP(AU69,'11. Lists'!$J$35:$K$38,2,FALSE)) ->  | AW69: =IF(D69="","",VLOOKUP(D69,'10. Condition and Temporal'!$B$6:$M$103,4,FALSE)) ->  | AY69: 1 | AZ69: 1 | BA69: 4 | BW69: BE | BX69: =BE64 -> 0
B70: 5 | J70: =IF(F70="","",VLOOKUP(F70,'10. Condition and Temporal'!$B$6:$F$103,5,FALSE)) ->  | AG70: =IF(D70="","",VLOOKUP(F70,'9. All Habitats + Multipliers'!$C$4:$K$102,5,FALSE)) ->  | AH70: =IF(AG70="","",VLOOKUP(AG70,'11. Lists'!$B$47:$D$49,2,FALSE)) ->  | AJ70: =IF(AI70="","",VLOOKUP(AI70,'11. Lists'!$F$47:$G$51,2,FALSE)) ->  | AO70: =IF(AN70="","",VLOOKUP(AN70,'11. Lists'!$F$36:$H$38,2,FALSE)) ->  | AP70: =IF(AN70="","",VLOOKUP(AN70,'11. Lists'!$F$36:$H$38,3,FALSE)) ->  | AQ70: =IF(D70="","",IF(AX70="Distinctiveness","N/A",VLOOKUP(F70,'10. Condition and Temporal'!$B$6:$L$103,11,FALSE))) ->  | AR70: =IF(AQ70="","",IF(AQ70="N/A","1",VLOOKUP(AQ70,'11. Lists'!$I$47:$K$80,3,FALSE))) ->  | AS70: =IF(D70="","",IF(AX70="Condition","N/A",VLOOKUP(F70,'10. Condition and Temporal'!$B$6:$M$106,12,FALSE))) ->  | AT70: =IF(AS70="","",IF(AS70="N/A","1",VLOOKUP(AS70,'11. Lists'!$I$47:$K$80,3,FALSE))) ->  | AU70: =IF(D70="","",VLOOKUP(F70,'9. All Habitats + Multipliers'!$C$4:$K$102,8,FALSE)) ->  | AV70: =IF(AU70="","",VLOOKUP(AU70,'11. Lists'!$J$35:$K$38,2,FALSE)) ->  | AW70: =IF(D70="","",VLOOKUP(D70,'10. Condition and Temporal'!$B$6:$M$103,4,FALSE)) ->  | AY70: 1 | AZ70: 1 | BA70: 5 | BW70: BF | BX70: =BF64 -> 0
B71: 6 | J71: =IF(F71="","",VLOOKUP(F71,'10. Condition and Temporal'!$B$6:$F$103,5,FALSE)) ->  | AG71: =IF(D71="","",VLOOKUP(F71,'9. All Habitats + Multipliers'!$C$4:$K$102,5,FALSE)) ->  | AH71: =IF(AG71="","",VLOOKUP(AG71,'11. Lists'!$B$47:$D$49,2,FALSE)) ->  | AJ71: =IF(AI71="","",VLOOKUP(AI71,'11. Lists'!$F$47:$G$51,2,FALSE)) ->  | AO71: =IF(AN71="","",VLOOKUP(AN71,'11. Lists'!$F$36:$H$38,2,FALSE)) ->  | AP71: =IF(AN71="","",VLOOKUP(AN71,'11. Lists'!$F$36:$H$38,3,FALSE)) ->  | AQ71: =IF(D71="","",IF(AX71="Distinctiveness","N/A",VLOOKUP(F71,'10. Condition and Temporal'!$B$6:$L$103,11,FALSE))) ->  | AR71: =IF(AQ71="","",IF(AQ71="N/A","1",VLOOKUP(AQ71,'11. Lists'!$I$47:$K$80,3,FALSE))) ->  | AS71: =IF(D71="","",IF(AX71="Condition","N/A",VLOOKUP(F71,'10. Condition and Temporal'!$B$6:$M$106,12,FALSE))) ->  | AT71: =IF(AS71="","",IF(AS71="N/A","1",VLOOKUP(AS71,'11. Lists'!$I$47:$K$80,3,FALSE))) ->  | AU71: =IF(D71="","",VLOOKUP(F71,'9. All Habitats + Multipliers'!$C$4:$K$102,8,FALSE)) ->  | AV71: =IF(AU71="","",VLOOKUP(AU71,'11. Lists'!$J$35:$K$38,2,FALSE)) ->  | AW71: =IF(D71="","",VLOOKUP(D71,'10. Condition and Temporal'!$B$6:$M$103,4,FALSE)) ->  | AY71: 1 | AZ71: 1 | BA71: 6 | BW71: BG | BX71: =BG64 -> 0
B72: 7 | J72: =IF(F72="","",VLOOKUP(F72,'10. Condition and Temporal'!$B$6:$F$103,5,FALSE)) ->  | AG72: =IF(D72="","",VLOOKUP(F72,'9. All Habitats + Multipliers'!$C$4:$K$102,5,FALSE)) ->  | AH72: =IF(AG72="","",VLOOKUP(AG72,'11. Lists'!$B$47:$D$49,2,FALSE)) ->  | AJ72: =IF(AI72="","",VLOOKUP(AI72,'11. Lists'!$F$47:$G$51,2,FALSE)) ->  | AO72: =IF(AN72="","",VLOOKUP(AN72,'11. Lists'!$F$36:$H$38,2,FALSE)) ->  | AP72: =IF(AN72="","",VLOOKUP(AN72,'11. Lists'!$F$36:$H$38,3,FALSE)) ->  | AQ72: =IF(D72="","",IF(AX72="Distinctiveness","N/A",VLOOKUP(F72,'10. Condition and Temporal'!$B$6:$L$103,11,FALSE))) ->  | AR72: =IF(AQ72="","",IF(AQ72="N/A","1",VLOOKUP(AQ72,'11. Lists'!$I$47:$K$80,3,FALSE))) ->  | AS72: =IF(D72="","",IF(AX72="Condition","N/A",VLOOKUP(F72,'10. Condition and Temporal'!$B$6:$M$106,12,FALSE))) ->  | AT72: =IF(AS72="","",IF(AS72="N/A","1",VLOOKUP(AS72,'11. Lists'!$I$47:$K$80,3,FALSE))) ->  | AU72: =IF(D72="","",VLOOKUP(F72,'9. All Habitats + Multipliers'!$C$4:$K$102,8,FALSE)) ->  | AV72: =IF(AU72="","",VLOOKUP(AU72,'11. Lists'!$J$35:$K$38,2,FALSE)) ->  | AW72: =IF(D72="","",VLOOKUP(D72,'10. Condition and Temporal'!$B$6:$M$103,4,FALSE)) ->  | AY72: 1 | AZ72: 1 | BA72: 7 | BW72: BH | BX72: =BH64 -> 0
B73: 8 | J73: =IF(F73="","",VLOOKUP(F73,'10. Condition and Temporal'!$B$6:$F$103,5,FALSE)) ->  | AG73: =IF(D73="","",VLOOKUP(F73,'9. All Habitats + Multipliers'!$C$4:$K$102,5,FALSE)) ->  | AH73: =IF(AG73="","",VLOOKUP(AG73,'11. Lists'!$B$47:$D$49,2,FALSE)) ->  | AJ73: =IF(AI73="","",VLOOKUP(AI73,'11. Lists'!$F$47:$G$51,2,FALSE)) ->  | AO73: =IF(AN73="","",VLOOKUP(AN73,'11. Lists'!$F$36:$H$38,2,FALSE)) ->  | AP73: =IF(AN73="","",VLOOKUP(AN73,'11. Lists'!$F$36:$H$38,3,FALSE)) ->  | AQ73: =IF(D73="","",IF(AX73="Distinctiveness","N/A",VLOOKUP(F73,'10. Condition and Temporal'!$B$6:$L$103,11,FALSE))) ->  | AR73: =IF(AQ73="","",IF(AQ73="N/A","1",VLOOKUP(AQ73,'11. Lists'!$I$47:$K$80,3,FALSE))) ->  | AS73: =IF(D73="","",IF(AX73="Condition","N/A",VLOOKUP(F73,'10. Condition and Temporal'!$B$6:$M$106,12,FALSE))) ->  | AT73: =IF(AS73="","",IF(AS73="N/A","1",VLOOKUP(AS73,'11. Lists'!$I$47:$K$80,3,FALSE))) ->  | AU73: =IF(D73="","",VLOOKUP(F73,'9. All Habitats + Multipliers'!$C$4:$K$102,8,FALSE)) ->  | AV73: =IF(AU73="","",VLOOKUP(AU73,'11. Lists'!$J$35:$K$38,2,FALSE)) ->  | AW73: =IF(D73="","",VLOOKUP(D73,'10. Condition and Temporal'!$B$6:$M$103,4,FALSE)) ->  | AY73: 1 | AZ73: 1 | BA73: 8 | BW73: BI | BX73: =BI64 -> 0
B74: 9 | J74: =IF(F74="","",VLOOKUP(F74,'10. Condition and Temporal'!$B$6:$F$103,5,FALSE)) ->  | AG74: =IF(D74="","",VLOOKUP(F74,'9. All Habitats + Multipliers'!$C$4:$K$102,5,FALSE)) ->  | AH74: =IF(AG74="","",VLOOKUP(AG74,'11. Lists'!$B$47:$D$49,2,FALSE)) ->  | AJ74: =IF(AI74="","",VLOOKUP(AI74,'11. Lists'!$F$47:$G$51,2,FALSE)) ->  | AO74: =IF(AN74="","",VLOOKUP(AN74,'11. Lists'!$F$36:$H$38,2,FALSE)) ->  | AP74: =IF(AN74="","",VLOOKUP(AN74,'11. Lists'!$F$36:$H$38,3,FALSE)) ->  | AQ74: =IF(D74="","",IF(AX74="Distinctiveness","N/A",VLOOKUP(F74,'10. Condition and Temporal'!$B$6:$L$103,11,FALSE))) ->  | AR74: =IF(AQ74="","",IF(AQ74="N/A","1",VLOOKUP(AQ74,'11. Lists'!$I$47:$K$80,3,FALSE))) ->  | AS74: =IF(D74="","",IF(AX74="Condition","N/A",VLOOKUP(F74,'10. Condition and Temporal'!$B$6:$M$106,12,FALSE))) ->  | AT74: =IF(AS74="","",IF(AS74="N/A","1",VLOOKUP(AS74,'11. Lists'!$I$47:$K$80,3,FALSE))) ->  | AU74: =IF(D74="","",VLOOKUP(F74,'9. All Habitats + Multipliers'!$C$4:$K$102,8,FALSE)) ->  | AV74: =IF(AU74="","",VLOOKUP(AU74,'11. Lists'!$J$35:$K$38,2,FALSE)) ->  | AW74: =IF(D74="","",VLOOKUP(D74,'10. Condition and Temporal'!$B$6:$M$103,4,FALSE)) ->  | AY74: 1 | AZ74: 1 | BA74: 9 | BW74: BJ | BX74: =BJ64 -> 0
B75: 10 | J75: =IF(F75="","",VLOOKUP(F75,'10. Condition and Temporal'!$B$6:$F$103,5,FALSE)) ->  | AG75: =IF(D75="","",VLOOKUP(F75,'9. All Habitats + Multipliers'!$C$4:$K$102,5,FALSE)) ->  | AH75: =IF(AG75="","",VLOOKUP(AG75,'11. Lists'!$B$47:$D$49,2,FALSE)) ->  | AJ75: =IF(AI75="","",VLOOKUP(AI75,'11. Lists'!$F$47:$G$51,2,FALSE)) ->  | AO75: =IF(AN75="","",VLOOKUP(AN75,'11. Lists'!$F$36:$H$38,2,FALSE)) ->  | AP75: =IF(AN75="","",VLOOKUP(AN75,'11. Lists'!$F$36:$H$38,3,FALSE)) ->  | AQ75: =IF(D75="","",IF(AX75="Distinctiveness","N/A",VLOOKUP(F75,'10. Condition and Temporal'!$B$6:$L$103,11,FALSE))) ->  | AR75: =IF(AQ75="","",IF(AQ75="N/A","1",VLOOKUP(AQ75,'11. Lists'!$I$47:$K$80,3,FALSE))) ->  | AS75: =IF(D75="","",IF(AX75="Condition","N/A",VLOOKUP(F75,'10. Condition and Temporal'!$B$6:$M$106,12,FALSE))) ->  | AT75: =IF(AS75="","",IF(AS75="N/A","1",VLOOKUP(AS75,'11. Lists'!$I$47:$K$80,3,FALSE))) ->  | AU75: =IF(D75="","",VLOOKUP(F75,'9. All Habitats + Multipliers'!$C$4:$K$102,8,FALSE)) ->  | AV75: =IF(AU75="","",VLOOKUP(AU75,'11. Lists'!$J$35:$K$38,2,FALSE)) ->  | AW75: =IF(D75="","",VLOOKUP(D75,'10. Condition and Temporal'!$B$6:$M$103,4,FALSE)) ->  | AY75: 1 | AZ75: 1 | BA75: 10 | BW75: BK | BX75: =BK64 -> 0
B76: 11 | J76: =IF(F76="","",VLOOKUP(F76,'10. Condition and Temporal'!$B$6:$F$103,5,FALSE)) ->  | AG76: =IF(D76="","",VLOOKUP(F76,'9. All Habitats + Multipliers'!$C$4:$K$102,5,FALSE)) ->  | AH76: =IF(AG76="","",VLOOKUP(AG76,'11. Lists'!$B$47:$D$49,2,FALSE)) ->  | AJ76: =IF(AI76="","",VLOOKUP(AI76,'11. Lists'!$F$47:$G$51,2,FALSE)) ->  | AO76: =IF(AN76="","",VLOOKUP(AN76,'11. Lists'!$F$36:$H$38,2,FALSE)) ->  | AP76: =IF(AN76="","",VLOOKUP(AN76,'11. Lists'!$F$36:$H$38,3,FALSE)) ->  | AQ76: =IF(D76="","",IF(AX76="Distinctiveness","N/A",VLOOKUP(F76,'10. Condition and Temporal'!$B$6:$L$103,11,FALSE))) ->  | AR76: =IF(AQ76="","",IF(AQ76="N/A","1",VLOOKUP(AQ76,'11. Lists'!$I$47:$K$80,3,FALSE))) ->  | AS76: =IF(D76="","",IF(AX76="Condition","N/A",VLOOKUP(F76,'10. Condition and Temporal'!$B$6:$M$106,12,FALSE))) ->  | AT76: =IF(AS76="","",IF(AS76="N/A","1",VLOOKUP(AS76,'11. Lists'!$I$47:$K$80,3,FALSE))) ->  | AU76: =IF(D76="","",VLOOKUP(F76,'9. All Habitats + Multipliers'!$C$4:$K$102,8,FALSE)) ->  | AV76: =IF(AU76="","",VLOOKUP(AU76,'11. Lists'!$J$35:$K$38,2,FALSE)) ->  | AW76: =IF(D76="","",VLOOKUP(D76,'10. Condition and Temporal'!$B$6:$M$103,4,FALSE)) ->  | AY76: 1 | AZ76: 1 | BA76: 11 | BW76: BL | BX76: =BL64 -> 0
B77: 12 | J77: =IF(F77="","",VLOOKUP(F77,'10. Condition and Temporal'!$B$6:$F$103,5,FALSE)) ->  | AG77: =IF(D77="","",VLOOKUP(F77,'9. All Habitats + Multipliers'!$C$4:$K$102,5,FALSE)) ->  | AH77: =IF(AG77="","",VLOOKUP(AG77,'11. Lists'!$B$47:$D$49,2,FALSE)) ->  | AJ77: =IF(AI77="","",VLOOKUP(AI77,'11. Lists'!$F$47:$G$51,2,FALSE)) ->  | AO77: =IF(AN77="","",VLOOKUP(AN77,'11. Lists'!$F$36:$H$38,2,FALSE)) ->  | AP77: =IF(AN77="","",VLOOKUP(AN77,'11. Lists'!$F$36:$H$38,3,FALSE)) ->  | AQ77: =IF(D77="","",IF(AX77="Distinctiveness","N/A",VLOOKUP(F77,'10. Condition and Temporal'!$B$6:$L$103,11,FALSE))) ->  | AR77: =IF(AQ77="","",IF(AQ77="N/A","1",VLOOKUP(AQ77,'11. Lists'!$I$47:$K$80,3,FALSE))) ->  | AS77: =IF(D77="","",IF(AX77="Condition","N/A",VLOOKUP(F77,'10. Condition and Temporal'!$B$6:$M$106,12,FALSE))) ->  | AT77: =IF(AS77="","",IF(AS77="N/A","1",VLOOKUP(AS77,'11. Lists'!$I$47:$K$80,3,FALSE))) ->  | AU77: =IF(D77="","",VLOOKUP(F77,'9. All Habitats + Multipliers'!$C$4:$K$102,8,FALSE)) ->  | AV77: =IF(AU77="","",VLOOKUP(AU77,'11. Lists'!$J$35:$K$38,2,FALSE)) ->  | AW77: =IF(D77="","",VLOOKUP(D77,'10. Condition and Temporal'!$B$6:$M$103,4,FALSE)) ->  | AY77: 1 | AZ77: 1 | BA77: 12 | BW77: BM | BX77: =BM64 -> 0
B78: 13 | J78: =IF(F78="","",VLOOKUP(F78,'10. Condition and Temporal'!$B$6:$F$103,5,FALSE)) ->  | AG78: =IF(D78="","",VLOOKUP(F78,'9. All Habitats + Multipliers'!$C$4:$K$102,5,FALSE)) ->  | AH78: =IF(AG78="","",VLOOKUP(AG78,'11. Lists'!$B$47:$D$49,2,FALSE)) ->  | AJ78: =IF(AI78="","",VLOOKUP(AI78,'11. Lists'!$F$47:$G$51,2,FALSE)) ->  | AO78: =IF(AN78="","",VLOOKUP(AN78,'11. Lists'!$F$36:$H$38,2,FALSE)) ->  | AP78: =IF(AN78="","",VLOOKUP(AN78,'11. Lists'!$F$36:$H$38,3,FALSE)) ->  | AQ78: =IF(D78="","",IF(AX78="Distinctiveness","N/A",VLOOKUP(F78,'10. Condition and Temporal'!$B$6:$L$103,11,FALSE))) ->  | AR78: =IF(AQ78="","",IF(AQ78="N/A","1",VLOOKUP(AQ78,'11. Lists'!$I$47:$K$80,3,FALSE))) ->  | AS78: =IF(D78="","",IF(AX78="Condition","N/A",VLOOKUP(F78,'10. Condition and Temporal'!$B$6:$M$106,12,FALSE))) ->  | AT78: =IF(AS78="","",IF(AS78="N/A","1",VLOOKUP(AS78,'11. Lists'!$I$47:$K$80,3,FALSE))) ->  | AU78: =IF(D78="","",VLOOKUP(F78,'9. All Habitats + Multipliers'!$C$4:$K$102,8,FALSE)) ->  | AV78: =IF(AU78="","",VLOOKUP(AU78,'11. Lists'!$J$35:$K$38,2,FALSE)) ->  | AW78: =IF(D78="","",VLOOKUP(D78,'10. Condition and Temporal'!$B$6:$M$103,4,FALSE)) ->  | AY78: 1 | AZ78: 1 | BA78: 13 | BW78: BN | BX78: =BN64 -> 0
B79: 14 | J79: =IF(F79="","",VLOOKUP(F79,'10. Condition and Temporal'!$B$6:$F$103,5,FALSE)) ->  | AG79: =IF(D79="","",VLOOKUP(F79,'9. All Habitats + Multipliers'!$C$4:$K$102,5,FALSE)) ->  | AH79: =IF(AG79="","",VLOOKUP(AG79,'11. Lists'!$B$47:$D$49,2,FALSE)) ->  | AJ79: =IF(AI79="","",VLOOKUP(AI79,'11. Lists'!$F$47:$G$51,2,FALSE)) ->  | AO79: =IF(AN79="","",VLOOKUP(AN79,'11. Lists'!$F$36:$H$38,2,FALSE)) ->  | AP79: =IF(AN79="","",VLOOKUP(AN79,'11. Lists'!$F$36:$H$38,3,FALSE)) ->  | AQ79: =IF(D79="","",IF(AX79="Distinctiveness","N/A",VLOOKUP(F79,'10. Condition and Temporal'!$B$6:$L$103,11,FALSE))) ->  | AR79: =IF(AQ79="","",IF(AQ79="N/A","1",VLOOKUP(AQ79,'11. Lists'!$I$47:$K$80,3,FALSE))) ->  | AS79: =IF(D79="","",IF(AX79="Condition","N/A",VLOOKUP(F79,'10. Condition and Temporal'!$B$6:$M$106,12,FALSE))) ->  | AT79: =IF(AS79="","",IF(AS79="N/A","1",VLOOKUP(AS79,'11. Lists'!$I$47:$K$80,3,FALSE))) ->  | AU79: =IF(D79="","",VLOOKUP(F79,'9. All Habitats + Multipliers'!$C$4:$K$102,8,FALSE)) ->  | AV79: =IF(AU79="","",VLOOKUP(AU79,'11. Lists'!$J$35:$K$38,2,FALSE)) ->  | AW79: =IF(D79="","",VLOOKUP(D79,'10. Condition and Temporal'!$B$6:$M$103,4,FALSE)) ->  | AY79: 1 | AZ79: 1 | BA79: 14 | BW79: BO | BX79: =BO64 -> 0
B80: 15 | J80: =IF(F80="","",VLOOKUP(F80,'10. Condition and Temporal'!$B$6:$F$103,5,FALSE)) ->  | AG80: =IF(D80="","",VLOOKUP(F80,'9. All Habitats + Multipliers'!$C$4:$K$102,5,FALSE)) ->  | AH80: =IF(AG80="","",VLOOKUP(AG80,'11. Lists'!$B$47:$D$49,2,FALSE)) ->  | AJ80: =IF(AI80="","",VLOOKUP(AI80,'11. Lists'!$F$47:$G$51,2,FALSE)) ->  | AO80: =IF(AN80="","",VLOOKUP(AN80,'11. Lists'!$F$36:$H$38,2,FALSE)) ->  | AP80: =IF(AN80="","",VLOOKUP(AN80,'11. Lists'!$F$36:$H$38,3,FALSE)) ->  | AQ80: =IF(D80="","",IF(AX80="Distinctiveness","N/A",VLOOKUP(F80,'10. Condition and Temporal'!$B$6:$L$103,11,FALSE))) ->  | AR80: =IF(AQ80="","",IF(AQ80="N/A","1",VLOOKUP(AQ80,'11. Lists'!$I$47:$K$80,3,FALSE))) ->  | AS80: =IF(D80="","",IF(AX80="Condition","N/A",VLOOKUP(F80,'10. Condition and Temporal'!$B$6:$M$106,12,FALSE))) ->  | AT80: =IF(AS80="","",IF(AS80="N/A","1",VLOOKUP(AS80,'11. Lists'!$I$47:$K$80,3,FALSE))) ->  | AU80: =IF(D80="","",VLOOKUP(F80,'9. All Habitats + Multipliers'!$C$4:$K$102,8,FALSE)) ->  | AV80: =IF(AU80="","",VLOOKUP(AU80,'11. Lists'!$J$35:$K$38,2,FALSE)) ->  | AW80: =IF(D80="","",VLOOKUP(D80,'10. Condition and Temporal'!$B$6:$M$103,4,FALSE)) ->  | AY80: 1 | AZ80: 1 | BA80: 15 | BW80: BP | BX80: =BP64 -> 0
B81: 16 | J81: =IF(F81="","",VLOOKUP(F81,'10. Condition and Temporal'!$B$6:$F$103,5,FALSE)) ->  | AG81: =IF(D81="","",VLOOKUP(F81,'9. All Habitats + Multipliers'!$C$4:$K$102,5,FALSE)) ->  | AH81: =IF(AG81="","",VLOOKUP(AG81,'11. Lists'!$B$47:$D$49,2,FALSE)) ->  | AJ81: =IF(AI81="","",VLOOKUP(AI81,'11. Lists'!$F$47:$G$51,2,FALSE)) ->  | AO81: =IF(AN81="","",VLOOKUP(AN81,'11. Lists'!$F$36:$H$38,2,FALSE)) ->  | AP81: =IF(AN81="","",VLOOKUP(AN81,'11. Lists'!$F$36:$H$38,3,FALSE)) ->  | AQ81: =IF(D81="","",IF(AX81="Distinctiveness","N/A",VLOOKUP(F81,'10. Condition and Temporal'!$B$6:$L$103,11,FALSE))) ->  | AR81: =IF(AQ81="","",IF(AQ81="N/A","1",VLOOKUP(AQ81,'11. Lists'!$I$47:$K$80,3,FALSE))) ->  | AS81: =IF(D81="","",IF(AX81="Condition","N/A",VLOOKUP(F81,'10. Condition and Temporal'!$B$6:$M$106,12,FALSE))) ->  | AT81: =IF(AS81="","",IF(AS81="N/A","1",VLOOKUP(AS81,'11. Lists'!$I$47:$K$80,3,FALSE))) ->  | AU81: =IF(D81="","",VLOOKUP(F81,'9. All Habitats + Multipliers'!$C$4:$K$102,8,FALSE)) ->  | AV81: =IF(AU81="","",VLOOKUP(AU81,'11. Lists'!$J$35:$K$38,2,FALSE)) ->  | AW81: =IF(D81="","",VLOOKUP(D81,'10. Condition and Temporal'!$B$6:$M$103,4,FALSE)) ->  | AY81: 1 | AZ81: 1 | BA81: 16 | BW81: BQ | BX81: =BQ64 -> 0
B82: 17 | J82: =IF(F82="","",VLOOKUP(F82,'10. Condition and Temporal'!$B$6:$F$103,5,FALSE)) ->  | AG82: =IF(D82="","",VLOOKUP(F82,'9. All Habitats + Multipliers'!$C$4:$K$102,5,FALSE)) ->  | AH82: =IF(AG82="","",VLOOKUP(AG82,'11. Lists'!$B$47:$D$49,2,FALSE)) ->  | AJ82: =IF(AI82="","",VLOOKUP(AI82,'11. Lists'!$F$47:$G$51,2,FALSE)) ->  | AO82: =IF(AN82="","",VLOOKUP(AN82,'11. Lists'!$F$36:$H$38,2,FALSE)) ->  | AP82: =IF(AN82="","",VLOOKUP(AN82,'11. Lists'!$F$36:$H$38,3,FALSE)) ->  | AQ82: =IF(D82="","",IF(AX82="Distinctiveness","N/A",VLOOKUP(F82,'10. Condition and Temporal'!$B$6:$L$103,11,FALSE))) ->  | AR82: =IF(AQ82="","",IF(AQ82="N/A","1",VLOOKUP(AQ82,'11. Lists'!$I$47:$K$80,3,FALSE))) ->  | AS82: =IF(D82="","",IF(AX82="Condition","N/A",VLOOKUP(F82,'10. Condition and Temporal'!$B$6:$M$106,12,FALSE))) ->  | AT82: =IF(AS82="","",IF(AS82="N/A","1",VLOOKUP(AS82,'11. Lists'!$I$47:$K$80,3,FALSE))) ->  | AU82: =IF(D82="","",VLOOKUP(F82,'9. All Habitats + Multipliers'!$C$4:$K$102,8,FALSE)) ->  | AV82: =IF(AU82="","",VLOOKUP(AU82,'11. Lists'!$J$35:$K$38,2,FALSE)) ->  | AW82: =IF(D82="","",VLOOKUP(D82,'10. Condition and Temporal'!$B$6:$M$103,4,FALSE)) ->  | AY82: 1 | AZ82: 1 | BA82: 17 | BW82: BR | BX82: =BR64 -> 0
B83: 18 | J83: =IF(F83="","",VLOOKUP(F83,'10. Condition and Temporal'!$B$6:$F$103,5,FALSE)) ->  | AG83: =IF(D83="","",VLOOKUP(F83,'9. All Habitats + Multipliers'!$C$4:$K$102,5,FALSE)) ->  | AH83: =IF(AG83="","",VLOOKUP(AG83,'11. Lists'!$B$47:$D$49,2,FALSE)) ->  | AJ83: =IF(AI83="","",VLOOKUP(AI83,'11. Lists'!$F$47:$G$51,2,FALSE)) ->  | AO83: =IF(AN83="","",VLOOKUP(AN83,'11. Lists'!$F$36:$H$38,2,FALSE)) ->  | AP83: =IF(AN83="","",VLOOKUP(AN83,'11. Lists'!$F$36:$H$38,3,FALSE)) ->  | AQ83: =IF(D83="","",IF(AX83="Distinctiveness","N/A",VLOOKUP(F83,'10. Condition and Temporal'!$B$6:$L$103,11,FALSE))) ->  | AR83: =IF(AQ83="","",IF(AQ83="N/A","1",VLOOKUP(AQ83,'11. Lists'!$I$47:$K$80,3,FALSE))) ->  | AS83: =IF(D83="","",IF(AX83="Condition","N/A",VLOOKUP(F83,'10. Condition and Temporal'!$B$6:$M$106,12,FALSE))) ->  | AT83: =IF(AS83="","",IF(AS83="N/A","1",VLOOKUP(AS83,'11. Lists'!$I$47:$K$80,3,FALSE))) ->  | AU83: =IF(D83="","",VLOOKUP(F83,'9. All Habitats + Multipliers'!$C$4:$K$102,8,FALSE)) ->  | AV83: =IF(AU83="","",VLOOKUP(AU83,'11. Lists'!$J$35:$K$38,2,FALSE)) ->  | AW83: =IF(D83="","",VLOOKUP(D83,'10. Condition and Temporal'!$B$6:$M$103,4,FALSE)) ->  | AY83: 1 | AZ83: 1 | BA83: 18 | BW83: BS | BX83: =BS64 -> 0
B84: 19 | J84: =IF(F84="","",VLOOKUP(F84,'10. Condition and Temporal'!$B$6:$F$103,5,FALSE)) ->  | AG84: =IF(D84="","",VLOOKUP(F84,'9. All Habitats + Multipliers'!$C$4:$K$102,5,FALSE)) ->  | AH84: =IF(AG84="","",VLOOKUP(AG84,'11. Lists'!$B$47:$D$49,2,FALSE)) ->  | AJ84: =IF(AI84="","",VLOOKUP(AI84,'11. Lists'!$F$47:$G$51,2,FALSE)) ->  | AO84: =IF(AN84="","",VLOOKUP(AN84,'11. Lists'!$F$36:$H$38,2,FALSE)) ->  | AP84: =IF(AN84="","",VLOOKUP(AN84,'11. Lists'!$F$36:$H$38,3,FALSE)) ->  | AQ84: =IF(D84="","",IF(AX84="Distinctiveness","N/A",VLOOKUP(F84,'10. Condition and Temporal'!$B$6:$L$103,11,FALSE))) ->  | AR84: =IF(AQ84="","",IF(AQ84="N/A","1",VLOOKUP(AQ84,'11. Lists'!$I$47:$K$80,3,FALSE))) ->  | AS84: =IF(D84="","",IF(AX84="Condition","N/A",VLOOKUP(F84,'10. Condition and Temporal'!$B$6:$M$106,12,FALSE))) ->  | AT84: =IF(AS84="","",IF(AS84="N/A","1",VLOOKUP(AS84,'11. Lists'!$I$47:$K$80,3,FALSE))) ->  | AU84: =IF(D84="","",VLOOKUP(F84,'9. All Habitats + Multipliers'!$C$4:$K$102,8,FALSE)) ->  | AV84: =IF(AU84="","",VLOOKUP(AU84,'11. Lists'!$J$35:$K$38,2,FALSE)) ->  | AW84: =IF(D84="","",VLOOKUP(D84,'10. Condition and Temporal'!$B$6:$M$103,4,FALSE)) ->  | AY84: 1 | AZ84: 1 | BA84: 19 | BW84: BT | BX84: =BT64 -> 0
B85: 20 | J85: =IF(F85="","",VLOOKUP(F85,'10. Condition and Temporal'!$B$6:$F$103,5,FALSE)) ->  | AG85: =IF(D85="","",VLOOKUP(F85,'9. All Habitats + Multipliers'!$C$4:$K$102,5,FALSE)) ->  | AH85: =IF(AG85="","",VLOOKUP(AG85,'11. Lists'!$B$47:$D$49,2,FALSE)) ->  | AJ85: =IF(AI85="","",VLOOKUP(AI85,'11. Lists'!$F$47:$G$51,2,FALSE)) ->  | AO85: =IF(AN85="","",VLOOKUP(AN85,'11. Lists'!$F$36:$H$38,2,FALSE)) ->  | AP85: =IF(AN85="","",VLOOKUP(AN85,'11. Lists'!$F$36:$H$38,3,FALSE)) ->  | AQ85: =IF(D85="","",IF(AX85="Distinctiveness","N/A",VLOOKUP(F85,'10. Condition and Temporal'!$B$6:$L$103,11,FALSE))) ->  | AR85: =IF(AQ85="","",IF(AQ85="N/A","1",VLOOKUP(AQ85,'11. Lists'!$I$47:$K$80,3,FALSE))) ->  | AS85: =IF(D85="","",IF(AX85="Condition","N/A",VLOOKUP(F85,'10. Condition and Temporal'!$B$6:$M$106,12,FALSE))) ->  | AT85: =IF(AS85="","",IF(AS85="N/A","1",VLOOKUP(AS85,'11. Lists'!$I$47:$K$80,3,FALSE))) ->  | AU85: =IF(D85="","",VLOOKUP(F85,'9. All Habitats + Multipliers'!$C$4:$K$102,8,FALSE)) ->  | AV85: =IF(AU85="","",VLOOKUP(AU85,'11. Lists'!$J$35:$K$38,2,FALSE)) ->  | AW85: =IF(D85="","",VLOOKUP(D85,'10. Condition and Temporal'!$B$6:$M$103,4,FALSE)) ->  | AY85: 1 | AZ85: 1 | BA85: 20 | BW85: BU | BX85: =BU64 -> 0
H86: Totals | I86: =SUM(I66:I85) -> 0 | L86: =SUM(L66:L85) -> 0 | M86: =SUM(M66:N85) -> 0
A91: Data beyond this row is automated
C95: 1e . Trading Summary
C97: Distinctiveness and Habitat Type | E97: =IF(OR(I103:I106="No ▲"),"Error - Trading Rules Not Satisfied ▲","Trading Rules Satisfied ✓") -> Trading Rules Satisfied ✓ | J97: =IFERROR(FIND("Error",E97),0) -> 0
C99: 1f . Habitat trading assessment
C102: Broad habitat type | D102: Distinctiveness | E102: Habitat Type | F102: Baseline units | G102: Onsite provision | H102: Net change | I102: Trading satisfied?
C103: Watercourses | D103: Medium distinctiveness | E103: Canals | F103: =SUMIF($D$11:$E$30, $E$103, $L$11:$L$30) -> 0 | G103: =IF($I$59+$I$86+$P$1=0,0,SUMIF($D$39:$D$58,$E$103,$L$39:$N$58)+SUMIF($F$66:$G$85,$E$103,$L$66:$L$85)+SUMIF($D$11:$E$30,$E$103,$AE$11:$AE$30)) -> 0 | H103: =$G$103-$F$103 -> 0 | I103: =IF(AND($H$103>=0, H104>=0),"Yes ✓", "No ▲") -> Yes ✓
E104: Ditches | F104: =SUMIF($D$11:$E$30,$E$104,$L$11:$L$30) -> 0 | G104: =IF($I$59+$I$86+$P$1=0,0,SUMIF($D$39:$D$58,$E$104,$L$39:$N$58)+SUMIF($F$66:$G$85,$E$104,$L$66:$L$85)+SUMIF($D$11:$E$30,$E$104,$AE$11:$AE$30)) -> 0 | H104: =$G$104-$F$104 -> 0
E105: Sum | F105: =SUM(F103:F104) -> 0 | G105: =SUM(G103:G104) -> 0 | H105: =SUM($H$103:$H$104) -> 0 | J105: =IF($I$103= "No ▲",1,0) -> 0
D106: Low distinctiveness | E106: Culvert | F106: =SUMIF($D$11:$E$30,$E$106,$L$11:$L$30) -> 0 | G106: =IF($I$59+$I$86+$P$1=0,0,SUMIF($D$39:$D$58,$E$106,$L$39:$N$58)+SUMIF($F$66:$G$85,$E$106,$L$66:$L$85)+SUMIF($D$11:$E$30,$E$106,$AE$11:$AE$30)) -> 0 | H106: =$G$106-$F$106 -> 0 | I106: =IF($G$107>=0,"Yes ✓", "No ▲") -> Yes ✓ | J106: =IF($I$106= "No ▲",1,0) -> 0
G107: =IF(H105>0,($H$105+$H$106),H106) -> 0
C108: Surplus medium distinctiveness units to offset low distinctiveness units | G108: =$H$105 -> 0
C109: Surplus watercourse biodiversity units | G109: =IF($H$105<=0,$H$106,($H$106+$H$105)) -> 0

Sheet 8. Headline Results
B2: Site Name | D2: =IF('2. Site Details'!D4="","Enter site name on 2. Site Details",'2. Site Details'!D4) -> Enter site name on 2. Site Details
B3: Sheet Name | D3: Headline Results
B4: Headline Results
B5: Headline | D5: =IF(OR(D27>0,D28>0,D29>0),"BNG Targets Not Met ▲","BNG Targets Met ✓") -> BNG Targets Met ✓
B7: Trading Rules | D7: =IF('5. Area Habitats'!J108+'5. Area Habitats'!J109+'6. Hedges & Lines of Trees'!J97+'7. Watercourses'!J97>0,"Trading Rules Not Satisfied ▲","Trading Rules Satisfied ✓") -> Trading Rules Satisfied ✓
B9: Next steps | D9: =IF(OR(D5="BNG Targets Not Met ▲",D7="Trading Rules Not Satisfied ▲"),"Scheme alterations or offsite units required","Check for input errors/rule breaks present in the metric ⚠") -> Check for input errors/rule breaks present in the metric ⚠
D10: =IF(D9="Scheme alterations or offsite units required", "If BNG targets cannot be reached on-site, the Main Biodiversity Metric should be used.", " ") ->  | F10: % unit change required
B11: Baseline Units | C11: Habitat units | D11: =IF('5. Area Habitats'!L32=0,"Zero Units Baseline",'5. Area Habitats'!L32) -> Zero Units Baseline | F11: =('2. Site Details'!$D$13/100)*$D$11 -> 
C12: Hedgerow units | D12: =IF('6. Hedges & Lines of Trees'!L31=0,"Zero Units Baseline",'6. Hedges & Lines of Trees'!L31) -> Zero Units Baseline | F12: =('2. Site Details'!$D$14/100)*$D$12 -> 
C13: Watercourse units | D13: =IF('7. Watercourses'!L31=0,"Zero Units Baseline",'7. Watercourses'!L31) -> Zero Units Baseline | F13: =('2. Site Details'!$D$15/100)*$D$13 -> 
F14: Target units required (baseline plus extra units needed)
B15: Post-development Units | C15: Habitat units | D15: ='5. Area Habitats'!P3+'5. Area Habitats'!P4+'5. Area Habitats'!P1 -> 0 | F15: =D11+F11 -> 
C16: Hedgerow units | D16: ='6. Hedges & Lines of Trees'!P3+'6. Hedges & Lines of Trees'!P4+'6. Hedges & Lines of Trees'!P1 -> 0 | F16: =D12+F12 -> 
C17: Watercourse units | D17: ='7. Watercourses'!P3+'7. Watercourses'!P4+'7. Watercourses'!P1 -> 0 | F17: =D13+F13 -> 
B19: Total net unit change | C19: Habitat units | D19: ='5. Area Habitats'!P5 -> 0 | E19: =_xlfn.IFS(D19>=F11,"✓",D19<0,"▲", D19<F11,"⚠") ->  | F19: =F11/D11 -> 
C20: Hedgerow units | D20: ='6. Hedges & Lines of Trees'!P5 -> 0 | E20: =_xlfn.IFS(D20>=F12,"✓",D20<0,"▲", D20<F12,"⚠") ->  | F20: =F12/D12 -> 
C21: Watercourse units | D21: ='7. Watercourses'!P5 -> 0 | E21: =_xlfn.IFS(D21>=F13,"✓",D21<0,"▲", D21<F13,"⚠") -> 
B23: Total net % change | C23: Habitat units | D23: =IF(D11="Zero Units Baseline","% target not appropriate",D19/D11) -> % target not appropriate | E23: =_xlfn.IFS(D23>=F19,"✓",D23<0,"▲", D23<F19,"⚠") ->  | F23: =$D$23*100 -> 
C24: Hedgerow units | D24: =IF(D12="Zero Units Baseline","% target not appropriate",D20/D12) -> % target not appropriate | E24: =_xlfn.IFS(D24>=F20,"✓",D24<0,"▲", D24<F20,"⚠") ->  | F24: =$D$24*100 -> 
C25: Watercourse units | D25: =IF(D13="Zero Units Baseline","% target not appropriate",D21/D13) -> % target not appropriate | E25: =_xlfn.IFS(D25>=F21,"✓",D25<0,"▲", D25<F21,"⚠") ->  | F25: =$D$25*100 -> 
B27: Habitats units required to meet target | D27: =IFERROR(IF(D11="Zero Units Baseline",IF('2. Site Details'!D17<=D15,0,'2. Site Details'!D17-D15),(IF((D11*(1+('2. Site Details'!D13/100)))-D15<0,0,F15-D15))),"") -> 0
B28: Hedgerow units required to meet target | D28: =IFERROR(IF(D12="Zero Units Baseline",IF('2. Site Details'!D18<=D16,0,'2. Site Details'!D18-D16),(IF((D12*(1+('2. Site Details'!D14/100)))-D16<0,0,F16-D16))),"") -> 0
B29: Watercourse units required to meet target | D29: =IFERROR(IF(D13="Zero Units Baseline",IF('2. Site Details'!D19<=D17,0,'2. Site Details'!D19-D17),(IF((D13*(1+('2. Site Details'!D15/100)))-D17<0,0,F17-D17))),"") -> 0
B33: Chart 1 - Unit change by habitat group
C35: Baseline | D35: Provision
B36: Habitat units | C36: =IF(D11="Zero Units Baseline",0,D11) -> 0 | D36: =D15 -> 0
B37: Hedgerow units | C37: =IF(D12="Zero Units Baseline",0,D12) -> 0 | D37: =D16 -> 0
B38: River units | C38: 0 | D38: 0
B65: * based on government cost per unit of: | C65: 26000

Sheet 9. All Habitats + Multipliers
B1: 9. All Habitats + Multipliers - (general technical information for reference purposes only) | K1: 9
B2: Ref | C2: Habitat Type | G2: Distinctiveness | I2: Risk Multipliers | K2: Location Multipliers
C3: Habitat Type | D3: Broad Habitat Group | E3: Nearest Ukhab Habitat | F3: Definitive Ukhab / Unis Code | G3: Distinctiveness Category | H3: Trading Notes | I3: Technical Difficulty Creation | J3: Technical Difficulty Enhancement | K3: Connectivity
B4: 1 | C4: Arable field margins cultivated annually | D4: Cropland | G4: Medium | H4: Same broad habitat or a higher distinctiveness habitat required | I4: Low | J4: Low | K4: Low
B5: 2 | C5: Arable field margins game bird mix | D5: Cropland | G5: Medium | H5: Same broad habitat or a higher distinctiveness habitat required | I5: Low | J5: Low | K5: Low
B6: 3 | C6: Arable field margins pollen and nectar | D6: Cropland | G6: Medium | H6: Same broad habitat or a higher distinctiveness habitat required | I6: Low | J6: Low | K6: Low
B7: 4 | C7: Arable field margins tussocky | D7: Cropland | G7: Medium | H7: Same broad habitat or a higher distinctiveness habitat required | I7: Low | J7: Low | K7: Low
B8: 5 | C8: Cereal crops | D8: Cropland | G8: Low | H8: Same distinctiveness or better habitat required | I8: Low | J8: Low | K8: Low
B9: =B8+1 -> 6 | C9: Winter stubble | D9: Cropland | G9: Low | H9: Same distinctiveness or better habitat required | I9: Low | J9: Low | K9: Low
B10: =B9+1 -> 7 | C10: Horticulture | D10: Cropland | G10: Low | H10: Same distinctiveness or better habitat required | I10: Low | J10: Low | K10: Low
B11: 8 | C11: Intensive orchards | D11: Cropland | G11: Low | H11: Same distinctiveness or better habitat required | I11: Low | J11: Low | K11: Low
B12: 9 | C12: Non-cereal crops | D12: Cropland | G12: Low | H12: Same distinctiveness or better habitat required | I12: Low | J12: Low | K12: Low
B13: 10 | C13: Temporary grass and clover leys | D13: Cropland | G13: Low | H13: Same distinctiveness or better habitat required | I13: Low | J13: Low | K13: Low
B14: 11 | C14: Bracken | D14: Grassland | G14: Low | H14: Same distinctiveness or better habitat required | I14: Low | J14: Low | K14: Low
B15: 12 | C15: Modified grassland | D15: Grassland | G15: Low | H15: Same distinctiveness or better habitat required | I15: Low | J15: Low | K15: Low
B16: 13 | C16: Other lowland acid grassland | D16: Grassland | G16: Medium | H16: Same broad habitat or a higher distinctiveness habitat required | I16: Low | J16: Low | K16: Low
B17: 14 | C17: Other neutral grassland | D17: Grassland | G17: Medium | H17: Same broad habitat or a higher distinctiveness habitat required | I17: Low | J17: Low | K17: Low
B18: 15 | C18: Upland acid grassland | D18: Grassland | G18: Medium | H18: Same broad habitat or a higher distinctiveness habitat required | I18: Low | J18: Low | K18: Low
B19: 16 | C19: Blackthorn scrub | D19: Heathland and shrub | G19: Medium | H19: Same broad habitat or a higher distinctiveness habitat required | I19: Low | J19: Low | K19: Low
B20: 17 | C20: Bramble scrub | D20: Heathland and shrub | G20: Medium | H20: Same broad habitat or a higher distinctiveness habitat required | I20: Low | J20: Low | K20: Low
B21: 18 | C21: Gorse scrub | D21: Heathland and shrub | G21: Medium | H21: Same broad habitat or a higher distinctiveness habitat required | I21: Low | J21: Low | K21: Low
B22: 19 | C22: Hawthorn scrub | D22: Heathland and shrub | G22: Medium | H22: Same broad habitat or a higher distinctiveness habitat required | I22: Low | J22: Low | K22: Low
B23: 20 | C23: Hazel scrub | D23: Heathland and shrub | G23: Medium | H23: Same broad habitat or a higher distinctiveness habitat required | I23: Medium | J23: Low | K23: Low
B24: 21 | C24: Mixed scrub | D24: Heathland and shrub | G24: Medium | H24: Same broad habitat or a higher distinctiveness habitat required | I24: Low | J24: Low | K24: Low
B25: 22 | C25: Rhododendron scrub | D25: Heathland and shrub | G25: Low | H25: Same distinctiveness or better habitat required | I25: Low | J25: Low | K25: Low
B26: =B25+1 -> 23 | C26: Other sea buckthorn scrub | D26: Heathland and shrub | G26: Low | H26: Same distinctiveness or better habitat required | I26: Low | J26: Low | K26: Low
B27: =B26+1 -> 24 | C27: Willow scrub | D27: Heathland and shrub | G27: Medium | H27: Same broad habitat or a higher distinctiveness habitat required | I27: Medium | J27: Low
B28: =B27+1 -> 25 | C28: Ornamental lake or pond | D28: Lakes | G28: Low | H28: Same distinctiveness or better habitat required | I28: Low | J28: High | K28: Low
B29: 26 | C29: Ponds (non-priority habitat) | D29: Lakes | G29: Medium | H29: Same broad habitat or a higher distinctiveness habitat required | I29: Medium | J29: Medium | K29: Low
B30: 27 | C30: Reservoirs | D30: Lakes | G30: Medium | H30: Same broad habitat or a higher distinctiveness habitat required | I30: Medium | J30: Medium | K30: Low
B31: 28 | C31: Ruderal/Ephemeral | D31: Sparsely vegetated land | G31: Low | H31: Same distinctiveness or better habitat required | I31: Low | J31: Medium | K31: Low
B32: 29 | C32: Other inland rock and scree | D32: Sparsely vegetated land | G32: Medium | H32: Same broad habitat or a higher distinctiveness habitat required | I32: Medium | J32: Medium | K32: Low
B33: 30 | C33: Tall forbs | D33: Sparsely vegetated land | G33: Low | H33: Same distinctiveness or better habitat required | I33: Low | J33: Medium
B34: =B33+1 -> 31 | C34: Allotments | D34: Urban | G34: Low | H34: Same distinctiveness or better habitat required | I34: Low | J34: Low | K34: Low
B35: 32 | C35: Artificial unvegetated, unsealed surface | D35: Urban | G35: V.Low | H35: Compensation Not Required | I35: Low | J35: Low | K35: Low
B36: 33 | C36: Bioswale | D36: Urban | G36: Low | H36: Same distinctiveness or better habitat required | I36: Medium | J36: Low | K36: Low
B37: 34 | C37: Biodiverse green roof | D37: Urban | G37: Medium | H37: Same broad habitat or a higher distinctiveness habitat required | I37: Medium | J37: Medium | K37: Low
B38: 35 | C38: Built linear features | D38: Urban | G38: V.Low | H38: Compensation Not Required | I38: Low | J38: Low | K38: Low
B39: 36 | C39: Cemeteries and churchyards | D39: Urban | G39: Medium | H39: Same broad habitat or a higher distinctiveness habitat required | I39: Medium | J39: Low | K39: Low
B40: 37 | C40: Developed land; sealed surface | D40: Urban | G40: V.Low | H40: Compensation Not Required | I40: Low | J40: Medium | K40: Low
B41: 38 | C41: Intensive green roof | D41: Urban | G41: Low | H41: Same distinctiveness or better habitat required | I41: Low | J41: Low | K41: Low
B42: 39 | C42: Facade-bound green wall | D42: Urban | G42: Low | H42: Same distinctiveness or better habitat required | I42: Medium | J42: Medium | K42: Low
B43: 40 | C43: Ground based green wall | D43: Urban | G43: Low | H43: Same distinctiveness or better habitat required | I43: Medium | J43: Medium | K43: Low
B44: 41 | C44: Ground level planters | D44: Urban | G44: Low | H44: Same distinctiveness or better habitat required | I44: Low | J44: Low | K44: Low
B45: 42 | C45: Other green roof | D45: Urban | G45: Low | H45: Same distinctiveness or better habitat required | I45: Low | J45: Low | K45: Low
B46: 43 | C46: Introduced shrub | D46: Urban | G46: Low | H46: Same distinctiveness or better habitat required | I46: Low | J46: Low | K46: Low
B47: 44 | C47: Rain garden | D47: Urban | G47: Low | H47: Same distinctiveness or better habitat required | I47: Low | J47: Low | K47: Low
B48: 45 | C48: Actively worked sand pit quarry or open cast mine | D48: Urban | G48: Low | H48: Same distinctiveness or better habitat required | I48: Medium | J48: Medium | K48: Low
B49: 46 | C49: Urban/rural tree | D49: Individual trees | G49: Medium | H49: Same broad habitat or a higher distinctiveness habitat required | I49: Low | J49: Low | K49: Low
B50: 47 | C50: Sustainable drainage system | D50: Urban | G50: Low | H50: Same distinctiveness or better habitat required | I50: Medium | J50: Medium | K50: Low
B51: 48 | C51: Unvegetated garden | D51: Urban | G51: V.Low | H51: Compensation Not Required | I51: Low | J51: Low | K51: Low
B52: 49 | C52: Vacant or derelict land | D52: Urban | G52: Low | H52: Same distinctiveness or better habitat required | I52: Low | J52: Low | K52: Low
B53: 50 | C53: Vegetated garden | D53: Urban | G53: Low | H53: Same distinctiveness or better habitat required | I53: Low | J53: Low | K53: Low
B54: 51 | C54: Bare ground | D54: Urban | G54: Low | H54: Same distinctiveness or better habitat required | I54: Low | J54: Low
B55: =B54+1 -> 52 | C55: Other coniferous woodland | D55: Woodland and forest | G55: Low | H55: Same distinctiveness or better habitat required | I55: Low | J55: Low | K55: Low
B56: 53 | C56: Other Scot's pine woodland | D56: Woodland and forest | G56: Medium | H56: Same broad habitat or a higher distinctiveness habitat required | I56: Medium | J56: Medium | K56: Low
B57: 54 | C57: Other woodland; broadleaved | D57: Woodland and forest | G57: Medium | H57: Same broad habitat or a higher distinctiveness habitat required | I57: Low | J57: Low | K57: Low
B58: 55 | C58: Other woodland; mixed | D58: Woodland and forest | G58: Medium | H58: Same broad habitat or a higher distinctiveness habitat required | I58: Low | J58: Low | K58: Low
B59: 56 | C59: Littoral coarse sediment | D59: Intertidal sediment | G59: Medium | H59: Same broad habitat or a higher distinctiveness habitat required | I59: Medium | J59: Medium | K59: Low
B60: 57 | C60: Artificial saltmarshes and saline reedbeds | D60: Coastal saltmarsh | G60: Low | H60: Same distinctiveness or better habitat required | I60: High | J60: Medium | K60: Low
B61: 58 | C61: Artificial littoral coarse sediment | D61: Intertidal sediment | G61: Low | H61: Same distinctiveness or better habitat required | I61: Medium | J61: Medium | K61: Low
B62: 59 | C62: Artificial littoral mud | D62: Intertidal sediment | G62: Low | H62: Same distinctiveness or better habitat required | I62: High | J62: Medium | K62: Low
B63: 60 | C63: Artificial littoral sand | D63: Intertidal sediment | G63: Low | H63: Same distinctiveness or better habitat required | I63: Medium | J63: Medium | K63: Low
B64: 61 | C64: Artificial littoral muddy sand | D64: Intertidal sediment | G64: Low | H64: Same distinctiveness or better habitat required | I64: High | J64: Medium | K64: Low
B65: 62 | C65: Artificial littoral mixed sediments | D65: Intertidal sediment | G65: Low | H65: Same distinctiveness or better habitat required | I65: High | J65: Medium | K65: Low
B66: 63 | C66: Artificial littoral seagrass | D66: Intertidal sediment | G66: Low | H66: Same distinctiveness or better habitat required | I66: High | J66: High | K66: Low
B67: 64 | C67: Artificial littoral biogenic reefs | D67: Intertidal sediment | G67: Low | H67: Same distinctiveness or better habitat required | I67: High | J67: Medium | K67: Low
B68: 65 | C68: Littoral sand | D68: Intertidal sediment | G68: Medium | H68: Same broad habitat or a higher distinctiveness habitat required | I68: Medium | J68: Medium | K68: Low
B69: 66 | C69: Artificial hard structures | D69: Intertidal hard structures | G69: Low | H69: Same distinctiveness or better habitat required | I69: Medium | J69: Medium | K69: Low
B70: 67 | C70: Artificial features of hard structures | D70: Intertidal hard structures | G70: Low | H70: Same distinctiveness or better habitat required | I70: Medium | J70: Medium | K70: Low
B71: 68 | C71: Artificial hard structures with integrated greening of grey infrastructure (IGGI) | D71: Intertidal hard structures | G71: Medium | H71: Same broad habitat or a higher distinctiveness habitat required | I71: Medium | J71: Medium | K71: Low
B72: 69 | C72: Species-rich native hedgerow | D72: Hedgerows and Lines of trees | G72: Medium | H72: Same distinctiveness or better habitat required | I72: Low | J72: Low | K72: Low
B73: 70 | C73: Native hedgerow - associated with bank or ditch | D73: Hedgerows and Lines of trees | G73: Medium | H73: Same distinctiveness or better habitat required | I73: Low | J73: Low | K73: Low
B74: 71 | C74: Native hedgerow with trees | D74: Hedgerows and Lines of trees | G74: Medium | H74: Same distinctiveness or better habitat required | I74: Low | J74: Low | K74: Low
B75: 72 | C75: Native hedgerow | D75: Hedgerows and Lines of trees | G75: Low | H75: Same distinctiveness or better habitat required | I75: Low | J75: Low | K75: Low
B76: 73 | C76: Non-native and ornamental hedgerow | D76: Hedgerows and Lines of trees | G76: V.Low | H76: Compensation Not Required | I76: Low | J76: Low | K76: Low
B77: =B76+1 -> 74 | C77: Line of trees | D77: Hedgerows and Lines of trees | G77: Low | H77: Same distinctiveness or better habitat required | I77: Low | J77: Low | K77: Low
B78: 75 | C78: Ecologically valuable line of trees | D78: Hedgerows and Lines of trees | G78: Medium | H78: Same distinctiveness or better habitat required | I78: Low | J78: Low | K78: Low
B79: 76 | C79: Line of trees - associated with bank or ditch | D79: Hedgerows and Lines of trees | G79: Low | H79: Same distinctiveness or better habitat required | I79: Low | J79: Low | K79: Low
B80: 77 | C80: Ecologically valuable line of trees - associated with bank or ditch | D80: Hedgerows and Lines of trees | G80: Medium | H80: Same distinctiveness or better habitat required | I80: Low | J80: Low | K80: Low
B81: 78 | C81: Ditches | D81: Rivers | G81: Medium | H81: Same habitat required | I81: Medium | J81: Low | K81: Low
B82: 79 | C82: Canals | D82: Rivers | G82: Medium | H82: Same habitat required | I82: Medium | J82: Low | K82: Low
B83: 80 | C83: Culvert | D83: Rivers | G83: Low | H83: Better distinctiveness habitat required | I83: Medium | J83: N/A | K83: Low
B84: 81 | K84: Low
B85: 82
B86: 83
B87: 84
B88: 85
B89: 86
B90: 87
B91: 88
B92: 89
B93: 90
B94: 91
B95: 92
B96: 93
B97: 94
B98: 95
B99: 96
B100: 97
B101: 98
B102: 99

Sheet 10. Condition and Temporal
B1: 10. Condition and Temporal - general technical information for refence purposes only)
B3: Habitat Type | C3: Condition | G3: Temporal Multipliers | N3: Enhancement Rules
C4: Baseline Default Condition | D4: Creation Condition Options | E4: Enhancement Habitat options | F4: EnhancementDefault Condition | G4: Years To Target Condition Creation - Moderate | H4: Years To Target Condition Creation - Good | I4: Years To Target Condition Creation - Poor | J4: Years To Target Condition Creation - Condition assessment N/A | K4: Years To Target Condition Creation - N/A Other | L4: Time To Target Condition Enhancement - Moderate to Good | M4: Time To Target Distinctiveness Enhancement - Low to Default Condition
G5: Moderate | H5: Good | I5: Poor | J5: Condition Assessment N/A | K5: N/A - Other
B6: Arable field margins cultivated annually | C6: Condition Assessment N/A | D6: Condition Assessment N/A | E6: Enhancement not possible | F6: Condition Assessment N/A | G6: Not Possible | H6: Not Possible | I6: Not Possible | J6: 1 | K6: Not Possible | L6: Not Possible | M6: 1 | N6: Enhancement not possible
B7: Arable field margins game bird mix | C7: Condition Assessment N/A | D7: Condition Assessment N/A | E7: Enhancement not possible | F7: Condition Assessment N/A | G7: Not Possible | H7: Not Possible | I7: Not Possible | J7: 1 | K7: Not Possible | L7: Not Possible | M7: 1 | N7: Enhancement not possible
B8: Arable field margins pollen and nectar | C8: Condition Assessment N/A | D8: Condition Assessment N/A | E8: Enhancement not possible | F8: Condition Assessment N/A | G8: Not Possible | H8: Not Possible | I8: Not Possible | J8: 1 | K8: Not Possible | L8: Not Possible | M8: 1 | N8: Enhancement not possible
B9: Arable field margins tussocky | C9: Condition Assessment N/A | D9: Condition Assessment N/A | E9: Enhancement not possible | F9: Condition Assessment N/A | G9: Not Possible | H9: Not Possible | I9: Not Possible | J9: 1 | K9: Not Possible | L9: Not Possible | M9: 1 | N9: Enhancement not possible
B10: Cereal crops | C10: Condition Assessment N/A | D10: Condition Assessment N/A | E10: Arable field margins cultivated annually, Arable field margins game bird mix, Arable field margins pollen and nectar, Arable field margins tussocky | F10: Not Possible | G10: Not Possible | H10: Not Possible | I10: Not Possible | J10: 1 | K10: Not Possible | L10: Not Possible | M10: Not Possible | N10: Condition enhancement not possible, enhancement to any medium distinctiveness cropland habitat only
B11: Winter stubble | C11: Condition Assessment N/A | D11: Condition Assessment N/A | E11: Enhancement not possible | F11: Condition Assessment N/A | G11: Not Possible | H11: Not Possible | I11: Not Possible | J11: 1 | K11: Not Possible | L11: Not Possible | M11: Not Possible | N11: Enhancement not possible
B12: Horticulture | C12: Condition Assessment N/A | D12: Condition Assessment N/A | E12: Arable field margins cultivated annually, Arable field margins game bird mix, Arable field margins pollen and nectar, Arable field margins tussocky | F12: Not Possible | G12: Not Possible | H12: Not Possible | I12: Not Possible | J12: 1 | K12: Not Possible | L12: Not Possible | M12: Not Possible | N12: Condition enhancement not possible, enhancement to any medium distinctiveness cropland habitat only
B13: Intensive orchards | C13: Condition Assessment N/A | D13: Condition Assessment N/A | E13: Arable field margins cultivated annually, Arable field margins game bird mix, Arable field margins pollen and nectar, Arable field margins tussocky | F13: Not Possible | G13: Not Possible | H13: Not Possible | I13: Not Possible | J13: 1 | K13: Not Possible | L13: Not Possible | M13: Not Possible | N13: Condition enhancement not possible, enhancement to any medium distinctiveness cropland habitat only
B14: Non-cereal crops | C14: Condition Assessment N/A | D14: Condition Assessment N/A | E14: Arable field margins cultivated annually, Arable field margins game bird mix, Arable field margins pollen and nectar, Arable field margins tussocky | F14: Not Possible | G14: Not Possible | H14: Not Possible | I14: Not Possible | J14: 1 | K14: Not Possible | L14: Not Possible | M14: Not Possible | N14: Condition enhancement not possible, enhancement to any medium distinctiveness cropland habitat only
B15: Temporary grass and clover leys | C15: Condition Assessment N/A | D15: Condition Assessment N/A | E15: Other lowland acid grassland, Other neutral grassland, Upland acid grassland | F15: Not Possible | G15: Not Possible | H15: Not Possible | I15: Not Possible | J15: 1 | K15: Not Possible | L15: Not Possible | M15: Not Possible | N15: Condition enhancement not possible, enhancement to any medium distinctiveness grassland habitat only
B16: Bracken | C16: Condition Assessment N/A | D16: Condition Assessment N/A | E16: Other lowland acid grassland, Other neutral grassland, Upland acid grassland | F16: Not Possible | G16: Not Possible | H16: Not Possible | I16: Not Possible | J16: 1 | K16: Not Possible | L16: Not Possible | M16: Not Possible | N16: Condition enhancement not possible, enhancement to any medium distinctiveness grassland habitat only
B17: Modified grassland | C17: Moderate | D17: Moderate, Good | E17: Modified grassland, Other lowland acid grassland, Other neutral grassland, Upland acid grassland | F17: Good | G17: 4 | H17: 7 | I17: Not Possible | J17: Not Possible | K17: Not Possible | L17: 10 | M17: 15 | N17: Condition enhancement or enhancement to any medium distinctiveness grassland habitat
B18: Other lowland acid grassland | C18: Moderate | D18: Moderate, Good | E18: Other lowland acid grassland | F18: Good | G18: 10 | H18: 15 | I18: Not Possible | J18: Not Possible | K18: Not Possible | L18: 10 | M18: 15 | N18: Condition enhancement only
B19: Other neutral grassland | C19: Moderate | D19: Moderate, Good | E19: Other neutral grassland | F19: Good | G19: 5 | H19: 10 | I19: Not Possible | J19: Not Possible | K19: Not Possible | L19: 10 | M19: 15 | N19: Condition enhancement only
B20: Upland acid grassland | C20: Moderate | D20: Moderate, Good | E20: Upland acid grassland | F20: Good | G20: 10 | H20: 15 | I20: Not Possible | J20: Not Possible | K20: Not Possible | L20: 10 | M20: 15 | N20: Condition enhancement only
B21: Blackthorn scrub | C21: Moderate | D21: Moderate, Good | E21: Blackthorn scrub | F21: Good | G21: 5 | H21: 10 | I21: Not Possible | J21: Not Possible | K21: Not Possible | L21: 3 | M21: 10 | N21: Condition enhancement only
B22: Bramble scrub | C22: Condition Assessment N/A | D22: Condition Assessment N/A | E22: Blackthorn scrub, Gorse scrub, Hawthorn scrub, Hazel scrub, Mixed scrub, Willow scrub | F22: Not Possible | G22: Not Possible | H22: Not Possible | I22: Not Possible | J22: 1 | K22: Not Possible | L22: Not Possible | M22: Not Possible | N22: Condition enhancement not possible, enhancement to any medium distinctiveness habitat in heathland or shrub habitat only
B23: Gorse scrub | C23: Moderate | D23: Moderate, Good | E23: Gorse scrub | F23: Good | G23: 5 | H23: 10 | I23: Not Possible | J23: Not Possible | K23: Not Possible | L23: 3 | M23: 10 | N23: Condition enhancement only
B24: Hawthorn scrub | C24: Moderate | D24: Moderate, Good | E24: Hawthorn scrub | F24: Good | G24: 5 | H24: 10 | I24: Not Possible | J24: Not Possible | K24: Not Possible | L24: 3 | M24: 10 | N24: Condition enhancement only
B25: Hazel scrub | C25: Moderate | D25: Moderate, Good | E25: Hazel scrub | F25: Good | G25: 10 | H25: 15 | I25: Not Possible | J25: Not Possible | K25: Not Possible | L25: 7 | M25: 15 | N25: Condition enhancement only
B26: Mixed scrub | C26: Moderate | D26: Moderate, Good | E26: Mixed scrub | F26: Good | G26: 5 | H26: 10 | I26: Not Possible | J26: Not Possible | K26: Not Possible | L26: 3 | M26: 10 | N26: Condition enhancement only
B27: Rhododendron scrub | C27: Condition Assessment N/A | D27: Condition Assessment N/A | E27: Blackthorn scrub, Gorse scrub, Hawthorn scrub, Hazel scrub, Mixed scrub, Willow scrub | F27: Not Possible | G27: Not Possible | H27: Not Possible | I27: Not Possible | J27: 1 | K27: Not Possible | L27: Not Possible | M27: Not Possible | N27: Condition enhancement not possible, enhancement to any medium distinctiveness habitat in heathland or shrub habitat only
B28: Other sea buckthorn scrub | C28: Condition Assessment N/A | D28: Condition Assessment N/A | E28: Blackthorn scrub, Gorse scrub, Hawthorn scrub, Hazel scrub, Mixed scrub, Willow scrub | F28: Not Possible | G28: Not Possible | H28: Not Possible | I28: Not Possible | J28: 1 | K28: Not Possible | L28: Not Possible | M28: Not Possible | N28: Condition enhancement not possible, enhancement to any medium distinctiveness habitat in heathland or shrub habitat only
B29: Willow scrub | C29: Moderate | D29: Moderate, Good | E29: Willow scrub | F29: Good | G29: 10 | H29: 15 | I29: Not Possible | J29: Not Possible | K29: Not Possible | L29: 7 | M29: 15 | N29: Condition enhancement only
B30: Ornamental lake or pond | C30: Moderate | D30: Moderate, Good | E30: Ornamental lake or pond, Ponds (non-priority habitat) | F30: Good | G30: 3 | H30: 5 | I30: Not Possible | J30: Not Possible | K30: Not Possible | L30: 4 | M30: 5 | N30: Condition enhancement or enhancement to non-priority pond only
B31: Ponds (non-priority habitat) | C31: Moderate | D31: Moderate, Good | E31: Ponds (non-priority habitat) | F31: Good | G31: 3 | H31: 5 | I31: Not Possible | J31: Not Possible | K31: Not Possible | L31: 4 | M31: 5 | N31: Condition enhancement only
B32: Reservoirs | C32: Moderate | D32: Moderate, Good | E32: Reservoirs | F32: Good | G32: 5 | H32: 10 | I32: Not Possible | J32: Not Possible | K32: Not Possible | L32: 20 | M32: 10 | N32: Condition enhancement only
B33: Ruderal/Ephemeral | C33: Moderate | D33: Moderate, Good | E33: Ruderal/Ephemeral | F33: Good | G33: 3 | H33: 5 | I33: Not Possible | J33: Not Possible | K33: Not Possible | L33: 2 | M33: Not Possible | N33: Condition enhancement only
B34: Other inland rock and scree | C34: Moderate | D34: Moderate, Good | E34: Other inland rock and scree | F34: Good | G34: 10 | H34: 20 | I34: Not Possible | J34: Not Possible | K34: Not Possible | L34: 10 | M34: 20 | N34: Condition enhancement only
B35: Tall forbs | C35: Moderate | D35: Moderate, Good | E35: Tall forbs | F35: Good | G35: 3 | H35: 5 | I35: Not Possible | J35: Not Possible | K35: Not Possible | L35: 2 | M35: Not Possible | N35: Condition enhancement only
B36: Allotments | C36: Moderate | D36: Moderate, Good | E36: Allotments | F36: Good | G36: 1 | H36: 1 | I36: Not Possible | J36: Not Possible | K36: Not Possible | L36: 1 | M36: 1 | N36: Condition enhancement only
B37: Artificial unvegetated, unsealed surface | C37: N/A - Other | D37: N/A - Other | E37: Enhancement not possible | F37: Not Possible | G37: Not Possible | H37: Not Possible | I37: Not Possible | J37: Not Possible | K37: 0 | L37: Not Possible | M37: Not Possible | N37: Enhancement not possible
B38: Bioswale | C38: Moderate | D38: Moderate, Good | E38: Bioswale | F38: Good | G38: 1 | H38: 3 | I38: Not Possible | J38: Not Possible | K38: Not Possible | L38: 2 | M38: 3 | N38: Condition enhancement only
B39: Biodiverse green roof | C39: Moderate | D39: Moderate, Good | E39: Biodiverse green roof | F39: Good | G39: 5 | H39: 10 | I39: Not Possible | J39: Not Possible | K39: Not Possible | L39: 5 | M39: 10 | N39: Condition enhancement only
B40: Built linear features | C40: N/A - Other | D40: N/A - Other | E40: Enhancement not possible | F40: Not Possible | G40: Not Possible | H40: Not Possible | I40: Not Possible | J40: Not Possible | K40: 0 | L40: Not Possible | M40: Not Possible | N40: Enhancement not possible
B41: Cemeteries and churchyards | C41: Moderate | D41: Moderate, Good | E41: Cemeteries and churchyards | F41: Good | G41: 15 | H41: 20 | I41: Not Possible | J41: Not Possible | K41: Not Possible | L41: 15 | M41: 20 | N41: Condition enhancement only
B42: Developed land; sealed surface | C42: N/A - Other | D42: N/A - Other | E42: Enhancement not possible | F42: Not Possible | G42: Not Possible | H42: Not Possible | I42: Not Possible | J42: Not Possible | K42: 0 | L42: Not Possible | M42: Not Possible | N42: Enhancement not possible
B43: Other green roof | C43: Condition Assessment N/A | D43: Condition Assessment N/A | E43: Biodiverse green roof | F43: Not Possible | G43: Not Possible | H43: Not Possible | I43: Not Possible | J43: 1 | K43: Not Possible | L43: Not Possible | M43: Not Possible | N43: Enhancement to Biodiverse green roof.
B44: Facade-bound green wall | C44: Moderate | D44: Moderate, Good | E44: Facade-bound green wall | F44: Good | G44: 3 | H44: 5 | I44: Not Possible | J44: Not Possible | K44: Not Possible | L44: 2 | M44: 5 | N44: Condition enhancement only
B45: Ground based green wall | C45: Moderate | D45: Moderate, Good | E45: Ground based green wall | F45: Good | G45: 3 | H45: 5 | I45: Not Possible | J45: Not Possible | K45: Not Possible | L45: 2 | M45: 5 | N45: Condition enhancement only
B46: Ground level planters | C46: Condition Assessment N/A | D46: Condition Assessment N/A | E46: Enhancement not possible | F46: Not Possible | G46: Not Possible | H46: Not Possible | I46: Not Possible | J46: 1 | K46: Not Possible | L46: Not Possible | M46: Not Possible | N46: Enhancement not possible
B47: Intensive green roof | C47: Moderate | D47: Moderate, Good | E47: Intensive green roof, Biodiverse green roof | F47: Good | G47: 3 | H47: 5 | I47: Not Possible | J47: Not Possible | K47: Not Possible | L47: 2 | M47: 10 | N47: Condition enhancement possible, enhancement to Intensive green roof and Biodiverse green roof
B48: Introduced shrub | C48: Condition Assessment N/A | D48: Condition Assessment N/A | E48: Enhancement not possible | F48: Not Possible | G48: Not Possible | H48: Not Possible | I48: Not Possible | J48: 1 | K48: Not Possible | L48: Not Possible | M48: Not Possible | N48: Enhancement not possible
B49: Rain garden | C49: Moderate | D49: Moderate, Good | E49: Rain garden | F49: Good | G49: 3 | H49: 5 | I49: Not Possible | J49: Not Possible | K49: Not Possible | L49: 1 | M49: 1 | N49: Condition enhancement only
B50: Actively worked sand pit quarry or open cast mine | C50: Condition Assessment N/A | D50: Condition Assessment N/A | E50: Other inland rock and scree | F50: Not Possible | G50: Not Possible | H50: Not Possible | I50: Not Possible | J50: 1 | K50: Not Possible | L50: Not Possible | M50: Not Possible | N50: Condition enhancement not possible, enhancement to Sparsely vegetated land - other inland rock and scree only
B51: Urban/rural tree | C51: Moderate | D51: Moderate, Good | E51: Urban/rural tree | F51: Good | G51: 27 | H51: 30+ | I51: Not Possible | J51: Not Possible | K51: Not Possible | L51: 16 | M51: Not Possible | N51: Enhancement not possible
B52: Sustainable drainage system | C52: Moderate | D52: Moderate, Good | E52: Sustainable drainage system | F52: Good | G52: 3 | H52: 5 | I52: Not Possible | J52: Not Possible | K52: Not Possible | L52: 2 | M52: 5 | N52: Condition enhancement only
B53: Unvegetated garden | C53: N/A - Other | D53: N/A - Other | E53: Enhancement not possible | F53: Not Possible | G53: Not Possible | H53: Not Possible | I53: Not Possible | J53: Not Possible | K53: 0 | L53: Not Possible | M53: Not Possible | N53: Enhancement not possible
B54: Vacant or derelict land | C54: Moderate | D54: Moderate, Good | E54: Vacant or derelict land | F54: Good | G54: 3 | H54: 5 | I54: Not Possible | J54: Not Possible | K54: Not Possible | L54: 1 | M54: 1 | N54: Condition enhancement only
B55: Vegetated garden | C55: Condition Assessment N/A | D55: Condition Assessment N/A | E55: Enhancement not possible | F55: Not Possible | G55: Not Possible | H55: Not Possible | I55: Not Possible | J55: 1 | K55: Not Possible | L55: 2 | M55: 5 | N55: Condition enhancement only
B56: Bare ground | C56: Moderate | D56: Moderate, Good | E56: Bare ground | F56: Good | G56: 3 | H56: 5 | I56: Not Possible | J56: Not Possible | K56: Not Possible | L56: 1 | M56: 1 | N56: Condition enhancement only
B57: Other coniferous woodland | C57: Moderate | D57: Moderate, Good | E57: Other Scot's pine woodland, Other woodland; broadleaved, Other woodland; mixed | F57: Good | G57: 30 | H57: 30+ | I57: Not Possible | J57: Not Possible | K57: Not Possible | L57: 30+ | M57: Not Possible | N57: Condition enhancement or enhancement to any medium distinctiveness woodland
B58: Other Scot's pine woodland | C58: Moderate | D58: Moderate, Good | E58: Other Scot's pine woodland | F58: Good | G58: 30+ | H58: 30+ | I58: Not Possible | J58: Not Possible | K58: Not Possible | L58: 15 | M58: 30+ | N58: Condition enhancement only
B59: Other woodland; broadleaved | C59: Moderate | D59: Moderate, Good | E59: Other woodland; broadleaved | F59: Good | G59: 15 | H59: 30+ | I59: Not Possible | J59: Not Possible | K59: Not Possible | L59: 10 | M59: 25 | N59: Condition enhancement only
B60: Other woodland; mixed | C60: Moderate | D60: Moderate, Good | E60: Other woodland; mixed | F60: Good | G60: 30 | H60: 30+ | I60: Not Possible | J60: Not Possible | K60: Not Possible | L60: 10 | M60: 25 | N60: Condition enhancement only
B61: Littoral coarse sediment | C61: Moderate | D61: Moderate, Good | E61: Littoral coarse sediment | F61: Good | G61: 1 | H61: 3 | I61: Not Possible | J61: Not Possible | K61: Not Possible | L61: 2 | M61: Not Possible | N61: Condition enhancement only
B62: Artificial saltmarshes and saline reedbeds | C62: Moderate | D62: Moderate, Good | E62: Artificial saltmarshes and saline reedbeds | F62: Good | G62: 7 | H62: 15 | I62: Not Possible | J62: Not Possible | K62: Not Possible | L62: 14 | M62: Not Possible | N62: Condition enhancement only
B63: Artificial littoral coarse sediment | C63: Moderate | D63: Moderate, Good | E63: Artificial littoral coarse sediment | F63: Good | G63: 1 | H63: 3 | I63: Not Possible | J63: Not Possible | K63: Not Possible | L63: 2 | M63: Not Possible | N63: Condition enhancement only
B64: Artificial littoral mud | C64: Moderate | D64: Moderate, Good | E64: Artificial littoral mud | F64: Good | G64: 3 | H64: 6 | I64: Not Possible | J64: Not Possible | K64: Not Possible | L64: 4 | M64: Not Possible | N64: Condition enhancement only
B65: Artificial littoral sand | C65: Moderate | D65: Moderate, Good | E65: Artificial littoral sand | F65: Good | G65: 1 | H65: 4 | I65: Not Possible | J65: Not Possible | K65: Not Possible | L65: 3 | M65: Not Possible | N65: Condition enhancement only
B66: Artificial littoral muddy sand | C66: Moderate | D66: Moderate, Good | E66: Artificial littoral muddy sand | F66: Good | G66: 3 | H66: 5 | I66: Not Possible | J66: Not Possible | K66: Not Possible | L66: 4 | M66: Not Possible | N66: Condition enhancement only
B67: Artificial littoral mixed sediments | C67: Moderate | D67: Moderate, Good | E67: Artificial littoral mixed sediments | F67: Good | G67: 3 | H67: 5 | I67: Not Possible | J67: Not Possible | K67: Not Possible | L67: 2 | M67: Not Possible | N67: Condition enhancement only
B68: Artificial littoral seagrass | C68: Moderate | D68: Moderate, Good | E68: Artificial littoral seagrass | F68: Good | G68: 10 | H68: 20 | I68: Not Possible | J68: Not Possible | K68: Not Possible | L68: 20 | M68: Not Possible | N68: Condition enhancement only
B69: Artificial littoral biogenic reefs | C69: Moderate | D69: Moderate, Good | E69: Artificial littoral biogenic reefs | F69: Good | G69: 5 | H69: 15 | I69: Not Possible | J69: Not Possible | K69: Not Possible | L69: 6 | M69: Not Possible | N69: Condition enhancement only
B70: Littoral sand | C70: Moderate | D70: Moderate, Good | E70: Littoral sand | F70: Good | G70: 1 | H70: 4 | I70: Not Possible | J70: Not Possible | K70: Not Possible | L70: 3 | M70: Not Possible | N70: Condition enhancement only
B71: Artificial hard structures | C71: Moderate | D71: Moderate, Good | E71: Artificial hard structures, Artificial hard structures with integrated greening of grey infrastructure (IGGI) | F71: Good | G71: 5 | H71: 15 | I71: Not Possible | J71: Not Possible | K71: Not Possible | L71: 8 | M71: Not Possible | N71: Condition enhancement within same distinctiveness or enhancement to medium distinctiveness habitat
B72: Artificial features of hard structures | C72: Moderate | D72: Moderate, Good | E72: Artificial features of hard structures, Artificial hard structures with integrated greening of grey infrastructure (IGGI) | F72: Good | G72: 4 | H72: 13 | I72: Not Possible | J72: Not Possible | K72: Not Possible | L72: 7 | M72: Not Possible | N72: Condition enhancement within same distinctiveness or enhancement to medium distinctiveness habitat
B73: Artificial hard structures with integrated greening of grey infrastructure (IGGI) | C73: Moderate | D73: Moderate, Good | E73: Artificial hard structures with integrated greening of grey infrastructure (IGGI) | F73: Good | G73: 4 | H73: 13 | I73: Not Possible | J73: Not Possible | K73: Not Possible | L73: 7 | M73: 13 | N73: Condition enhancement only
B74: Species-rich native hedgerow | C74: Moderate | D74: Moderate, Good | E74: Species-rich native hedgerow | F74: Good | G74: 5 | H74: 12 | I74: Not Possible | J74: Not Possible | K74: Not Possible | L74: 2 | M74: 5 | N74: Condition enhancement only
B75: Native hedgerow - associated with bank or ditch | C75: Moderate | D75: Moderate, Good | E75: Native hedgerow - associated with bank or ditch | F75: Good | G75: 5 | H75: 12 | I75: Not Possible | J75: Not Possible | K75: Not Possible | L75: 2 | M75: 6 | N75: Condition enhancement only
B76: Native hedgerow with trees | C76: Moderate | D76: Moderate, Good | E76: Native hedgerow with trees | F76: Good | G76: 10 | H76: 20 | I76: Not Possible | J76: Not Possible | K76: Not Possible | L76: 4 | M76: 12 | N76: Condition enhancement only
B77: Native hedgerow | C77: Moderate | D77: Moderate, Good | E77: Native hedgerow, Species-rich native hedgerow, Native hedgerow - associated with bank or ditch, Native hedgerow with trees | F77: Good | G77: 5 | H77: 12 | I77: Not Possible | J77: Not Possible | K77: Not Possible | L77: 2 | M77: Not Possible | N77: Condition enhancement or enhancement to any medium distinctiveness hedgerow
B78: Non-native and ornamental hedgerow | C78: Poor | D78: Poor | E78: Enhancement not possible | F78: Not Possible | G78: Not Possible | H78: Not Possible | I78: 1 | J78: Not Possible | K78: Not Possible | L78: Not Possible | M78: Not Possible | N78: Enhancement not possible
B79: Line of trees | C79: Moderate | D79: Moderate, Good | E79: Native hedgerow with trees, Line of trees, Line of trees - associated with bank or ditch | F79: Good | G79: 20 | H79: 30+ | I79: Not Possible | J79: Not Possible | K79: Not possible | L79: 10 | M79: Not possible | N79: Condition enhancement or enhancement to an ecologically valuable line of trees or any medium distinctiveness hedgerow - i.e. should retain trees
B80: Ecologically valuable line of trees | C80: Moderate | D80: Moderate, Good | E80: Ecologically valuable line of trees, Ecologically valuable line of trees - associated with bank or ditch, | F80: Good | G80: 20 | H80: 30+ | I80: Not Possible | J80: Not Possible | K80: Not Possible | L80: 10 | M80: Not Possible | N80: Condition enhancement or enhance to an Ecologically valuable line of trees - associated with bank or ditch
B81: Line of trees - associated with bank or ditch | C81: Moderate | D81: Moderate, Good | E81: Line of trees - associated with bank or ditch | F81: Good | G81: 20 | H81: 30+ | I81: Not Possible | J81: Not Possible | K81: Not Possible | L81: 10 | M81: 10 | N81: Condition enhancement or enhancement to an ecologically valuable line of trees or any medium distinctiveness hedgerow - i.e. should retain trees
B82: Ecologically valuable line of trees - associated with bank or ditch | C82: Moderate | D82: Moderate, Good | E82: Ecologically valuable line of trees - associated with bank or ditch, | F82: Good | G82: 20 | H82: 30+ | I82: Not Possible | J82: Not Possible | K82: Not Possible | L82: 10 | M82: 10 | N82: Condition enhancement only
B83: Ditches | C83: Moderate | D83: Moderate, Good | E83: Ditches | F83: Good | G83: 5 | H83: 10 | I83: Not Possible | J83: Not Possible | K83: Not Possible | L83: 4 | M83: 10 | N83: Condition enhancement only
B84: Canals | C84: Moderate | D84: Moderate, Good | E84: Canals | F84: Good | G84: 5 | H84: 10 | I84: Not Possible | J84: Not Possible | K84: Not Possible | L84: 4 | M84: 10 | N84: Condition enhancement only
B85: Culvert | C85: Poor | D85: Poor | E85: Canals, Ditches | F85: Not Possible | G85: Not Possible | H85: Not Possible | I85: 1 | J85: Not Possible | K85: Not Possible | L85: Not Possible | M85: Not Possible | N85: Enhancement to Canal or Ditch

Sheet 11. Lists
A1: Broadhabitattype | C1: Cropland | E1: Grassland | G1: Heathlandandshrub | I1: Intertidalhardstructures | K1: Intertidalsediment | M1: Lakes | O1: Sparselyvegetatedland | Q1: Urban | S1: Woodlandandforest | U1: HedgerowsandLinesoftrees | W1: Lineoftrees | Y1: Watercourses | AA1: Coastalsaltmarsh | AC1: Individualtrees
A2: Cropland | C2: Arable field margins cultivated annually | E2: Bracken | G2: Blackthorn scrub | I2: Artificial hard structures | K2: Littoral coarse sediment | M2: Ornamental lake or pond | O2: Ruderal/Ephemeral | Q2: Allotments | S2: Other coniferous woodland | U2: Species-rich native hedgerow | W2: Line of trees | Y2: Canals | AA2: Artificial saltmarshes and saline reedbeds | AC2: Urban/rural tree
A3: Grassland | C3: Arable field margins game bird mix | E3: Modified grassland | G3: Bramble scrub | I3: Artificial features of hard structures | K3: Artificial littoral coarse sediment | M3: Ponds (non-priority habitat) | O3: Other inland rock and scree | Q3: Artificial unvegetated, unsealed surface | S3: Other Scot's pine woodland | U3: Native hedgerow - associated with bank or ditch | W3: Ecologically valuable line of trees | Y3: Culvert
A4: Heathland and shrub | C4: Arable field margins pollen and nectar | E4: Other lowland acid grassland | G4: Gorse scrub | I4: Artificial hard structures with integrated greening of grey infrastructure (IGGI) | K4: Artificial littoral mud | M4: Reservoirs | O4: Tall forbs | Q4: Bioswale | S4: Other woodland; broadleaved | U4: Native hedgerow with trees | W4: Line of trees - associated with bank or ditch | Y4: Ditches
A5: Intertidal hard structures | C5: Arable field margins tussocky | E5: Other neutral grassland | G5: Hawthorn scrub | K5: Artificial littoral sand | Q5: Biodiverse green roof | S5: Other woodland; mixed | U5: Native hedgerow | W5: Ecologically valuable line of trees - associated with bank or ditch
A6: Intertidal sediment | C6: Cereal crops | E6: Upland acid grassland | G6: Hazel scrub | K6: Artificial littoral muddy sand | Q6: Built linear features | U6: Non-native and ornamental hedgerow
A7: Lakes | C7: Winter stubble | G7: Mixed scrub | K7: Artificial littoral mixed sediments | Q7: Cemeteries and churchyards | U7: Line of trees
A8: Sparsely vegetated land | C8: Horticulture | G8: Rhododendron scrub | K8: Artificial littoral seagrass | Q8: Developed land; sealed surface | U8: Ecologically valuable line of trees
A9: Urban | C9: Intensive orchards | G9: Other sea buckthorn scrub | K9: Artificial littoral biogenic reefs | Q9: Other green roof | U9: Line of trees - associated with bank or ditch
A10: Woodland and forest | C10: Non-cereal crops | G10: Willow scrub | K10: Littoral sand | Q10: Facade-bound green wall | U10: Ecologically valuable line of trees - associated with bank or ditch
A11: Coastal saltmarsh | C11: Temporary grass and clover leys | Q11: Ground based green wall
Q12: Ground level planters
Q13: Intensive green roof
Q14: Introduced shrub
Q15: Rain garden
Q16: Actively worked sand pit quarry or open cast mine
Q17: Sustainable drainage system
Q18: Unvegetated garden
Q19: Vacant or derelict land
Q20: Vegetated garden
Q21: Bare ground
A28: Rivers | C28: Linear features
A29: Rivers | C29: Hedgerows and Lines of trees
J33: difficulty
B34: Connectivity | F34: Strategic Significance | J34: category | K34: value | M34: Spatial risk | Q34: Street trees
B35: Score | C35: Description | D35: score | F35: Description | G35: strategic significance | H35: Multiplier | J35: Low | K35: 1 | M35: Category | N35: Multiplier | Q35: Tree size | R35: Diameter M | S35: RPA Radius M | T35: RPA ha | W35: Local Authority List | X35: Application type
B36: High | C36: Highly connected habitat | D36: 1.15 | F36: Formally identified in local strategy | G36: High strategic significance | H36: 1.15 | J36: Medium | K36: 0.67 | M36: Compensation inside LPA or NCA, or deemed to be sufficiently local, to site of biodiversity loss | N36: 1 | Q36: Small | R36: 0.3 | S36: =R36*12 -> 3.6 | T36: =3.14*(S36*S36)/10000 -> 0.00406944 | W36: Adur and Worthing Borough Council | X36: Householder planning consent
B37: Medium | C37: Moderately connected habitat | D37: 1.1 | F37: Area/compensation not in local strategy/ no local strategy | G37: Low Strategic Significance | H37: 1 | J37: High | K37: 0.33 | M37: Compensation outside LPA or NCA of impact site but in neighbouring LPA or NCA | N37: 0.75 | Q37: Medium | R37: 0.9 | S37: =R37*12 -> 10.8 | T37: =3.14*(S37*S37)/10000 -> 0.03662496 | W37: Adur District Council | X37: Full planning consent
B38: Low | C38: Unconnected habitat | D38: 1 | J38: Very High | K38: 0.1 | M38: Compensation outside LPA or NCA of impact site and beyond neighbouring LPA or NCA | N38: 0.5 | Q38: Large | R38: 1.3 | S38: =R38*12 -> 15.6 | T38: =3.14*(S38*S38)/10000 -> 0.07641504 | W38: Allerdale Borough Council | X38: Hybrid planning consent
B39: N/A | C39: Assessment not appropriate | D39: 1 | W39: Amber Valley Borough Council | X39: Outline planning consent
W40: Arun District Council | X40: Reserved Matters
W41: Ashfield District Council | X41: Listed building consent
W42: Ashford Borough Council | X42: Advertisement consent
W43: Aylesbury Vale District Council | X43: Lawful Development Certificate (LDC)
W44: Babergh District Council | X44: Prior notification
B45: Distinctiveness categories | F45: Condition categories | I45: Temporal multipliers | M45: Individual trees | S45: Hedges Distinctiveness categories | W45: Barnsley Metropolitan Borough Council | X45: Removal/variation of conditions
B46: Distinctiveness Category | C46: Distinctiveness Score | D46: Suggested Action | F46: Condition Multiplier | G46: Condition Assessment Score | I46: Year | J46: % of original unit | K46: Time to target Multiplier | M46: Tree size | N46: Diameter M | O46: RPA Radius M | P46: RPA m2 | S46: Distinctiveness Category | T46: Distinctiveness Score | U46: Suggested Action | W46: Barrow-in-Furness Borough Council | X46: Approval of conditions
B47: Medium | C47: 4 | D47: Same broad habitat or a higher distinctiveness habitat required | F47: Good | G47: 3 | I47: 0 | J47: 100 | K47: 1 | M47: Small | N47: 0.3 | O47: =N47*12 -> 3.6 | P47: =3.14*(O47*O47) -> 40.6944 | S47: Medium | T47: 4 | U47: Same broad habitat or a higher distinctiveness habitat required | W47: Basildon Borough Council | X47: Consent under Tree Preservation Orders
B48: Low | C48: 2 | D48: Same distinctiveness or better habitat required | F48: Moderate | G48: 2 | I48: 1 | J48: 96.5 | K48: 0.965 | M48: Medium | N48: 0.6 | O48: 7.2 | P48: =3.14*(O48*O48) -> 162.7776 | S48: Low | T48: 2 | U48: Same distinctiveness or better habitat required | W48: Basingstoke and Deane Borough Council | X48: Notification of proposed works to trees in conservation areas
B49: V.Low | C49: 0 | D49: Compensation Not Required | F49: Poor | G49: 1 | I49: 2 | J49: 93.1225 | K49: 0.931225 | M49: Large | N49: 0.9 | O49: 10.8 | P49: =3.14*(O49*O49) -> 366.2496 | S49: V.Low | T49: 1 | U49: Compensation Not Required | W49: Bassetlaw District Council | X49: Application for non-material amendments
B50: High | C50: 6 | D50: Same broad habitat or a higher distinctiveness habitat required | F50: Condition Assessment N/A | G50: 1 | I50: 3 | J50: 89.8632125 | K50: 0.898632125 | M50: Very Large | N50: 1.3 | O50: 15.6 | P50: =3.14*(O50*O50) -> 764.1504 | S50: High | T50: 6 | U50: Same broad habitat or a higher distinctiveness habitat required | W50: Bath and North East Somerset Council | X50: Other
F51: N/A - Other | G51: 0 | I51: 4 | J51: 86.71800006 | K51: 0.8671800006 | W51: Bedford Borough Council
I52: 5 | J52: 83.68287006 | K52: 0.8368287006 | W52: Birmingham City Council
I53: 6 | J53: 80.75396961 | K53: 0.8075396961 | W53: Blaby District Council
I54: 7 | J54: 77.92758067 | K54: 0.7792758067 | W54: Blackburn with Darwen Borough Council
I55: 8 | J55: 75.20011535 | K55: 0.7520011535 | W55: Blackpool Borough Council
I56: 9 | J56: 72.56811131 | K56: 0.7256811131 | W56: Blaenau Gwent County Borough Council
I57: 10 | J57: 70.02822742 | K57: 0.7002822742 | W57: Bolsover District Council
I58: 11 | J58: 67.57723946 | K58: 0.6757723946 | W58: Bolton Metropolitan Borough Council
I59: 12 | J59: 65.21203607 | K59: 0.6521203607 | W59: Borough of Broxbourne
I60: 13 | J60: 62.92961481 | K60: 0.6292961481 | W60: Borough of Poole
I61: 14 | J61: 60.72707829 | K61: 0.6072707829 | W61: Boston Borough Council
I62: 15 | J62: 58.60163055 | K62: 0.5860163055 | W62: Bournemouth Borough Council
I63: 16 | J63: 56.55057348 | K63: 0.5655057348 | W63: Bracknell Forest Council
I64: 17 | J64: 54.57130341 | K64: 0.5457130341 | W64: Bradford Metropolitan District Council
I65: 18 | J65: 52.66130779 | K65: 0.5266130779 | W65: Braintree District Council
I66: 19 | J66: 50.81816202 | K66: 0.5081816202 | W66: Breckland District Council
I67: 20 | J67: 49.03952635 | K67: 0.4903952635 | W67: Brentwood Borough Council
I68: 21 | J68: 47.32314293 | K68: 0.4732314293 | W68: Bridgend County Borough Council
I69: 22 | J69: 45.66683292 | K69: 0.4566683292 | W69: Brighton and Hove City Council
I70: 23 | J70: 44.06849377 | K70: 0.4406849377 | W70: Bristol City Council
I71: 24 | J71: 42.52609649 | K71: 0.4252609649 | W71: Broadland District Council
I72: 25 | J72: 41.03768311 | K72: 0.4103768311 | W72: Bromsgrove District Council
I73: 26 | J73: 39.6013642 | K73: 0.396013642 | W73: Broxtowe Borough Council
I74: 27 | J74: 38.21531646 | K74: 0.3821531646 | W74: Buckinghamshire County Council
I75: 28 | J75: 36.87778038 | K75: 0.3687778038 | W75: Burnley Borough Council
I76: 29 | J76: 35.58705807 | K76: 0.3558705807 | W76: Bury Metropolitan Borough Council
I77: 30 | J77: 34.34151104 | K77: 0.3434151104 | W77: Caerphilly County Borough Council
I78: 31 | J78: 33.13955815 | K78: 0.3313955815 | W78: Calderdale Metropolitan Borough Council
